Workbook

Sheet BD_2021 (hidden)
A1: NC | B1: UNIDADE | C1: ENTIDADE | D1: DE | E1: EMEB | F1: COMPL | G1: NOME | H1: CNPJ | I1: Nº DO PROCESSO DIGITAL PARCERIA | J1: Nº DO PROCESSO DIGITAL PAGAMENTO | K1: Nº DO PROCESSO PREST. CONTAS | L1: Termo de Colaboração nº | M1: Data da assinatura do Termo de Colaboração | N1: Aditamento | O1: Sequência | P1: Data de assinatura do Termo de Aditamento Prorrogação | Q1: Início | R1: Término | S1: Endereço | T1: Bairro | U1: Município | V1: CEP | W1: Telefone | X1: e-mail | Y1: Representante Legal | Z1: Período do Mandato | AA1: Banco | AB1: Agência | AC1: OP | AD1: Conta Corrente | AE1: Conta Poupança | AF1: PREVISÃO DE PAGAMENTO OP 1ª PARCELA | AG1: BERÇÁRIO I QUANT. ALUNOS | AH1: BERÇÁRIO I QUANT. TURMAS | AI1: INFANTIL I E II QUANT. ALUNOS | AJ1: INFANTIL I E II QUANT. TURMAS | AK1: TOTAL DE ALUNOS GERAL | AL1: TOTAL DE TURMAS GERAL | AM1: PER CAPITA BERÇÁRIO | AN1: PER CAPITA CRECHE | AO1: VPC BERÇÁRIO | AP1: VPC CRECHE | AQ1: REPASSE PER CAPITA MENSAL | AR1: VALOR PER CAPITA ANUAL | AT1: DESPESAS COM PESSOAL MENSAL JAN/FEV | AU1: DESPESAS COM PESSOAL MENSAL MAR/DEZ | AV1: 13º SALÁRIO | AW1: LOCAÇÃO MENSAL | AX1: CUSTEIO MENSAL JAN/FEV | AY1: CAPITAL MENSAL JAN/FEV | AZ1: CUSTEIO MENSAL MAR/DEZ | BA1: CAPITAL MENSAL MAR/DEZ | BB1: VALOR PER CAPITA ANUAL | BC1: COMPLEMENTAÇÃO CUSTEIO | BD1: 13º SALÁRIO | BE1: PROGRAMA ESCOLA LINDA | BF1: KIT BERÇÁRIO CUSTEIO | BG1: KIT BERÇÁRIO CAPITAL | BH1: EDUCAÇÃO MAKER CUSTEIO | BI1: EDUCAÇÃO MAKER CAPITAL | BJ1: BENS PERMANENTES (R$ 330,00 por turma) | BK1: BENS PERMANENTES uso geral (PER CAPITA) | BL1: LOCAÇÃO ANUAL | BM1: TOTAL CUSTEIO | BN1: TOTAL CAPITAL | BO1: TOTAL PLANO DE TRABALHO | BP1: JANEIRO 2020 CUSTEIO | BQ1: JANEIRO 2020 CAPITAL | BR1: JANEIRO 2020 TOTAL | BS1: FEVEREIRO 2020 CUSTEIO | BT1: FEVEREIRO 2020 CAPITAL | BU1: FEVEREIRO 2020 TOTAL | BV1: MARÇO 2020 CUSTEIO | BW1: MARÇO 2020 CAPITAL | BX1: MARÇO 2020 TOTAL | BY1: ABRIL 2020 CUSTEIO | BZ1: ABRIL 2020 CAPITAL | CA1: ABRIL 2020 TOTAL | CB1: MAIO 2020 CUSTEIO | CC1: MAIO 2020 CAPITAL | CD1: MAIO 2020 TOTAL | CE1: JUNHO 2020 CUSTEIO | CF1: JUNHO 2020 CAPITAL | CG1: JUNHO 2020 TOTAL | CH1: JULHO 2020 CUSTEIO | CI1: JULHO 2020 CAPITAL | CJ1: JULHO 2020 TOTAL | CK1: AGOSTO 2020 CUSTEIO | CL1: AGOSTO 2020 CAPITAL | CM1: AGOSTO 2020 TOTAL | CN1: SETEMBRO 2020 CUSTEIO | CO1: SETEMBRO 2020 CAPITAL | CP1: SETEMBRO 2020 TOTAL | CQ1: OUTUBRO 2020 CUSTEIO | CR1: OUTUBRO 2020 CAPITAL | CS1: OUTUBRO 2020 TOTAL | CT1: NOVEMBRO 2020 CUSTEIO | CU1: NOVEMBRO 2020 CAPITAL | CV1: NOVEMBRO 2020 TOTAL | CW1: DEZEMBRO 2020 CUSTEIO | CX1: DEZEMBRO 2020 CAPITAL | CY1: DEZEMBRO 2020 TOTAL | CZ1: DESPESAS DE PESSOAL | DA1: DESPESAS DE CONSUMO | DB1: EPI E EXAMES PERIÓDICOS | DC1: MATERIAIS DIDÁTICOS | DD1: MATERIAIS DE ESCRITÓRIO | DE1: MATERIAIS PARA BIBLIOTECA | DF1: MATERIAIS PARA EDUCAÇÃO FÍSICA E RECREAÇÃO | DG1: MATERIAIS DE LIMPEZA E HIGIENE/ ITENS DE CAMA E BANHO | DH1: ESTUDO DO MEIO | DI1: PEQUENAS DESPESAS COM MANUTENÇÃO DO IMÓVEL | DJ1: PROGRAMA ESCOLA LINDA - CUSTEIO | DK1: CONTABILIDADE | DL1: COMBUSTÍVEL PARA DESLOCAMENTOS À SE | DM1: LOCAÇÃO DO IMÓVEL | DN1: EDUCAÇÃO MAKER CUSTEIO | DO1: EDUCAÇÃO MAKER CAPITAL | DP1: BENS PERMANENTES | DQ1: CUSTEIO VALOR TOTAL | DR1: CAPITAL VALOR TOTAL | DS1: VALOR TOTAL DO PLANO DE TRABALHO | DU1: DESPESAS DE PESSOAL Janeiro | DV1: DESPESAS DE CONSUMO Janeiro | DW1: EPI E EXAMES PERIÓDICOS Janeiro | DX1: MATERIAIS DIDÁTICOS Janeiro | DY1: MATERIAIS DE ESCRITÓRIO Janeiro | DZ1: MATERIAIS PARA BIBLIOTECA Janeiro | EA1: MATERIAIS PARA EDUCAÇÃO FÍSICA E RECREAÇÃO Janeiro | EB1: MATERIAIS DE LIMPEZA E HIGIENE/ ITENS DE CAMA E BANHO Janeiro | EC1: ESTUDO DO MEIO Janeiro | ED1: PEQUENAS DESPESAS COM MANUTENÇÃO DO IMÓVEL Janeiro | EE1: PROGRAMA ESCOLA LINDA - CUSTEIO Janeiro | EF1: CONTABILIDADE Janeiro | EG1: COMBUSTÍVEL PARA DESLOCAMENTOS À SE Janeiro | EH1: LOCAÇÃO DO IMÓVEL Janeiro | EI1: EDUCAÇÃO MAKER CUSTEIO Janeiro | EJ1: EDUCAÇÃO MAKER CAPITAL Janeiro | EK1: BENS PERMANENTES Janeiro | EL1: CUSTEIO VALOR TOTAL Janeiro | EM1: CAPITAL VALOR TOTAL Janeiro | EN1: VALOR TOTAL DO PLANO DE TRABALHO Janeiro | EO1: DESPESAS DE PESSOAL Fevereiro | EP1: DESPESAS DE CONSUMO Fevereiro | EQ1: EPI E EXAMES PERIÓDICOS Fevereiro | ER1: MATERIAIS DIDÁTICOS Fevereiro | ES1: MATERIAIS DE ESCRITÓRIO Fevereiro | ET1: MATERIAIS PARA BIBLIOTECA Fevereiro | EU1: MATERIAIS PARA EDUCAÇÃO FÍSICA E RECREAÇÃO Fevereiro | EV1: MATERIAIS DE LIMPEZA E HIGIENE/ ITENS DE CAMA E BANHO Fevereiro | EW1: ESTUDO DO MEIO Fevereiro | EX1: PEQUENAS DESPESAS COM MANUTENÇÃO DO IMÓVEL Fevereiro | EY1: PROGRAMA ESCOLA LINDA - CUSTEIO Fevereiro | EZ1: CONTABILIDADE Fevereiro | FA1: COMBUSTÍVEL PARA DESLOCAMENTOS À SE Fevereiro | FB1: LOCAÇÃO DO IMÓVEL Fevereiro | FC1: EDUCAÇÃO MAKER CUSTEIO Fevereiro | FD1: EDUCAÇÃO MAKER CAPITAL Fevereiro | FE1: BENS PERMANENTES Fevereiro | FF1: CUSTEIO VALOR TOTAL Fevereiro | FG1: CAPITAL VALOR TOTAL Fevereiro | FH1: VALOR TOTAL DO PLANO DE TRABALHO Fevereiro | FI1: DESPESAS DE PESSOAL Março | FJ1: DESPESAS DE CONSUMO Março | FK1: EPI E EXAMES PERIÓDICOS Março | FL1: MATERIAIS DIDÁTICOS Março | FM1: MATERIAIS DE ESCRITÓRIO Março | FN1: MATERIAIS PARA BIBLIOTECA Março | FO1: MATERIAIS PARA EDUCAÇÃO FÍSICA E RECREAÇÃO Março | FP1: MATERIAIS DE LIMPEZA E HIGIENE/ ITENS DE CAMA E BANHO Março | FQ1: ESTUDO DO MEIO Março | FR1: PEQUENAS DESPESAS COM MANUTENÇÃO DO IMÓVEL Março | FS1: PROGRAMA ESCOLA LINDA - CUSTEIO Março | FT1: CONTABILIDADE Março | FU1: COMBUSTÍVEL PARA DESLOCAMENTOS À SE Março | FV1: LOCAÇÃO DO IMÓVEL Março | FW1: EDUCAÇÃO MAKER CUSTEIO Março | FX1: EDUCAÇÃO MAKER CAPITAL Março | FY1: BENS PERMANENTES Março | FZ1: CUSTEIO VALOR TOTAL Março | GA1: CAPITAL VALOR TOTAL Março | GB1: VALOR TOTAL DO PLANO DE TRABALHO Março | GC1: DESPESAS DE PESSOAL Abril | GD1: DESPESAS DE CONSUMO Abril | GE1: EPI E EXAMES PERIÓDICOS Abril | GF1: MATERIAIS DIDÁTICOS Abril | GG1: MATERIAIS DE ESCRITÓRIO Abril | GH1: MATERIAIS PARA BIBLIOTECA Abril | GI1: MATERIAIS PARA EDUCAÇÃO FÍSICA E RECREAÇÃO Abril | GJ1: MATERIAIS DE LIMPEZA E HIGIENE/ ITENS DE CAMA E BANHO Abril | GK1: ESTUDO DO MEIO Abril | GL1: PEQUENAS DESPESAS COM MANUTENÇÃO DO IMÓVEL Abril | GM1: PROGRAMA ESCOLA LINDA - CUSTEIO Abril | GN1: CONTABILIDADE Abril | GO1: COMBUSTÍVEL PARA DESLOCAMENTOS À SE Abril | GP1: LOCAÇÃO DO IMÓVEL Abril | GQ1: EDUCAÇÃO MAKER CUSTEIO Abril | GR1: EDUCAÇÃO MAKER CAPITAL Abril | GS1: BENS PERMANENTES Abril | GT1: CUSTEIO VALOR TOTAL Abril | GU1: CAPITAL VALOR TOTAL Abril | GV1: VALOR TOTAL DO PLANO DE TRABALHO Abril | GW1: DESPESAS DE PESSOAL Maio | GX1: DESPESAS DE CONSUMO Maio | GY1: EPI E EXAMES PERIÓDICOS Maio | GZ1: MATERIAIS DIDÁTICOS Maio | HA1: MATERIAIS DE ESCRITÓRIO Maio | HB1: MATERIAIS PARA BIBLIOTECA Maio | HC1: MATERIAIS PARA EDUCAÇÃO FÍSICA E RECREAÇÃO Maio | HD1: MATERIAIS DE LIMPEZA E HIGIENE/ ITENS DE CAMA E BANHO Maio | HE1: ESTUDO DO MEIO Maio | HF1: PEQUENAS DESPESAS COM MANUTENÇÃO DO IMÓVEL Maio | HG1: PROGRAMA ESCOLA LINDA - CUSTEIO Maio | HH1: CONTABILIDADE Maio | HI1: COMBUSTÍVEL PARA DESLOCAMENTOS À SE Maio | HJ1: LOCAÇÃO DO IMÓVEL Maio | HK1: EDUCAÇÃO MAKER CUSTEIO Maio | HL1: EDUCAÇÃO MAKER CAPITAL Maio | HM1: BENS PERMANENTES Maio | HN1: CUSTEIO VALOR TOTAL Maio | HO1: CAPITAL VALOR TOTAL Maio | HP1: VALOR TOTAL DO PLANO DE TRABALHO Maio | HQ1: DESPESAS DE PESSOAL Junho | HR1: DESPESAS DE CONSUMO Junho | HS1: EPI E EXAMES PERIÓDICOS Junho | HT1: MATERIAIS DIDÁTICOS Junho | HU1: MATERIAIS DE ESCRITÓRIO Junho | HV1: MATERIAIS PARA BIBLIOTECA Junho | HW1: MATERIAIS PARA EDUCAÇÃO FÍSICA E RECREAÇÃO Junho | HX1: MATERIAIS DE LIMPEZA E HIGIENE/ ITENS DE CAMA E BANHO Junho | HY1: ESTUDO DO MEIO Junho | HZ1: PEQUENAS DESPESAS COM MANUTENÇÃO DO IMÓVEL Junho | IA1: PROGRAMA ESCOLA LINDA - CUSTEIO Junho | IB1: CONTABILIDADE Junho | IC1: COMBUSTÍVEL PARA DESLOCAMENTOS À SE Junho | ID1: LOCAÇÃO DO IMÓVEL Junho | IE1: EDUCAÇÃO MAKER CUSTEIO Junho | IF1: EDUCAÇÃO MAKER CAPITAL Junho | IG1: BENS PERMANENTES Junho | IH1: CUSTEIO VALOR TOTAL Junho | II1: CAPITAL VALOR TOTAL Junho | IJ1: VALOR TOTAL DO PLANO DE TRABALHO Junho | IK1: DESPESAS DE PESSOAL Julho | IL1: DESPESAS DE CONSUMO Julho | IM1: EPI E EXAMES PERIÓDICOS Julho | IN1: MATERIAIS DIDÁTICOS Julho | IO1: MATERIAIS DE ESCRITÓRIO Julho | IP1: MATERIAIS PARA BIBLIOTECA Julho | IQ1: MATERIAIS PARA EDUCAÇÃO FÍSICA E RECREAÇÃO Julho | IR1: MATERIAIS DE LIMPEZA E HIGIENE/ ITENS DE CAMA E BANHO Julho | IS1: ESTUDO DO MEIO Julho | IT1: PEQUENAS DESPESAS COM MANUTENÇÃO DO IMÓVEL Julho | IU1: PROGRAMA ESCOLA LINDA - CUSTEIO Julho | IV1: CONTABILIDADE Julho | IW1: COMBUSTÍVEL PARA DESLOCAMENTOS À SE Julho | IX1: LOCAÇÃO DO IMÓVEL Julho | IY1: EDUCAÇÃO MAKER CUSTEIO Julho | IZ1: EDUCAÇÃO MAKER CAPITAL Julho | JA1: BENS PERMANENTES Julho | JB1: CUSTEIO VALOR TOTAL Julho | JC1: CAPITAL VALOR TOTAL Julho | JD1: VALOR TOTAL DO PLANO DE TRABALHO Julho | JE1: DESPESAS DE PESSOAL Agosto | JF1: DESPESAS DE CONSUMO Agosto | JG1: EPI E EXAMES PERIÓDICOS Agosto | JH1: MATERIAIS DIDÁTICOS Agosto | JI1: MATERIAIS DE ESCRITÓRIO Agosto | JJ1: MATERIAIS PARA BIBLIOTECA Agosto | JK1: MATERIAIS PARA EDUCAÇÃO FÍSICA E RECREAÇÃO Agosto | JL1: MATERIAIS DE LIMPEZA E HIGIENE/ ITENS DE CAMA E BANHO Agosto | JM1: ESTUDO DO MEIO Agosto | JN1: PEQUENAS DESPESAS COM MANUTENÇÃO DO IMÓVEL Agosto | JO1: PROGRAMA ESCOLA LINDA - CUSTEIO Agosto | JP1: CONTABILIDADE Agosto | JQ1: COMBUSTÍVEL PARA DESLOCAMENTOS À SE Agosto | JR1: LOCAÇÃO DO IMÓVEL Agosto | JS1: EDUCAÇÃO MAKER CUSTEIO Agosto | JT1: EDUCAÇÃO MAKER CAPITAL Agosto | JU1: BENS PERMANENTES Agosto | JV1: CUSTEIO VALOR TOTAL Agosto | JW1: CAPITAL VALOR TOTAL Agosto | JX1: VALOR TOTAL DO PLANO DE TRABALHO Agosto | JY1: DESPESAS DE PESSOAL Setembro | JZ1: DESPESAS DE CONSUMO Setembro | KA1: EPI E EXAMES PERIÓDICOS Setembro | KB1: MATERIAIS DIDÁTICOS Setembro | KC1: MATERIAIS DE ESCRITÓRIO Setembro | KD1: MATERIAIS PARA BIBLIOTECA Setembro | KE1: MATERIAIS PARA EDUCAÇÃO FÍSICA E RECREAÇÃO Setembro | KF1: MATERIAIS DE LIMPEZA E HIGIENE/ ITENS DE CAMA E BANHO Setembro | KG1: ESTUDO DO MEIO Setembro | KH1: PEQUENAS DESPESAS COM MANUTENÇÃO DO IMÓVEL Setembro | KI1: PROGRAMA ESCOLA LINDA - CUSTEIO Setembro | KJ1: CONTABILIDADE Setembro | KK1: COMBUSTÍVEL PARA DESLOCAMENTOS À SE Setembro | KL1: LOCAÇÃO DO IMÓVEL Setembro | KM1: EDUCAÇÃO MAKER CUSTEIO Setembro | KN1: EDUCAÇÃO MAKER CAPITAL Setembro | KO1: BENS PERMANENTES Setembro | KP1: CUSTEIO VALOR TOTAL Setembro | KQ1: CAPITAL VALOR TOTAL Setembro | KR1: VALOR TOTAL DO PLANO DE TRABALHO Setembro | KS1: DESPESAS DE PESSOAL Outubro | KT1: DESPESAS DE CONSUMO Outubro | KU1: EPI E EXAMES PERIÓDICOS Outubro | KV1: MATERIAIS DIDÁTICOS Outubro | KW1: MATERIAIS DE ESCRITÓRIO Outubro | KX1: MATERIAIS PARA BIBLIOTECA Outubro | KY1: MATERIAIS PARA EDUCAÇÃO FÍSICA E RECREAÇÃO Outubro | KZ1: MATERIAIS DE LIMPEZA E HIGIENE/ ITENS DE CAMA E BANHO Outubro | LA1: ESTUDO DO MEIO Outubro | LB1: PEQUENAS DESPESAS COM MANUTENÇÃO DO IMÓVEL Outubro | LC1: PROGRAMA ESCOLA LINDA - CUSTEIO Outubro | LD1: CONTABILIDADE Outubro | LE1: COMBUSTÍVEL PARA DESLOCAMENTOS À SE Outubro | LF1: LOCAÇÃO DO IMÓVEL Outubro | LG1: EDUCAÇÃO MAKER CUSTEIO Outubro | LH1: EDUCAÇÃO MAKER CAPITAL Outubro | LI1: BENS PERMANENTES Outubro | LJ1: CUSTEIO VALOR TOTAL Outubro | LK1: CAPITAL VALOR TOTAL Outubro | LL1: VALOR TOTAL DO PLANO DE TRABALHO Outubro | LM1: DESPESAS DE PESSOAL Novembro | LN1: DESPESAS DE CONSUMO Novembro | LO1: EPI E EXAMES PERIÓDICOS Novembro | LP1: MATERIAIS DIDÁTICOS Novembro | LQ1: MATERIAIS DE ESCRITÓRIO Novembro | LR1: MATERIAIS PARA BIBLIOTECA Novembro | LS1: MATERIAIS PARA EDUCAÇÃO FÍSICA E RECREAÇÃO Novembro | LT1: MATERIAIS DE LIMPEZA E HIGIENE/ ITENS DE CAMA E BANHO Novembro | LU1: ESTUDO DO MEIO Novembro | LV1: PEQUENAS DESPESAS COM MANUTENÇÃO DO IMÓVEL Novembro | LW1: PROGRAMA ESCOLA LINDA - CUSTEIO Novembro | LX1: CONTABILIDADE Novembro | LY1: COMBUSTÍVEL PARA DESLOCAMENTOS À SE Novembro | LZ1: LOCAÇÃO DO IMÓVEL Novembro | MA1: EDUCAÇÃO MAKER CUSTEIO Novembro | MB1: EDUCAÇÃO MAKER CAPITAL Novembro | MC1: BENS PERMANENTES Novembro | MD1: CUSTEIO VALOR TOTAL Novembro | ME1: CAPITAL VALOR TOTAL Novembro | MF1: VALOR TOTAL DO PLANO DE TRABALHO Novembro | MG1: DESPESAS DE PESSOAL Dezembro | MH1: DESPESAS DE CONSUMO Dezembro | MI1: EPI E EXAMES PERIÓDICOS Dezembro | MJ1: MATERIAIS DIDÁTICOS Dezembro | MK1: MATERIAIS DE ESCRITÓRIO Dezembro | ML1: MATERIAIS PARA BIBLIOTECA Dezembro | MM1: MATERIAIS PARA EDUCAÇÃO FÍSICA E RECREAÇÃO Dezembro | MN1: MATERIAIS DE LIMPEZA E HIGIENE/ ITENS DE CAMA E BANHO Dezembro | MO1: ESTUDO DO MEIO Dezembro | MP1: PEQUENAS DESPESAS COM MANUTENÇÃO DO IMÓVEL Dezembro | MQ1: PROGRAMA ESCOLA LINDA - CUSTEIO Dezembro | MR1: CONTABILIDADE Dezembro | MS1: COMBUSTÍVEL PARA DESLOCAMENTOS À SE Dezembro | MT1: LOCAÇÃO DO IMÓVEL Dezembro | MU1: EDUCAÇÃO MAKER CUSTEIO Dezembro | MV1: EDUCAÇÃO MAKER CAPITAL Dezembro | MW1: BENS PERMANENTES Dezembro | MX1: CUSTEIO VALOR TOTAL Dezembro | MY1: CAPITAL VALOR TOTAL Dezembro | MZ1: VALOR TOTAL DO PLANO DE TRABALHO Dezembro | NA1: Termo nº | NB1: Data início TC | NC1: Data vigência TC | ND1: Valor TC | NE1: TA nº Primeiro | NF1: Sequência Primeiro | NG1: Data início Primeiro | NH1: Data vigência Primeiro | NI1: Valor Primeiro | NJ1: TA nº Segundo | NK1: Sequência Segundo | NL1: Data início Segundo | NM1: Data vigência Segundo | NN1: Valor Segundo | NO1: TA nº Terceiro | NP1: Sequência Terceiro | NQ1: Data início Terceiro | NR1: Data vigência Terceiro | NS1: Valor Terceiro | NT1: TA nº Quarto | NU1: Sequência Quarto | NV1: Data início Quarto | NW1: Data vigência Quarto | NX1: Valor Quarto | NY1: TA nº Quinto | NZ1: Sequência Quinto | OA1: Data início Quinto | OB1: Data vigência Quinto | OC1: Valor Quinto | OD1: TA nº Sexto | OE1: Sequência Sexto | OF1: Data início Sexto | OG1: Data vigência Sexto | OH1: Valor Sexto | OI1: TA nº Sétimo | OJ1: Sequência Sétimo | OK1: Data início Sétimo | OL1: Data vigência Sétimo | OM1: Valor Sétimo | ON1: TA nº Oitavo | OO1: Sequência Oitavo | OP1: Data início Oitavo | OQ1: Data vigência Oitavo | OR1: Valor Oitavo | OS1: TA nº Nono | OT1: Sequência Nono | OU1: Data início Nono | OV1: Data vigência Nono | OW1: Valor Nono | OX1: TA nº Décimo | OY1: Sequência Décimo | OZ1: Data início Décimo | PA1: Data vigência Décimo | PB1: Valor Décimo
A2: 1 | B2: ABASC - Associação Brasileira de Ação Social Cristã | G2: ABASC | H2: 11.983.300/0001-54 | I2: SB.054216/2020-81 | J2: SB.085058/2020-32 | K2: SB.066542/2020-99 | L2: 04/2020-SE | N2: 1/2021-SE | O2: Primeiro | P2: 2021-01-28 | Q2: 2021-01-01 | R2: 2021-12-31 | S2: Rua Paraguaçu, 150 | T2: Alvarenga | U2: S.B.Campo | V2: 09850-700 | W2: 4336-3416 / 98616-0306 | X2: administrativo@abasc.com.br/ centrodeapoiomaoamiga@gmail.com | Y2: Veranilda de Oliveira Guimarães | Z2: 03/01/2019 a 02/01/2021 | AA2: Caixa Econômica Federal | AB2: 0346 | AC2: 003 | AD2: 4016-5 | AG2: 20 | AH2: 2 | AI2: 64 | AJ2: 4 | AK2: 84 | AL2: 6 | AM2: 732.27 | AN2: 585.76 | AO2: 14645.4 | AP2: 37488.64 | AQ2: 52134.04 | AR2: 625608.48 | AT2: 40614.45 | AU2: 42645.17 | AV2: 38231.59 | AW2: 8000 | AX2: 11519.59 | AY2: 0 | AZ2: 9488.87 | BA2: 0 | BB2: 625608.48 | BD2: 38231.59 | BE2: 34000 | BH2: 1800 | BI2: 1500 | BJ2: 1980 | BL2: 96000 | BM2: 795640.07 | BN2: 3480 | BO2: 799120.07 | BP2: 49549.8 | BQ2: 1980 | BR2: 51529.8 | BS2: 73898.77 | BT2: 0 | BU2: 73898.77 | BV2: 60134.04 | BW2: 0 | BX2: 60134.04 | BY2: 61934.04 | BZ2: 1500 | CA2: 63434.04 | CB2: 60134.04 | CC2: 0 | CD2: 60134.04 | CE2: 60134.04 | CF2: 0 | CG2: 60134.04 | CH2: 60134.04 | CI2: 0 | CJ2: 60134.04 | CK2: 60134.04 | CL2: 0 | CM2: 60134.04 | CN2: 60134.04 | CO2: 0 | CP2: 60134.04 | CQ2: 60134.04 | CR2: 0 | CS2: 60134.04 | CT2: 60134.04 | CU2: 0 | CV2: 60134.04 | CW2: 79249.83 | CX2: 0 | CY2: 79249.83 | CZ2: 545912.19 | DA2: 29000 | DB2: 2600 | DC2: 10400 | DD2: 11338.7 | DE2: 6000 | DF2: 0 | DG2: 13000 | DH2: 0 | DI2: 31249.18 | DJ2: 34000 | DK2: 12540 | DL2: 1800 | DM2: 96000 | DN2: 1800 | DO2: 1500 | DP2: 1980 | DQ2: 795640.07 | DR2: 3480 | DS2: 799120.07 | DU2: 13030.21 | DV2: 2000 | DW2: 800 | DX2: 1200 | DY2: 1200 | DZ2: 500 | EA2: 0 | EB2: 1500 | EC2: 0 | ED2: 3124.59 | EE2: 17000 | EF2: 1045 | EG2: 150 | EH2: 8000 | EI2: 0 | EJ2: 0 | EK2: 1980 | EL2: 49549.8 | EM2: 1980 | EN2: 51529.8 | EO2: 37379.18 | EP2: 2000 | EQ2: 800 | ER2: 1200 | ES2: 1200 | ET2: 500 | EU2: 0 | EV2: 1500 | EW2: 0 | EX2: 3124.59 | EY2: 17000 | EZ2: 1045 | FA2: 150 | FB2: 8000 | FC2: 0 | FD2: 0 | FE2: 0 | FF2: 73898.77 | FG2: 0 | FH2: 73898.77 | FI2: 42645.17 | FJ2: 2500 | FK2: 100 | FL2: 800 | FM2: 893.87 | FN2: 500 | FO2: 0 | FP2: 1000 | FQ2: 0 | FR2: 2500 | FS2: 0 | FT2: 1045 | FU2: 150 | FV2: 8000 | FW2: 0 | FX2: 0 | FY2: 0 | FZ2: 60134.04 | GA2: 0 | GB2: 60134.04 | GC2: 42645.17 | GD2: 2500 | GE2: 100 | GF2: 800 | GG2: 893.87 | GH2: 500 | GI2: 0 | GJ2: 1000 | GK2: 0 | GL2: 2500 | GM2: 0 | GN2: 1045 | GO2: 150 | GP2: 8000 | GQ2: 1800 | GR2: 1500 | GS2: 0 | GT2: 61934.04 | GU2: 1500 | GV2: 63434.04 | GW2: 42645.17 | GX2: 2500 | GY2: 100 | GZ2: 800 | HA2: 893.87 | HB2: 500 | HC2: 0 | HD2: 1000 | HE2: 0 | HF2: 2500 | HG2: 0 | HH2: 1045 | HI2: 150 | HJ2: 8000 | HK2: 0 | HL2: 0 | HM2: 0 | HN2: 60134.04 | HO2: 0 | HP2: 60134.04 | HQ2: 42645.17 | HR2: 2500 | HS2: 100 | HT2: 800 | HU2: 893.87 | HV2: 500 | HW2: 0 | HX2: 1000 | HY2: 0 | HZ2: 2500 | IA2: 0 | IB2: 1045 | IC2: 150 | ID2: 8000 | IE2: 0 | IF2: 0 | IG2: 0 | IH2: 60134.04 | II2: 0 | IJ2: 60134.04 | IK2: 42645.17 | IL2: 2500 | IM2: 100 | IN2: 800 | IO2: 893.87 | IP2: 500 | IQ2: 0 | IR2: 1000 | IS2: 0 | IT2: 2500 | IU2: 0 | IV2: 1045 | IW2: 150 | IX2: 8000 | IY2: 0 | IZ2: 0 | JA2: 0 | JB2: 60134.04 | JC2: 0 | JD2: 60134.04 | JE2: 42645.17 | JF2: 2500 | JG2: 100 | JH2: 800 | JI2: 893.87 | JJ2: 500 | JK2: 0 | JL2: 1000 | JM2: 0 | JN2: 2500 | JO2: 0 | JP2: 1045 | JQ2: 150 | JR2: 8000 | JS2: 0 | JT2: 0 | JU2: 0 | JV2: 60134.04 | JW2: 0 | JX2: 60134.04 | JY2: 42645.17 | JZ2: 2500 | KA2: 100 | KB2: 800 | KC2: 893.87 | KD2: 500 | KE2: 0 | KF2: 1000 | KG2: 0 | KH2: 2500 | KI2: 0 | KJ2: 1045 | KK2: 150 | KL2: 8000 | KM2: 0 | KN2: 0 | KO2: 0 | KP2: 60134.04 | KQ2: 0 | KR2: 60134.04 | KS2: 42645.17 | KT2: 2500 | KU2: 100 | KV2: 800 | KW2: 893.87 | KX2: 500 | KY2: 0 | KZ2: 1000 | LA2: 0 | LB2: 2500 | LC2: 0 | LD2: 1045 | LE2: 150 | LF2: 8000 | LG2: 0 | LH2: 0 | LI2: 0 | LJ2: 60134.04 | LK2: 0 | LL2: 60134.04 | LM2: 42645.17 | LN2: 2500 | LO2: 100 | LP2: 800 | LQ2: 893.87 | LR2: 500 | LS2: 0 | LT2: 1000 | LU2: 0 | LV2: 2500 | LW2: 0 | LX2: 1045 | LY2: 150 | LZ2: 8000 | MA2: 0 | MB2: 0 | MC2: 0 | MD2: 60134.04 | ME2: 0 | MF2: 60134.04 | MG2: 61760.96 | MH2: 2500 | MI2: 100 | MJ2: 800 | MK2: 893.87 | ML2: 500 | MM2: 0 | MN2: 1000 | MO2: 0 | MP2: 2500 | MQ2: 0 | MR2: 1045 | MS2: 150 | MT2: 8000 | MU2: 0 | MV2: 0 | MW2: 0 | MX2: 79249.83 | MY2: 0 | MZ2: 79249.83 | NA2: 04/2020-SE | NB2: 2020-09-01 | NC2: 2020-12-31 | ND2: 330054.24 | NE2: 1/2021-SE | NF2: Primeiro | NG2: 2021-01-01 | NH2: 2021-12-31 | NI2: 799120.07
A3: 2 | B3: ABEF - Associação Beneficente Fidelidade | G3: ABEF | H3: 14.585.876/0001-51 | I3: SB.051714/2020-36 | J3: SB.085062/2020-02 | K3: SB.066547/2020-94 | L3: 01/2020-SE | N3: 2/2021-SE | O3: Primeiro | P3: 2021-01-26 | Q3: 2021-01-01 | R3: 2021-12-31 | S3: Rua dos Vianas, 3184 | T3: Baeta Neves | U3: S.B.Campo | V3: 09761-000 | W3: 11 971302462 / 98994-4739 | X3: abefidelidade@gmail.com / izatera@msn.com | Y3: Izaura José Terassi | Z3: 03/05/2020 a 03/05/2022 | AA3: Banco do Brasil | AB3: 6550-1 | AD3: 46047-8 | AG3: 12 | AH3: 1 | AI3: 72 | AJ3: 4 | AK3: 84 | AL3: 5 | AM3: 732.27 | AN3: 585.76 | AO3: 8787.24 | AP3: 42174.72 | AQ3: 50961.96 | AR3: 611543.52 | AT3: 38149.74 | AU3: 40057.23 | AV3: 32354 | AW3: 5500 | AX3: 12812.22 | AY3: 0 | AZ3: 10904.73 | BA3: 0 | BB3: 611543.52 | BD3: 32354 | BE3: 34000 | BH3: 1800 | BI3: 1500 | BJ3: 1650 | BL3: 66000 | BM3: 745697.52 | BN3: 3150 | BO3: 748847.52 | BP3: 47641.38 | BQ3: 1650 | BR3: 49291.38 | BS3: 70564.63 | BT3: 0 | BU3: 70564.63 | BV3: 56461.96 | BW3: 0 | BX3: 56461.96 | BY3: 58261.96 | BZ3: 1500 | CA3: 59761.96 | CB3: 56461.96 | CC3: 0 | CD3: 56461.96 | CE3: 56461.96 | CF3: 0 | CG3: 56461.96 | CH3: 56461.96 | CI3: 0 | CJ3: 56461.96 | CK3: 56461.96 | CL3: 0 | CM3: 56461.96 | CN3: 56461.96 | CO3: 0 | CP3: 56461.96 | CQ3: 56461.96 | CR3: 0 | CS3: 56461.96 | CT3: 56461.96 | CU3: 0 | CV3: 56461.96 | CW3: 72638.96 | CX3: 0 | CY3: 72638.96 | CZ3: 509225.78 | DA3: 19000 | DB3: 5000 | DC3: 12566 | DD3: 8765.74 | DE3: 9000 | DF3: 12600 | DG3: 13000 | DH3: 4400 | DI3: 36000 | DJ3: 34000 | DK3: 12540 | DL3: 1800 | DM3: 66000 | DN3: 1800 | DO3: 1500 | DP3: 1650 | DQ3: 745697.52 | DR3: 3150 | DS3: 748847.52 | DU3: 12329.16 | DV3: 2000 | DW3: 1000 | DX3: 783 | DY3: 834.22 | DZ3: 1000 | EA3: 1300 | EB3: 1500 | EC3: 200 | ED3: 3000 | EE3: 17000 | EF3: 1045 | EG3: 150 | EH3: 5500 | EI3: 0 | EJ3: 0 | EK3: 1650 | EL3: 47641.38 | EM3: 1650 | EN3: 49291.38 | EO3: 35252.41 | EP3: 2000 | EQ3: 1000 | ER3: 783 | ES3: 834.22 | ET3: 1000 | EU3: 1300 | EV3: 1500 | EW3: 200 | EX3: 3000 | EY3: 17000 | EZ3: 1045 | FA3: 150 | FB3: 5500 | FC3: 0 | FD3: 0 | FE3: 0 | FF3: 70564.63 | FG3: 0 | FH3: 70564.63 | FI3: 40057.23 | FJ3: 1500 | FK3: 300 | FL3: 1100 | FM3: 709.73 | FN3: 700 | FO3: 1000 | FP3: 1000 | FQ3: 400 | FR3: 3000 | FS3: 0 | FT3: 1045 | FU3: 150 | FV3: 5500 | FW3: 0 | FX3: 0 | FY3: 0 | FZ3: 56461.96 | GA3: 0 | GB3: 56461.96 | GC3: 40057.23 | GD3: 1500 | GE3: 300 | GF3: 1100 | GG3: 709.73 | GH3: 700 | GI3: 1000 | GJ3: 1000 | GK3: 400 | GL3: 3000 | GM3: 0 | GN3: 1045 | GO3: 150 | GP3: 5500 | GQ3: 1800 | GR3: 1500 | GS3: 0 | GT3: 58261.96 | GU3: 1500 | GV3: 59761.96 | GW3: 40057.23 | GX3: 1500 | GY3: 300 | GZ3: 1100 | HA3: 709.73 | HB3: 700 | HC3: 1000 | HD3: 1000 | HE3: 400 | HF3: 3000 | HG3: 0 | HH3: 1045 | HI3: 150 | HJ3: 5500 | HK3: 0 | HL3: 0 | HM3: 0 | HN3: 56461.96 | HO3: 0 | HP3: 56461.96 | HQ3: 40057.23 | HR3: 1500 | HS3: 300 | HT3: 1100 | HU3: 709.73 | HV3: 700 | HW3: 1000 | HX3: 1000 | HY3: 400 | HZ3: 3000 | IA3: 0 | IB3: 1045 | IC3: 150 | ID3: 5500 | IE3: 0 | IF3: 0 | IG3: 0 | IH3: 56461.96 | II3: 0 | IJ3: 56461.96 | IK3: 40057.23 | IL3: 1500 | IM3: 300 | IN3: 1100 | IO3: 709.73 | IP3: 700 | IQ3: 1000 | IR3: 1000 | IS3: 400 | IT3: 3000 | IU3: 0 | IV3: 1045 | IW3: 150 | IX3: 5500 | IY3: 0 | IZ3: 0 | JA3: 0 | JB3: 56461.96 | JC3: 0 | JD3: 56461.96 | JE3: 40057.23 | JF3: 1500 | JG3: 300 | JH3: 1100 | JI3: 709.73 | JJ3: 700 | JK3: 1000 | JL3: 1000 | JM3: 400 | JN3: 3000 | JO3: 0 | JP3: 1045 | JQ3: 150 | JR3: 5500 | JS3: 0 | JT3: 0 | JU3: 0 | JV3: 56461.96 | JW3: 0 | JX3: 56461.96 | JY3: 40057.23 | JZ3: 1500 | KA3: 300 | KB3: 1100 | KC3: 709.73 | KD3: 700 | KE3: 1000 | KF3: 1000 | KG3: 400 | KH3: 3000 | KI3: 0 | KJ3: 1045 | KK3: 150 | KL3: 5500 | KM3: 0 | KN3: 0 | KO3: 0 | KP3: 56461.96 | KQ3: 0 | KR3: 56461.96 | KS3: 40057.23 | KT3: 1500 | KU3: 300 | KV3: 1100 | KW3: 709.73 | KX3: 700 | KY3: 1000 | KZ3: 1000 | LA3: 400 | LB3: 3000 | LC3: 0 | LD3: 1045 | LE3: 150 | LF3: 5500 | LG3: 0 | LH3: 0 | LI3: 0 | LJ3: 56461.96 | LK3: 0 | LL3: 56461.96 | LM3: 40057.23 | LN3: 1500 | LO3: 300 | LP3: 1100 | LQ3: 709.73 | LR3: 700 | LS3: 1000 | LT3: 1000 | LU3: 400 | LV3: 3000 | LW3: 0 | LX3: 1045 | LY3: 150 | LZ3: 5500 | MA3: 0 | MB3: 0 | MC3: 0 | MD3: 56461.96 | ME3: 0 | MF3: 56461.96 | MG3: 56234.23 | MH3: 1500 | MI3: 300 | MJ3: 1100 | MK3: 709.73 | ML3: 700 | MM3: 1000 | MN3: 1000 | MO3: 400 | MP3: 3000 | MQ3: 0 | MR3: 1045 | MS3: 150 | MT3: 5500 | MU3: 0 | MV3: 0 | MW3: 0 | MX3: 72638.96 | MY3: 0 | MZ3: 72638.96 | NA3: 01/2020-SE | NB3: 2020-07-31 | NC3: 2020-12-31 | ND3: 363973.89 | NE3: 2/2021-SE | NF3: Primeiro | NG3: 2021-01-01 | NH3: 2021-12-31 | NI3: 748847.52
A4: 3 | B4: Aldeias Infantis SOS Brasil | G4: Aldeias Infantis SOS | H4: 49.522.303/0001-63 | I4: SB 037701/2020-21 | J4: SB.084902/2020-93 | K4: SB 083926/2019-30 | L4: 01/2017-SE | N4: 3/2021-SE | O4: Sétimo | P4: 2021-01-27 | Q4: 2021-01-01 | R4: 2021-12-31 | S4: Estrada Ernesto Zabeu, nº 200 | T4: Bairro Tatetos - Riacho Grande | U4: S.B.Campo | V4: 09837-150 | W4: 4354-0272 | X4: maria.tracatto@aldeiasinfantis.org.br | Y4: Carlos Alberto da Silva | Z4: 21/03/2020 a 21/03/2022 | AA4: Banco do Brasil | AB4: 6550-1 | AD4: 30798-x | AG4: 24 | AH4: 2 | AI4: 138 | AJ4: 7 | AK4: 162 | AL4: 9 | AM4: 732.27 | AN4: 585.76 | AO4: 17574.48 | AP4: 80834.88 | AQ4: 98409.36 | AR4: 1180912.32 | AT4: 91777.29 | AU4: 96366.16 | AV4: 68566.27 | AW4: 0 | AX4: 6632.07 | AY4: 0 | AZ4: 2043.2 | BA4: 0 | BB4: 1180912.32 | BD4: 68566.27 | BE4: 34000 | BH4: 1800 | BI4: 1500 | BJ4: 2970 | BL4: 0 | BM4: 1285278.59 | BN4: 4470 | BO4: 1289748.59 | BP4: 149692.5 | BQ4: 2970 | BR4: 152662.5 | BS4: 115409.36 | BT4: 0 | BU4: 115409.36 | BV4: 98409.36 | BW4: 0 | BX4: 98409.36 | BY4: 100209.36 | BZ4: 1500 | CA4: 101709.36 | CB4: 98409.36 | CC4: 0 | CD4: 98409.36 | CE4: 98409.36 | CF4: 0 | CG4: 98409.36 | CH4: 98409.36 | CI4: 0 | CJ4: 98409.36 | CK4: 98409.36 | CL4: 0 | CM4: 98409.36 | CN4: 98409.36 | CO4: 0 | CP4: 98409.36 | CQ4: 98409.36 | CR4: 0 | CS4: 98409.36 | CT4: 98409.36 | CU4: 0 | CV4: 98409.36 | CW4: 132692.49 | CX4: 0 | CY4: 132692.49 | CZ4: 1215782.45 | DA4: 14924.44 | DB4: 2250 | DC4: 120 | DD4: 120 | DE4: 120 | DF4: 120 | DG4: 945.7 | DH4: 120 | DI4: 120 | DJ4: 34000 | DK4: 13056 | DL4: 1800 | DM4: 0 | DN4: 1800 | DO4: 1500 | DP4: 2970 | DQ4: 1285278.59 | DR4: 4470 | DS4: 1289748.59 | DU4: 126060.43 | DV4: 3836.22 | DW4: 1075 | DX4: 10 | DY4: 10 | DZ4: 10 | EA4: 10 | EB4: 422.85 | EC4: 10 | ED4: 10 | EE4: 17000 | EF4: 1088 | EG4: 150 | EH4: 0 | EI4: 0 | EJ4: 0 | EK4: 2970 | EL4: 149692.5 | EM4: 2970 | EN4: 152662.5 | EO4: 91777.29 | EP4: 3836.22 | EQ4: 1075 | ER4: 10 | ES4: 10 | ET4: 10 | EU4: 10 | EV4: 422.85 | EW4: 10 | EX4: 10 | EY4: 17000 | EZ4: 1088 | FA4: 150 | FB4: 0 | FC4: 0 | FD4: 0 | FE4: 0 | FF4: 115409.36 | FG4: 0 | FH4: 115409.36 | FI4: 96366.16 | FJ4: 725.2 | FK4: 10 | FL4: 10 | FM4: 10 | FN4: 10 | FO4: 10 | FP4: 10 | FQ4: 10 | FR4: 10 | FS4: 0 | FT4: 1088 | FU4: 150 | FV4: 0 | FW4: 0 | FX4: 0 | FY4: 0 | FZ4: 98409.36 | GA4: 0 | GB4: 98409.36 | GC4: 96366.16 | GD4: 725.2 | GE4: 10 | GF4: 10 | GG4: 10 | GH4: 10 | GI4: 10 | GJ4: 10 | GK4: 10 | GL4: 10 | GM4: 0 | GN4: 1088 | GO4: 150 | GP4: 0 | GQ4: 1800 | GR4: 1500 | GS4: 0 | GT4: 100209.36 | GU4: 1500 | GV4: 101709.36 | GW4: 96366.16 | GX4: 725.2 | GY4: 10 | GZ4: 10 | HA4: 10 | HB4: 10 | HC4: 10 | HD4: 10 | HE4: 10 | HF4: 10 | HG4: 0 | HH4: 1088 | HI4: 150 | HJ4: 0 | HK4: 0 | HL4: 0 | HM4: 0 | HN4: 98409.36 | HO4: 0 | HP4: 98409.36 | HQ4: 96366.16 | HR4: 725.2 | HS4: 10 | HT4: 10 | HU4: 10 | HV4: 10 | HW4: 10 | HX4: 10 | HY4: 10 | HZ4: 10 | IA4: 0 | IB4: 1088 | IC4: 150 | ID4: 0 | IE4: 0 | IF4: 0 | IG4: 0 | IH4: 98409.36 | II4: 0 | IJ4: 98409.36 | IK4: 96366.16 | IL4: 725.2 | IM4: 10 | IN4: 10 | IO4: 10 | IP4: 10 | IQ4: 10 | IR4: 10 | IS4: 10 | IT4: 10 | IU4: 0 | IV4: 1088 | IW4: 150 | IX4: 0 | IY4: 0 | IZ4: 0 | JA4: 0 | JB4: 98409.36 | JC4: 0 | JD4: 98409.36 | JE4: 96366.16 | JF4: 725.2 | JG4: 10 | JH4: 10 | JI4: 10 | JJ4: 10 | JK4: 10 | JL4: 10 | JM4: 10 | JN4: 10 | JO4: 0 | JP4: 1088 | JQ4: 150 | JR4: 0 | JS4: 0 | JT4: 0 | JU4: 0 | JV4: 98409.36 | JW4: 0 | JX4: 98409.36 | JY4: 96366.16 | JZ4: 725.2 | KA4: 10 | KB4: 10 | KC4: 10 | KD4: 10 | KE4: 10 | KF4: 10 | KG4: 10 | KH4: 10 | KI4: 0 | KJ4: 1088 | KK4: 150 | KL4: 0 | KM4: 0 | KN4: 0 | KO4: 0 | KP4: 98409.36 | KQ4: 0 | KR4: 98409.36 | KS4: 96366.16 | KT4: 725.2 | KU4: 10 | KV4: 10 | KW4: 10 | KX4: 10 | KY4: 10 | KZ4: 10 | LA4: 10 | LB4: 10 | LC4: 0 | LD4: 1088 | LE4: 150 | LF4: 0 | LG4: 0 | LH4: 0 | LI4: 0 | LJ4: 98409.36 | LK4: 0 | LL4: 98409.36 | LM4: 96366.16 | LN4: 725.2 | LO4: 10 | LP4: 10 | LQ4: 10 | LR4: 10 | LS4: 10 | LT4: 10 | LU4: 10 | LV4: 10 | LW4: 0 | LX4: 1088 | LY4: 150 | LZ4: 0 | MA4: 0 | MB4: 0 | MC4: 0 | MD4: 98409.36 | ME4: 0 | MF4: 98409.36 | MG4: 130649.29 | MH4: 725.2 | MI4: 10 | MJ4: 10 | MK4: 10 | ML4: 10 | MM4: 10 | MN4: 10 | MO4: 10 | MP4: 10 | MQ4: 0 | MR4: 1088 | MS4: 150 | MT4: 0 | MU4: 0 | MV4: 0 | MW4: 0 | MX4: 132692.49 | MY4: 0 | MZ4: 132692.49 | NA4: 01/2017-SE | NB4: 2017-01-02 | NC4: 2017-12-31 | ND4: 737380.5 | NE4: 169/2017-SE | NF4: Primeiro | NG4: 2017-06-06 | NH4: 2017-12-31 | NI4: 0 | NJ4: 371/2017-SE | NK4: Segundo | NL4: 2017-11-07 | NM4: 2017-12-31 | NN4: 8000 | NO4: 176/2018-SE | NP4: Terceiro | NQ4: 2018-01-01 | NR4: 2018-12-31 | NS4: 803835.8 | NT4: 181/2019-SE | NU4: Quarto | NV4: 2019-01-02 | NW4: 2019-12-31 | NX4: 1245546.93 | NY4: 401/2019-SE | NZ4: Quinto | OA4: 2019-12-27 | OB4: 2020-12-31 | OC4: 1346104.15 | OD4: 9/2020-SE | OE4: Sexto | OH4: 0 | OI4: 3/2021-SE | OJ4: Sétimo | OK4: 2021-01-01 | OL4: 2021-12-31 | OM4: 1289748.59
A5: 4 | B5: Assistência Social Beneficente de Resgate ao Amparo à Criança I | G5: ASSISBRAC I | H5: 49.253.412/0001-22 | I5: SB 037835/2020-70 | J5: SB.085054/2020-98 | K5: SB 083930/2019-00 | L5: 02/2017-SE | N5: 4/2021-SE | O5: Sétimo | P5: 2021-01-27 | Q5: 2021-01-01 | R5: 2021-12-31 | S5: Rua dos Macucos, nº 14 | T5: Parque dos Pássaros | U5: S.B.Campo | V5: 09861-350 | W5: 4392-7492 | X5: assisbrac@assisbrac.org.br | Y5: José Altino dos Santos | Z5: 01/01/2020 a 31/12/2020 | AA5: Caixa Econômica Federal | AB5: 2700 | AC5: 003 | AD5: 00000314-5 | AG5: 24 | AH5: 2 | AI5: 115 | AJ5: 6 | AK5: 139 | AL5: 8 | AM5: 732.27 | AN5: 585.76 | AO5: 17574.48 | AP5: 67362.4 | AQ5: 84936.88 | AR5: 1019242.56 | AT5: 70104.53 | AU5: 73609.76 | AV5: 53026.79 | AW5: 0 | AX5: 14832.35 | AY5: 0 | AZ5: 11327.12 | BA5: 0 | BB5: 1019242.56 | BD5: 53026.79 | BE5: 34000 | BH5: 1800 | BI5: 1500 | BJ5: 2640 | BL5: 0 | BM5: 1108069.35 | BN5: 4140 | BO5: 1112209.35 | BP5: 128450.28 | BQ5: 2640 | BR5: 131090.28 | BS5: 101936.88 | BT5: 0 | BU5: 101936.88 | BV5: 84936.88 | BW5: 0 | BX5: 84936.88 | BY5: 75900.32 | BZ5: 1500 | CA5: 77400.32 | CB5: 84936.88 | CC5: 0 | CD5: 84936.88 | CE5: 84936.88 | CF5: 0 | CG5: 84936.88 | CH5: 84936.88 | CI5: 0 | CJ5: 84936.88 | CK5: 84936.88 | CL5: 0 | CM5: 84936.88 | CN5: 84936.88 | CO5: 0 | CP5: 84936.88 | CQ5: 84936.88 | CR5: 0 | CS5: 84936.88 | CT5: 84936.88 | CU5: 0 | CV5: 84936.88 | CW5: 111450.27 | CX5: 0 | CY5: 111450.27 | CZ5: 929333.45 | DA5: 36000 | DB5: 1000 | DC5: 4600 | DD5: 26000 | DE5: 3000 | DF5: 1400 | DG5: 32079.9 | DH5: 0 | DI5: 24000 | DJ5: 34000 | DK5: 13056 | DL5: 1800 | DM5: 0 | DN5: 1800 | DO5: 1500 | DP5: 2640 | DQ5: 1108069.35 | DR5: 4140 | DS5: 1112209.35 | DU5: 96617.93 | DV5: 4000 | DW5: 100 | DX5: 300 | DY5: 3000 | DZ5: 500 | EA5: 200 | EB5: 3494.35 | EC5: 0 | ED5: 2000 | EE5: 17000 | EF5: 1088 | EG5: 150 | EH5: 0 | EI5: 0 | EJ5: 0 | EK5: 2640 | EL5: 128450.28 | EM5: 2640 | EN5: 131090.28 | EO5: 70104.53 | EP5: 4000 | EQ5: 100 | ER5: 300 | ES5: 3000 | ET5: 500 | EU5: 200 | EV5: 3494.35 | EW5: 0 | EX5: 2000 | EY5: 17000 | EZ5: 1088 | FA5: 150 | FB5: 0 | FC5: 0 | FD5: 0 | FE5: 0 | FF5: 101936.88 | FG5: 0 | FH5: 101936.88 | FI5: 73609.76 | FJ5: 2800 | FK5: 80 | FL5: 400 | FM5: 2000 | FN5: 200 | FO5: 100 | FP5: 2509.12 | FQ5: 0 | FR5: 2000 | FS5: 0 | FT5: 1088 | FU5: 150 | FV5: 0 | FW5: 0 | FX5: 0 | FY5: 0 | FZ5: 84936.88 | GA5: 0 | GB5: 84936.88 | GC5: 62773.2 | GD5: 2800 | GE5: 80 | GF5: 400 | GG5: 2000 | GH5: 200 | GI5: 100 | GJ5: 2509.12 | GK5: 0 | GL5: 2000 | GM5: 0 | GN5: 1088 | GO5: 150 | GP5: 0 | GQ5: 1800 | GR5: 1500 | GS5: 0 | GT5: 75900.32 | GU5: 1500 | GV5: 77400.32 | GW5: 73609.76 | GX5: 2800 | GY5: 80 | GZ5: 400 | HA5: 2000 | HB5: 200 | HC5: 100 | HD5: 2509.12 | HE5: 0 | HF5: 2000 | HG5: 0 | HH5: 1088 | HI5: 150 | HJ5: 0 | HK5: 0 | HL5: 0 | HM5: 0 | HN5: 84936.88 | HO5: 0 | HP5: 84936.88 | HQ5: 73609.76 | HR5: 2800 | HS5: 80 | HT5: 400 | HU5: 2000 | HV5: 200 | HW5: 100 | HX5: 2509.12 | HY5: 0 | HZ5: 2000 | IA5: 0 | IB5: 1088 | IC5: 150 | ID5: 0 | IE5: 0 | IF5: 0 | IG5: 0 | IH5: 84936.88 | II5: 0 | IJ5: 84936.88 | IK5: 73609.76 | IL5: 2800 | IM5: 80 | IN5: 400 | IO5: 2000 | IP5: 200 | IQ5: 100 | IR5: 2509.12 | IS5: 0 | IT5: 2000 | IU5: 0 | IV5: 1088 | IW5: 150 | IX5: 0 | IY5: 0 | IZ5: 0 | JA5: 0 | JB5: 84936.88 | JC5: 0 | JD5: 84936.88 | JE5: 73609.76 | JF5: 2800 | JG5: 80 | JH5: 400 | JI5: 2000 | JJ5: 200 | JK5: 100 | JL5: 2509.12 | JM5: 0 | JN5: 2000 | JO5: 0 | JP5: 1088 | JQ5: 150 | JR5: 0 | JS5: 0 | JT5: 0 | JU5: 0 | JV5: 84936.88 | JW5: 0 | JX5: 84936.88 | JY5: 73609.76 | JZ5: 2800 | KA5: 80 | KB5: 400 | KC5: 2000 | KD5: 200 | KE5: 100 | KF5: 2509.12 | KG5: 0 | KH5: 2000 | KI5: 0 | KJ5: 1088 | KK5: 150 | KL5: 0 | KM5: 0 | KN5: 0 | KO5: 0 | KP5: 84936.88 | KQ5: 0 | KR5: 84936.88 | KS5: 73609.76 | KT5: 2800 | KU5: 80 | KV5: 400 | KW5: 2000 | KX5: 200 | KY5: 100 | KZ5: 2509.12 | LA5: 0 | LB5: 2000 | LC5: 0 | LD5: 1088 | LE5: 150 | LF5: 0 | LG5: 0 | LH5: 0 | LI5: 0 | LJ5: 84936.88 | LK5: 0 | LL5: 84936.88 | LM5: 73609.76 | LN5: 2800 | LO5: 80 | LP5: 400 | LQ5: 2000 | LR5: 200 | LS5: 100 | LT5: 2509.12 | LU5: 0 | LV5: 2000 | LW5: 0 | LX5: 1088 | LY5: 150 | LZ5: 0 | MA5: 0 | MB5: 0 | MC5: 0 | MD5: 84936.88 | ME5: 0 | MF5: 84936.88 | MG5: 100123.15 | MH5: 2800 | MI5: 80 | MJ5: 400 | MK5: 2000 | ML5: 200 | MM5: 100 | MN5: 2509.12 | MO5: 0 | MP5: 2000 | MQ5: 0 | MR5: 1088 | MS5: 150 | MT5: 0 | MU5: 0 | MV5: 0 | MW5: 0 | MX5: 111450.27 | MY5: 0 | MZ5: 111450.27 | NA5: 02/2017-SE | NB5: 2017-01-02 | NC5: 2017-12-31 | ND5: 807343.02 | NE5: 170/2017-SE | NF5: Primeiro | NG5: 2017-06-06 | NH5: 2017-12-31 | NI5: 0 | NJ5: 372/2017-SE | NK5: Segundo | NL5: 2017-11-07 | NM5: 2017-12-31 | NN5: 8000 | NO5: 177/2018-SE | NP5: Terceiro | NQ5: 2018-01-01 | NR5: 2018-12-31 | NS5: 858086.66 | NT5: 182/2019-SE | NU5: Quarto | NV5: 2019-01-02 | NW5: 2019-12-31 | NX5: 1073708.03 | NY5: 402/2019-SE | NZ5: Quinto | OA5: 2019-12-27 | OB5: 2020-12-31 | OC5: 1155920.12 | OD5: 10/2020-SE | OE5: Sexto | OH5: -36979.2 | OI5: 4/2021-SE | OJ5: Sétimo | OK5: 2021-01-01 | OL5: 2021-12-31 | OM5: 1112209.35
A6: 5 | B6: Assistência Social Beneficente de Resgate ao Amparo à Criança II | G6: ASSISBRAC II | H6: 06.317.445/0001-86 | I6: SB 038096/2020-67 | J6: SB.085055/2020-59 | K6: SB 094523/2019-66 | L6: 15/2019-SE | N6: 5/2021-SE | O6: Segundo | P6: 2021-01-28 | Q6: 2021-01-01 | R6: 2021-12-31 | S6: Rua Josefina Leonora Lotto Bueno, 80 | T6: Jardim Selecta | U6: S.B.Campo | V6: 09791-510 | W6: 4109-4421 | X6: assisbrac@assisbrac.org.br | Y6: José Altino dos Santos | Z6: 01/01/2020 a 31/12/2020 | AA6: Caixa Econômica Federal | AB6: 2700 | AC6: 003 | AD6: 03000216-5 | AG6: 26 | AH6: 2 | AI6: 94 | AJ6: 5 | AK6: 120 | AL6: 7 | AM6: 732.27 | AN6: 585.76 | AO6: 19039.02 | AP6: 55061.44 | AQ6: 74100.46 | AR6: 889205.52 | AT6: 62793.79 | AU6: 65933.48 | AV6: 47703.38 | AW6: 11500 | AX6: 11306.67 | AY6: 0 | AZ6: 8166.98 | BA6: 0 | BB6: 889205.52 | BD6: 47703.38 | BE6: 34000 | BH6: 1800 | BI6: 1500 | BJ6: 2310 | BL6: 138000 | BM6: 1110708.9 | BN6: 3810 | BO6: 1114518.9 | BP6: 126452.15 | BQ6: 2310 | BR6: 128762.15 | BS6: 102600.46 | BT6: 0 | BU6: 102600.46 | BV6: 85600.46 | BW6: 0 | BX6: 85600.46 | BY6: 87400.46 | BZ6: 1500 | CA6: 88900.46 | CB6: 85600.46 | CC6: 0 | CD6: 85600.46 | CE6: 85600.46 | CF6: 0 | CG6: 85600.46 | CH6: 85600.46 | CI6: 0 | CJ6: 85600.46 | CK6: 85600.46 | CL6: 0 | CM6: 85600.46 | CN6: 85600.46 | CO6: 0 | CP6: 85600.46 | CQ6: 85600.46 | CR6: 0 | CS6: 85600.46 | CT6: 85600.46 | CU6: 0 | CV6: 85600.46 | CW6: 109452.15 | CX6: 0 | CY6: 109452.15 | CZ6: 832625.76 | DA6: 21477.34 | DB6: 660 | DC6: 5400 | DD6: 12000 | DE6: 4089.8 | DF6: 1400 | DG6: 25400 | DH6: 0 | DI6: 19000 | DJ6: 34000 | DK6: 13056 | DL6: 1800 | DM6: 138000 | DN6: 1800 | DO6: 1500 | DP6: 2310 | DQ6: 1110708.9 | DR6: 3810 | DS6: 1114518.9 | DU6: 86645.48 | DV6: 3238.67 | DW6: 80 | DX6: 450 | DY6: 1000 | DZ6: 400 | EA6: 200 | EB6: 2700 | EC6: 0 | ED6: 2000 | EE6: 17000 | EF6: 1088 | EG6: 150 | EH6: 11500 | EI6: 0 | EJ6: 0 | EK6: 2310 | EL6: 126452.15 | EM6: 2310 | EN6: 128762.15 | EO6: 62793.79 | EP6: 3238.67 | EQ6: 80 | ER6: 450 | ES6: 1000 | ET6: 400 | EU6: 200 | EV6: 2700 | EW6: 0 | EX6: 2000 | EY6: 17000 | EZ6: 1088 | FA6: 150 | FB6: 11500 | FC6: 0 | FD6: 0 | FE6: 0 | FF6: 102600.46 | FG6: 0 | FH6: 102600.46 | FI6: 65933.48 | FJ6: 1500 | FK6: 50 | FL6: 450 | FM6: 1000 | FN6: 328.98 | FO6: 100 | FP6: 2000 | FQ6: 0 | FR6: 1500 | FS6: 0 | FT6: 1088 | FU6: 150 | FV6: 11500 | FW6: 0 | FX6: 0 | FY6: 0 | FZ6: 85600.46 | GA6: 0 | GB6: 85600.46 | GC6: 65933.48 | GD6: 1500 | GE6: 50 | GF6: 450 | GG6: 1000 | GH6: 328.98 | GI6: 100 | GJ6: 2000 | GK6: 0 | GL6: 1500 | GM6: 0 | GN6: 1088 | GO6: 150 | GP6: 11500 | GQ6: 1800 | GR6: 1500 | GS6: 0 | GT6: 87400.46 | GU6: 1500 | GV6: 88900.46 | GW6: 65933.48 | GX6: 1500 | GY6: 50 | GZ6: 450 | HA6: 1000 | HB6: 328.98 | HC6: 100 | HD6: 2000 | HE6: 0 | HF6: 1500 | HG6: 0 | HH6: 1088 | HI6: 150 | HJ6: 11500 | HK6: 0 | HL6: 0 | HM6: 0 | HN6: 85600.46 | HO6: 0 | HP6: 85600.46 | HQ6: 65933.48 | HR6: 1500 | HS6: 50 | HT6: 450 | HU6: 1000 | HV6: 328.98 | HW6: 100 | HX6: 2000 | HY6: 0 | HZ6: 1500 | IA6: 0 | IB6: 1088 | IC6: 150 | ID6: 11500 | IE6: 0 | IF6: 0 | IG6: 0 | IH6: 85600.46 | II6: 0 | IJ6: 85600.46 | IK6: 65933.48 | IL6: 1500 | IM6: 50 | IN6: 450 | IO6: 1000 | IP6: 328.98 | IQ6: 100 | IR6: 2000 | IS6: 0 | IT6: 1500 | IU6: 0 | IV6: 1088 | IW6: 150 | IX6: 11500 | IY6: 0 | IZ6: 0 | JA6: 0 | JB6: 85600.46 | JC6: 0 | JD6: 85600.46 | JE6: 65933.48 | JF6: 1500 | JG6: 50 | JH6: 450 | JI6: 1000 | JJ6: 328.98 | JK6: 100 | JL6: 2000 | JM6: 0 | JN6: 1500 | JO6: 0 | JP6: 1088 | JQ6: 150 | JR6: 11500 | JS6: 0 | JT6: 0 | JU6: 0 | JV6: 85600.46 | JW6: 0 | JX6: 85600.46 | JY6: 65933.48 | JZ6: 1500 | KA6: 50 | KB6: 450 | KC6: 1000 | KD6: 328.98 | KE6: 100 | KF6: 2000 | KG6: 0 | KH6: 1500 | KI6: 0 | KJ6: 1088 | KK6: 150 | KL6: 11500 | KM6: 0 | KN6: 0 | KO6: 0 | KP6: 85600.46 | KQ6: 0 | KR6: 85600.46 | KS6: 65933.48 | KT6: 1500 | KU6: 50 | KV6: 450 | KW6: 1000 | KX6: 328.98 | KY6: 100 | KZ6: 2000 | LA6: 0 | LB6: 1500 | LC6: 0 | LD6: 1088 | LE6: 150 | LF6: 11500 | LG6: 0 | LH6: 0 | LI6: 0 | LJ6: 85600.46 | LK6: 0 | LL6: 85600.46 | LM6: 65933.48 | LN6: 1500 | LO6: 50 | LP6: 450 | LQ6: 1000 | LR6: 328.98 | LS6: 100 | LT6: 2000 | LU6: 0 | LV6: 1500 | LW6: 0 | LX6: 1088 | LY6: 150 | LZ6: 11500 | MA6: 0 | MB6: 0 | MC6: 0 | MD6: 85600.46 | ME6: 0 | MF6: 85600.46 | MG6: 89785.17 | MH6: 1500 | MI6: 50 | MJ6: 450 | MK6: 1000 | ML6: 328.98 | MM6: 100 | MN6: 2000 | MO6: 0 | MP6: 1500 | MQ6: 0 | MR6: 1088 | MS6: 150 | MT6: 11500 | MU6: 0 | MV6: 0 | MW6: 0 | MX6: 109452.15 | MY6: 0 | MZ6: 109452.15 | NA6: 15/2019-SE | NB6: 2019-12-27 | NC6: 2020-12-31 | ND6: 1160731.8 | NE6: 11/2020-SE | NF6: Primeiro | NI6: -29683.8 | NJ6: 5/2021-SE | NK6: Segundo | NL6: 2021-01-01 | NM6: 2021-12-31 | NN6: 1114518.9
A7: 6 | B7: Associação a Palavra de Deus | G7: Assoc A Palavra de Deus | H7: 03.565.566/0001-59 | I7: SB.051712/2020-14 | J7: SB.085064/2020-24 | K7: SB.066551/2020-64 | L7: 02/2020-SE | N7: 6/2021-SE | O7: Primeiro | Q7: 2021-01-01 | R7: 2021-12-31 | S7: Rua Duarte Murtinho, 56 | T7: Ferrazópolis | U7: S.B.Campo | V7: 09.791-040 | W7: (11) 2217-8526 / (11) 95958-8022 (Alex) | X7: ceifuturofeliz20@gmail.com / associacao.apd@gmail.com | Y7: Alex Cassiano do Nascimento | Z7: 18/11/2019 a 17/11/2023 | AA7: Banco do Brasil | AB7: 3266-2 | AD7: 32.069-2 | AG7: 24 | AH7: 2 | AI7: 113 | AJ7: 6 | AK7: 137 | AL7: 8 | AM7: 732.27 | AN7: 585.76 | AO7: 17574.48 | AP7: 66190.88 | AQ7: 83765.36 | AR7: 1005184.32 | AT7: 67038.05 | AU7: 70389.96 | AV7: 65005.6 | AW7: 10000 | AX7: 16727.31 | AY7: 0 | AZ7: 11875.4 | BA7: 1500 | BB7: 1005184.32 | BD7: 65005.6 | BE7: 34000 | BH7: 1800 | BI7: 1500 | BJ7: 2640 | BL7: 120000 | BM7: 1210989.92 | BN7: 19140 | BO7: 1230129.92 | BP7: 84401.03 | BQ7: 2640 | BR7: 87041.03 | BS7: 105622.96 | BT7: 0 | BU7: 105622.96 | BV7: 92265.36 | BW7: 1500 | BX7: 93765.36 | BY7: 94065.36 | BZ7: 3000 | CA7: 97065.36 | CB7: 92265.36 | CC7: 1500 | CD7: 93765.36 | CE7: 92265.36 | CF7: 1500 | CG7: 93765.36 | CH7: 92265.36 | CI7: 1500 | CJ7: 93765.36 | CK7: 92265.36 | CL7: 1500 | CM7: 93765.36 | CN7: 92265.36 | CO7: 1500 | CP7: 93765.36 | CQ7: 92265.36 | CR7: 1500 | CS7: 93765.36 | CT7: 92265.36 | CU7: 1500 | CV7: 93765.36 | CW7: 124768.16 | CX7: 1500 | CY7: 126268.16 | CZ7: 902981.3 | DA7: 21000 | DB7: 3600 | DC7: 25000 | DD7: 12200 | DE7: 12200 | DF7: 17304 | DG7: 38364.62 | DH7: 0 | DI7: 10000 | DJ7: 34000 | DK7: 12540 | DL7: 0 | DM7: 120000 | DN7: 1800 | DO7: 1500 | DP7: 17640 | DQ7: 1210989.92 | DR7: 19140 | DS7: 1230129.92 | DU7: 40673.72 | DV7: 500 | DW7: 1800 | DX7: 2500 | DY7: 1100 | DZ7: 1100 | EA7: 2500 | EB7: 6182.31 | EC7: 0 | ED7: 0 | EE7: 17000 | EF7: 1045 | EG7: 0 | EH7: 10000 | EI7: 0 | EJ7: 0 | EK7: 2640 | EL7: 84401.03 | EM7: 2640 | EN7: 87041.03 | EO7: 61895.65 | EP7: 500 | EQ7: 1800 | ER7: 2500 | ES7: 1100 | ET7: 1100 | EU7: 2500 | EV7: 6182.31 | EW7: 0 | EX7: 0 | EY7: 17000 | EZ7: 1045 | FA7: 0 | FB7: 10000 | FC7: 0 | FD7: 0 | FE7: 0 | FF7: 105622.96 | FG7: 0 | FH7: 105622.96 | FI7: 70389.96 | FJ7: 2000 | FK7: 0 | FL7: 2000 | FM7: 1000 | FN7: 1000 | FO7: 1230.4 | FP7: 2600 | FQ7: 0 | FR7: 1000 | FS7: 0 | FT7: 1045 | FU7: 0 | FV7: 10000 | FW7: 0 | FX7: 0 | FY7: 1500 | FZ7: 92265.36 | GA7: 1500 | GB7: 93765.36 | GC7: 70389.96 | GD7: 2000 | GE7: 0 | GF7: 2000 | GG7: 1000 | GH7: 1000 | GI7: 1230.4 | GJ7: 2600 | GK7: 0 | GL7: 1000 | GM7: 0 | GN7: 1045 | GO7: 0 | GP7: 10000 | GQ7: 1800 | GR7: 1500 | GS7: 1500 | GT7: 94065.36 | GU7: 3000 | GV7: 97065.36 | GW7: 70389.96 | GX7: 2000 | GY7: 0 | GZ7: 2000 | HA7: 1000 | HB7: 1000 | HC7: 1230.4 | HD7: 2600 | HE7: 0 | HF7: 1000 | HG7: 0 | HH7: 1045 | HI7: 0 | HJ7: 10000 | HK7: 0 | HL7: 0 | HM7: 1500 | HN7: 92265.36 | HO7: 1500 | HP7: 93765.36 | HQ7: 70389.96 | HR7: 2000 | HS7: 0 | HT7: 2000 | HU7: 1000 | HV7: 1000 | HW7: 1230.4 | HX7: 2600 | HY7: 0 | HZ7: 1000 | IA7: 0 | IB7: 1045 | IC7: 0 | ID7: 10000 | IE7: 0 | IF7: 0 | IG7: 1500 | IH7: 92265.36 | II7: 1500 | IJ7: 93765.36 | IK7: 70389.96 | IL7: 2000 | IM7: 0 | IN7: 2000 | IO7: 1000 | IP7: 1000 | IQ7: 1230.4 | IR7: 2600 | IS7: 0 | IT7: 1000 | IU7: 0 | IV7: 1045 | IW7: 0 | IX7: 10000 | IY7: 0 | IZ7: 0 | JA7: 1500 | JB7: 92265.36 | JC7: 1500 | JD7: 93765.36 | JE7: 70389.96 | JF7: 2000 | JG7: 0 | JH7: 2000 | JI7: 1000 | JJ7: 1000 | JK7: 1230.4 | JL7: 2600 | JM7: 0 | JN7: 1000 | JO7: 0 | JP7: 1045 | JQ7: 0 | JR7: 10000 | JS7: 0 | JT7: 0 | JU7: 1500 | JV7: 92265.36 | JW7: 1500 | JX7: 93765.36 | JY7: 70389.96 | JZ7: 2000 | KA7: 0 | KB7: 2000 | KC7: 1000 | KD7: 1000 | KE7: 1230.4 | KF7: 2600 | KG7: 0 | KH7: 1000 | KI7: 0 | KJ7: 1045 | KK7: 0 | KL7: 10000 | KM7: 0 | KN7: 0 | KO7: 1500 | KP7: 92265.36 | KQ7: 1500 | KR7: 93765.36 | KS7: 70389.96 | KT7: 2000 | KU7: 0 | KV7: 2000 | KW7: 1000 | KX7: 1000 | KY7: 1230.4 | KZ7: 2600 | LA7: 0 | LB7: 1000 | LC7: 0 | LD7: 1045 | LE7: 0 | LF7: 10000 | LG7: 0 | LH7: 0 | LI7: 1500 | LJ7: 92265.36 | LK7: 1500 | LL7: 93765.36 | LM7: 70389.96 | LN7: 2000 | LO7: 0 | LP7: 2000 | LQ7: 1000 | LR7: 1000 | LS7: 1230.4 | LT7: 2600 | LU7: 0 | LV7: 1000 | LW7: 0 | LX7: 1045 | LY7: 0 | LZ7: 10000 | MA7: 0 | MB7: 0 | MC7: 1500 | MD7: 92265.36 | ME7: 1500 | MF7: 93765.36 | MG7: 102892.76 | MH7: 2000 | MI7: 0 | MJ7: 2000 | MK7: 1000 | ML7: 1000 | MM7: 1230.4 | MN7: 2600 | MO7: 0 | MP7: 1000 | MQ7: 0 | MR7: 1045 | MS7: 0 | MT7: 10000 | MU7: 0 | MV7: 0 | MW7: 1500 | MX7: 124768.16 | MY7: 1500 | MZ7: 126268.16 | NA7: 02/2020-SE | NB7: 2020-07-31 | NC7: 2020-12-31 | ND7: 564573.4 | NE7: 6/2021-SE | NF7: Primeiro | NG7: 2021-01-01 | NH7: 2021-12-31 | NI7: 1230129.92
A8: 7 | B8: Associação Assistencial Edificando Vidas | G8: Edificando Vidas | H8: 30.329.974/0001-84 | I8: SB 038100/2020-54 | J8: SB.085067/2020-07 | K8: SB 083984/2019-94 | L8: 06/2019-SE | N8: 7/2021-SE | O8: Terceiro | P8: 2021-01-27 | Q8: 2021-01-01 | R8: 2021-12-31 | S8: Rua Ministro Edgard Costa, 201 | T8: Bairro dos Casa | U8: S.B.Campo | V8: 09840-530 | W8: 2356-2000 / 97442-5159/ 95921-5353 | X8: crecheeducacionalelelion@gmail.com | Y8: Cassia Valéria da Silva | Z8: 2018 a 2020 | AA8: Caixa Econômica Federal | AB8: 4037 | AC8: 003 | AD8: 2659-7 | AI8: 116 | AJ8: 7 | AK8: 116 | AL8: 7 | AM8: 732.27 | AN8: 585.76 | AO8: 0 | AP8: 67948.16 | AQ8: 67948.16 | AR8: 815377.92 | AT8: 62800.96 | AU8: 65941 | AV8: 58585.23 | AW8: 13159.7 | AX8: 5147.2 | AY8: 0 | AZ8: 2007.16 | BA8: 0 | BB8: 815377.92 | BD8: 58585.23 | BE8: 34000 | BH8: 1800 | BI8: 1500 | BJ8: 2310 | BL8: 157916.4 | BM8: 1067679.55 | BN8: 3810 | BO8: 1071489.55 | BP8: 127400.48 | BQ8: 2310 | BR8: 129710.48 | BS8: 98107.86 | BT8: 0 | BU8: 98107.86 | BV8: 81107.86 | BW8: 0 | BX8: 81107.86 | BY8: 66213.7 | BZ8: 1500 | CA8: 67713.7 | CB8: 81107.86 | CC8: 0 | CD8: 81107.86 | CE8: 81107.86 | CF8: 0 | CG8: 81107.86 | CH8: 81107.86 | CI8: 0 | CJ8: 81107.86 | CK8: 81107.86 | CL8: 0 | CM8: 81107.86 | CN8: 81107.86 | CO8: 0 | CP8: 81107.86 | CQ8: 81107.86 | CR8: 0 | CS8: 81107.86 | CT8: 81107.86 | CU8: 0 | CV8: 81107.86 | CW8: 110400.47 | CX8: 0 | CY8: 110400.47 | CZ8: 843597.15 | DA8: 15191.6 | DB8: 600 | DC8: 0 | DD8: 400 | DE8: 0 | DF8: 0 | DG8: 1118.4 | DH8: 0 | DI8: 0 | DJ8: 34000 | DK8: 13056 | DL8: 0 | DM8: 157916.4 | DN8: 1800 | DO8: 1500 | DP8: 2310 | DQ8: 1067679.55 | DR8: 3810 | DS8: 1071489.55 | DU8: 92093.58 | DV8: 3000 | DW8: 300 | DX8: 0 | DY8: 200 | DZ8: 0 | EA8: 0 | EB8: 559.2 | EC8: 0 | ED8: 0 | EE8: 17000 | EF8: 1088 | EG8: 0 | EH8: 13159.7 | EI8: 0 | EJ8: 0 | EK8: 2310 | EL8: 127400.48 | EM8: 2310 | EN8: 129710.48 | EO8: 62800.96 | EP8: 3000 | EQ8: 300 | ER8: 0 | ES8: 200 | ET8: 0 | EU8: 0 | EV8: 559.2 | EW8: 0 | EX8: 0 | EY8: 17000 | EZ8: 1088 | FA8: 0 | FB8: 13159.7 | FC8: 0 | FD8: 0 | FE8: 0 | FF8: 98107.86 | FG8: 0 | FH8: 98107.86 | FI8: 65941 | FJ8: 919.16 | FK8: 0 | FL8: 0 | FM8: 0 | FN8: 0 | FO8: 0 | FP8: 0 | FQ8: 0 | FR8: 0 | FS8: 0 | FT8: 1088 | FU8: 0 | FV8: 13159.7 | FW8: 0 | FX8: 0 | FY8: 0 | FZ8: 81107.86 | GA8: 0 | GB8: 81107.86 | GC8: 49246.84 | GD8: 919.16 | GE8: 0 | GF8: 0 | GG8: 0 | GH8: 0 | GI8: 0 | GJ8: 0 | GK8: 0 | GL8: 0 | GM8: 0 | GN8: 1088 | GO8: 0 | GP8: 13159.7 | GQ8: 1800 | GR8: 1500 | GS8: 0 | GT8: 66213.7 | GU8: 1500 | GV8: 67713.7 | GW8: 65941 | GX8: 919.16 | GY8: 0 | GZ8: 0 | HA8: 0 | HB8: 0 | HC8: 0 | HD8: 0 | HE8: 0 | HF8: 0 | HG8: 0 | HH8: 1088 | HI8: 0 | HJ8: 13159.7 | HK8: 0 | HL8: 0 | HM8: 0 | HN8: 81107.86 | HO8: 0 | HP8: 81107.86 | HQ8: 65941 | HR8: 919.16 | HS8: 0 | HT8: 0 | HU8: 0 | HV8: 0 | HW8: 0 | HX8: 0 | HY8: 0 | HZ8: 0 | IA8: 0 | IB8: 1088 | IC8: 0 | ID8: 13159.7 | IE8: 0 | IF8: 0 | IG8: 0 | IH8: 81107.86 | II8: 0 | IJ8: 81107.86 | IK8: 65941 | IL8: 919.16 | IM8: 0 | IN8: 0 | IO8: 0 | IP8: 0 | IQ8: 0 | IR8: 0 | IS8: 0 | IT8: 0 | IU8: 0 | IV8: 1088 | IW8: 0 | IX8: 13159.7 | IY8: 0 | IZ8: 0 | JA8: 0 | JB8: 81107.86 | JC8: 0 | JD8: 81107.86 | JE8: 65941 | JF8: 919.16 | JG8: 0 | JH8: 0 | JI8: 0 | JJ8: 0 | JK8: 0 | JL8: 0 | JM8: 0 | JN8: 0 | JO8: 0 | JP8: 1088 | JQ8: 0 | JR8: 13159.7 | JS8: 0 | JT8: 0 | JU8: 0 | JV8: 81107.86 | JW8: 0 | JX8: 81107.86 | JY8: 65941 | JZ8: 919.16 | KA8: 0 | KB8: 0 | KC8: 0 | KD8: 0 | KE8: 0 | KF8: 0 | KG8: 0 | KH8: 0 | KI8: 0 | KJ8: 1088 | KK8: 0 | KL8: 13159.7 | KM8: 0 | KN8: 0 | KO8: 0 | KP8: 81107.86 | KQ8: 0 | KR8: 81107.86 | KS8: 65941 | KT8: 919.16 | KU8: 0 | KV8: 0 | KW8: 0 | KX8: 0 | KY8: 0 | KZ8: 0 | LA8: 0 | LB8: 0 | LC8: 0 | LD8: 1088 | LE8: 0 | LF8: 13159.7 | LG8: 0 | LH8: 0 | LI8: 0 | LJ8: 81107.86 | LK8: 0 | LL8: 81107.86 | LM8: 65941 | LN8: 919.16 | LO8: 0 | LP8: 0 | LQ8: 0 | LR8: 0 | LS8: 0 | LT8: 0 | LU8: 0 | LV8: 0 | LW8: 0 | LX8: 1088 | LY8: 0 | LZ8: 13159.7 | MA8: 0 | MB8: 0 | MC8: 0 | MD8: 81107.86 | ME8: 0 | MF8: 81107.86 | MG8: 95233.61 | MH8: 919.16 | MI8: 0 | MJ8: 0 | MK8: 0 | ML8: 0 | MM8: 0 | MN8: 0 | MO8: 0 | MP8: 0 | MQ8: 0 | MR8: 1088 | MS8: 0 | MT8: 13159.7 | MU8: 0 | MV8: 0 | MW8: 0 | MX8: 110400.47 | MY8: 0 | MZ8: 110400.47 | NA8: 06/2019-SE | NB8: 2019-05-31 | NC8: 2019-12-31 | ND8: 684777.25 | NE8: 403/2019-SE | NF8: Primeiro | NG8: 2019-12-27 | NH8: 2020-12-31 | NI8: 1090073.06 | NJ8: 12/2020-SE | NK8: Segundo | NN8: -18977.68 | NO8: 7/2021-SE | NP8: Terceiro | NQ8: 2021-01-01 | NR8: 2021-12-31 | NS8: 1071489.55
A9: 8 | B9: Associação Belenzinho de Assistência Social | G9: ABAS | H9: 27.971.989/0001-37 | I9: SB 038104/2020-98 | J9: SB.085073/2020-99 | K9: SB 083985/2019-55 | L9: 03/2017-SE | N9: 8/2021-SE | O9: Sétimo | P9: 2021-01-27 | Q9: 2021-01-01 | R9: 2021-12-31 | S9: Avenida Luiz Pequini, nº 1834 | T9: Parque São Bernardo - Vila Baeta Neves | U9: S.B.Campo | V9: 09780-250 | W9: 4121-5470 | X9: abasbelenzinho@gmail.com | Y9: Manoel Marques dos Santos | Z9: 28/10/2017 a 28/10/2021 | AA9: Caixa Econômica Federal | AB9: 2700 | AC9: 003 | AD9: 00000324-2 | AI9: 130 | AJ9: 7 | AK9: 130 | AL9: 7 | AM9: 732.27 | AN9: 585.76 | AO9: 0 | AP9: 76148.8 | AQ9: 76148.8 | AR9: 913785.6 | AT9: 68891.06 | AU9: 72335.6 | AV9: 63196.9 | AW9: 0 | AX9: 7257.74 | AY9: 0 | AZ9: 3813.2 | BA9: 0 | BB9: 913785.6 | BD9: 63196.9 | BE9: 34000 | BH9: 1800 | BI9: 1500 | BJ9: 2310 | BL9: 0 | BM9: 1012782.5 | BN9: 3810 | BO9: 1016592.5 | BP9: 124747.25 | BQ9: 2310 | BR9: 127057.25 | BS9: 93148.8 | BT9: 0 | BU9: 93148.8 | BV9: 76148.8 | BW9: 0 | BX9: 76148.8 | BY9: 77948.8 | BZ9: 1500 | CA9: 79448.8 | CB9: 76148.8 | CC9: 0 | CD9: 76148.8 | CE9: 76148.8 | CF9: 0 | CG9: 76148.8 | CH9: 76148.8 | CI9: 0 | CJ9: 76148.8 | CK9: 76148.8 | CL9: 0 | CM9: 76148.8 | CN9: 76148.8 | CO9: 0 | CP9: 76148.8 | CQ9: 76148.8 | CR9: 0 | CS9: 76148.8 | CT9: 76148.8 | CU9: 0 | CV9: 76148.8 | CW9: 107747.25 | CX9: 0 | CY9: 107747.25 | CZ9: 924335.02 | DA9: 22800 | DB9: 1550 | DC9: 700 | DD9: 350 | DE9: 350 | DF9: 1100 | DG9: 10439.48 | DH9: 550 | DI9: 1752 | DJ9: 34000 | DK9: 13056 | DL9: 0 | DM9: 0 | DN9: 1800 | DO9: 1500 | DP9: 2310 | DQ9: 1012782.5 | DR9: 3810 | DS9: 1016592.5 | DU9: 100489.51 | DV9: 3400 | DW9: 400 | DX9: 100 | DY9: 50 | DZ9: 50 | EA9: 300 | EB9: 1219.74 | EC9: 150 | ED9: 500 | EE9: 17000 | EF9: 1088 | EG9: 0 | EH9: 0 | EI9: 0 | EJ9: 0 | EK9: 2310 | EL9: 124747.25 | EM9: 2310 | EN9: 127057.25 | EO9: 68891.06 | EP9: 3400 | EQ9: 400 | ER9: 100 | ES9: 50 | ET9: 50 | EU9: 300 | EV9: 1219.74 | EW9: 150 | EX9: 500 | EY9: 17000 | EZ9: 1088 | FA9: 0 | FB9: 0 | FC9: 0 | FD9: 0 | FE9: 0 | FF9: 93148.8 | FG9: 0 | FH9: 93148.8 | FI9: 72335.6 | FJ9: 1600 | FK9: 75 | FL9: 50 | FM9: 25 | FN9: 25 | FO9: 50 | FP9: 800 | FQ9: 25 | FR9: 75.2 | FS9: 0 | FT9: 1088 | FU9: 0 | FV9: 0 | FW9: 0 | FX9: 0 | FY9: 0 | FZ9: 76148.8 | GA9: 0 | GB9: 76148.8 | GC9: 72335.6 | GD9: 1600 | GE9: 75 | GF9: 50 | GG9: 25 | GH9: 25 | GI9: 50 | GJ9: 800 | GK9: 25 | GL9: 75.2 | GM9: 0 | GN9: 1088 | GO9: 0 | GP9: 0 | GQ9: 1800 | GR9: 1500 | GS9: 0 | GT9: 77948.8 | GU9: 1500 | GV9: 79448.8 | GW9: 72335.6 | GX9: 1600 | GY9: 75 | GZ9: 50 | HA9: 25 | HB9: 25 | HC9: 50 | HD9: 800 | HE9: 25 | HF9: 75.2 | HG9: 0 | HH9: 1088 | HI9: 0 | HJ9: 0 | HK9: 0 | HL9: 0 | HM9: 0 | HN9: 76148.8 | HO9: 0 | HP9: 76148.8 | HQ9: 72335.6 | HR9: 1600 | HS9: 75 | HT9: 50 | HU9: 25 | HV9: 25 | HW9: 50 | HX9: 800 | HY9: 25 | HZ9: 75.2 | IA9: 0 | IB9: 1088 | IC9: 0 | ID9: 0 | IE9: 0 | IF9: 0 | IG9: 0 | IH9: 76148.8 | II9: 0 | IJ9: 76148.8 | IK9: 72335.6 | IL9: 1600 | IM9: 75 | IN9: 50 | IO9: 25 | IP9: 25 | IQ9: 50 | IR9: 800 | IS9: 25 | IT9: 75.2 | IU9: 0 | IV9: 1088 | IW9: 0 | IX9: 0 | IY9: 0 | IZ9: 0 | JA9: 0 | JB9: 76148.8 | JC9: 0 | JD9: 76148.8 | JE9: 72335.6 | JF9: 1600 | JG9: 75 | JH9: 50 | JI9: 25 | JJ9: 25 | JK9: 50 | JL9: 800 | JM9: 25 | JN9: 75.2 | JO9: 0 | JP9: 1088 | JQ9: 0 | JR9: 0 | JS9: 0 | JT9: 0 | JU9: 0 | JV9: 76148.8 | JW9: 0 | JX9: 76148.8 | JY9: 72335.6 | JZ9: 1600 | KA9: 75 | KB9: 50 | KC9: 25 | KD9: 25 | KE9: 50 | KF9: 800 | KG9: 25 | KH9: 75.2 | KI9: 0 | KJ9: 1088 | KK9: 0 | KL9: 0 | KM9: 0 | KN9: 0 | KO9: 0 | KP9: 76148.8 | KQ9: 0 | KR9: 76148.8 | KS9: 72335.6 | KT9: 1600 | KU9: 75 | KV9: 50 | KW9: 25 | KX9: 25 | KY9: 50 | KZ9: 800 | LA9: 25 | LB9: 75.2 | LC9: 0 | LD9: 1088 | LE9: 0 | LF9: 0 | LG9: 0 | LH9: 0 | LI9: 0 | LJ9: 76148.8 | LK9: 0 | LL9: 76148.8 | LM9: 72335.6 | LN9: 1600 | LO9: 75 | LP9: 50 | LQ9: 25 | LR9: 25 | LS9: 50 | LT9: 800 | LU9: 25 | LV9: 75.2 | LW9: 0 | LX9: 1088 | LY9: 0 | LZ9: 0 | MA9: 0 | MB9: 0 | MC9: 0 | MD9: 76148.8 | ME9: 0 | MF9: 76148.8 | MG9: 103934.05 | MH9: 1600 | MI9: 75 | MJ9: 50 | MK9: 25 | ML9: 25 | MM9: 50 | MN9: 800 | MO9: 25 | MP9: 75.2 | MQ9: 0 | MR9: 1088 | MS9: 0 | MT9: 0 | MU9: 0 | MV9: 0 | MW9: 0 | MX9: 107747.25 | MY9: 0 | MZ9: 107747.25 | NA9: 03/2017-SE | NB9: 2017-01-02 | NC9: 2017-12-31 | ND9: 828591.44 | NE9: 171/2017-SE | NF9: Primeiro | NG9: 2017-06-06 | NH9: 2017-12-31 | NI9: 0 | NJ9: 373/2017-SE | NK9: Segundo | NL9: 2017-11-07 | NM9: 2017-12-31 | NN9: 8000 | NO9: 178/2018-SE | NP9: Terceiro | NQ9: 2018-01-01 | NR9: 2018-12-31 | NS9: 902876.44 | NT9: 183/2019-SE | NU9: Quarto | NV9: 2019-01-02 | NW9: 2019-12-31 | NX9: 973742.33 | NY9: 404/2019-SE | NZ9: Quinto | OA9: 2019-12-27 | OB9: 2020-12-31 | OC9: 1014977.88 | OD9: 13/2020-SE | OE9: Sexto | OH9: -43017.95 | OI9: 8/2021-SE | OJ9: Sétimo | OK9: 2021-01-01 | OL9: 2021-12-31 | OM9: 1016592.5
A10: 9 | B10: Associação Beneficente Shekinah I | G10: Assoc Benef Shekinah I | H10: 69.255.396/0001-14 | I10: SB 038470/2020-27 | J10: SB.085075/2020-11 | K10: SB 083989/2019-99 | L10: 01/2019-SE | N10: 9/2021-SE | O10: Terceiro | P10: 2021-01-26 | Q10: 2021-01-01 | R10: 2021-12-31 | S10: Avenida Taboão, 3972 | T10: Taboão | U10: S.B.Campo | V10: 09657-000 | W10: 4361-1569 e 2758-0778 | X10: ab-shekinah@ab-shekinah.org.br | Y10: Sueli de Mello Gonzalez Malet | Z10: 2019 a 2021 | AA10: Banco do Brasil | AB10: 1834-1 | AD10: 500.020-3 | AI10: 80 | AJ10: 4 | AK10: 80 | AL10: 4 | AM10: 732.27 | AN10: 585.76 | AO10: 0 | AP10: 46860.8 | AQ10: 46860.8 | AR10: 562329.6 | AT10: 41754.93 | AU10: 43842.67 | AV10: 38710.66 | AW10: 0 | AX10: 5105.87 | AY10: 0 | AZ10: 3018.13 | BA10: 0 | BB10: 562329.6 | BD10: 38710.66 | BE10: 34000 | BH10: 1800 | BI10: 1500 | BJ10: 1320 | BL10: 0 | BM10: 636840.26 | BN10: 2820 | BO10: 639660.26 | BP10: 83216.13 | BQ10: 1320 | BR10: 84536.13 | BS10: 63860.8 | BT10: 0 | BU10: 63860.8 | BV10: 46860.8 | BW10: 0 | BX10: 46860.8 | BY10: 39288.64 | BZ10: 1500 | CA10: 40788.64 | CB10: 46860.8 | CC10: 0 | CD10: 46860.8 | CE10: 46860.8 | CF10: 0 | CG10: 46860.8 | CH10: 46860.8 | CI10: 0 | CJ10: 46860.8 | CK10: 46860.8 | CL10: 0 | CM10: 46860.8 | CN10: 46860.8 | CO10: 0 | CP10: 46860.8 | CQ10: 46860.8 | CR10: 0 | CS10: 46860.8 | CT10: 46860.8 | CU10: 0 | CV10: 46860.8 | CW10: 66216.13 | CX10: 0 | CY10: 66216.13 | CZ10: 560647.22 | DA10: 15501.3 | DB10: 500 | DC10: 700 | DD10: 700 | DE10: 735.74 | DF10: 0 | DG10: 7400 | DH10: 0 | DI10: 0 | DJ10: 34000 | DK10: 13056 | DL10: 1800 | DM10: 0 | DN10: 1800 | DO10: 1500 | DP10: 1320 | DQ10: 636840.26 | DR10: 2820 | DS10: 639660.26 | DU10: 61110.26 | DV10: 600 | DW10: 0 | DX10: 350 | DY10: 350 | DZ10: 367.87 | EA10: 0 | EB10: 2200 | EC10: 0 | ED10: 0 | EE10: 17000 | EF10: 1088 | EG10: 150 | EH10: 0 | EI10: 0 | EJ10: 0 | EK10: 1320 | EL10: 83216.13 | EM10: 1320 | EN10: 84536.13 | EO10: 41754.93 | EP10: 600 | EQ10: 0 | ER10: 350 | ES10: 350 | ET10: 367.87 | EU10: 0 | EV10: 2200 | EW10: 0 | EX10: 0 | EY10: 17000 | EZ10: 1088 | FA10: 150 | FB10: 0 | FC10: 0 | FD10: 0 | FE10: 0 | FF10: 63860.8 | FG10: 0 | FH10: 63860.8 | FI10: 43842.67 | FJ10: 1430.13 | FK10: 50 | FL10: 0 | FM10: 0 | FN10: 0 | FO10: 0 | FP10: 300 | FQ10: 0 | FR10: 0 | FS10: 0 | FT10: 1088 | FU10: 150 | FV10: 0 | FW10: 0 | FX10: 0 | FY10: 0 | FZ10: 46860.8 | GA10: 0 | GB10: 46860.8 | GC10: 34470.51 | GD10: 1430.13 | GE10: 50 | GF10: 0 | GG10: 0 | GH10: 0 | GI10: 0 | GJ10: 300 | GK10: 0 | GL10: 0 | GM10: 0 | GN10: 1088 | GO10: 150 | GP10: 0 | GQ10: 1800 | GR10: 1500 | GS10: 0 | GT10: 39288.64 | GU10: 1500 | GV10: 40788.64 | GW10: 43842.67 | GX10: 1430.13 | GY10: 50 | GZ10: 0 | HA10: 0 | HB10: 0 | HC10: 0 | HD10: 300 | HE10: 0 | HF10: 0 | HG10: 0 | HH10: 1088 | HI10: 150 | HJ10: 0 | HK10: 0 | HL10: 0 | HM10: 0 | HN10: 46860.8 | HO10: 0 | HP10: 46860.8 | HQ10: 43842.67 | HR10: 1430.13 | HS10: 50 | HT10: 0 | HU10: 0 | HV10: 0 | HW10: 0 | HX10: 300 | HY10: 0 | HZ10: 0 | IA10: 0 | IB10: 1088 | IC10: 150 | ID10: 0 | IE10: 0 | IF10: 0 | IG10: 0 | IH10: 46860.8 | II10: 0 | IJ10: 46860.8 | IK10: 43842.67 | IL10: 1430.13 | IM10: 50 | IN10: 0 | IO10: 0 | IP10: 0 | IQ10: 0 | IR10: 300 | IS10: 0 | IT10: 0 | IU10: 0 | IV10: 1088 | IW10: 150 | IX10: 0 | IY10: 0 | IZ10: 0 | JA10: 0 | JB10: 46860.8 | JC10: 0 | JD10: 46860.8 | JE10: 43842.67 | JF10: 1430.13 | JG10: 50 | JH10: 0 | JI10: 0 | JJ10: 0 | JK10: 0 | JL10: 300 | JM10: 0 | JN10: 0 | JO10: 0 | JP10: 1088 | JQ10: 150 | JR10: 0 | JS10: 0 | JT10: 0 | JU10: 0 | JV10: 46860.8 | JW10: 0 | JX10: 46860.8 | JY10: 43842.67 | JZ10: 1430.13 | KA10: 50 | KB10: 0 | KC10: 0 | KD10: 0 | KE10: 0 | KF10: 300 | KG10: 0 | KH10: 0 | KI10: 0 | KJ10: 1088 | KK10: 150 | KL10: 0 | KM10: 0 | KN10: 0 | KO10: 0 | KP10: 46860.8 | KQ10: 0 | KR10: 46860.8 | KS10: 43842.67 | KT10: 1430.13 | KU10: 50 | KV10: 0 | KW10: 0 | KX10: 0 | KY10: 0 | KZ10: 300 | LA10: 0 | LB10: 0 | LC10: 0 | LD10: 1088 | LE10: 150 | LF10: 0 | LG10: 0 | LH10: 0 | LI10: 0 | LJ10: 46860.8 | LK10: 0 | LL10: 46860.8 | LM10: 43842.67 | LN10: 1430.13 | LO10: 50 | LP10: 0 | LQ10: 0 | LR10: 0 | LS10: 0 | LT10: 300 | LU10: 0 | LV10: 0 | LW10: 0 | LX10: 1088 | LY10: 150 | LZ10: 0 | MA10: 0 | MB10: 0 | MC10: 0 | MD10: 46860.8 | ME10: 0 | MF10: 46860.8 | MG10: 63198 | MH10: 1430.13 | MI10: 50 | MJ10: 0 | MK10: 0 | ML10: 0 | MM10: 0 | MN10: 300 | MO10: 0 | MP10: 0 | MQ10: 0 | MR10: 1088 | MS10: 150 | MT10: 0 | MU10: 0 | MV10: 0 | MW10: 0 | MX10: 66216.13 | MY10: 0 | MZ10: 66216.13 | NA10: 01/2019-SE | NB10: 2019-02-05 | NC10: 2019-12-31 | ND10: 579558.18 | NE10: 405/2019-SE | NF10: Primeiro | NG10: 2019-12-27 | NH10: 2020-12-31 | NI10: 641120.38 | NJ10: 14/2020-SE | NK10: Segundo | NN10: -25319.58 | NO10: 9/2021-SE | NP10: Terceiro | NQ10: 2021-01-01 | NR10: 2021-12-31 | NS10: 639660.26
A11: 10 | B11: Associação Beneficente Shekinah II | G11: Assoc Benef Shekinah II | H11: 43.336.262/0001-34 | I11: SB 038139/2020-81 | J11: SB.085078/2020-94 | K11: SB 083986/2019-16 | L11: 04/2017-SE | N11: 10/2021-SE | O11: Sétimo | P11: 2021-01-27 | Q11: 2021-01-01 | R11: 2021-12-31 | S11: Rua Fábio da Silva Prado, nº 115 | T11: Vila Flórida | U11: S.B.Campo | V11: 09661-000 | W11: 4361-1569 | X11: ab-shekinah@ab-shekinah.org.br | Y11: Sueli de Mello Gonzalez Malet | Z11: 2019 a 2021 | AA11: Banco do Brasil | AB11: 1834-1 | AD11: 500018-1 | AI11: 60 | AJ11: 4 | AK11: 60 | AL11: 4 | AM11: 732.27 | AN11: 585.76 | AO11: 0 | AP11: 35145.6 | AQ11: 35145.6 | AR11: 421747.2 | AT11: 32549.16 | AU11: 34176.61 | AV11: 29524.96 | AW11: 4535 | AX11: 2596.44 | AY11: 0 | AZ11: 968.99 | BA11: 0 | BB11: 421747.2 | BD11: 29524.96 | BE11: 34000 | BH11: 1800 | BI11: 1500 | BJ11: 1320 | BL11: 54420 | BM11: 541492.16 | BN11: 2820 | BO11: 544312.16 | BP11: 71443.08 | BQ11: 1320 | BR11: 72763.08 | BS11: 56680.6 | BT11: 0 | BU11: 56680.6 | BV11: 39680.6 | BW11: 0 | BX11: 39680.6 | BY11: 41480.6 | BZ11: 1500 | CA11: 42980.6 | CB11: 39680.6 | CC11: 0 | CD11: 39680.6 | CE11: 39680.6 | CF11: 0 | CG11: 39680.6 | CH11: 39680.6 | CI11: 0 | CJ11: 39680.6 | CK11: 39680.6 | CL11: 0 | CM11: 39680.6 | CN11: 39680.6 | CO11: 0 | CP11: 39680.6 | CQ11: 39680.6 | CR11: 0 | CS11: 39680.6 | CT11: 39680.6 | CU11: 0 | CV11: 39680.6 | CW11: 54443.08 | CX11: 0 | CY11: 54443.08 | CZ11: 436389.38 | DA11: 12383.9 | DB11: 0 | DC11: 200 | DD11: 200 | DE11: 0 | DF11: 0 | DG11: 1998.88 | DH11: 0 | DI11: 0 | DJ11: 34000 | DK11: 0 | DL11: 100 | DM11: 54420 | DN11: 1800 | DO11: 1500 | DP11: 1320 | DQ11: 541492.16 | DR11: 2820 | DS11: 544312.16 | DU11: 47311.64 | DV11: 1347 | DW11: 0 | DX11: 100 | DY11: 100 | DZ11: 0 | EA11: 0 | EB11: 999.44 | EC11: 0 | ED11: 0 | EE11: 17000 | EF11: 0 | EG11: 50 | EH11: 4535 | EI11: 0 | EJ11: 0 | EK11: 1320 | EL11: 71443.08 | EM11: 1320 | EN11: 72763.08 | EO11: 32549.16 | EP11: 1347 | EQ11: 0 | ER11: 100 | ES11: 100 | ET11: 0 | EU11: 0 | EV11: 999.44 | EW11: 0 | EX11: 0 | EY11: 17000 | EZ11: 0 | FA11: 50 | FB11: 4535 | FC11: 0 | FD11: 0 | FE11: 0 | FF11: 56680.6 | FG11: 0 | FH11: 56680.6 | FI11: 34176.61 | FJ11: 968.99 | FK11: 0 | FL11: 0 | FM11: 0 | FN11: 0 | FO11: 0 | FP11: 0 | FQ11: 0 | FR11: 0 | FS11: 0 | FT11: 0 | FU11: 0 | FV11: 4535 | FW11: 0 | FX11: 0 | FY11: 0 | FZ11: 39680.6 | GA11: 0 | GB11: 39680.6 | GC11: 34176.61 | GD11: 968.99 | GE11: 0 | GF11: 0 | GG11: 0 | GH11: 0 | GI11: 0 | GJ11: 0 | GK11: 0 | GL11: 0 | GM11: 0 | GN11: 0 | GO11: 0 | GP11: 4535 | GQ11: 1800 | GR11: 1500 | GS11: 0 | GT11: 41480.6 | GU11: 1500 | GV11: 42980.6 | GW11: 34176.61 | GX11: 968.99 | GY11: 0 | GZ11: 0 | HA11: 0 | HB11: 0 | HC11: 0 | HD11: 0 | HE11: 0 | HF11: 0 | HG11: 0 | HH11: 0 | HI11: 0 | HJ11: 4535 | HK11: 0 | HL11: 0 | HM11: 0 | HN11: 39680.6 | HO11: 0 | HP11: 39680.6 | HQ11: 34176.61 | HR11: 968.99 | HS11: 0 | HT11: 0 | HU11: 0 | HV11: 0 | HW11: 0 | HX11: 0 | HY11: 0 | HZ11: 0 | IA11: 0 | IB11: 0 | IC11: 0 | ID11: 4535 | IE11: 0 | IF11: 0 | IG11: 0 | IH11: 39680.6 | II11: 0 | IJ11: 39680.6 | IK11: 34176.61 | IL11: 968.99 | IM11: 0 | IN11: 0 | IO11: 0 | IP11: 0 | IQ11: 0 | IR11: 0 | IS11: 0 | IT11: 0 | IU11: 0 | IV11: 0 | IW11: 0 | IX11: 4535 | IY11: 0 | IZ11: 0 | JA11: 0 | JB11: 39680.6 | JC11: 0 | JD11: 39680.6 | JE11: 34176.61 | JF11: 968.99 | JG11: 0 | JH11: 0 | JI11: 0 | JJ11: 0 | JK11: 0 | JL11: 0 | JM11: 0 | JN11: 0 | JO11: 0 | JP11: 0 | JQ11: 0 | JR11: 4535 | JS11: 0 | JT11: 0 | JU11: 0 | JV11: 39680.6 | JW11: 0 | JX11: 39680.6 | JY11: 34176.61 | JZ11: 968.99 | KA11: 0 | KB11: 0 | KC11: 0 | KD11: 0 | KE11: 0 | KF11: 0 | KG11: 0 | KH11: 0 | KI11: 0 | KJ11: 0 | KK11: 0 | KL11: 4535 | KM11: 0 | KN11: 0 | KO11: 0 | KP11: 39680.6 | KQ11: 0 | KR11: 39680.6 | KS11: 34176.61 | KT11: 968.99 | KU11: 0 | KV11: 0 | KW11: 0 | KX11: 0 | KY11: 0 | KZ11: 0 | LA11: 0 | LB11: 0 | LC11: 0 | LD11: 0 | LE11: 0 | LF11: 4535 | LG11: 0 | LH11: 0 | LI11: 0 | LJ11: 39680.6 | LK11: 0 | LL11: 39680.6 | LM11: 34176.61 | LN11: 968.99 | LO11: 0 | LP11: 0 | LQ11: 0 | LR11: 0 | LS11: 0 | LT11: 0 | LU11: 0 | LV11: 0 | LW11: 0 | LX11: 0 | LY11: 0 | LZ11: 4535 | MA11: 0 | MB11: 0 | MC11: 0 | MD11: 39680.6 | ME11: 0 | MF11: 39680.6 | MG11: 48939.09 | MH11: 968.99 | MI11: 0 | MJ11: 0 | MK11: 0 | ML11: 0 | MM11: 0 | MN11: 0 | MO11: 0 | MP11: 0 | MQ11: 0 | MR11: 0 | MS11: 0 | MT11: 4535 | MU11: 0 | MV11: 0 | MW11: 0 | MX11: 54443.08 | MY11: 0 | MZ11: 54443.08 | NA11: 04/2017-SE | NB11: 2017-01-02 | NC11: 2017-12-31 | ND11: 432151.62 | NE11: 172/2017-SE | NF11: Primeiro | NG11: 2017-06-06 | NH11: 2017-12-31 | NI11: 0 | NJ11: 374/2017-SE | NK11: Segundo | NL11: 2017-11-07 | NM11: 2017-12-31 | NN11: 8000 | NO11: 179/2018-SE | NP11: Terceiro | NQ11: 2018-01-01 | NR11: 2018-12-31 | NS11: 494320.34 | NT11: 184/2019-SE | NU11: Quarto | NV11: 2019-01-02 | NW11: 2019-12-31 | NX11: 535506.11 | NY11: 406/2019-SE | NZ11: Quinto | OA11: 2019-12-27 | OB11: 2020-12-31 | OC11: 545766.93 | OD11: 15/2020-SE | OE11: Sexto | OH11: -17324.77 | OI11: 10/2021-SE | OJ11: Sétimo | OK11: 2021-01-01 | OL11: 2021-12-31 | OM11: 544312.16
A12: 11 | B12: Associação de Promoção Humana e Resgate da Cidadania | G12: Assoc Promoção Humana | H12: 55.039.127/0001-06 | I12: SB 038141/2020-39 | J12: SB.085080/2020-42 | K12: SB 084414/2019-93 | L12: 05/2017-SE | N12: 11/2021-SE | O12: Sétimo | P12: 2021-01-27 | Q12: 2021-01-01 | R12: 2021-12-31 | S12: Rua Padre Leo Commissari, 288 | T12: Jardim Silvina | U12: S.B.Campo | V12: 09791-030 | W12: (11) 4941-3552 | X12: crechemargarida@outlook.com | Y12: Daniela Bonello | Z12: 2021 a 2024 | AA12: Caixa Econômica Federal | AB12: 1207 | AC12: 003 | AD12: 00002922-2 | AI12: 82 | AJ12: 5 | AK12: 82 | AL12: 5 | AM12: 732.27 | AN12: 585.76 | AO12: 0 | AP12: 52036.85 | AQ12: 52036.85 | AR12: 624060.82 | AT12: 47546 | AU12: 49923.3 | AV12: 45180.69 | AW12: 4300 | AX12: 4300.16 | AY12: 0 | AZ12: 2113.55 | BA12: 0 | BB12: 624060.82 | BD12: 45180.69 | BE12: 34000 | BH12: 1800 | BI12: 1500 | BJ12: 1650 | BL12: 51600 | BM12: 756641.51 | BN12: 3150 | BO12: 759791.51 | BP12: 95736.51 | BQ12: 1650 | BR12: 97386.51 | BS12: 73146.16 | BT12: 0 | BU12: 73146.16 | BV12: 56336.85 | BW12: 0 | BX12: 56336.85 | BY12: 58136.85 | BZ12: 1500 | CA12: 59636.85 | CB12: 56336.85 | CC12: 0 | CD12: 56336.85 | CE12: 56336.85 | CF12: 0 | CG12: 56336.85 | CH12: 56336.85 | CI12: 0 | CJ12: 56336.85 | CK12: 56336.85 | CL12: 0 | CM12: 56336.85 | CN12: 56336.85 | CO12: 0 | CP12: 56336.85 | CQ12: 56336.85 | CR12: 0 | CS12: 56336.85 | CT12: 56336.85 | CU12: 0 | CV12: 56336.85 | CW12: 78927.19 | CX12: 0 | CY12: 78927.19 | CZ12: 639505.69 | DA12: 10579.82 | DB12: 900 | DC12: 800 | DD12: 520 | DE12: 300 | DF12: 160 | DG12: 3600 | DH12: 600 | DI12: 0 | DJ12: 34000 | DK12: 11976 | DL12: 300 | DM12: 51600 | DN12: 1800 | DO12: 1500 | DP12: 1650 | DQ12: 756641.51 | DR12: 3150 | DS12: 759791.51 | DU12: 70136.35 | DV12: 1222.16 | DW12: 200 | DX12: 400 | DY12: 200 | DZ12: 100 | EA12: 30 | EB12: 800 | EC12: 250 | ED12: 0 | EE12: 17000 | EF12: 998 | EG12: 100 | EH12: 4300 | EI12: 0 | EJ12: 0 | EK12: 1650 | EL12: 95736.51 | EM12: 1650 | EN12: 97386.51 | EO12: 47546 | EP12: 1222.16 | EQ12: 200 | ER12: 400 | ES12: 200 | ET12: 100 | EU12: 30 | EV12: 800 | EW12: 250 | EX12: 0 | EY12: 17000 | EZ12: 998 | FA12: 100 | FB12: 4300 | FC12: 0 | FD12: 0 | FE12: 0 | FF12: 73146.16 | FG12: 0 | FH12: 73146.16 | FI12: 49923.3 | FJ12: 813.55 | FK12: 50 | FL12: 0 | FM12: 12 | FN12: 10 | FO12: 10 | FP12: 200 | FQ12: 10 | FR12: 0 | FS12: 0 | FT12: 998 | FU12: 10 | FV12: 4300 | FW12: 0 | FX12: 0 | FY12: 0 | FZ12: 56336.85 | GA12: 0 | GB12: 56336.85 | GC12: 49923.3 | GD12: 813.55 | GE12: 50 | GF12: 0 | GG12: 12 | GH12: 10 | GI12: 10 | GJ12: 200 | GK12: 10 | GL12: 0 | GM12: 0 | GN12: 998 | GO12: 10 | GP12: 4300 | GQ12: 1800 | GR12: 1500 | GS12: 0 | GT12: 58136.85 | GU12: 1500 | GV12: 59636.85 | GW12: 49923.3 | GX12: 813.55 | GY12: 50 | GZ12: 0 | HA12: 12 | HB12: 10 | HC12: 10 | HD12: 200 | HE12: 10 | HF12: 0 | HG12: 0 | HH12: 998 | HI12: 10 | HJ12: 4300 | HK12: 0 | HL12: 0 | HM12: 0 | HN12: 56336.85 | HO12: 0 | HP12: 56336.85 | HQ12: 49923.3 | HR12: 813.55 | HS12: 50 | HT12: 0 | HU12: 12 | HV12: 10 | HW12: 10 | HX12: 200 | HY12: 10 | HZ12: 0 | IA12: 0 | IB12: 998 | IC12: 10 | ID12: 4300 | IE12: 0 | IF12: 0 | IG12: 0 | IH12: 56336.85 | II12: 0 | IJ12: 56336.85 | IK12: 49923.3 | IL12: 813.55 | IM12: 50 | IN12: 0 | IO12: 12 | IP12: 10 | IQ12: 10 | IR12: 200 | IS12: 10 | IT12: 0 | IU12: 0 | IV12: 998 | IW12: 10 | IX12: 4300 | IY12: 0 | IZ12: 0 | JA12: 0 | JB12: 56336.85 | JC12: 0 | JD12: 56336.85 | JE12: 49923.3 | JF12: 813.55 | JG12: 50 | JH12: 0 | JI12: 12 | JJ12: 10 | JK12: 10 | JL12: 200 | JM12: 10 | JN12: 0 | JO12: 0 | JP12: 998 | JQ12: 10 | JR12: 4300 | JS12: 0 | JT12: 0 | JU12: 0 | JV12: 56336.85 | JW12: 0 | JX12: 56336.85 | JY12: 49923.3 | JZ12: 813.55 | KA12: 50 | KB12: 0 | KC12: 12 | KD12: 10 | KE12: 10 | KF12: 200 | KG12: 10 | KH12: 0 | KI12: 0 | KJ12: 998 | KK12: 10 | KL12: 4300 | KM12: 0 | KN12: 0 | KO12: 0 | KP12: 56336.85 | KQ12: 0 | KR12: 56336.85 | KS12: 49923.3 | KT12: 813.55 | KU12: 50 | KV12: 0 | KW12: 12 | KX12: 10 | KY12: 10 | KZ12: 200 | LA12: 10 | LB12: 0 | LC12: 0 | LD12: 998 | LE12: 10 | LF12: 4300 | LG12: 0 | LH12: 0 | LI12: 0 | LJ12: 56336.85 | LK12: 0 | LL12: 56336.85 | LM12: 49923.3 | LN12: 813.55 | LO12: 50 | LP12: 0 | LQ12: 12 | LR12: 10 | LS12: 10 | LT12: 200 | LU12: 10 | LV12: 0 | LW12: 0 | LX12: 998 | LY12: 10 | LZ12: 4300 | MA12: 0 | MB12: 0 | MC12: 0 | MD12: 56336.85 | ME12: 0 | MF12: 56336.85 | MG12: 72513.64 | MH12: 813.55 | MI12: 50 | MJ12: 0 | MK12: 12 | ML12: 10 | MM12: 10 | MN12: 200 | MO12: 10 | MP12: 0 | MQ12: 0 | MR12: 998 | MS12: 10 | MT12: 4300 | MU12: 0 | MV12: 0 | MW12: 0 | MX12: 78927.19 | MY12: 0 | MZ12: 78927.19 | NA12: 05/2017-SE | NB12: 2017-01-02 | NC12: 2017-12-31 | ND12: 541932.26 | NE12: 173/2017-SE | NF12: Primeiro | NG12: 2017-06-06 | NH12: 2017-12-31 | NI12: 0 | NJ12: 375/2017-SE | NK12: Segundo | NL12: 2017-11-07 | NM12: 2017-12-31 | NN12: 8000 | NO12: 180/2018-SE | NP12: Terceiro | NQ12: 2018-01-01 | NR12: 2018-12-31 | NS12: 630727.3 | NT12: 185/2019-SE | NU12: Quarto | NV12: 2019-01-02 | NW12: 2019-12-31 | NX12: 720110.99 | NY12: 407/2019-SE | NZ12: Quinto | OA12: 2019-12-27 | OB12: 2020-12-31 | OC12: 711345.93 | OD12: 16/2020-SE | OE12: Sexto | OH12: -35093.9 | OI12: 11/2021-SE | OJ12: Sétimo | OK12: 2021-01-01 | OL12: 2021-12-31 | OM12: 759791.51
A13: 12 | B13: Associação Dehoniana Brasil Meridional | G13: Assoc Dehoniana | H13: 04.112.885/0001-71 | I13: SB 038142/2020-90 | J13: SB.085083/2020-25 | K13: SB 084427/2019-02 | L13: 06/2017-SE | N13: 12/2021-SE | O13: Oitavo | P13: 2021-01-27 | Q13: 2021-01-01 | R13: 2021-12-31 | S13: Estrada do Cocaia, nº 1238 | T13: Riacho Grande | U13: S.B.Campo | V13: 09832-100 | W13: 4101-9500 | X13: administracao@imsjt.org.br | Y13: Davi Angelo de Assis | Z13: 20/01/2020 a 21/02/2021 | AA13: Banco do Brasil | AB13: 0427-8 | AD13: 122.395-x | AI13: 70 | AJ13: 4 | AK13: 70 | AL13: 4 | AM13: 732.27 | AN13: 585.76 | AO13: 0 | AP13: 41003.2 | AQ13: 41003.2 | AR13: 492038.4 | AT13: 36558.37 | AU13: 38386.29 | AV13: 32933.64 | AW13: 2606.71 | AX13: 4444.83 | AY13: 0 | AZ13: 2616.91 | BA13: 0 | BB13: 492038.4 | BD13: 32933.64 | BE13: 34000 | BH13: 1800 | BI13: 1500 | BJ13: 1320 | BL13: 31280.52 | BM13: 592052.56 | BN13: 2820 | BO13: 594872.56 | BP13: 77076.73 | BQ13: 1320 | BR13: 78396.73 | BS13: 60609.91 | BT13: 0 | BU13: 60609.91 | BV13: 43609.91 | BW13: 0 | BX13: 43609.91 | BY13: 36916.39 | BZ13: 1500 | CA13: 38416.39 | CB13: 43609.91 | CC13: 0 | CD13: 43609.91 | CE13: 43609.91 | CF13: 0 | CG13: 43609.91 | CH13: 43609.91 | CI13: 0 | CJ13: 43609.91 | CK13: 43609.91 | CL13: 0 | CM13: 43609.91 | CN13: 43609.91 | CO13: 0 | CP13: 43609.91 | CQ13: 43609.91 | CR13: 0 | CS13: 43609.91 | CT13: 43609.91 | CU13: 0 | CV13: 43609.91 | CW13: 60076.73 | CX13: 0 | CY13: 60076.73 | CZ13: 489913.28 | DA13: 17658.76 | DB13: 3000 | DC13: 0 | DD13: 4400 | DE13: 0 | DF13: 0 | DG13: 9000 | DH13: 0 | DI13: 1000 | DJ13: 34000 | DK13: 0 | DL13: 0 | DM13: 31280.52 | DN13: 1800 | DO13: 1500 | DP13: 1320 | DQ13: 592052.56 | DR13: 2820 | DS13: 594872.56 | DU13: 53025.19 | DV13: 1244.83 | DW13: 1500 | DX13: 0 | DY13: 700 | DZ13: 0 | EA13: 0 | EB13: 1000 | EC13: 0 | ED13: 0 | EE13: 17000 | EF13: 0 | EG13: 0 | EH13: 2606.71 | EI13: 0 | EJ13: 0 | EK13: 1320 | EL13: 77076.73 | EM13: 1320 | EN13: 78396.73 | EO13: 36558.37 | EP13: 1244.83 | EQ13: 1500 | ER13: 0 | ES13: 700 | ET13: 0 | EU13: 0 | EV13: 1000 | EW13: 0 | EX13: 0 | EY13: 17000 | EZ13: 0 | FA13: 0 | FB13: 2606.71 | FC13: 0 | FD13: 0 | FE13: 0 | FF13: 60609.91 | FG13: 0 | FH13: 60609.91 | FI13: 38386.29 | FJ13: 1516.91 | FK13: 0 | FL13: 0 | FM13: 300 | FN13: 0 | FO13: 0 | FP13: 700 | FQ13: 0 | FR13: 100 | FS13: 0 | FT13: 0 | FU13: 0 | FV13: 2606.71 | FW13: 0 | FX13: 0 | FY13: 0 | FZ13: 43609.91 | GA13: 0 | GB13: 43609.91 | GC13: 29892.77 | GD13: 1516.91 | GE13: 0 | GF13: 0 | GG13: 300 | GH13: 0 | GI13: 0 | GJ13: 700 | GK13: 0 | GL13: 100 | GM13: 0 | GN13: 0 | GO13: 0 | GP13: 2606.71 | GQ13: 1800 | GR13: 1500 | GS13: 0 | GT13: 36916.39 | GU13: 1500 | GV13: 38416.39 | GW13: 38386.29 | GX13: 1516.91 | GY13: 0 | GZ13: 0 | HA13: 300 | HB13: 0 | HC13: 0 | HD13: 700 | HE13: 0 | HF13: 100 | HG13: 0 | HH13: 0 | HI13: 0 | HJ13: 2606.71 | HK13: 0 | HL13: 0 | HM13: 0 | HN13: 43609.91 | HO13: 0 | HP13: 43609.91 | HQ13: 38386.29 | HR13: 1516.91 | HS13: 0 | HT13: 0 | HU13: 300 | HV13: 0 | HW13: 0 | HX13: 700 | HY13: 0 | HZ13: 100 | IA13: 0 | IB13: 0 | IC13: 0 | ID13: 2606.71 | IE13: 0 | IF13: 0 | IG13: 0 | IH13: 43609.91 | II13: 0 | IJ13: 43609.91 | IK13: 38386.29 | IL13: 1516.91 | IM13: 0 | IN13: 0 | IO13: 300 | IP13: 0 | IQ13: 0 | IR13: 700 | IS13: 0 | IT13: 100 | IU13: 0 | IV13: 0 | IW13: 0 | IX13: 2606.71 | IY13: 0 | IZ13: 0 | JA13: 0 | JB13: 43609.91 | JC13: 0 | JD13: 43609.91 | JE13: 38386.29 | JF13: 1516.91 | JG13: 0 | JH13: 0 | JI13: 300 | JJ13: 0 | JK13: 0 | JL13: 700 | JM13: 0 | JN13: 100 | JO13: 0 | JP13: 0 | JQ13: 0 | JR13: 2606.71 | JS13: 0 | JT13: 0 | JU13: 0 | JV13: 43609.91 | JW13: 0 | JX13: 43609.91 | JY13: 38386.29 | JZ13: 1516.91 | KA13: 0 | KB13: 0 | KC13: 300 | KD13: 0 | KE13: 0 | KF13: 700 | KG13: 0 | KH13: 100 | KI13: 0 | KJ13: 0 | KK13: 0 | KL13: 2606.71 | KM13: 0 | KN13: 0 | KO13: 0 | KP13: 43609.91 | KQ13: 0 | KR13: 43609.91 | KS13: 38386.29 | KT13: 1516.91 | KU13: 0 | KV13: 0 | KW13: 300 | KX13: 0 | KY13: 0 | KZ13: 700 | LA13: 0 | LB13: 100 | LC13: 0 | LD13: 0 | LE13: 0 | LF13: 2606.71 | LG13: 0 | LH13: 0 | LI13: 0 | LJ13: 43609.91 | LK13: 0 | LL13: 43609.91 | LM13: 38386.29 | LN13: 1516.91 | LO13: 0 | LP13: 0 | LQ13: 300 | LR13: 0 | LS13: 0 | LT13: 700 | LU13: 0 | LV13: 100 | LW13: 0 | LX13: 0 | LY13: 0 | LZ13: 2606.71 | MA13: 0 | MB13: 0 | MC13: 0 | MD13: 43609.91 | ME13: 0 | MF13: 43609.91 | MG13: 54853.11 | MH13: 1516.91 | MI13: 0 | MJ13: 0 | MK13: 300 | ML13: 0 | MM13: 0 | MN13: 700 | MO13: 0 | MP13: 100 | MQ13: 0 | MR13: 0 | MS13: 0 | MT13: 2606.71 | MU13: 0 | MV13: 0 | MW13: 0 | MX13: 60076.73 | MY13: 0 | MZ13: 60076.73 | NA13: 06/2017-SE | NB13: 2017-01-02 | NC13: 2017-12-31 | ND13: 476394.66 | NE13: 174/2017-SE | NF13: Primeiro | NG13: 2017-06-06 | NH13: 2017-12-31 | NI13: 0 | NJ13: 376/2017-SE | NK13: Segundo | NL13: 2017-11-07 | NM13: 2017-12-31 | NN13: 8000 | NO13: 181/2018-SE | NP13: Terceiro | NQ13: 2018-01-01 | NR13: 2018-12-31 | NS13: 520934.62 | NT13: 186/2019-SE | NU13: Quarto | NV13: 2019-01-02 | NW13: 2019-12-31 | NX13: 564191.25 | NY13: 221/2019-SE | NZ13: Quinto | OA13: 2019-11-19 | OB13: 2019-12-31 | OC13: 0 | OD13: 408/2019-SE | OE13: Sexto | OF13: 2019-12-27 | OG13: 2020-12-31 | OH13: 596025.26 | OI13: 17/2020-SE | OJ13: Sétimo | OM13: -39913.6 | ON13: 12/2021-SE | OO13: Oitavo | OP13: 2021-01-01 | OQ13: 2021-12-31 | OR13: 594872.56
A14: 13 | B14: Associação Educativa Madre Vincenza | G14: Assoc Educ Madre Vincenza | H14: 43.350.867/0001-80 | I14: SB 038146/2020-34 | J14: SB.085086/2020-08 | K14: SB 084433/2019-94 | L14: 19/2017-SE | N14: 13/2021-SE | O14: Sétimo | P14: 2021-01-27 | Q14: 2021-01-01 | R14: 2021-12-31 | S14: Rua Angatuba, nº 87 | T14: Baeta Neves | U14: S.B.Campo | V14: 09751-190 | W14: 4125-6381 | X14: admmv@yahoo.com | Y14: Ana Maria Marques | Z14: 18/02/2019 a 17/02/2022 | AA14: Caixa Econômica Federal | AB14: 2901 | AC14: 003 | AD14: 00001707-6 | AI14: 96 | AJ14: 5 | AK14: 96 | AL14: 5 | AM14: 732.27 | AN14: 585.76 | AO14: 0 | AP14: 56232.96 | AQ14: 56232.96 | AR14: 674795.52 | AT14: 53421.9 | AU14: 56093 | AV14: 43236.56 | AW14: 0 | AX14: 2811.06 | AY14: 0 | AZ14: 139.96 | BA14: 0 | BB14: 674795.52 | BD14: 43236.56 | BE14: 34000 | BH14: 1800 | BI14: 1500 | BJ14: 1650 | BL14: 0 | BM14: 753832.08 | BN14: 3150 | BO14: 756982.08 | BP14: 94851.24 | BQ14: 1650 | BR14: 96501.24 | BS14: 73232.96 | BT14: 0 | BU14: 73232.96 | BV14: 56232.96 | BW14: 0 | BX14: 56232.96 | BY14: 58032.96 | BZ14: 1500 | CA14: 59532.96 | CB14: 56232.96 | CC14: 0 | CD14: 56232.96 | CE14: 56232.96 | CF14: 0 | CG14: 56232.96 | CH14: 56232.96 | CI14: 0 | CJ14: 56232.96 | CK14: 56232.96 | CL14: 0 | CM14: 56232.96 | CN14: 56232.96 | CO14: 0 | CP14: 56232.96 | CQ14: 56232.96 | CR14: 0 | CS14: 56232.96 | CT14: 56232.96 | CU14: 0 | CV14: 56232.96 | CW14: 77851.24 | CX14: 0 | CY14: 77851.24 | CZ14: 711010.36 | DA14: 3521.72 | DB14: 200 | DC14: 200 | DD14: 200 | DE14: 200 | DF14: 200 | DG14: 200 | DH14: 0 | DI14: 200 | DJ14: 34000 | DK14: 1900 | DL14: 200 | DM14: 0 | DN14: 1800 | DO14: 1500 | DP14: 1650 | DQ14: 753832.08 | DR14: 3150 | DS14: 756982.08 | DU14: 75040.18 | DV14: 1511.06 | DW14: 50 | DX14: 50 | DY14: 50 | DZ14: 50 | EA14: 50 | EB14: 50 | EC14: 0 | ED14: 50 | EE14: 17000 | EF14: 900 | EG14: 50 | EH14: 0 | EI14: 0 | EJ14: 0 | EK14: 1650 | EL14: 94851.24 | EM14: 1650 | EN14: 96501.24 | EO14: 53421.9 | EP14: 1511.06 | EQ14: 50 | ER14: 50 | ES14: 50 | ET14: 50 | EU14: 50 | EV14: 50 | EW14: 0 | EX14: 50 | EY14: 17000 | EZ14: 900 | FA14: 50 | FB14: 0 | FC14: 0 | FD14: 0 | FE14: 0 | FF14: 73232.96 | FG14: 0 | FH14: 73232.96 | FI14: 56093 | FJ14: 49.96 | FK14: 10 | FL14: 10 | FM14: 10 | FN14: 10 | FO14: 10 | FP14: 10 | FQ14: 0 | FR14: 10 | FS14: 0 | FT14: 10 | FU14: 10 | FV14: 0 | FW14: 0 | FX14: 0 | FY14: 0 | FZ14: 56232.96 | GA14: 0 | GB14: 56232.96 | GC14: 56093 | GD14: 49.96 | GE14: 10 | GF14: 10 | GG14: 10 | GH14: 10 | GI14: 10 | GJ14: 10 | GK14: 0 | GL14: 10 | GM14: 0 | GN14: 10 | GO14: 10 | GP14: 0 | GQ14: 1800 | GR14: 1500 | GS14: 0 | GT14: 58032.96 | GU14: 1500 | GV14: 59532.96 | GW14: 56093 | GX14: 49.96 | GY14: 10 | GZ14: 10 | HA14: 10 | HB14: 10 | HC14: 10 | HD14: 10 | HE14: 0 | HF14: 10 | HG14: 0 | HH14: 10 | HI14: 10 | HJ14: 0 | HK14: 0 | HL14: 0 | HM14: 0 | HN14: 56232.96 | HO14: 0 | HP14: 56232.96 | HQ14: 56093 | HR14: 49.96 | HS14: 10 | HT14: 10 | HU14: 10 | HV14: 10 | HW14: 10 | HX14: 10 | HY14: 0 | HZ14: 10 | IA14: 0 | IB14: 10 | IC14: 10 | ID14: 0 | IE14: 0 | IF14: 0 | IG14: 0 | IH14: 56232.96 | II14: 0 | IJ14: 56232.96 | IK14: 56093 | IL14: 49.96 | IM14: 10 | IN14: 10 | IO14: 10 | IP14: 10 | IQ14: 10 | IR14: 10 | IS14: 0 | IT14: 10 | IU14: 0 | IV14: 10 | IW14: 10 | IX14: 0 | IY14: 0 | IZ14: 0 | JA14: 0 | JB14: 56232.96 | JC14: 0 | JD14: 56232.96 | JE14: 56093 | JF14: 49.96 | JG14: 10 | JH14: 10 | JI14: 10 | JJ14: 10 | JK14: 10 | JL14: 10 | JM14: 0 | JN14: 10 | JO14: 0 | JP14: 10 | JQ14: 10 | JR14: 0 | JS14: 0 | JT14: 0 | JU14: 0 | JV14: 56232.96 | JW14: 0 | JX14: 56232.96 | JY14: 56093 | JZ14: 49.96 | KA14: 10 | KB14: 10 | KC14: 10 | KD14: 10 | KE14: 10 | KF14: 10 | KG14: 0 | KH14: 10 | KI14: 0 | KJ14: 10 | KK14: 10 | KL14: 0 | KM14: 0 | KN14: 0 | KO14: 0 | KP14: 56232.96 | KQ14: 0 | KR14: 56232.96 | KS14: 56093 | KT14: 49.96 | KU14: 10 | KV14: 10 | KW14: 10 | KX14: 10 | KY14: 10 | KZ14: 10 | LA14: 0 | LB14: 10 | LC14: 0 | LD14: 10 | LE14: 10 | LF14: 0 | LG14: 0 | LH14: 0 | LI14: 0 | LJ14: 56232.96 | LK14: 0 | LL14: 56232.96 | LM14: 56093 | LN14: 49.96 | LO14: 10 | LP14: 10 | LQ14: 10 | LR14: 10 | LS14: 10 | LT14: 10 | LU14: 0 | LV14: 10 | LW14: 0 | LX14: 10 | LY14: 10 | LZ14: 0 | MA14: 0 | MB14: 0 | MC14: 0 | MD14: 56232.96 | ME14: 0 | MF14: 56232.96 | MG14: 77711.28 | MH14: 49.96 | MI14: 10 | MJ14: 10 | MK14: 10 | ML14: 10 | MM14: 10 | MN14: 10 | MO14: 0 | MP14: 10 | MQ14: 0 | MR14: 10 | MS14: 10 | MT14: 0 | MU14: 0 | MV14: 0 | MW14: 0 | MX14: 77851.24 | MY14: 0 | MZ14: 77851.24 | NA14: 19/2017-SE | NB14: 2017-01-02 | NC14: 2017-12-31 | ND14: 581049.26 | NE14: 187/2017-SE | NF14: Primeiro | NG14: 2017-06-06 | NH14: 2017-12-31 | NI14: 0 | NJ14: 389/2017-SE | NK14: Segundo | NL14: 2017-11-07 | NM14: 2017-12-31 | NN14: 8000 | NO14: 182/2018-SE | NP14: Terceiro | NQ14: 2018-01-01 | NR14: 2018-12-31 | NS14: 655091.96 | NT14: 187/2019-SE | NU14: Quarto | NV14: 2019-01-02 | NW14: 2019-12-31 | NX14: 727348.05 | NY14: 409/2019-SE | NZ14: Quinto | OA14: 2019-12-27 | OB14: 2020-12-31 | OC14: 758792.96 | OD14: 18/2020-SE | OE14: Sexto | OH14: -38886.42 | OI14: 13/2021-SE | OJ14: Sétimo | OK14: 2021-01-01 | OL14: 2021-12-31 | OM14: 756982.08
A15: 14 | B15: Associação Lapidar | G15: Assoc Lapidar | H15: 49.521.107/0001-74 | I15: SB.016441/2021-97 | L15: 02/2021-SE | P15: 2021-03-24 | Q15: 2021-03-24 | R15: 2021-12-31 | S15: Estrada Galvão Bueno, 4643 | T15: Batistini | U15: S.B.Campo | V15: 09842-080 | W15: 4396-5656 | X15: organizacaolapidar@gmail.com | Y15: Débora Aparecida Rossi Chiaratto | Z15: 07/09/2018 a 06/09/2023 | AA15: Caixa Econômica Federal | AB15: 3393 | AC15: 003 | AD15: 00001560-2 | AG15: 12 | AH15: 1 | AI15: 68 | AJ15: 4 | AK15: 80 | AL15: 5 | AM15: 732.27 | AN15: 585.76 | AO15: 8787.24 | AP15: 39831.68 | AQ15: 48618.92 | AR15: 486189.2 | AU15: 44969.26 | AV15: 38717.76 | AW15: 0 | AX15: 1644.88 | AY15: 180 | AZ15: 3289.66 | BA15: 360 | BB15: 486189.2 | BD15: 38717.76 | BE15: 34000 | BF15: 17072 | BG15: 21490 | BH15: 1800 | BI15: 1500 | BJ15: 1650 | BL15: 0 | BM15: 550049.56 | BN15: 28060 | BO15: 578109.56 | BP15: 0 | BQ15: 0 | BR15: 0 | BS15: 0 | BT15: 0 | BU15: 0 | BV15: 72075.76 | BW15: 23320 | BX15: 95395.76 | BY15: 34345.86 | BZ15: 1860 | CA15: 36205.86 | CB15: 48258.92 | CC15: 360 | CD15: 48618.92 | CE15: 48258.92 | CF15: 360 | CG15: 48618.92 | CH15: 48258.92 | CI15: 360 | CJ15: 48618.92 | CK15: 48258.92 | CL15: 360 | CM15: 48618.92 | CN15: 48258.92 | CO15: 360 | CP15: 48618.92 | CQ15: 48258.92 | CR15: 360 | CS15: 48618.92 | CT15: 48258.92 | CU15: 360 | CV15: 48618.92 | CW15: 67617.8 | CX15: 360 | CY15: 67977.8 | CZ15: 465925.74 | DA15: 4750 | DB15: 2849.1 | DC15: 1900 | DD15: 1900 | DE15: 1330 | DF15: 1900 | DG15: 18972 | DH15: 0 | DI15: 4747.72 | DJ15: 34000 | DK15: 8550 | DL15: 1425 | DM15: 0 | DN15: 1800 | DO15: 1500 | DP15: 26560 | DQ15: 550049.56 | DR15: 28060 | DS15: 578109.56 | FI15: 19358.88 | FJ15: 250 | FK15: 150 | FL15: 100 | FM15: 100 | FN15: 70 | FO15: 100 | FP15: 17172 | FQ15: 0 | FR15: 249.88 | FS15: 34000 | FT15: 450 | FU15: 75 | FV15: 0 | FW15: 0 | FX15: 0 | FY15: 23320 | FZ15: 72075.76 | GA15: 23320 | GB15: 95395.76 | GC15: 29256.2 | GD15: 500 | GE15: 299.9 | GF15: 200 | GG15: 200 | GH15: 140 | GI15: 200 | GJ15: 200 | GK15: 0 | GL15: 499.76 | GM15: 0 | GN15: 900 | GO15: 150 | GP15: 0 | GQ15: 1800 | GR15: 1500 | GS15: 360 | GT15: 34345.86 | GU15: 1860 | GV15: 36205.86 | GW15: 44969.26 | GX15: 500 | GY15: 299.9 | GZ15: 200 | HA15: 200 | HB15: 140 | HC15: 200 | HD15: 200 | HE15: 0 | HF15: 499.76 | HG15: 0 | HH15: 900 | HI15: 150 | HJ15: 0 | HK15: 0 | HL15: 0 | HM15: 360 | HN15: 48258.92 | HO15: 360 | HP15: 48618.92 | HQ15: 44969.26 | HR15: 500 | HS15: 299.9 | HT15: 200 | HU15: 200 | HV15: 140 | HW15: 200 | HX15: 200 | HY15: 0 | HZ15: 499.76 | IA15: 0 | IB15: 900 | IC15: 150 | ID15: 0 | IE15: 0 | IF15: 0 | IG15: 360 | IH15: 48258.92 | II15: 360 | IJ15: 48618.92 | IK15: 44969.26 | IL15: 500 | IM15: 299.9 | IN15: 200 | IO15: 200 | IP15: 140 | IQ15: 200 | IR15: 200 | IS15: 0 | IT15: 499.76 | IU15: 0 | IV15: 900 | IW15: 150 | IX15: 0 | IY15: 0 | IZ15: 0 | JA15: 360 | JB15: 48258.92 | JC15: 360 | JD15: 48618.92 | JE15: 44969.26 | JF15: 500 | JG15: 299.9 | JH15: 200 | JI15: 200 | JJ15: 140 | JK15: 200 | JL15: 200 | JM15: 0 | JN15: 499.76 | JO15: 0 | JP15: 900 | JQ15: 150 | JR15: 0 | JS15: 0 | JT15: 0 | JU15: 360 | JV15: 48258.92 | JW15: 360 | JX15: 48618.92 | JY15: 44969.26 | JZ15: 500 | KA15: 299.9 | KB15: 200 | KC15: 200 | KD15: 140 | KE15: 200 | KF15: 200 | KG15: 0 | KH15: 499.76 | KI15: 0 | KJ15: 900 | KK15: 150 | KL15: 0 | KM15: 0 | KN15: 0 | KO15: 360 | KP15: 48258.92 | KQ15: 360 | KR15: 48618.92 | KS15: 44969.26 | KT15: 500 | KU15: 299.9 | KV15: 200 | KW15: 200 | KX15: 140 | KY15: 200 | KZ15: 200 | LA15: 0 | LB15: 499.76 | LC15: 0 | LD15: 900 | LE15: 150 | LF15: 0 | LG15: 0 | LH15: 0 | LI15: 360 | LJ15: 48258.92 | LK15: 360 | LL15: 48618.92 | LM15: 44969.26 | LN15: 500 | LO15: 299.9 | LP15: 200 | LQ15: 200 | LR15: 140 | LS15: 200 | LT15: 200 | LU15: 0 | LV15: 499.76 | LW15: 0 | LX15: 900 | LY15: 150 | LZ15: 0 | MA15: 0 | MB15: 0 | MC15: 360 | MD15: 48258.92 | ME15: 360 | MF15: 48618.92 | MG15: 64328.14 | MH15: 500 | MI15: 299.9 | MJ15: 200 | MK15: 200 | ML15: 140 | MM15: 200 | MN15: 200 | MO15: 0 | MP15: 499.76 | MQ15: 0 | MR15: 900 | MS15: 150 | MT15: 0 | MU15: 0 | MV15: 0 | MW15: 360 | MX15: 67617.8 | MY15: 360 | MZ15: 67977.8 | NA15: 02/2021-SE | NB15: 2021-03-24 | NC15: 2021-12-31 | ND15: 602418.96
A16: 15 | B16: Associação Presbiteriana de Assistência Social | G16: ASPAS | H16: 53.713.541/0001-23 | I16: SB 038149/2020-17 | J16: SB.085089/2020-81 | K16: SB 084656/2019-73 | L16: 08/2017-SE | N16: 14/2021-SE | O16: Sétimo | P16: 2021-01-27 | Q16: 2021-01-01 | R16: 2021-12-31 | S16: Rua Marques de Barbacena, nº 40 | T16: Jardim Silvina | U16: S.B.Campo | V16: 09791-120 | W16: 4335-5791 / 4335-8956 - 4127-0502 | X16: aspas.betel@uol.com.br | Y16: Maria da Conceição Dias Silva | Z16: 01/01/2018 a 31/12/2021 | AA16: Banco do Brasil | AB16: 6550-1 | AD16: 30710-6 | AG16: 24 | AH16: 2 | AI16: 114 | AJ16: 5 | AK16: 138 | AL16: 7 | AM16: 732.27 | AN16: 585.76 | AO16: 17574.48 | AP16: 66776.64 | AQ16: 84351.12 | AR16: 1012213.44 | AT16: 67751.61 | AU16: 71139.19 | AV16: 58431.63 | AW16: 0 | AX16: 16599.51 | AY16: 0 | AZ16: 13211.93 | BA16: 0 | BB16: 1012213.44 | BD16: 58431.63 | BE16: 34000 | BH16: 1800 | BI16: 1500 | BJ16: 2310 | BL16: 0 | BM16: 1106445.07 | BN16: 3810 | BO16: 1110255.07 | BP16: 130566.94 | BQ16: 2310 | BR16: 132876.94 | BS16: 101351.12 | BT16: 0 | BU16: 101351.12 | BV16: 84351.12 | BW16: 0 | BX16: 84351.12 | BY16: 86151.12 | BZ16: 1500 | CA16: 87651.12 | CB16: 84351.12 | CC16: 0 | CD16: 84351.12 | CE16: 84351.12 | CF16: 0 | CG16: 84351.12 | CH16: 84351.12 | CI16: 0 | CJ16: 84351.12 | CK16: 84351.12 | CL16: 0 | CM16: 84351.12 | CN16: 84351.12 | CO16: 0 | CP16: 84351.12 | CQ16: 84351.12 | CR16: 0 | CS16: 84351.12 | CT16: 84351.12 | CU16: 0 | CV16: 84351.12 | CW16: 113566.93 | CX16: 0 | CY16: 113566.93 | CZ16: 905326.75 | DA16: 67000 | DB16: 7000 | DC16: 12000 | DD16: 7200 | DE16: 6000 | DF16: 8400 | DG16: 13000 | DH16: 3000 | DI16: 27878.32 | DJ16: 34000 | DK16: 12540 | DL16: 1300 | DM16: 0 | DN16: 1800 | DO16: 1500 | DP16: 2310 | DQ16: 1106445.07 | DR16: 3810 | DS16: 1110255.07 | DU16: 96967.43 | DV16: 3500 | DW16: 500 | DX16: 1000 | DY16: 600 | DZ16: 500 | EA16: 700 | EB16: 1500 | EC16: 0 | ED16: 7104.51 | EE16: 17000 | EF16: 1045 | EG16: 150 | EH16: 0 | EI16: 0 | EJ16: 0 | EK16: 2310 | EL16: 130566.94 | EM16: 2310 | EN16: 132876.94 | EO16: 67751.61 | EP16: 3500 | EQ16: 500 | ER16: 1000 | ES16: 600 | ET16: 500 | EU16: 700 | EV16: 1500 | EW16: 0 | EX16: 7104.51 | EY16: 17000 | EZ16: 1045 | FA16: 150 | FB16: 0 | FC16: 0 | FD16: 0 | FE16: 0 | FF16: 101351.12 | FG16: 0 | FH16: 101351.12 | FI16: 71139.19 | FJ16: 6000 | FK16: 600 | FL16: 1000 | FM16: 600 | FN16: 500 | FO16: 700 | FP16: 1000 | FQ16: 300 | FR16: 1366.93 | FS16: 0 | FT16: 1045 | FU16: 100 | FV16: 0 | FW16: 0 | FX16: 0 | FY16: 0 | FZ16: 84351.12 | GA16: 0 | GB16: 84351.12 | GC16: 71139.19 | GD16: 6000 | GE16: 600 | GF16: 1000 | GG16: 600 | GH16: 500 | GI16: 700 | GJ16: 1000 | GK16: 300 | GL16: 1366.93 | GM16: 0 | GN16: 1045 | GO16: 100 | GP16: 0 | GQ16: 1800 | GR16: 1500 | GS16: 0 | GT16: 86151.12 | GU16: 1500 | GV16: 87651.12 | GW16: 71139.19 | GX16: 6000 | GY16: 600 | GZ16: 1000 | HA16: 600 | HB16: 500 | HC16: 700 | HD16: 1000 | HE16: 300 | HF16: 1366.93 | HG16: 0 | HH16: 1045 | HI16: 100 | HJ16: 0 | HK16: 0 | HL16: 0 | HM16: 0 | HN16: 84351.12 | HO16: 0 | HP16: 84351.12 | HQ16: 71139.19 | HR16: 6000 | HS16: 600 | HT16: 1000 | HU16: 600 | HV16: 500 | HW16: 700 | HX16: 1000 | HY16: 300 | HZ16: 1366.93 | IA16: 0 | IB16: 1045 | IC16: 100 | ID16: 0 | IE16: 0 | IF16: 0 | IG16: 0 | IH16: 84351.12 | II16: 0 | IJ16: 84351.12 | IK16: 71139.19 | IL16: 6000 | IM16: 600 | IN16: 1000 | IO16: 600 | IP16: 500 | IQ16: 700 | IR16: 1000 | IS16: 300 | IT16: 1366.93 | IU16: 0 | IV16: 1045 | IW16: 100 | IX16: 0 | IY16: 0 | IZ16: 0 | JA16: 0 | JB16: 84351.12 | JC16: 0 | JD16: 84351.12 | JE16: 71139.19 | JF16: 6000 | JG16: 600 | JH16: 1000 | JI16: 600 | JJ16: 500 | JK16: 700 | JL16: 1000 | JM16: 300 | JN16: 1366.93 | JO16: 0 | JP16: 1045 | JQ16: 100 | JR16: 0 | JS16: 0 | JT16: 0 | JU16: 0 | JV16: 84351.12 | JW16: 0 | JX16: 84351.12 | JY16: 71139.19 | JZ16: 6000 | KA16: 600 | KB16: 1000 | KC16: 600 | KD16: 500 | KE16: 700 | KF16: 1000 | KG16: 300 | KH16: 1366.93 | KI16: 0 | KJ16: 1045 | KK16: 100 | KL16: 0 | KM16: 0 | KN16: 0 | KO16: 0 | KP16: 84351.12 | KQ16: 0 | KR16: 84351.12 | KS16: 71139.19 | KT16: 6000 | KU16: 600 | KV16: 1000 | KW16: 600 | KX16: 500 | KY16: 700 | KZ16: 1000 | LA16: 300 | LB16: 1366.93 | LC16: 0 | LD16: 1045 | LE16: 100 | LF16: 0 | LG16: 0 | LH16: 0 | LI16: 0 | LJ16: 84351.12 | LK16: 0 | LL16: 84351.12 | LM16: 71139.19 | LN16: 6000 | LO16: 600 | LP16: 1000 | LQ16: 600 | LR16: 500 | LS16: 700 | LT16: 1000 | LU16: 300 | LV16: 1366.93 | LW16: 0 | LX16: 1045 | LY16: 100 | LZ16: 0 | MA16: 0 | MB16: 0 | MC16: 0 | MD16: 84351.12 | ME16: 0 | MF16: 84351.12 | MG16: 100355 | MH16: 6000 | MI16: 600 | MJ16: 1000 | MK16: 600 | ML16: 500 | MM16: 700 | MN16: 1000 | MO16: 300 | MP16: 1366.93 | MQ16: 0 | MR16: 1045 | MS16: 100 | MT16: 0 | MU16: 0 | MV16: 0 | MW16: 0 | MX16: 113566.93 | MY16: 0 | MZ16: 113566.93 | NA16: 08/2017-SE | NB16: 2017-01-02 | NC16: 2017-12-31 | ND16: 908853.66 | NE16: 176/2017-SE | NF16: Primeiro | NG16: 2017-06-06 | NH16: 2017-12-31 | NI16: 0 | NJ16: 378/2017-SE | NK16: Segundo | NL16: 2017-11-07 | NM16: 2017-12-31 | NN16: 8000 | NO16: 183/2018-SE | NP16: Terceiro | NQ16: 2018-01-01 | NR16: 2018-12-31 | NS16: 1004368.68 | NT16: 188/2019-SE | NU16: Quarto | NV16: 2019-01-02 | NW16: 2019-12-31 | NX16: 1099065.67 | NY16: 410/2019-SE | NZ16: Quinto | OA16: 2019-12-27 | OB16: 2020-12-31 | OC16: 1166740.26 | OD16: 19/2020-SE | OE16: Sexto | OH16: -33236.89 | OI16: 14/2021-SE | OJ16: Sétimo | OK16: 2021-01-01 | OL16: 2021-12-31 | OM16: 1110255.07
A17: 16 | B17: Congregação de São João Batista | G17: Congreg de São João Batista | H17: 10.559.778/0001-99 | I17: SB 038151/2020-65 | J17: SB.085092/2020-90 | K17: SB 084441/2019-08 | L17: 09/2017-SE | N17: 15/2021-SE | O17: Oitavo | P17: 2021-01-27 | Q17: 2021-01-01 | R17: 2021-12-31 | S17: Rua Dr. José Ória, nº 444 | T17: Planalto | U17: S.B.Campo | V17: 09890-030 | W17: 4341-6006 | X17: ccmj@csjbbrasil.org.br | Y17: Delva do Carmo Lorencini | Z17: 01/01/2020 a 31/12/2023 | AA17: Caixa Econômica Federal | AB17: 3118 | AC17: 003 | AD17: 00001410-3 | AG17: 16 | AH17: 1 | AI17: 101 | AJ17: 6 | AK17: 117 | AL17: 7 | AM17: 732.27 | AN17: 585.76 | AO17: 11716.32 | AP17: 59161.76 | AQ17: 70878.08 | AR17: 850536.96 | AT17: 55602.99 | AU17: 58383.14 | AV17: 52006.38 | AW17: 0 | AX17: 12775.09 | AY17: 2500 | AZ17: 11994.94 | BA17: 500 | BB17: 850536.96 | BD17: 52006.38 | BE17: 34000 | BH17: 1800 | BI17: 1500 | BJ17: 2310 | BL17: 0 | BM17: 928343.34 | BN17: 13810 | BO17: 942153.34 | BP17: 111381.27 | BQ17: 4810 | BR17: 116191.27 | BS17: 85378.08 | BT17: 2500 | BU17: 87878.08 | BV17: 70378.08 | BW17: 500 | BX17: 70878.08 | BY17: 72178.08 | BZ17: 2000 | CA17: 74178.08 | CB17: 70378.08 | CC17: 500 | CD17: 70878.08 | CE17: 70378.08 | CF17: 500 | CG17: 70878.08 | CH17: 70378.08 | CI17: 500 | CJ17: 70878.08 | CK17: 70378.08 | CL17: 500 | CM17: 70878.08 | CN17: 70378.08 | CO17: 500 | CP17: 70878.08 | CQ17: 70378.08 | CR17: 500 | CS17: 70878.08 | CT17: 70378.08 | CU17: 500 | CV17: 70878.08 | CW17: 96381.27 | CX17: 500 | CY17: 96881.27 | CZ17: 747043.76 | DA17: 26700 | DB17: 12000 | DC17: 12000 | DD17: 19199.58 | DE17: 400 | DF17: 400 | DG17: 57000 | DH17: 3000 | DI17: 13000 | DJ17: 34000 | DK17: 0 | DL17: 1800 | DM17: 0 | DN17: 1800 | DO17: 1500 | DP17: 12310 | DQ17: 928343.34 | DR17: 13810 | DS17: 942153.34 | DU17: 81606.18 | DV17: 2500 | DW17: 1000 | DX17: 1000 | DY17: 1725.09 | DZ17: 200 | EA17: 200 | EB17: 3500 | EC17: 1500 | ED17: 1000 | EE17: 17000 | EF17: 0 | EG17: 150 | EH17: 0 | EI17: 0 | EJ17: 0 | EK17: 4810 | EL17: 111381.27 | EM17: 4810 | EN17: 116191.27 | EO17: 55602.99 | EP17: 2500 | EQ17: 1000 | ER17: 1000 | ES17: 1725.09 | ET17: 200 | EU17: 200 | EV17: 3500 | EW17: 1500 | EX17: 1000 | EY17: 17000 | EZ17: 0 | FA17: 150 | FB17: 0 | FC17: 0 | FD17: 0 | FE17: 2500 | FF17: 85378.08 | FG17: 2500 | FH17: 87878.08 | FI17: 58383.14 | FJ17: 2170 | FK17: 1000 | FL17: 1000 | FM17: 1574.94 | FN17: 0 | FO17: 0 | FP17: 5000 | FQ17: 0 | FR17: 1100 | FS17: 0 | FT17: 0 | FU17: 150 | FV17: 0 | FW17: 0 | FX17: 0 | FY17: 500 | FZ17: 70378.08 | GA17: 500 | GB17: 70878.08 | GC17: 58383.14 | GD17: 2170 | GE17: 1000 | GF17: 1000 | GG17: 1574.94 | GH17: 0 | GI17: 0 | GJ17: 5000 | GK17: 0 | GL17: 1100 | GM17: 0 | GN17: 0 | GO17: 150 | GP17: 0 | GQ17: 1800 | GR17: 1500 | GS17: 500 | GT17: 72178.08 | GU17: 2000 | GV17: 74178.08 | GW17: 58383.14 | GX17: 2170 | GY17: 1000 | GZ17: 1000 | HA17: 1574.94 | HB17: 0 | HC17: 0 | HD17: 5000 | HE17: 0 | HF17: 1100 | HG17: 0 | HH17: 0 | HI17: 150 | HJ17: 0 | HK17: 0 | HL17: 0 | HM17: 500 | HN17: 70378.08 | HO17: 500 | HP17: 70878.08 | HQ17: 58383.14 | HR17: 2170 | HS17: 1000 | HT17: 1000 | HU17: 1574.94 | HV17: 0 | HW17: 0 | HX17: 5000 | HY17: 0 | HZ17: 1100 | IA17: 0 | IB17: 0 | IC17: 150 | ID17: 0 | IE17: 0 | IF17: 0 | IG17: 500 | IH17: 70378.08 | II17: 500 | IJ17: 70878.08 | IK17: 58383.14 | IL17: 2170 | IM17: 1000 | IN17: 1000 | IO17: 1574.94 | IP17: 0 | IQ17: 0 | IR17: 5000 | IS17: 0 | IT17: 1100 | IU17: 0 | IV17: 0 | IW17: 150 | IX17: 0 | IY17: 0 | IZ17: 0 | JA17: 500 | JB17: 70378.08 | JC17: 500 | JD17: 70878.08 | JE17: 58383.14 | JF17: 2170 | JG17: 1000 | JH17: 1000 | JI17: 1574.94 | JJ17: 0 | JK17: 0 | JL17: 5000 | JM17: 0 | JN17: 1100 | JO17: 0 | JP17: 0 | JQ17: 150 | JR17: 0 | JS17: 0 | JT17: 0 | JU17: 500 | JV17: 70378.08 | JW17: 500 | JX17: 70878.08 | JY17: 58383.14 | JZ17: 2170 | KA17: 1000 | KB17: 1000 | KC17: 1574.94 | KD17: 0 | KE17: 0 | KF17: 5000 | KG17: 0 | KH17: 1100 | KI17: 0 | KJ17: 0 | KK17: 150 | KL17: 0 | KM17: 0 | KN17: 0 | KO17: 500 | KP17: 70378.08 | KQ17: 500 | KR17: 70878.08 | KS17: 58383.14 | KT17: 2170 | KU17: 1000 | KV17: 1000 | KW17: 1574.94 | KX17: 0 | KY17: 0 | KZ17: 5000 | LA17: 0 | LB17: 1100 | LC17: 0 | LD17: 0 | LE17: 150 | LF17: 0 | LG17: 0 | LH17: 0 | LI17: 500 | LJ17: 70378.08 | LK17: 500 | LL17: 70878.08 | LM17: 58383.14 | LN17: 2170 | LO17: 1000 | LP17: 1000 | LQ17: 1574.94 | LR17: 0 | LS17: 0 | LT17: 5000 | LU17: 0 | LV17: 1100 | LW17: 0 | LX17: 0 | LY17: 150 | LZ17: 0 | MA17: 0 | MB17: 0 | MC17: 500 | MD17: 70378.08 | ME17: 500 | MF17: 70878.08 | MG17: 84386.33 | MH17: 2170 | MI17: 1000 | MJ17: 1000 | MK17: 1574.94 | ML17: 0 | MM17: 0 | MN17: 5000 | MO17: 0 | MP17: 1100 | MQ17: 0 | MR17: 0 | MS17: 150 | MT17: 0 | MU17: 0 | MV17: 0 | MW17: 500 | MX17: 96381.27 | MY17: 500 | MZ17: 96881.27 | NA17: 09/2017-SE | NB17: 2017-01-02 | NC17: 2017-12-31 | ND17: 458272.6 | NE17: 177/2017-SE | NF17: Primeiro | NG17: 2017-06-06 | NH17: 2017-12-31 | NI17: 0 | NJ17: 379/2017-SE | NK17: Segundo | NL17: 2017-11-07 | NM17: 2017-12-31 | NN17: 8000 | NO17: 392/2017-SE | NP17: Terceiro | NQ17: 2017-12-22 | NR17: 2017-12-31 | NS17: 3555.41 | NT17: 184/2018-SE | NU17: Quarto | NV17: 2018-01-01 | NW17: 2018-12-31 | NX17: 731908.08 | NY17: 189/2019-SE | NZ17: Quinto | OA17: 2019-01-02 | OB17: 2019-12-31 | OC17: 814546.11 | OD17: 411/2019-SE | OE17: Sexto | OF17: 2019-12-27 | OG17: 2020-12-31 | OH17: 848637.1 | OI17: 15/2021-SE | OJ17: Oitavo | OK17: 2021-01-01 | OL17: 2021-12-31 | OM17: 942153.34 | ON17: 15/2021-SE | OO17: Oitavo | OP17: 2021-01-01 | OQ17: 2021-12-31 | OR17: 942153.34
A18: 17 | B18: Creche Jesus de Nazareth I | G18: Creche Jesus de Nazareth I | H18: 04.796.871/0001-14 | I18: SB 038154/2020-48 | J18: SB.085095/2020-73 | K18: SB 085208/2019-73 | L18: 10/2017-SE | N18: 16/2021-SE | O18: Sétimo | P18: 2021-01-27 | Q18: 2021-01-01 | R18: 2021-12-31 | S18: Rua Rita Mendes de Oliveira, nº 419 | T18: Jardim das Orquídeas | U18: S.B.Campo | V18: 09854-310 | W18: 4358-3006 e 4358-2298 | X18: crechejesusdenazarethum@gmail.com | Y18: Nerina Rubino | Z18: 2017 a 2020 | AA18: Banco do Brasil | AB18: 1561-x | AD18: 42564-8 | AI18: 112 | AJ18: 6 | AK18: 112 | AL18: 6 | AM18: 732.27 | AN18: 585.76 | AO18: 0 | AP18: 65605.12 | AQ18: 65605.12 | AR18: 787261.44 | AT18: 57317.89 | AU18: 60183.79 | AV18: 54930.88 | AW18: 0 | AX18: 8287.23 | AY18: 0 | AZ18: 5421.33 | BA18: 0 | BB18: 787261.44 | BD18: 54930.88 | BE18: 34000 | BH18: 1800 | BI18: 1500 | BJ18: 1980 | BL18: 0 | BM18: 877992.32 | BN18: 3480 | BO18: 881472.32 | BP18: 110070.56 | BQ18: 1980 | BR18: 112050.56 | BS18: 82605.12 | BT18: 0 | BU18: 82605.12 | BV18: 65605.12 | BW18: 0 | BX18: 65605.12 | BY18: 67405.12 | BZ18: 1500 | CA18: 68905.12 | CB18: 65605.12 | CC18: 0 | CD18: 65605.12 | CE18: 65605.12 | CF18: 0 | CG18: 65605.12 | CH18: 65605.12 | CI18: 0 | CJ18: 65605.12 | CK18: 65605.12 | CL18: 0 | CM18: 65605.12 | CN18: 65605.12 | CO18: 0 | CP18: 65605.12 | CQ18: 65605.12 | CR18: 0 | CS18: 65605.12 | CT18: 65605.12 | CU18: 0 | CV18: 65605.12 | CW18: 93070.56 | CX18: 0 | CY18: 93070.56 | CZ18: 771404.56 | DA18: 44000 | DB18: 3700 | DC18: 700 | DD18: 1400 | DE18: 200 | DF18: 200 | DG18: 5947.76 | DH18: 1500 | DI18: 0 | DJ18: 34000 | DK18: 12540 | DL18: 600 | DM18: 0 | DN18: 1800 | DO18: 1500 | DP18: 1980 | DQ18: 877992.32 | DR18: 3480 | DS18: 881472.32 | DU18: 84783.33 | DV18: 4500 | DW18: 350 | DX18: 200 | DY18: 450 | DZ18: 100 | EA18: 100 | EB18: 992.23 | EC18: 500 | ED18: 0 | EE18: 17000 | EF18: 1045 | EG18: 50 | EH18: 0 | EI18: 0 | EJ18: 0 | EK18: 1980 | EL18: 110070.56 | EM18: 1980 | EN18: 112050.56 | EO18: 57317.89 | EP18: 4500 | EQ18: 350 | ER18: 200 | ES18: 450 | ET18: 100 | EU18: 100 | EV18: 992.23 | EW18: 500 | EX18: 0 | EY18: 17000 | EZ18: 1045 | FA18: 50 | FB18: 0 | FC18: 0 | FD18: 0 | FE18: 0 | FF18: 82605.12 | FG18: 0 | FH18: 82605.12 | FI18: 60183.79 | FJ18: 3500 | FK18: 300 | FL18: 30 | FM18: 50 | FN18: 0 | FO18: 0 | FP18: 396.33 | FQ18: 50 | FR18: 0 | FS18: 0 | FT18: 1045 | FU18: 50 | FV18: 0 | FW18: 0 | FX18: 0 | FY18: 0 | FZ18: 65605.12 | GA18: 0 | GB18: 65605.12 | GC18: 60183.79 | GD18: 3500 | GE18: 300 | GF18: 30 | GG18: 50 | GH18: 0 | GI18: 0 | GJ18: 396.33 | GK18: 50 | GL18: 0 | GM18: 0 | GN18: 1045 | GO18: 50 | GP18: 0 | GQ18: 1800 | GR18: 1500 | GS18: 0 | GT18: 67405.12 | GU18: 1500 | GV18: 68905.12 | GW18: 60183.79 | GX18: 3500 | GY18: 300 | GZ18: 30 | HA18: 50 | HB18: 0 | HC18: 0 | HD18: 396.33 | HE18: 50 | HF18: 0 | HG18: 0 | HH18: 1045 | HI18: 50 | HJ18: 0 | HK18: 0 | HL18: 0 | HM18: 0 | HN18: 65605.12 | HO18: 0 | HP18: 65605.12 | HQ18: 60183.79 | HR18: 3500 | HS18: 300 | HT18: 30 | HU18: 50 | HV18: 0 | HW18: 0 | HX18: 396.33 | HY18: 50 | HZ18: 0 | IA18: 0 | IB18: 1045 | IC18: 50 | ID18: 0 | IE18: 0 | IF18: 0 | IG18: 0 | IH18: 65605.12 | II18: 0 | IJ18: 65605.12 | IK18: 60183.79 | IL18: 3500 | IM18: 300 | IN18: 30 | IO18: 50 | IP18: 0 | IQ18: 0 | IR18: 396.33 | IS18: 50 | IT18: 0 | IU18: 0 | IV18: 1045 | IW18: 50 | IX18: 0 | IY18: 0 | IZ18: 0 | JA18: 0 | JB18: 65605.12 | JC18: 0 | JD18: 65605.12 | JE18: 60183.79 | JF18: 3500 | JG18: 300 | JH18: 30 | JI18: 50 | JJ18: 0 | JK18: 0 | JL18: 396.33 | JM18: 50 | JN18: 0 | JO18: 0 | JP18: 1045 | JQ18: 50 | JR18: 0 | JS18: 0 | JT18: 0 | JU18: 0 | JV18: 65605.12 | JW18: 0 | JX18: 65605.12 | JY18: 60183.79 | JZ18: 3500 | KA18: 300 | KB18: 30 | KC18: 50 | KD18: 0 | KE18: 0 | KF18: 396.33 | KG18: 50 | KH18: 0 | KI18: 0 | KJ18: 1045 | KK18: 50 | KL18: 0 | KM18: 0 | KN18: 0 | KO18: 0 | KP18: 65605.12 | KQ18: 0 | KR18: 65605.12 | KS18: 60183.79 | KT18: 3500 | KU18: 300 | KV18: 30 | KW18: 50 | KX18: 0 | KY18: 0 | KZ18: 396.33 | LA18: 50 | LB18: 0 | LC18: 0 | LD18: 1045 | LE18: 50 | LF18: 0 | LG18: 0 | LH18: 0 | LI18: 0 | LJ18: 65605.12 | LK18: 0 | LL18: 65605.12 | LM18: 60183.79 | LN18: 3500 | LO18: 300 | LP18: 30 | LQ18: 50 | LR18: 0 | LS18: 0 | LT18: 396.33 | LU18: 50 | LV18: 0 | LW18: 0 | LX18: 1045 | LY18: 50 | LZ18: 0 | MA18: 0 | MB18: 0 | MC18: 0 | MD18: 65605.12 | ME18: 0 | MF18: 65605.12 | MG18: 87649.23 | MH18: 3500 | MI18: 300 | MJ18: 30 | MK18: 50 | ML18: 0 | MM18: 0 | MN18: 396.33 | MO18: 50 | MP18: 0 | MQ18: 0 | MR18: 1045 | MS18: 50 | MT18: 0 | MU18: 0 | MV18: 0 | MW18: 0 | MX18: 93070.56 | MY18: 0 | MZ18: 93070.56 | NA18: 10/2017-SE | NB18: 2017-01-02 | NC18: 2017-12-31 | ND18: 703688.98 | NE18: 178/2017-SE | NF18: Primeiro | NG18: 2017-06-06 | NH18: 2017-12-31 | NI18: 0 | NJ18: 380/2017-SE | NK18: Segundo | NL18: 2017-11-07 | NM18: 2017-12-31 | NN18: 8000 | NO18: 185/2018-SE | NP18: Terceiro | NQ18: 2018-01-01 | NR18: 2018-12-31 | NS18: 770970.08 | NT18: 190/2019-SE | NU18: Quarto | NV18: 2019-01-02 | NW18: 2019-12-31 | NX18: 839656.28 | NY18: 412/2019-SE | NZ18: Quinto | OA18: 2019-12-27 | OB18: 2020-12-31 | OC18: 883101.73 | OD18: 0 | OE18: Sexto | OI18: 16/2021-SE | OJ18: Sétimo | OK18: 2021-01-01 | OL18: 2021-12-31 | OM18: 881472.32
A19: 18 | B19: Creche Jesus de Nazareth II | G19: Creche Jesus de Nazareth II | H19: 55.061.378/0001-97 | I19: SB 038157/2020-21 | J19: SB.085097/2020-95 | K19: SB 085211/2019-82 | L19: 11/2017-SE | N19: 17/2021-SE | O19: Sétimo | P19: 2021-01-27 | Q19: 2021-01-01 | R19: 2021-12-31 | S19: Rua Elizabeth Lobo Garcia, 1315 | T19: Jardim Las Palmas | U19: S.B.Campo | V19: 09850-130 | W19: 4357-9481 | X19: crechenazarethdois@gmail.com | Y19: Nerina Rubino | Z19: 2017 a 2020 | AA19: Banco do Brasil | AB19: 1561-x | AD19: 42566-4 | AG19: 14 | AH19: 1 | AI19: 136 | AJ19: 6 | AK19: 150 | AL19: 7 | AM19: 732.27 | AN19: 585.76 | AO19: 10251.78 | AP19: 79663.36 | AQ19: 89915.14 | AR19: 1078981.68 | AT19: 78339.07 | AU19: 82256.02 | AV19: 74073.1 | AW19: 0 | AX19: 11576.07 | AY19: 0 | AZ19: 7659.12 | BA19: 0 | BB19: 1078981.68 | BD19: 74073.1 | BE19: 34000 | BH19: 1800 | BI19: 1500 | BJ19: 2310 | BL19: 0 | BM19: 1188854.78 | BN19: 3810 | BO19: 1192664.78 | BP19: 143951.69 | BQ19: 2310 | BR19: 146261.69 | BS19: 106915.14 | BT19: 0 | BU19: 106915.14 | BV19: 89915.14 | BW19: 0 | BX19: 89915.14 | BY19: 91715.14 | BZ19: 1500 | CA19: 93215.14 | CB19: 89915.14 | CC19: 0 | CD19: 89915.14 | CE19: 89915.14 | CF19: 0 | CG19: 89915.14 | CH19: 89915.14 | CI19: 0 | CJ19: 89915.14 | CK19: 89915.14 | CL19: 0 | CM19: 89915.14 | CN19: 89915.14 | CO19: 0 | CP19: 89915.14 | CQ19: 89915.14 | CR19: 0 | CS19: 89915.14 | CT19: 89915.14 | CU19: 0 | CV19: 89915.14 | CW19: 126951.69 | CX19: 0 | CY19: 126951.69 | CZ19: 1053311.44 | DA19: 49600 | DB19: 3200 | DC19: 7862.14 | DD19: 4341.2 | DE19: 400 | DF19: 600 | DG19: 17400 | DH19: 3200 | DI19: 0 | DJ19: 34000 | DK19: 12540 | DL19: 600 | DM19: 0 | DN19: 1800 | DO19: 1500 | DP19: 2310 | DQ19: 1188854.78 | DR19: 3810 | DS19: 1192664.78 | DU19: 115375.62 | DV19: 5050 | DW19: 600 | DX19: 1431.07 | DY19: 600 | DZ19: 200 | EA19: 300 | EB19: 1700 | EC19: 600 | ED19: 0 | EE19: 17000 | EF19: 1045 | EG19: 50 | EH19: 0 | EI19: 0 | EJ19: 0 | EK19: 2310 | EL19: 143951.69 | EM19: 2310 | EN19: 146261.69 | EO19: 78339.07 | EP19: 5050 | EQ19: 600 | ER19: 1431.07 | ES19: 600 | ET19: 200 | EU19: 300 | EV19: 1700 | EW19: 600 | EX19: 0 | EY19: 17000 | EZ19: 1045 | FA19: 50 | FB19: 0 | FC19: 0 | FD19: 0 | FE19: 0 | FF19: 106915.14 | FG19: 0 | FH19: 106915.14 | FI19: 82256.02 | FJ19: 3950 | FK19: 200 | FL19: 500 | FM19: 314.12 | FN19: 0 | FO19: 0 | FP19: 1400 | FQ19: 200 | FR19: 0 | FS19: 0 | FT19: 1045 | FU19: 50 | FV19: 0 | FW19: 0 | FX19: 0 | FY19: 0 | FZ19: 89915.14 | GA19: 0 | GB19: 89915.14 | GC19: 82256.02 | GD19: 3950 | GE19: 200 | GF19: 500 | GG19: 314.12 | GH19: 0 | GI19: 0 | GJ19: 1400 | GK19: 200 | GL19: 0 | GM19: 0 | GN19: 1045 | GO19: 50 | GP19: 0 | GQ19: 1800 | GR19: 1500 | GS19: 0 | GT19: 91715.14 | GU19: 1500 | GV19: 93215.14 | GW19: 82256.02 | GX19: 3950 | GY19: 200 | GZ19: 500 | HA19: 314.12 | HB19: 0 | HC19: 0 | HD19: 1400 | HE19: 200 | HF19: 0 | HG19: 0 | HH19: 1045 | HI19: 50 | HJ19: 0 | HK19: 0 | HL19: 0 | HM19: 0 | HN19: 89915.14 | HO19: 0 | HP19: 89915.14 | HQ19: 82256.02 | HR19: 3950 | HS19: 200 | HT19: 500 | HU19: 314.12 | HV19: 0 | HW19: 0 | HX19: 1400 | HY19: 200 | HZ19: 0 | IA19: 0 | IB19: 1045 | IC19: 50 | ID19: 0 | IE19: 0 | IF19: 0 | IG19: 0 | IH19: 89915.14 | II19: 0 | IJ19: 89915.14 | IK19: 82256.02 | IL19: 3950 | IM19: 200 | IN19: 500 | IO19: 314.12 | IP19: 0 | IQ19: 0 | IR19: 1400 | IS19: 200 | IT19: 0 | IU19: 0 | IV19: 1045 | IW19: 50 | IX19: 0 | IY19: 0 | IZ19: 0 | JA19: 0 | JB19: 89915.14 | JC19: 0 | JD19: 89915.14 | JE19: 82256.02 | JF19: 3950 | JG19: 200 | JH19: 500 | JI19: 314.12 | JJ19: 0 | JK19: 0 | JL19: 1400 | JM19: 200 | JN19: 0 | JO19: 0 | JP19: 1045 | JQ19: 50 | JR19: 0 | JS19: 0 | JT19: 0 | JU19: 0 | JV19: 89915.14 | JW19: 0 | JX19: 89915.14 | JY19: 82256.02 | JZ19: 3950 | KA19: 200 | KB19: 500 | KC19: 314.12 | KD19: 0 | KE19: 0 | KF19: 1400 | KG19: 200 | KH19: 0 | KI19: 0 | KJ19: 1045 | KK19: 50 | KL19: 0 | KM19: 0 | KN19: 0 | KO19: 0 | KP19: 89915.14 | KQ19: 0 | KR19: 89915.14 | KS19: 82256.02 | KT19: 3950 | KU19: 200 | KV19: 500 | KW19: 314.12 | KX19: 0 | KY19: 0 | KZ19: 1400 | LA19: 200 | LB19: 0 | LC19: 0 | LD19: 1045 | LE19: 50 | LF19: 0 | LG19: 0 | LH19: 0 | LI19: 0 | LJ19: 89915.14 | LK19: 0 | LL19: 89915.14 | LM19: 82256.02 | LN19: 3950 | LO19: 200 | LP19: 500 | LQ19: 314.12 | LR19: 0 | LS19: 0 | LT19: 1400 | LU19: 200 | LV19: 0 | LW19: 0 | LX19: 1045 | LY19: 50 | LZ19: 0 | MA19: 0 | MB19: 0 | MC19: 0 | MD19: 89915.14 | ME19: 0 | MF19: 89915.14 | MG19: 119292.57 | MH19: 3950 | MI19: 200 | MJ19: 500 | MK19: 314.12 | ML19: 0 | MM19: 0 | MN19: 1400 | MO19: 200 | MP19: 0 | MQ19: 0 | MR19: 1045 | MS19: 50 | MT19: 0 | MU19: 0 | MV19: 0 | MW19: 0 | MX19: 126951.69 | MY19: 0 | MZ19: 126951.69 | NA19: 11/2017-SE | NB19: 2017-01-02 | NC19: 2017-12-31 | ND19: 946440.98 | NE19: 179/2017-SE | NF19: Primeiro | NG19: 2017-06-06 | NH19: 2017-12-31 | NI19: 0 | NJ19: 381/2017-SE | NK19: Segundo | NL19: 2017-11-07 | NM19: 2017-12-31 | NN19: 8000 | NO19: 186/2018-SE | NP19: Terceiro | NQ19: 2018-01-01 | NR19: 2018-12-31 | NS19: 1061061.78 | NT19: 191/2019-SE | NU19: Quarto | NV19: 2019-01-02 | NW19: 2019-12-31 | NX19: 1137380.27 | NY19: 413/2019-SE | NZ19: Quinto | OA19: 2019-12-27 | OB19: 2020-12-31 | OC19: 1193202.76 | OD19: 0 | OE19: Sexto | OI19: 17/2021-SE | OJ19: Sétimo | OK19: 2021-01-01 | OL19: 2021-12-31 | OM19: 1192664.78
A20: 19 | B20: Espaço Solidário Associação Assistencial I | G20: Espaço Solidário I | H20: 05.943.589/0001-85 | I20: SB 038163/2020-13 | J20: SB.085100/2020-21 | K20: SB 085234/2019-27 | L20: 07/2019-SE | N20: 18/2021-SE | O20: Terceiro | P20: 2021-01-26 | Q20: 2021-01-01 | R20: 2021-12-31 | S20: Avenida Barão de Mauá (Ch. Inglesa), nº 523 | T20: Centro | U20: S.B.Campo | V20: 09726-000 | W20: 3705-8277 | X20: espaço.solidario@uol.com.br | Y20: Luiz Augusto Borges | Z20: 01/06/2020 a 31/05/2023 | AA20: Caixa Econômica Federal | AB20: 4362 | AC20: 003 | AD20: 524-4 | AI20: 80 | AJ20: 5 | AK20: 80 | AL20: 5 | AM20: 732.27 | AN20: 585.76 | AO20: 0 | AP20: 46860.8 | AQ20: 46860.8 | AR20: 562329.6 | AT20: 43770.67 | AU20: 45959.22 | AV20: 39368.57 | AW20: 5071.96 | AX20: 3090.13 | AY20: 0 | AZ20: 901.58 | BA20: 0 | BB20: 562329.6 | BD20: 39368.57 | BE20: 34000 | BH20: 1800 | BI20: 1500 | BJ20: 1650 | BL20: 60863.52 | BM20: 698361.69 | BN20: 3150 | BO20: 701511.69 | BP20: 88617.05 | BQ20: 1650 | BR20: 90267.05 | BS20: 68932.76 | BT20: 0 | BU20: 68932.76 | BV20: 51932.76 | BW20: 0 | BX20: 51932.76 | BY20: 36159.96 | BZ20: 1500 | CA20: 37659.96 | CB20: 51932.76 | CC20: 0 | CD20: 51932.76 | CE20: 51932.76 | CF20: 0 | CG20: 51932.76 | CH20: 51932.76 | CI20: 0 | CJ20: 51932.76 | CK20: 51932.76 | CL20: 0 | CM20: 51932.76 | CN20: 51932.76 | CO20: 0 | CP20: 51932.76 | CQ20: 51932.76 | CR20: 0 | CS20: 51932.76 | CT20: 51932.76 | CU20: 0 | CV20: 51932.76 | CW20: 71617.04 | CX20: 0 | CY20: 71617.04 | CZ20: 586502.11 | DA20: 10815.8 | DB20: 1200 | DC20: 1200 | DD20: 500 | DE20: 0 | DF20: 0 | DG20: 1280.26 | DH20: 0 | DI20: 0 | DJ20: 34000 | DK20: 0 | DL20: 200 | DM20: 60863.52 | DN20: 1800 | DO20: 1500 | DP20: 1650 | DQ20: 698361.69 | DR20: 3150 | DS20: 701511.69 | DU20: 63454.96 | DV20: 900 | DW20: 600 | DX20: 600 | DY20: 250 | DZ20: 0 | EA20: 0 | EB20: 640.13 | EC20: 0 | ED20: 0 | EE20: 17000 | EF20: 0 | EG20: 100 | EH20: 5071.96 | EI20: 0 | EJ20: 0 | EK20: 1650 | EL20: 88617.05 | EM20: 1650 | EN20: 90267.05 | EO20: 43770.67 | EP20: 900 | EQ20: 600 | ER20: 600 | ES20: 250 | ET20: 0 | EU20: 0 | EV20: 640.13 | EW20: 0 | EX20: 0 | EY20: 17000 | EZ20: 0 | FA20: 100 | FB20: 5071.96 | FC20: 0 | FD20: 0 | FE20: 0 | FF20: 68932.76 | FG20: 0 | FH20: 68932.76 | FI20: 45959.22 | FJ20: 901.58 | FK20: 0 | FL20: 0 | FM20: 0 | FN20: 0 | FO20: 0 | FP20: 0 | FQ20: 0 | FR20: 0 | FS20: 0 | FT20: 0 | FU20: 0 | FV20: 5071.96 | FW20: 0 | FX20: 0 | FY20: 0 | FZ20: 51932.76 | GA20: 0 | GB20: 51932.76 | GC20: 28386.42 | GD20: 901.58 | GE20: 0 | GF20: 0 | GG20: 0 | GH20: 0 | GI20: 0 | GJ20: 0 | GK20: 0 | GL20: 0 | GM20: 0 | GN20: 0 | GO20: 0 | GP20: 5071.96 | GQ20: 1800 | GR20: 1500 | GS20: 0 | GT20: 36159.96 | GU20: 1500 | GV20: 37659.96 | GW20: 45959.22 | GX20: 901.58 | GY20: 0 | GZ20: 0 | HA20: 0 | HB20: 0 | HC20: 0 | HD20: 0 | HE20: 0 | HF20: 0 | HG20: 0 | HH20: 0 | HI20: 0 | HJ20: 5071.96 | HK20: 0 | HL20: 0 | HM20: 0 | HN20: 51932.76 | HO20: 0 | HP20: 51932.76 | HQ20: 45959.22 | HR20: 901.58 | HS20: 0 | HT20: 0 | HU20: 0 | HV20: 0 | HW20: 0 | HX20: 0 | HY20: 0 | HZ20: 0 | IA20: 0 | IB20: 0 | IC20: 0 | ID20: 5071.96 | IE20: 0 | IF20: 0 | IG20: 0 | IH20: 51932.76 | II20: 0 | IJ20: 51932.76 | IK20: 45959.22 | IL20: 901.58 | IM20: 0 | IN20: 0 | IO20: 0 | IP20: 0 | IQ20: 0 | IR20: 0 | IS20: 0 | IT20: 0 | IU20: 0 | IV20: 0 | IW20: 0 | IX20: 5071.96 | IY20: 0 | IZ20: 0 | JA20: 0 | JB20: 51932.76 | JC20: 0 | JD20: 51932.76 | JE20: 45959.22 | JF20: 901.58 | JG20: 0 | JH20: 0 | JI20: 0 | JJ20: 0 | JK20: 0 | JL20: 0 | JM20: 0 | JN20: 0 | JO20: 0 | JP20: 0 | JQ20: 0 | JR20: 5071.96 | JS20: 0 | JT20: 0 | JU20: 0 | JV20: 51932.76 | JW20: 0 | JX20: 51932.76 | JY20: 45959.22 | JZ20: 901.58 | KA20: 0 | KB20: 0 | KC20: 0 | KD20: 0 | KE20: 0 | KF20: 0 | KG20: 0 | KH20: 0 | KI20: 0 | KJ20: 0 | KK20: 0 | KL20: 5071.96 | KM20: 0 | KN20: 0 | KO20: 0 | KP20: 51932.76 | KQ20: 0 | KR20: 51932.76 | KS20: 45959.22 | KT20: 901.58 | KU20: 0 | KV20: 0 | KW20: 0 | KX20: 0 | KY20: 0 | KZ20: 0 | LA20: 0 | LB20: 0 | LC20: 0 | LD20: 0 | LE20: 0 | LF20: 5071.96 | LG20: 0 | LH20: 0 | LI20: 0 | LJ20: 51932.76 | LK20: 0 | LL20: 51932.76 | LM20: 45959.22 | LN20: 901.58 | LO20: 0 | LP20: 0 | LQ20: 0 | LR20: 0 | LS20: 0 | LT20: 0 | LU20: 0 | LV20: 0 | LW20: 0 | LX20: 0 | LY20: 0 | LZ20: 5071.96 | MA20: 0 | MB20: 0 | MC20: 0 | MD20: 51932.76 | ME20: 0 | MF20: 51932.76 | MG20: 65643.5 | MH20: 901.58 | MI20: 0 | MJ20: 0 | MK20: 0 | ML20: 0 | MM20: 0 | MN20: 0 | MO20: 0 | MP20: 0 | MQ20: 0 | MR20: 0 | MS20: 0 | MT20: 5071.96 | MU20: 0 | MV20: 0 | MW20: 0 | MX20: 71617.04 | MY20: 0 | MZ20: 71617.04 | NA20: 07/2019-SE | NB20: 2019-05-31 | NC20: 2019-12-31 | ND20: 456798.5 | NE20: 415/2019-SE | NF20: Primeiro | NG20: 2019-12-27 | NH20: 2020-12-31 | NI20: 703726.72 | NK20: Segundo | NO20: 18/2021-SE | NP20: Terceiro | NQ20: 2021-01-01 | NR20: 2021-12-31 | NS20: 701511.69
A21: 20 | B21: Espaço Solidário Associação Assistencial II | G21: Espaço Solidário II | H21: 28.106.724/0001-33 | I21: SB 038169/2020-79 | J21: SB.085101/2020-82 | K21: SB 019177/2020-37 | L21: 14/2019-SE | N21: 19/2021-SE | O21: Segundo | P21: 2021-01-26 | Q21: 2021-01-01 | R21: 2021-12-31 | S21: Rua dos Vianas, 413 | T21: Baeta Neves | U21: S.B.Campo | V21: 09760-280 | W21: 3705-8177 | X21: espaço.solidario@uol.com.br | Y21: Luiz Augusto Borges | Z21: 01/06/2020 a 31/05/2023 | AA21: Caixa Econômica Federal | AB21: 4362 | AC21: 003 | AD21: 568-6 | AG21: 14 | AH21: 1 | AI21: 172 | AJ21: 10 | AK21: 186 | AL21: 11 | AM21: 732.27 | AN21: 585.76 | AO21: 10251.78 | AP21: 100750.72 | AQ21: 111002.5 | AR21: 1332030 | AT21: 89829.86 | AU21: 94321.35 | AV21: 80362 | AW21: 10702.98 | AX21: 15302.98 | AY21: 5869.66 | AZ21: 16681.15 | BA21: 0 | BB21: 1332030 | BD21: 80362 | BE21: 34000 | BH21: 1800 | BI21: 1500 | BJ21: 3630 | BL21: 128435.76 | BM21: 1564888.44 | BN21: 16869.32 | BO21: 1581757.76 | BP21: 173016.82 | BQ21: 9499.66 | BR21: 182516.48 | BS21: 132835.82 | BT21: 5869.66 | BU21: 138705.48 | BV21: 121705.48 | BW21: 0 | BX21: 121705.48 | BY21: 123505.48 | BZ21: 1500 | CA21: 125005.48 | CB21: 121705.48 | CC21: 0 | CD21: 121705.48 | CE21: 121705.48 | CF21: 0 | CG21: 121705.48 | CH21: 121705.48 | CI21: 0 | CJ21: 121705.48 | CK21: 121705.48 | CL21: 0 | CM21: 121705.48 | CN21: 121705.48 | CO21: 0 | CP21: 121705.48 | CQ21: 121705.48 | CR21: 0 | CS21: 121705.48 | CT21: 121705.48 | CU21: 0 | CV21: 121705.48 | CW21: 161886.48 | CX21: 0 | CY21: 161886.48 | CZ21: 1203235.22 | DA21: 36000 | DB21: 26000 | DC21: 27811.5 | DD21: 22000 | DE21: 10200 | DF21: 0 | DG21: 36000 | DH21: 0 | DI21: 26405.96 | DJ21: 34000 | DK21: 11800 | DL21: 1200 | DM21: 128435.76 | DN21: 1800 | DO21: 1500 | DP21: 15369.32 | DQ21: 1564888.44 | DR21: 16869.32 | DS21: 1581757.76 | DU21: 130010.86 | DV21: 3000 | DW21: 3000 | DX21: 1000 | DY21: 1000 | DZ21: 600 | EA21: 0 | EB21: 3000 | EC21: 0 | ED21: 2702.98 | EE21: 17000 | EF21: 900 | EG21: 100 | EH21: 10702.98 | EI21: 0 | EJ21: 0 | EK21: 9499.66 | EL21: 173016.82 | EM21: 9499.66 | EN21: 182516.48 | EO21: 89829.86 | EP21: 3000 | EQ21: 3000 | ER21: 1000 | ES21: 1000 | ET21: 600 | EU21: 0 | EV21: 3000 | EW21: 0 | EX21: 2702.98 | EY21: 17000 | EZ21: 900 | FA21: 100 | FB21: 10702.98 | FC21: 0 | FD21: 0 | FE21: 5869.66 | FF21: 132835.82 | FG21: 5869.66 | FH21: 138705.48 | FI21: 94321.35 | FJ21: 3000 | FK21: 2000 | FL21: 2581.15 | FM21: 2000 | FN21: 900 | FO21: 0 | FP21: 3000 | FQ21: 0 | FR21: 2100 | FS21: 0 | FT21: 1000 | FU21: 100 | FV21: 10702.98 | FW21: 0 | FX21: 0 | FY21: 0 | FZ21: 121705.48 | GA21: 0 | GB21: 121705.48 | GC21: 94321.35 | GD21: 3000 | GE21: 2000 | GF21: 2581.15 | GG21: 2000 | GH21: 900 | GI21: 0 | GJ21: 3000 | GK21: 0 | GL21: 2100 | GM21: 0 | GN21: 1000 | GO21: 100 | GP21: 10702.98 | GQ21: 1800 | GR21: 1500 | GS21: 0 | GT21: 123505.48 | GU21: 1500 | GV21: 125005.48 | GW21: 94321.35 | GX21: 3000 | GY21: 2000 | GZ21: 2581.15 | HA21: 2000 | HB21: 900 | HC21: 0 | HD21: 3000 | HE21: 0 | HF21: 2100 | HG21: 0 | HH21: 1000 | HI21: 100 | HJ21: 10702.98 | HK21: 0 | HL21: 0 | HM21: 0 | HN21: 121705.48 | HO21: 0 | HP21: 121705.48 | HQ21: 94321.35 | HR21: 3000 | HS21: 2000 | HT21: 2581.15 | HU21: 2000 | HV21: 900 | HW21: 0 | HX21: 3000 | HY21: 0 | HZ21: 2100 | IA21: 0 | IB21: 1000 | IC21: 100 | ID21: 10702.98 | IE21: 0 | IF21: 0 | IG21: 0 | IH21: 121705.48 | II21: 0 | IJ21: 121705.48 | IK21: 94321.35 | IL21: 3000 | IM21: 2000 | IN21: 2581.15 | IO21: 2000 | IP21: 900 | IQ21: 0 | IR21: 3000 | IS21: 0 | IT21: 2100 | IU21: 0 | IV21: 1000 | IW21: 100 | IX21: 10702.98 | IY21: 0 | IZ21: 0 | JA21: 0 | JB21: 121705.48 | JC21: 0 | JD21: 121705.48 | JE21: 94321.35 | JF21: 3000 | JG21: 2000 | JH21: 2581.15 | JI21: 2000 | JJ21: 900 | JK21: 0 | JL21: 3000 | JM21: 0 | JN21: 2100 | JO21: 0 | JP21: 1000 | JQ21: 100 | JR21: 10702.98 | JS21: 0 | JT21: 0 | JU21: 0 | JV21: 121705.48 | JW21: 0 | JX21: 121705.48 | JY21: 94321.35 | JZ21: 3000 | KA21: 2000 | KB21: 2581.15 | KC21: 2000 | KD21: 900 | KE21: 0 | KF21: 3000 | KG21: 0 | KH21: 2100 | KI21: 0 | KJ21: 1000 | KK21: 100 | KL21: 10702.98 | KM21: 0 | KN21: 0 | KO21: 0 | KP21: 121705.48 | KQ21: 0 | KR21: 121705.48 | KS21: 94321.35 | KT21: 3000 | KU21: 2000 | KV21: 2581.15 | KW21: 2000 | KX21: 900 | KY21: 0 | KZ21: 3000 | LA21: 0 | LB21: 2100 | LC21: 0 | LD21: 1000 | LE21: 100 | LF21: 10702.98 | LG21: 0 | LH21: 0 | LI21: 0 | LJ21: 121705.48 | LK21: 0 | LL21: 121705.48 | LM21: 94321.35 | LN21: 3000 | LO21: 2000 | LP21: 2581.15 | LQ21: 2000 | LR21: 900 | LS21: 0 | LT21: 3000 | LU21: 0 | LV21: 2100 | LW21: 0 | LX21: 1000 | LY21: 100 | LZ21: 10702.98 | MA21: 0 | MB21: 0 | MC21: 0 | MD21: 121705.48 | ME21: 0 | MF21: 121705.48 | MG21: 134502.35 | MH21: 3000 | MI21: 2000 | MJ21: 2581.15 | MK21: 2000 | ML21: 900 | MM21: 0 | MN21: 3000 | MO21: 0 | MP21: 2100 | MQ21: 0 | MR21: 1000 | MS21: 100 | MT21: 10702.98 | MU21: 0 | MV21: 0 | MW21: 0 | MX21: 161886.48 | MY21: 0 | MZ21: 161886.48 | NA21: 14/2019-SE | NB21: 2019-11-21 | NC21: 2020-12-31 | ND21: 1723245.96 | NF21: Primeiro | NJ21: 19/2021-SE | NK21: Segundo | NL21: 2021-01-01 | NM21: 2021-12-31 | NN21: 1581757.76
A22: 21 | B22: Espaço Solidário Associação Assistencial III | G22: Espaço Solidário III | H22: 11.202.466/0001-96 | I22: SB.016439/2021-49 | J22: SB.030691/2021-87 | L22: 03/2021-SE | P22: 2021-03-26 | Q22: 2021-03-26 | R22: 2021-12-31 | S22: Rua Dom Vasco Mascarenhas, 163 | T22: Jardim Silvina | U22: S.B.Campo | V22: 09791-140 | X22: espaço.solidario@uol.com.br | Y22: Luiz Augusto Borges | Z22: 01/06/2020 a 31/05/2023 | AA22: Caixa Econômica Federal | AB22: 4362 | AC22: 003 | AD22: 00000681-0 | AG22: 12 | AH22: 1 | AI22: 69 | AJ22: 4 | AK22: 81 | AL22: 5 | AM22: 732.27 | AN22: 585.76 | AO22: 8787.24 | AP22: 40417.44 | AQ22: 49204.68 | AR22: 447762.9 | AT22: 2096.19 | AU22: 43885.4 | AV22: 37605.5 | AW22: 6991.59 | AX22: 2759.7 | AY22: 64.89 | AZ22: 4759.7 | BA22: 559.58 | BB22: 447762.9 | BD22: 37605.5 | BE22: 34000 | BF22: 17216 | BG22: 21490 | BH22: 1800 | BI22: 1500 | BJ22: 1650 | BL22: 69915.9 | BM22: 603199.19 | BN22: 29741.11 | BO22: 632940.3 | BP22: 0 | BQ22: 0 | BR22: 0 | BS22: 0 | BT22: 0 | BU22: 0 | BV22: 63063.48 | BW22: 23204.89 | BX22: 86268.37 | BY22: 36405.22 | BZ22: 2059.58 | CA22: 38464.8 | CB22: 55636.69 | CC22: 559.58 | CD22: 56196.27 | CE22: 55636.69 | CF22: 559.58 | CG22: 56196.27 | CH22: 55636.69 | CI22: 559.58 | CJ22: 56196.27 | CK22: 55636.69 | CL22: 559.58 | CM22: 56196.27 | CN22: 55636.69 | CO22: 559.58 | CP22: 56196.27 | CQ22: 55636.69 | CR22: 559.58 | CS22: 56196.27 | CT22: 55636.69 | CU22: 559.58 | CV22: 56196.27 | CW22: 74439.44 | CX22: 559.58 | CY22: 74999.02 | DQ22: 0 | DR22: 0 | DS22: 0 | DU22: 0 | DV22: 0 | DW22: 0 | DX22: 0 | DY22: 0 | DZ22: 0 | EA22: 0 | EB22: 0 | EC22: 0 | ED22: 0 | EE22: 0 | EF22: 0 | EG22: 0 | EH22: 0 | EI22: 0 | EJ22: 0 | EK22: 0 | EL22: 0 | EM22: 0 | EN22: 0 | EO22: 0 | EP22: 0 | EQ22: 0 | ER22: 0 | ES22: 0 | ET22: 0 | EU22: 0 | EV22: 0 | EW22: 0 | EX22: 0 | EY22: 0 | EZ22: 0 | FA22: 0 | FB22: 0 | FC22: 0 | FD22: 0 | FE22: 0 | FF22: 0 | FG22: 0 | FH22: 0 | FI22: 2096.19 | FJ22: 959.7 | FK22: 0 | FL22: 0 | FM22: 500 | FN22: 0 | FO22: 0 | FP22: 17216 | FQ22: 0 | FR22: 1200 | FS22: 34000 | FT22: 0 | FU22: 100 | FV22: 6991.59 | FW22: 0 | FX22: 0 | FY22: 23204.89 | FZ22: 63063.48 | GA22: 23204.89 | GB22: 86268.37 | GC22: 22853.93 | GD22: 959.7 | GE22: 1000 | GF22: 1000 | GG22: 500 | GH22: 0 | GI22: 0 | GJ22: 0 | GK22: 0 | GL22: 1200 | GM22: 0 | GN22: 0 | GO22: 100 | GP22: 6991.59 | GQ22: 1800 | GR22: 1500 | GS22: 559.58 | GT22: 36405.22 | GU22: 2059.58 | GV22: 38464.8 | GW22: 43885.4 | GX22: 959.7 | GY22: 1000 | GZ22: 1000 | HA22: 500 | HB22: 0 | HC22: 0 | HD22: 0 | HE22: 0 | HF22: 1200 | HG22: 0 | HH22: 0 | HI22: 100 | HJ22: 6991.59 | HK22: 0 | HL22: 0 | HM22: 559.58 | HN22: 55636.69 | HO22: 559.58 | HP22: 56196.27 | HQ22: 43885.4 | HR22: 959.7 | HS22: 1000 | HT22: 1000 | HU22: 500 | HV22: 0 | HW22: 0 | HX22: 0 | HY22: 0 | HZ22: 1200 | IA22: 0 | IB22: 0 | IC22: 100 | ID22: 6991.59 | IE22: 0 | IF22: 0 | IG22: 559.58 | IH22: 55636.69 | II22: 559.58 | IJ22: 56196.27 | IK22: 43885.4 | IL22: 959.7 | IM22: 1000 | IN22: 1000 | IO22: 500 | IP22: 0 | IQ22: 0 | IR22: 0 | IS22: 0 | IT22: 1200 | IU22: 0 | IV22: 0 | IW22: 100 | IX22: 6991.59 | IY22: 0 | IZ22: 0 | JA22: 559.58 | JB22: 55636.69 | JC22: 559.58 | JD22: 56196.27 | JE22: 43885.4 | JF22: 959.7 | JG22: 1000 | JH22: 1000 | JI22: 500 | JJ22: 0 | JK22: 0 | JL22: 0 | JM22: 0 | JN22: 1200 | JO22: 0 | JP22: 0 | JQ22: 100 | JR22: 6991.59 | JS22: 0 | JT22: 0 | JU22: 559.58 | JV22: 55636.69 | JW22: 559.58 | JX22: 56196.27 | JY22: 43885.4 | JZ22: 959.7 | KA22: 1000 | KB22: 1000 | KC22: 500 | KD22: 0 | KE22: 0 | KF22: 0 | KG22: 0 | KH22: 1200 | KI22: 0 | KJ22: 0 | KK22: 100 | KL22: 6991.59 | KM22: 0 | KN22: 0 | KO22: 559.58 | KP22: 55636.69 | KQ22: 559.58 | KR22: 56196.27 | KS22: 43885.4 | KT22: 959.7 | KU22: 1000 | KV22: 1000 | KW22: 500 | KX22: 0 | KY22: 0 | KZ22: 0 | LA22: 0 | LB22: 1200 | LC22: 0 | LD22: 0 | LE22: 100 | LF22: 6991.59 | LG22: 0 | LH22: 0 | LI22: 559.58 | LJ22: 55636.69 | LK22: 559.58 | LL22: 56196.27 | LM22: 43885.4 | LN22: 959.7 | LO22: 1000 | LP22: 1000 | LQ22: 500 | LR22: 0 | LS22: 0 | LT22: 0 | LU22: 0 | LV22: 1200 | LW22: 0 | LX22: 0 | LY22: 100 | LZ22: 6991.59 | MA22: 0 | MB22: 0 | MC22: 559.58 | MD22: 55636.69 | ME22: 559.58 | MF22: 56196.27 | MG22: 62688.15 | MH22: 959.7 | MI22: 1000 | MJ22: 1000 | MK22: 500 | ML22: 0 | MM22: 0 | MN22: 0 | MO22: 0 | MP22: 1200 | MQ22: 0 | MR22: 0 | MS22: 100 | MT22: 6991.59 | MU22: 0 | MV22: 0 | MW22: 559.58 | MX22: 74439.44 | MY22: 559.58 | MZ22: 74999.02 | NA22: 03/2021-SE | NB22: 2021-03-26 | NC22: 2021-12-31 | ND22: 632940.3
A23: 22 | B23: Fraterno Associação Assistencial I | G23: Fraterno I | H23: 04.159.293/0001-05 | I23: SB 038171/2020-27 | J23: SB.085102/2020-43 | K23: SB 085241/2019-70 | L23: 01/2018-SE | N23: 20/2021-SE | O23: Quarto | P23: 2021-01-26 | Q23: 2021-01-01 | R23: 2021-12-31 | S23: Rua Sétimo Guazelli, nº 99 | T23: Jardim Trieste | U23: S.B.Campo | V23: 09760-600 | W23: 4330-1712 | X23: crechefraterno@gmail.com | Y23: José Reis Filho | Z23: 01/01/2021 a 31/12/2022 | AA23: Caixa Econômica Federal | AB23: 0346 | AC23: 003 | AD23: 3823-3 | AG23: 24 | AH23: 2 | AI23: 136 | AJ23: 7 | AK23: 160 | AL23: 9 | AM23: 732.27 | AN23: 585.76 | AO23: =AM23*AG23 -> 17574.48 | AP23: =AI23*AN23 -> 79663.36 | AQ23: =AO23+AP23 -> 97237.84 | AR23: =AQ23*12 -> 1166854.08 | AT23: 89976.86 | AU23: 94475.7 | AV23: 82428.83 | AW23: 0 | AX23: 10445.38 | AY23: 1500 | AZ23: 7446.54 | BA23: 0 | BB23: 1223066.88 | BD23: 82428.83 | BE23: 34000 | BH23: 1800 | BI23: 1500 | BJ23: 2970 | BL23: 0 | BM23: 1338295.71 | BN23: 7470 | BO23: 1345765.71 | BP23: 158636.66 | BQ23: 4470 | BR23: 163106.66 | BS23: 117422.24 | BT23: 1500 | BU23: 118922.24 | BV23: 101922.24 | BW23: 0 | BX23: 101922.24 | BY23: 80584.72 | BZ23: 1500 | CA23: 82084.72 | CB23: 101922.24 | CC23: 0 | CD23: 101922.24 | CE23: 101922.24 | CF23: 0 | CG23: 101922.24 | CH23: 101922.24 | CI23: 0 | CJ23: 101922.24 | CK23: 101922.24 | CL23: 0 | CM23: 101922.24 | CN23: 101922.24 | CO23: 0 | CP23: 101922.24 | CQ23: 101922.24 | CR23: 0 | CS23: 101922.24 | CT23: 101922.24 | CU23: 0 | CV23: 101922.24 | CW23: 143136.65 | CX23: 0 | CY23: 143136.65 | CZ23: 1207139.55 | DA23: 48400.16 | DB23: 1800 | DC23: 2700 | DD23: 2400 | DE23: 700 | DF23: 500 | DG23: 22000 | DH23: 0 | DI23: 2000 | DJ23: 34000 | DK23: 13056 | DL23: 1800 | DM23: 0 | DN23: 1800 | DO23: 1500 | DP23: 5970 | DQ23: 1338295.71 | DR23: 7470 | DS23: 1345765.71 | DU23: 131191.28 | DV23: 4032.38 | DW23: 400 | DX23: 725 | DY23: 700 | DZ23: 225 | EA23: 125 | EB23: 2000 | EC23: 0 | ED23: 1000 | EE23: 17000 | EF23: 1088 | EG23: 150 | EH23: 0 | EI23: 0 | EJ23: 0 | EK23: 4470 | EL23: 158636.66 | EM23: 4470 | EN23: 163106.66 | EO23: 89976.86 | EP23: 4032.38 | EQ23: 400 | ER23: 725 | ES23: 700 | ET23: 225 | EU23: 125 | EV23: 2000 | EW23: 0 | EX23: 1000 | EY23: 17000 | EZ23: 1088 | FA23: 150 | FB23: 0 | FC23: 0 | FD23: 0 | FE23: 1500 | FF23: 117422.24 | FG23: 1500 | FH23: 118922.24 | FI23: 94475.7 | FJ23: 4033.54 | FK23: 100 | FL23: 125 | FM23: 100 | FN23: 25 | FO23: 25 | FP23: 1800 | FQ23: 0 | FR23: 0 | FS23: 0 | FT23: 1088 | FU23: 150 | FV23: 0 | FW23: 0 | FX23: 0 | FY23: 0 | FZ23: 101922.24 | GA23: 0 | GB23: 101922.24 | GC23: 71338.18 | GD23: 4033.54 | GE23: 100 | GF23: 125 | GG23: 100 | GH23: 25 | GI23: 25 | GJ23: 1800 | GK23: 0 | GL23: 0 | GM23: 0 | GN23: 1088 | GO23: 150 | GP23: 0 | GQ23: 1800 | GR23: 1500 | GS23: 0 | GT23: 80584.72 | GU23: 1500 | GV23: 82084.72 | GW23: 94475.7 | GX23: 4033.54 | GY23: 100 | GZ23: 125 | HA23: 100 | HB23: 25 | HC23: 25 | HD23: 1800 | HE23: 0 | HF23: 0 | HG23: 0 | HH23: 1088 | HI23: 150 | HJ23: 0 | HK23: 0 | HL23: 0 | HM23: 0 | HN23: 101922.24 | HO23: 0 | HP23: 101922.24 | HQ23: 94475.7 | HR23: 4033.54 | HS23: 100 | HT23: 125 | HU23: 100 | HV23: 25 | HW23: 25 | HX23: 1800 | HY23: 0 | HZ23: 0 | IA23: 0 | IB23: 1088 | IC23: 150 | ID23: 0 | IE23: 0 | IF23: 0 | IG23: 0 | IH23: 101922.24 | II23: 0 | IJ23: 101922.24 | IK23: 94475.7 | IL23: 4033.54 | IM23: 100 | IN23: 125 | IO23: 100 | IP23: 25 | IQ23: 25 | IR23: 1800 | IS23: 0 | IT23: 0 | IU23: 0 | IV23: 1088 | IW23: 150 | IX23: 0 | IY23: 0 | IZ23: 0 | JA23: 0 | JB23: 101922.24 | JC23: 0 | JD23: 101922.24 | JE23: 94475.7 | JF23: 4033.54 | JG23: 100 | JH23: 125 | JI23: 100 | JJ23: 25 | JK23: 25 | JL23: 1800 | JM23: 0 | JN23: 0 | JO23: 0 | JP23: 1088 | JQ23: 150 | JR23: 0 | JS23: 0 | JT23: 0 | JU23: 0 | JV23: 101922.24 | JW23: 0 | JX23: 101922.24 | JY23: 94475.7 | JZ23: 4033.54 | KA23: 100 | KB23: 125 | KC23: 100 | KD23: 25 | KE23: 25 | KF23: 1800 | KG23: 0 | KH23: 0 | KI23: 0 | KJ23: 1088 | KK23: 150 | KL23: 0 | KM23: 0 | KN23: 0 | KO23: 0 | KP23: 101922.24 | KQ23: 0 | KR23: 101922.24 | KS23: 94475.7 | KT23: 4033.54 | KU23: 100 | KV23: 125 | KW23: 100 | KX23: 25 | KY23: 25 | KZ23: 1800 | LA23: 0 | LB23: 0 | LC23: 0 | LD23: 1088 | LE23: 150 | LF23: 0 | LG23: 0 | LH23: 0 | LI23: 0 | LJ23: 101922.24 | LK23: 0 | LL23: 101922.24 | LM23: 94475.7 | LN23: 4033.54 | LO23: 100 | LP23: 125 | LQ23: 100 | LR23: 25 | LS23: 25 | LT23: 1800 | LU23: 0 | LV23: 0 | LW23: 0 | LX23: 1088 | LY23: 150 | LZ23: 0 | MA23: 0 | MB23: 0 | MC23: 0 | MD23: 101922.24 | ME23: 0 | MF23: 101922.24 | MG23: 135690.11 | MH23: 4033.54 | MI23: 100 | MJ23: 125 | MK23: 100 | ML23: 25 | MM23: 25 | MN23: 1800 | MO23: 0 | MP23: 0 | MQ23: 0 | MR23: 1088 | MS23: 150 | MT23: 0 | MU23: 0 | MV23: 0 | MW23: 0 | MX23: 143136.65 | MY23: 0 | MZ23: 143136.65 | NA23: 01/2018-SE | NB23: 2018-01-01 | NC23: 2018-12-31 | ND23: 1249756.64 | NE23: 193/2019-SE | NF23: Primeiro | NG23: 2019-01-02 | NH23: 2019-12-31 | NI23: 1335815.18 | NJ23: 416/2019-SE | NK23: Segundo | NL23: 2019-12-27 | NM23: 2020-12-31 | NN23: 1349033.33 | NO23: 20/2021-SE | NP23: Quarto | NQ23: 2021-01-01 | NR23: 2021-12-31 | NS23: 1345765.71
A24: 23 | B24: Fraterno Associação Assistencial II | G24: Fraterno II | H24: 10.515.623/0001-50 | I24: SB 038174/2020-00 | J24: SB.085137/2020-36 | K24: SB 085245/2019-14 | L24: 13/2017-SE | N24: 21/2021-SE | O24: Oitavo | P24: 2021-01-26 | Q24: 2021-01-01 | R24: 2021-12-31 | S24: Estrada dos Alvarengas, 1422 | T24: Bairro Campestre | U24: S.B.Campo | V24: 09850-550 | W24: 4342-3000 / 2356-0340 | X24: crechefraterno2@gmail.com | Y24: José Reis Filho | Z24: 01/01/2021 a 31/12/2022 | AA24: Caixa Econômica Federal | AB24: 4037 | AC24: 003 | AD24: 00002401-2 | AG24: 12 | AH24: 1 | AI24: 156 | AJ24: 7 | AK24: 168 | AL24: 8 | AM24: 732.27 | AN24: 585.76 | AO24: 8787.24 | AP24: 91378.56 | AQ24: 100165.8 | AR24: 1201989.6 | AT24: 86342.21 | AU24: 90659.32 | AV24: 76357.73 | AW24: 18644.07 | AX24: 11374.91 | AY24: 2448.68 | AZ24: 9395 | BA24: 111.48 | BB24: 1201989.6 | BD24: 76357.73 | BE24: 34000 | BH24: 1800 | BI24: 1500 | BJ24: 2640 | BL24: 223728.84 | BM24: 1531864.01 | BN24: 10152.16 | BO24: 1542016.17 | BP24: 171540.06 | BQ24: 5088.68 | BR24: 176628.74 | BS24: 133361.19 | BT24: 2448.68 | BU24: 135809.87 | BV24: 118698.39 | BW24: 111.48 | BX24: 118809.87 | BY24: 120498.39 | BZ24: 1611.48 | CA24: 122109.87 | CB24: 118698.39 | CC24: 111.48 | CD24: 118809.87 | CE24: 118698.39 | CF24: 111.48 | CG24: 118809.87 | CH24: 118698.39 | CI24: 111.48 | CJ24: 118809.87 | CK24: 118698.39 | CL24: 111.48 | CM24: 118809.87 | CN24: 118698.39 | CO24: 111.48 | CP24: 118809.87 | CQ24: 118698.39 | CR24: 111.48 | CS24: 118809.87 | CT24: 118698.39 | CU24: 111.48 | CV24: 118809.87 | CW24: 156877.25 | CX24: 111.48 | CY24: 156988.73 | CZ24: 1155635.35 | DA24: 42000 | DB24: 6400 | DC24: 6000 | DD24: 5959.82 | DE24: 0 | DF24: 0 | DG24: 30000 | DH24: 0 | DI24: 12000 | DJ24: 34000 | DK24: 12540 | DL24: 1800 | DM24: 223728.84 | DN24: 1800 | DO24: 1500 | DP24: 8652.16 | DQ24: 1531864.01 | DR24: 10152.16 | DS24: 1542016.17 | DU24: 124521.08 | DV24: 3500 | DW24: 1200 | DX24: 500 | DY24: 1479.91 | DZ24: 0 | EA24: 0 | EB24: 2500 | EC24: 0 | ED24: 1000 | EE24: 17000 | EF24: 1045 | EG24: 150 | EH24: 18644.07 | EI24: 0 | EJ24: 0 | EK24: 5088.68 | EL24: 171540.06 | EM24: 5088.68 | EN24: 176628.74 | EO24: 86342.21 | EP24: 3500 | EQ24: 1200 | ER24: 500 | ES24: 1479.91 | ET24: 0 | EU24: 0 | EV24: 2500 | EW24: 0 | EX24: 1000 | EY24: 17000 | EZ24: 1045 | FA24: 150 | FB24: 18644.07 | FC24: 0 | FD24: 0 | FE24: 2448.68 | FF24: 133361.19 | FG24: 2448.68 | FH24: 135809.87 | FI24: 90659.32 | FJ24: 3500 | FK24: 400 | FL24: 500 | FM24: 300 | FN24: 0 | FO24: 0 | FP24: 2500 | FQ24: 0 | FR24: 1000 | FS24: 0 | FT24: 1045 | FU24: 150 | FV24: 18644.07 | FW24: 0 | FX24: 0 | FY24: 111.48 | FZ24: 118698.39 | GA24: 111.48 | GB24: 118809.87 | GC24: 90659.32 | GD24: 3500 | GE24: 400 | GF24: 500 | GG24: 300 | GH24: 0 | GI24: 0 | GJ24: 2500 | GK24: 0 | GL24: 1000 | GM24: 0 | GN24: 1045 | GO24: 150 | GP24: 18644.07 | GQ24: 1800 | GR24: 1500 | GS24: 111.48 | GT24: 120498.39 | GU24: 1611.48 | GV24: 122109.87 | GW24: 90659.32 | GX24: 3500 | GY24: 400 | GZ24: 500 | HA24: 300 | HB24: 0 | HC24: 0 | HD24: 2500 | HE24: 0 | HF24: 1000 | HG24: 0 | HH24: 1045 | HI24: 150 | HJ24: 18644.07 | HK24: 0 | HL24: 0 | HM24: 111.48 | HN24: 118698.39 | HO24: 111.48 | HP24: 118809.87 | HQ24: 90659.32 | HR24: 3500 | HS24: 400 | HT24: 500 | HU24: 300 | HV24: 0 | HW24: 0 | HX24: 2500 | HY24: 0 | HZ24: 1000 | IA24: 0 | IB24: 1045 | IC24: 150 | ID24: 18644.07 | IE24: 0 | IF24: 0 | IG24: 111.48 | IH24: 118698.39 | II24: 111.48 | IJ24: 118809.87 | IK24: 90659.32 | IL24: 3500 | IM24: 400 | IN24: 500 | IO24: 300 | IP24: 0 | IQ24: 0 | IR24: 2500 | IS24: 0 | IT24: 1000 | IU24: 0 | IV24: 1045 | IW24: 150 | IX24: 18644.07 | IY24: 0 | IZ24: 0 | JA24: 111.48 | JB24: 118698.39 | JC24: 111.48 | JD24: 118809.87 | JE24: 90659.32 | JF24: 3500 | JG24: 400 | JH24: 500 | JI24: 300 | JJ24: 0 | JK24: 0 | JL24: 2500 | JM24: 0 | JN24: 1000 | JO24: 0 | JP24: 1045 | JQ24: 150 | JR24: 18644.07 | JS24: 0 | JT24: 0 | JU24: 111.48 | JV24: 118698.39 | JW24: 111.48 | JX24: 118809.87 | JY24: 90659.32 | JZ24: 3500 | KA24: 400 | KB24: 500 | KC24: 300 | KD24: 0 | KE24: 0 | KF24: 2500 | KG24: 0 | KH24: 1000 | KI24: 0 | KJ24: 1045 | KK24: 150 | KL24: 18644.07 | KM24: 0 | KN24: 0 | KO24: 111.48 | KP24: 118698.39 | KQ24: 111.48 | KR24: 118809.87 | KS24: 90659.32 | KT24: 3500 | KU24: 400 | KV24: 500 | KW24: 300 | KX24: 0 | KY24: 0 | KZ24: 2500 | LA24: 0 | LB24: 1000 | LC24: 0 | LD24: 1045 | LE24: 150 | LF24: 18644.07 | LG24: 0 | LH24: 0 | LI24: 111.48 | LJ24: 118698.39 | LK24: 111.48 | LL24: 118809.87 | LM24: 90659.32 | LN24: 3500 | LO24: 400 | LP24: 500 | LQ24: 300 | LR24: 0 | LS24: 0 | LT24: 2500 | LU24: 0 | LV24: 1000 | LW24: 0 | LX24: 1045 | LY24: 150 | LZ24: 18644.07 | MA24: 0 | MB24: 0 | MC24: 111.48 | MD24: 118698.39 | ME24: 111.48 | MF24: 118809.87 | MG24: 128838.18 | MH24: 3500 | MI24: 400 | MJ24: 500 | MK24: 300 | ML24: 0 | MM24: 0 | MN24: 2500 | MO24: 0 | MP24: 1000 | MQ24: 0 | MR24: 1045 | MS24: 150 | MT24: 18644.07 | MU24: 0 | MV24: 0 | MW24: 111.48 | MX24: 156877.25 | MY24: 111.48 | MZ24: 156988.73 | NA24: 13/2017-SE | NB24: 2017-01-02 | NC24: 2017-12-31 | ND24: 900284.9 | NE24: 181/2017-SE | NF24: Primeiro | NG24: 2017-06-06 | NH24: 2017-12-31 | NI24: 0 | NJ24: 383/2017-SE | NK24: Segundo | NL24: 2017-11-07 | NM24: 2017-12-31 | NN24: 8000 | NO24: 393/2017-SE | NP24: Terceiro | NQ24: 2017-12-21 | NR24: 2017-12-31 | NS24: 13907.07 | NT24: 188/2018-SE | NU24: Quarto | NV24: 2019-01-02 | NW24: 2018-12-31 | NX24: 1186097.15 | NY24: 194/2019-SE | NZ24: Quinto | OA24: 2019-01-02 | OB24: 2018-12-31 | OC24: 1465638.52 | OD24: 417/2019-SE | OE24: Sexto | OF24: 2019-12-27 | OG24: 2020-12-31 | OH24: 1543637.14 | OI24: 21/2021-SE | OJ24: Oitavo | OK24: 2021-01-01 | OL24: 2021-12-31 | OM24: 1542016.17 | ON24: 21/2021-SE | OO24: Oitavo | OP24: 2021-01-01 | OQ24: 2021-12-31 | OR24: 1542016.17
A25: 24 | B25: Instituição Assistencial e Educacional Jardim de Esperança | G25: Inst Assist Educ Jardim de Esperança | H25: 00.665.728/0001-32 | I25: SB 038177/2020-83 | J25: SB.085140/2020-45 | K25: SB 085251/2019-06 | L25: 14/2017-SE | N25: 22/2021-SE | O25: Sétimo | P25: 2021-01-26 | Q25: 2021-01-01 | R25: 2021-12-31 | S25: Rua Eugênia Sá Vitale, nº 1120 | T25: Taboão | U25: S.B.Campo | V25: 09665-000 | W25: 4173-3230 | X25: presidencia@jardimdeesperanca.org.br | Y25: Vanderlei Roberto Rodrigues | Z25: 01/01/2020 a 31/12/2024 | AA25: Caixa Econômica Federal | AB25: 2203 | AC25: 003 | AD25: 00000927-3 | AG25: 12 | AH25: 1 | AI25: 108 | AJ25: 5 | AK25: 120 | AL25: 6 | AM25: 732.27 | AN25: 585.76 | AO25: 8787.24 | AP25: 63262.08 | AQ25: 72049.32 | AR25: 864591.84 | AT25: 63812.12 | AU25: 67002.73 | AV25: 56455.35 | AW25: 0 | AX25: 6637.2 | AY25: 1600 | AZ25: 4066.59 | BA25: 980 | BB25: 864591.84 | BD25: 56455.35 | BE25: 34000 | BH25: 1800 | BI25: 1500 | BJ25: 1980 | BL25: 0 | BM25: 943847.19 | BN25: 16480 | BO25: 960327.19 | BP25: 115677 | BQ25: 3580 | BR25: 119257 | BS25: 87449.32 | BT25: 1600 | BU25: 89049.32 | BV25: 71069.32 | BW25: 980 | BX25: 72049.32 | BY25: 72869.32 | BZ25: 2480 | CA25: 75349.32 | CB25: 71069.32 | CC25: 980 | CD25: 72049.32 | CE25: 71069.32 | CF25: 980 | CG25: 72049.32 | CH25: 71069.32 | CI25: 980 | CJ25: 72049.32 | CK25: 71069.32 | CL25: 980 | CM25: 72049.32 | CN25: 71069.32 | CO25: 980 | CP25: 72049.32 | CQ25: 71069.32 | CR25: 980 | CS25: 72049.32 | CT25: 71069.32 | CU25: 980 | CV25: 72049.32 | CW25: 99296.99 | CX25: 980 | CY25: 100276.99 | CZ25: 854106.89 | DA25: 12180 | DB25: 1620 | DC25: 1620 | DD25: 4060 | DE25: 1620 | DF25: 1620 | DG25: 4060 | DH25: 810 | DI25: 16650.3 | DJ25: 34000 | DK25: 8490 | DL25: 1210 | DM25: 0 | DN25: 1800 | DO25: 1500 | DP25: 14980 | DQ25: 943847.19 | DR25: 16480 | DS25: 960327.19 | DU25: 92039.8 | DV25: 1500 | DW25: 200 | DX25: 200 | DY25: 500 | DZ25: 200 | EA25: 200 | EB25: 500 | EC25: 100 | ED25: 2042.2 | EE25: 17000 | EF25: 1045 | EG25: 150 | EH25: 0 | EI25: 0 | EJ25: 0 | EK25: 3580 | EL25: 115677 | EM25: 3580 | EN25: 119257 | EO25: 63812.12 | EP25: 1500 | EQ25: 200 | ER25: 200 | ES25: 500 | ET25: 200 | EU25: 200 | EV25: 500 | EW25: 100 | EX25: 2042.2 | EY25: 17000 | EZ25: 1045 | FA25: 150 | FB25: 0 | FC25: 0 | FD25: 0 | FE25: 1600 | FF25: 87449.32 | FG25: 1600 | FH25: 89049.32 | FI25: 67002.73 | FJ25: 918 | FK25: 122 | FL25: 122 | FM25: 306 | FN25: 122 | FO25: 122 | FP25: 306 | FQ25: 61 | FR25: 1256.59 | FS25: 0 | FT25: 640 | FU25: 91 | FV25: 0 | FW25: 0 | FX25: 0 | FY25: 980 | FZ25: 71069.32 | GA25: 980 | GB25: 72049.32 | GC25: 67002.73 | GD25: 918 | GE25: 122 | GF25: 122 | GG25: 306 | GH25: 122 | GI25: 122 | GJ25: 306 | GK25: 61 | GL25: 1256.59 | GM25: 0 | GN25: 640 | GO25: 91 | GP25: 0 | GQ25: 1800 | GR25: 1500 | GS25: 980 | GT25: 72869.32 | GU25: 2480 | GV25: 75349.32 | GW25: 67002.73 | GX25: 918 | GY25: 122 | GZ25: 122 | HA25: 306 | HB25: 122 | HC25: 122 | HD25: 306 | HE25: 61 | HF25: 1256.59 | HG25: 0 | HH25: 640 | HI25: 91 | HJ25: 0 | HK25: 0 | HL25: 0 | HM25: 980 | HN25: 71069.32 | HO25: 980 | HP25: 72049.32 | HQ25: 67002.73 | HR25: 918 | HS25: 122 | HT25: 122 | HU25: 306 | HV25: 122 | HW25: 122 | HX25: 306 | HY25: 61 | HZ25: 1256.59 | IA25: 0 | IB25: 640 | IC25: 91 | ID25: 0 | IE25: 0 | IF25: 0 | IG25: 980 | IH25: 71069.32 | II25: 980 | IJ25: 72049.32 | IK25: 67002.73 | IL25: 918 | IM25: 122 | IN25: 122 | IO25: 306 | IP25: 122 | IQ25: 122 | IR25: 306 | IS25: 61 | IT25: 1256.59 | IU25: 0 | IV25: 640 | IW25: 91 | IX25: 0 | IY25: 0 | IZ25: 0 | JA25: 980 | JB25: 71069.32 | JC25: 980 | JD25: 72049.32 | JE25: 67002.73 | JF25: 918 | JG25: 122 | JH25: 122 | JI25: 306 | JJ25: 122 | JK25: 122 | JL25: 306 | JM25: 61 | JN25: 1256.59 | JO25: 0 | JP25: 640 | JQ25: 91 | JR25: 0 | JS25: 0 | JT25: 0 | JU25: 980 | JV25: 71069.32 | JW25: 980 | JX25: 72049.32 | JY25: 67002.73 | JZ25: 918 | KA25: 122 | KB25: 122 | KC25: 306 | KD25: 122 | KE25: 122 | KF25: 306 | KG25: 61 | KH25: 1256.59 | KI25: 0 | KJ25: 640 | KK25: 91 | KL25: 0 | KM25: 0 | KN25: 0 | KO25: 980 | KP25: 71069.32 | KQ25: 980 | KR25: 72049.32 | KS25: 67002.73 | KT25: 918 | KU25: 122 | KV25: 122 | KW25: 306 | KX25: 122 | KY25: 122 | KZ25: 306 | LA25: 61 | LB25: 1256.59 | LC25: 0 | LD25: 640 | LE25: 91 | LF25: 0 | LG25: 0 | LH25: 0 | LI25: 980 | LJ25: 71069.32 | LK25: 980 | LL25: 72049.32 | LM25: 67002.73 | LN25: 918 | LO25: 122 | LP25: 122 | LQ25: 306 | LR25: 122 | LS25: 122 | LT25: 306 | LU25: 61 | LV25: 1256.59 | LW25: 0 | LX25: 640 | LY25: 91 | LZ25: 0 | MA25: 0 | MB25: 0 | MC25: 980 | MD25: 71069.32 | ME25: 980 | MF25: 72049.32 | MG25: 95230.4 | MH25: 918 | MI25: 122 | MJ25: 122 | MK25: 306 | ML25: 122 | MM25: 122 | MN25: 306 | MO25: 61 | MP25: 1256.59 | MQ25: 0 | MR25: 640 | MS25: 91 | MT25: 0 | MU25: 0 | MV25: 0 | MW25: 980 | MX25: 99296.99 | MY25: 980 | MZ25: 100276.99 | NA25: 14/2017-SE | NB25: 2017-01-02 | NC25: 2017-12-31 | ND25: 691376.22 | NE25: 182/2017-SE | NF25: Primeiro | NG25: 2017-06-06 | NH25: 2017-12-31 | NI25: 0 | NJ25: 384/2017-SE | NK25: Segundo | NL25: 2017-11-07 | NM25: 2017-12-31 | NN25: 8000 | NO25: 189/2018-SE | NP25: Terceiro | NQ25: 2018-01-01 | NR25: 2018-12-31 | NS25: 763691.48 | NT25: 195/2019-SE | NU25: Quarto | NV25: 2019-01-02 | NW25: 2019-12-31 | NX25: 810375.44 | NY25: 418/2019-SE | NZ25: Quinto | OA25: 2019-12-27 | OB25: 2020-12-31 | OC25: 1003908.64 | OD25: 22/2021-SE | OE25: Sexto | OF25: 2021-01-01 | OG25: 2021-12-31
A26: 25 | B26: Instituto Dom Décio Pereira I | G26: Inst Dom Décio Pereira I | H26: 06.317.404/0001-90 | I26: SB 038180/2020-92 | J26: SB.085145/2020-40 | K26: SB 085254/2019-89 | L26: 15/2017-SE | N26: 23/2021-SE | O26: Sétimo | P26: 2021-01-26 | Q26: 2021-01-01 | R26: 2021-12-31 | S26: Av. General Barreto de Menezes, 366 | T26: Jd. Silvina | U26: S.B.Campo | V26: 09791-150 | W26: 4338-3737 | X26: diretoria@institutodomdecio.org.br; crecheangela@institutodomdecio.org.br | Y26: Odair Ângelo Agostin | Z26: 13/05/2018 a 12/05/2022 | AA26: Banco do Brasil | AB26: 427-8 | AD26: 64429-3 | AI26: 83 | AJ26: 4 | AK26: 83 | AL26: 4 | AM26: 732.27 | AN26: 585.76 | AO26: 0 | AP26: 48618.08 | AQ26: 48618.08 | AR26: 583416.96 | AT26: 42805.55 | AU26: 44945.83 | AV26: 39059.29 | AW26: 6800 | AX26: 5512.53 | AY26: 300 | AZ26: 3372.25 | BA26: 300 | BB26: 583416.96 | BD26: 39059.29 | BE26: 34000 | BH26: 1800 | BI26: 1500 | BJ26: 1320 | BL26: 81600 | BM26: 736276.25 | BN26: 6420 | BO26: 742696.25 | BP26: 91647.73 | BQ26: 1620 | BR26: 93267.73 | BS26: 72118.08 | BT26: 300 | BU26: 72418.08 | BV26: 55118.08 | BW26: 300 | BX26: 55418.08 | BY26: 56918.08 | BZ26: 1800 | CA26: 58718.08 | CB26: 55118.08 | CC26: 300 | CD26: 55418.08 | CE26: 55118.08 | CF26: 300 | CG26: 55418.08 | CH26: 55118.08 | CI26: 300 | CJ26: 55418.08 | CK26: 55118.08 | CL26: 300 | CM26: 55418.08 | CN26: 55118.08 | CO26: 300 | CP26: 55418.08 | CQ26: 55118.08 | CR26: 300 | CS26: 55418.08 | CT26: 55118.08 | CU26: 300 | CV26: 55418.08 | CW26: 74647.72 | CX26: 300 | CY26: 74947.72 | CZ26: 574128.69 | DA26: 10600 | DB26: 3000 | DC26: 2442.5 | DD26: 1600 | DE26: 1400 | DF26: 3000 | DG26: 4349.06 | DH26: 1200 | DI26: 3000 | DJ26: 34000 | DK26: 13056 | DL26: 1100 | DM26: 81600 | DN26: 1800 | DO26: 1500 | DP26: 4920 | DQ26: 736276.25 | DR26: 6420 | DS26: 742696.25 | DU26: 62335.2 | DV26: 1300 | DW26: 500 | DX26: 300 | DY26: 300 | DZ26: 200 | EA26: 500 | EB26: 674.53 | EC26: 100 | ED26: 500 | EE26: 17000 | EF26: 1088 | EG26: 50 | EH26: 6800 | EI26: 0 | EJ26: 0 | EK26: 1620 | EL26: 91647.73 | EM26: 1620 | EN26: 93267.73 | EO26: 42805.55 | EP26: 1300 | EQ26: 500 | ER26: 300 | ES26: 300 | ET26: 200 | EU26: 500 | EV26: 674.53 | EW26: 100 | EX26: 500 | EY26: 17000 | EZ26: 1088 | FA26: 50 | FB26: 6800 | FC26: 0 | FD26: 0 | FE26: 300 | FF26: 72118.08 | FG26: 300 | FH26: 72418.08 | FI26: 44945.83 | FJ26: 800 | FK26: 200 | FL26: 184.25 | FM26: 100 | FN26: 100 | FO26: 200 | FP26: 300 | FQ26: 100 | FR26: 200 | FS26: 0 | FT26: 1088 | FU26: 100 | FV26: 6800 | FW26: 0 | FX26: 0 | FY26: 300 | FZ26: 55118.08 | GA26: 300 | GB26: 55418.08 | GC26: 44945.83 | GD26: 800 | GE26: 200 | GF26: 184.25 | GG26: 100 | GH26: 100 | GI26: 200 | GJ26: 300 | GK26: 100 | GL26: 200 | GM26: 0 | GN26: 1088 | GO26: 100 | GP26: 6800 | GQ26: 1800 | GR26: 1500 | GS26: 300 | GT26: 56918.08 | GU26: 1800 | GV26: 58718.08 | GW26: 44945.83 | GX26: 800 | GY26: 200 | GZ26: 184.25 | HA26: 100 | HB26: 100 | HC26: 200 | HD26: 300 | HE26: 100 | HF26: 200 | HG26: 0 | HH26: 1088 | HI26: 100 | HJ26: 6800 | HK26: 0 | HL26: 0 | HM26: 300 | HN26: 55118.08 | HO26: 300 | HP26: 55418.08 | HQ26: 44945.83 | HR26: 800 | HS26: 200 | HT26: 184.25 | HU26: 100 | HV26: 100 | HW26: 200 | HX26: 300 | HY26: 100 | HZ26: 200 | IA26: 0 | IB26: 1088 | IC26: 100 | ID26: 6800 | IE26: 0 | IF26: 0 | IG26: 300 | IH26: 55118.08 | II26: 300 | IJ26: 55418.08 | IK26: 44945.83 | IL26: 800 | IM26: 200 | IN26: 184.25 | IO26: 100 | IP26: 100 | IQ26: 200 | IR26: 300 | IS26: 100 | IT26: 200 | IU26: 0 | IV26: 1088 | IW26: 100 | IX26: 6800 | IY26: 0 | IZ26: 0 | JA26: 300 | JB26: 55118.08 | JC26: 300 | JD26: 55418.08 | JE26: 44945.83 | JF26: 800 | JG26: 200 | JH26: 184.25 | JI26: 100 | JJ26: 100 | JK26: 200 | JL26: 300 | JM26: 100 | JN26: 200 | JO26: 0 | JP26: 1088 | JQ26: 100 | JR26: 6800 | JS26: 0 | JT26: 0 | JU26: 300 | JV26: 55118.08 | JW26: 300 | JX26: 55418.08 | JY26: 44945.83 | JZ26: 800 | KA26: 200 | KB26: 184.25 | KC26: 100 | KD26: 100 | KE26: 200 | KF26: 300 | KG26: 100 | KH26: 200 | KI26: 0 | KJ26: 1088 | KK26: 100 | KL26: 6800 | KM26: 0 | KN26: 0 | KO26: 300 | KP26: 55118.08 | KQ26: 300 | KR26: 55418.08 | KS26: 44945.83 | KT26: 800 | KU26: 200 | KV26: 184.25 | KW26: 100 | KX26: 100 | KY26: 200 | KZ26: 300 | LA26: 100 | LB26: 200 | LC26: 0 | LD26: 1088 | LE26: 100 | LF26: 6800 | LG26: 0 | LH26: 0 | LI26: 300 | LJ26: 55118.08 | LK26: 300 | LL26: 55418.08 | LM26: 44945.83 | LN26: 800 | LO26: 200 | LP26: 184.25 | LQ26: 100 | LR26: 100 | LS26: 200 | LT26: 300 | LU26: 100 | LV26: 200 | LW26: 0 | LX26: 1088 | LY26: 100 | LZ26: 6800 | MA26: 0 | MB26: 0 | MC26: 300 | MD26: 55118.08 | ME26: 300 | MF26: 55418.08 | MG26: 64475.47 | MH26: 800 | MI26: 200 | MJ26: 184.25 | MK26: 100 | ML26: 100 | MM26: 200 | MN26: 300 | MO26: 100 | MP26: 200 | MQ26: 0 | MR26: 1088 | MS26: 100 | MT26: 6800 | MU26: 0 | MV26: 0 | MW26: 300 | MX26: 74647.72 | MY26: 300 | MZ26: 74947.72 | NA26: 15/2017-SE | NB26: 2017-01-02 | NC26: 2017-12-31 | ND26: 589373.4 | NE26: 183/2017-SE | NF26: Primeiro | NG26: 2017-06-06 | NH26: 2017-12-31 | NI26: 0 | NJ26: 385/2017-SE | NK26: Segundo | NL26: 2017-11-07 | NM26: 2017-12-31 | NN26: 8000 | NO26: 190/2018-SE | NP26: Terceiro | NQ26: 2018-01-01 | NR26: 2018-12-31 | NS26: 661728.44 | NT26: 196/2019-SE | NU26: Quarto | NV26: 2019-01-02 | NW26: 2019-12-31 | NX26: 712348.06 | NY26: 419/2019-SE | NZ26: Quinto | OA26: 2019-12-27 | OB26: 2020-12-31 | OC26: 744922.9 | OD26: 23/2021-SE | OE26: Sexto | OF26: 2021-01-01 | OG26: 2021-12-31
A27: 26 | B27: Instituto Dom Décio Pereira II | G27: Inst Dom Décio Pereira II | H27: 06.339.021/0001-12 | I27: SB 038182/2020-14 | J27: SB.085147/2020-62 | K27: SB 088148/2019-08 | L27: 16/2017-SE | N27: 24/2021-SE | O27: Oitavo | P27: 2021-01-27 | Q27: 2021-01-01 | R27: 2021-12-31 | S27: R. João Saldanha, 662 | T27: Pq. Los Angeles | U27: S.B.Campo | V27: 09842-200 | W27: 4342-1770 | X27: diretoria@institutodomdecio.org.br; crechelosangeles@institutodomdecio.org.br | Y27: Odair Ângelo Agostin | Z27: 13/05/2018 a 12/05/2022 | AA27: Banco do Brasil | AB27: 427-8 | AD27: 64430-7 | AI27: 68 | AJ27: 3 | AK27: 68 | AL27: 3 | AM27: 732.27 | AN27: 585.76 | AO27: 0 | AP27: 39831.68 | AQ27: 39831.68 | AR27: 477980.16 | AT27: 33513.85 | AU27: 35189.55 | AV27: 30971.82 | AW27: 3600 | AX27: 6117.83 | AY27: 200 | AZ27: 4442.13 | BA27: 200 | BB27: 477980.16 | BD27: 30971.82 | BE27: 34000 | BH27: 1800 | BI27: 1500 | BJ27: 990 | BL27: 43200 | BM27: 585551.98 | BN27: 4890 | BO27: 590441.98 | BP27: 75717.59 | BQ27: 1190 | BR27: 76907.59 | BS27: 60231.68 | BT27: 200 | BU27: 60431.68 | BV27: 43231.68 | BW27: 200 | BX27: 43431.68 | BY27: 45031.68 | BZ27: 1700 | CA27: 46731.68 | CB27: 43231.68 | CC27: 200 | CD27: 43431.68 | CE27: 43231.68 | CF27: 200 | CG27: 43431.68 | CH27: 43231.68 | CI27: 200 | CJ27: 43431.68 | CK27: 43231.68 | CL27: 200 | CM27: 43431.68 | CN27: 43231.68 | CO27: 200 | CP27: 43431.68 | CQ27: 43231.68 | CR27: 200 | CS27: 43431.68 | CT27: 43231.68 | CU27: 200 | CV27: 43431.68 | CW27: 58717.59 | CX27: 200 | CY27: 58917.59 | CZ27: 449895.02 | DA27: 14200 | DB27: 4400 | DC27: 3800 | DD27: 4220 | DE27: 2600 | DF27: 3974 | DG27: 5224 | DH27: 2621.3 | DI27: 1961.66 | DJ27: 34000 | DK27: 13056 | DL27: 600 | DM27: 43200 | DN27: 1800 | DO27: 1500 | DP27: 3390 | DQ27: 585551.98 | DR27: 4890 | DS27: 590441.98 | DU27: 48999.76 | DV27: 1600 | DW27: 700 | DX27: 400 | DY27: 400 | DZ27: 300 | EA27: 487 | EB27: 612 | EC27: 250 | ED27: 230.83 | EE27: 17000 | EF27: 1088 | EG27: 50 | EH27: 3600 | EI27: 0 | EJ27: 0 | EK27: 1190 | EL27: 75717.59 | EM27: 1190 | EN27: 76907.59 | EO27: 33513.85 | EP27: 1600 | EQ27: 700 | ER27: 400 | ES27: 400 | ET27: 300 | EU27: 487 | EV27: 612 | EW27: 250 | EX27: 230.83 | EY27: 17000 | EZ27: 1088 | FA27: 50 | FB27: 3600 | FC27: 0 | FD27: 0 | FE27: 200 | FF27: 60231.68 | FG27: 200 | FH27: 60431.68 | FI27: 35189.55 | FJ27: 1100 | FK27: 300 | FL27: 300 | FM27: 342 | FN27: 200 | FO27: 300 | FP27: 400 | FQ27: 212.13 | FR27: 150 | FS27: 0 | FT27: 1088 | FU27: 50 | FV27: 3600 | FW27: 0 | FX27: 0 | FY27: 200 | FZ27: 43231.68 | GA27: 200 | GB27: 43431.68 | GC27: 35189.55 | GD27: 1100 | GE27: 300 | GF27: 300 | GG27: 342 | GH27: 200 | GI27: 300 | GJ27: 400 | GK27: 212.13 | GL27: 150 | GM27: 0 | GN27: 1088 | GO27: 50 | GP27: 3600 | GQ27: 1800 | GR27: 1500 | GS27: 200 | GT27: 45031.68 | GU27: 1700 | GV27: 46731.68 | GW27: 35189.55 | GX27: 1100 | GY27: 300 | GZ27: 300 | HA27: 342 | HB27: 200 | HC27: 300 | HD27: 400 | HE27: 212.13 | HF27: 150 | HG27: 0 | HH27: 1088 | HI27: 50 | HJ27: 3600 | HK27: 0 | HL27: 0 | HM27: 200 | HN27: 43231.68 | HO27: 200 | HP27: 43431.68 | HQ27: 35189.55 | HR27: 1100 | HS27: 300 | HT27: 300 | HU27: 342 | HV27: 200 | HW27: 300 | HX27: 400 | HY27: 212.13 | HZ27: 150 | IA27: 0 | IB27: 1088 | IC27: 50 | ID27: 3600 | IE27: 0 | IF27: 0 | IG27: 200 | IH27: 43231.68 | II27: 200 | IJ27: 43431.68 | IK27: 35189.55 | IL27: 1100 | IM27: 300 | IN27: 300 | IO27: 342 | IP27: 200 | IQ27: 300 | IR27: 400 | IS27: 212.13 | IT27: 150 | IU27: 0 | IV27: 1088 | IW27: 50 | IX27: 3600 | IY27: 0 | IZ27: 0 | JA27: 200 | JB27: 43231.68 | JC27: 200 | JD27: 43431.68 | JE27: 35189.55 | JF27: 1100 | JG27: 300 | JH27: 300 | JI27: 342 | JJ27: 200 | JK27: 300 | JL27: 400 | JM27: 212.13 | JN27: 150 | JO27: 0 | JP27: 1088 | JQ27: 50 | JR27: 3600 | JS27: 0 | JT27: 0 | JU27: 200 | JV27: 43231.68 | JW27: 200 | JX27: 43431.68 | JY27: 35189.55 | JZ27: 1100 | KA27: 300 | KB27: 300 | KC27: 342 | KD27: 200 | KE27: 300 | KF27: 400 | KG27: 212.13 | KH27: 150 | KI27: 0 | KJ27: 1088 | KK27: 50 | KL27: 3600 | KM27: 0 | KN27: 0 | KO27: 200 | KP27: 43231.68 | KQ27: 200 | KR27: 43431.68 | KS27: 35189.55 | KT27: 1100 | KU27: 300 | KV27: 300 | KW27: 342 | KX27: 200 | KY27: 300 | KZ27: 400 | LA27: 212.13 | LB27: 150 | LC27: 0 | LD27: 1088 | LE27: 50 | LF27: 3600 | LG27: 0 | LH27: 0 | LI27: 200 | LJ27: 43231.68 | LK27: 200 | LL27: 43431.68 | LM27: 35189.55 | LN27: 1100 | LO27: 300 | LP27: 300 | LQ27: 342 | LR27: 200 | LS27: 300 | LT27: 400 | LU27: 212.13 | LV27: 150 | LW27: 0 | LX27: 1088 | LY27: 50 | LZ27: 3600 | MA27: 0 | MB27: 0 | MC27: 200 | MD27: 43231.68 | ME27: 200 | MF27: 43431.68 | MG27: 50675.46 | MH27: 1100 | MI27: 300 | MJ27: 300 | MK27: 342 | ML27: 200 | MM27: 300 | MN27: 400 | MO27: 212.13 | MP27: 150 | MQ27: 0 | MR27: 1088 | MS27: 50 | MT27: 3600 | MU27: 0 | MV27: 0 | MW27: 200 | MX27: 58717.59 | MY27: 200 | MZ27: 58917.59 | NA27: 16/2017-SE | NB27: 2017-01-02 | NC27: 2017-12-31 | ND27: 488884.72 | NE27: 184/2017-SE | NF27: Primeiro | NG27: 2017-06-06 | NH27: 2017-12-31 | NI27: 0 | NJ27: 386/2017-SE | NK27: Segundo | NL27: 2017-11-07 | NM27: 2017-12-31 | NN27: 8000 | NO27: 394/2018-SE | NP27: Terceiro | NQ27: 2017-12-22 | NR27: 2017-12-31 | NS27: 2344.2 | NT27: 191/2018-SE | NU27: Quarto | NV27: 2018-01-01 | NW27: 2018-12-31 | NX27: 520484.12 | NY27: 197/2019-SE | NZ27: Quinto | OA27: 2019-01-02 | OB27: 2019-12-31 | OC27: 563161.06 | OD27: 420/2019-SE | OE27: Sexto | OF27: 2019-12-27 | OG27: 2020-12-31 | OH27: 592973.69 | OI27: 24/2021-SE | OJ27: Oitavo | OK27: 2021-01-01 | OL27: 2021-12-31 | OM27: 590441.98 | ON27: 24/2021-SE | OO27: Oitavo | OP27: 2021-01-01 | OQ27: 2021-12-31 | OR27: 590441.98
A28: 27 | B28: Instituto Dom Décio Pereira III | G28: Inst Dom Décio Pereira III | H28: 43.339.068/0001-02 | I28: SB 038184/2020-36 | J28: SB.085148/2020-23 | K28: SB 088159/2019-95 | L28: 08/2019-SE | N28: 25/2021-SE | O28: Quarto | P28: 2021-01-27 | Q28: 2021-01-01 | R28: 2021-12-31 | S28: Rua Sétimo Guazzelli, nº 113 | T28: Baeta Neves | U28: S.B.Campo | V28: 09760-600 | W28: 4330-5148 | X28: crechesantaclara@institutodomdecio.org.br | Y28: Odair Ângelo Agostin | Z28: 13/05/2018 a 12/05/2022 | AA28: Banco do Brasil | AB28: 427-8 | AD28: 64454-4 | AG28: 48 | AH28: 4 | AI28: 86 | AJ28: 5 | AK28: 134 | AL28: 9 | AM28: 732.27 | AN28: 585.76 | AO28: 35148.96 | AP28: 50375.36 | AQ28: 85524.32 | AR28: 1026291.84 | AT28: 77288.05 | AU28: 81152.46 | AV28: 70238.51 | AW28: 0 | AX28: 8074.27 | AY28: 162 | AZ28: 4271.86 | BA28: 100 | BB28: 1026291.84 | BD28: 70238.51 | BE28: 34000 | BH28: 1800 | BI28: 1500 | BJ28: 2970 | BL28: 0 | BM28: 1131006.35 | BN28: 5794 | BO28: 1136800.35 | BP28: 137481.58 | BQ28: 3132 | BR28: 140613.58 | BS28: 102362.32 | BT28: 162 | BU28: 102524.32 | BV28: 85424.32 | BW28: 100 | BX28: 85524.32 | BY28: 76973.38 | BZ28: 1600 | CA28: 78573.38 | CB28: 85424.32 | CC28: 100 | CD28: 85524.32 | CE28: 85424.32 | CF28: 100 | CG28: 85524.32 | CH28: 85424.32 | CI28: 100 | CJ28: 85524.32 | CK28: 85424.32 | CL28: 100 | CM28: 85524.32 | CN28: 85424.32 | CO28: 100 | CP28: 85524.32 | CQ28: 85424.32 | CR28: 100 | CS28: 85524.32 | CT28: 85424.32 | CU28: 100 | CV28: 85524.32 | CW28: 120543.57 | CX28: 100 | CY28: 120643.57 | CZ28: 1036339.21 | DA28: 18800 | DB28: 4200 | DC28: 4638.6 | DD28: 3200 | DE28: 3000 | DF28: 3400 | DG28: 4272.54 | DH28: 2100 | DI28: 1600 | DJ28: 34000 | DK28: 13056 | DL28: 600 | DM28: 0 | DN28: 1800 | DO28: 1500 | DP28: 4294 | DQ28: 1131006.35 | DR28: 5794 | DS28: 1136800.35 | DU28: 112407.31 | DV28: 2400 | DW28: 600 | DX28: 800 | DY28: 600 | DZ28: 500 | EA28: 700 | EB28: 736.27 | EC28: 300 | ED28: 300 | EE28: 17000 | EF28: 1088 | EG28: 50 | EH28: 0 | EI28: 0 | EJ28: 0 | EK28: 3132 | EL28: 137481.58 | EM28: 3132 | EN28: 140613.58 | EO28: 77288.05 | EP28: 2400 | EQ28: 600 | ER28: 800 | ES28: 600 | ET28: 500 | EU28: 700 | EV28: 736.27 | EW28: 300 | EX28: 300 | EY28: 17000 | EZ28: 1088 | FA28: 50 | FB28: 0 | FC28: 0 | FD28: 0 | FE28: 162 | FF28: 102362.32 | FG28: 162 | FH28: 102524.32 | FI28: 81152.46 | FJ28: 1400 | FK28: 300 | FL28: 303.86 | FM28: 200 | FN28: 200 | FO28: 200 | FP28: 280 | FQ28: 150 | FR28: 100 | FS28: 0 | FT28: 1088 | FU28: 50 | FV28: 0 | FW28: 0 | FX28: 0 | FY28: 100 | FZ28: 85424.32 | GA28: 100 | GB28: 85524.32 | GC28: 70901.52 | GD28: 1400 | GE28: 300 | GF28: 303.86 | GG28: 200 | GH28: 200 | GI28: 200 | GJ28: 280 | GK28: 150 | GL28: 100 | GM28: 0 | GN28: 1088 | GO28: 50 | GP28: 0 | GQ28: 1800 | GR28: 1500 | GS28: 100 | GT28: 76973.38 | GU28: 1600 | GV28: 78573.38 | GW28: 81152.46 | GX28: 1400 | GY28: 300 | GZ28: 303.86 | HA28: 200 | HB28: 200 | HC28: 200 | HD28: 280 | HE28: 150 | HF28: 100 | HG28: 0 | HH28: 1088 | HI28: 50 | HJ28: 0 | HK28: 0 | HL28: 0 | HM28: 100 | HN28: 85424.32 | HO28: 100 | HP28: 85524.32 | HQ28: 81152.46 | HR28: 1400 | HS28: 300 | HT28: 303.86 | HU28: 200 | HV28: 200 | HW28: 200 | HX28: 280 | HY28: 150 | HZ28: 100 | IA28: 0 | IB28: 1088 | IC28: 50 | ID28: 0 | IE28: 0 | IF28: 0 | IG28: 100 | IH28: 85424.32 | II28: 100 | IJ28: 85524.32 | IK28: 81152.46 | IL28: 1400 | IM28: 300 | IN28: 303.86 | IO28: 200 | IP28: 200 | IQ28: 200 | IR28: 280 | IS28: 150 | IT28: 100 | IU28: 0 | IV28: 1088 | IW28: 50 | IX28: 0 | IY28: 0 | IZ28: 0 | JA28: 100 | JB28: 85424.32 | JC28: 100 | JD28: 85524.32 | JE28: 81152.46 | JF28: 1400 | JG28: 300 | JH28: 303.86 | JI28: 200 | JJ28: 200 | JK28: 200 | JL28: 280 | JM28: 150 | JN28: 100 | JO28: 0 | JP28: 1088 | JQ28: 50 | JR28: 0 | JS28: 0 | JT28: 0 | JU28: 100 | JV28: 85424.32 | JW28: 100 | JX28: 85524.32 | JY28: 81152.46 | JZ28: 1400 | KA28: 300 | KB28: 303.86 | KC28: 200 | KD28: 200 | KE28: 200 | KF28: 280 | KG28: 150 | KH28: 100 | KI28: 0 | KJ28: 1088 | KK28: 50 | KL28: 0 | KM28: 0 | KN28: 0 | KO28: 100 | KP28: 85424.32 | KQ28: 100 | KR28: 85524.32 | KS28: 81152.46 | KT28: 1400 | KU28: 300 | KV28: 303.86 | KW28: 200 | KX28: 200 | KY28: 200 | KZ28: 280 | LA28: 150 | LB28: 100 | LC28: 0 | LD28: 1088 | LE28: 50 | LF28: 0 | LG28: 0 | LH28: 0 | LI28: 100 | LJ28: 85424.32 | LK28: 100 | LL28: 85524.32 | LM28: 81152.46 | LN28: 1400 | LO28: 300 | LP28: 303.86 | LQ28: 200 | LR28: 200 | LS28: 200 | LT28: 280 | LU28: 150 | LV28: 100 | LW28: 0 | LX28: 1088 | LY28: 50 | LZ28: 0 | MA28: 0 | MB28: 0 | MC28: 100 | MD28: 85424.32 | ME28: 100 | MF28: 85524.32 | MG28: 116271.71 | MH28: 1400 | MI28: 300 | MJ28: 303.86 | MK28: 200 | ML28: 200 | MM28: 200 | MN28: 280 | MO28: 150 | MP28: 100 | MQ28: 0 | MR28: 1088 | MS28: 50 | MT28: 0 | MU28: 0 | MV28: 0 | MW28: 100 | MX28: 120543.57 | MY28: 100 | MZ28: 120643.57 | NA28: 08/2019-SE | NB28: 2019-06-17 | NC28: 2019-12-31 | ND28: 414675.95 | NE28: 218/2019-SE | NF28: Primeiro | NG28: 2019-11-08 | NH28: 2019-12-31 | NI28: 101005.83 | NJ28: 421/2019-SE | NK28: Segundo | NL28: 2019-12-27 | NM28: 2020-12-31 | NN28: 1193092.86 | NO28: 25/2021-SE | NP28: Quarto | NQ28: 2021-01-01 | NR28: 2021-12-31 | NS28: 1136800.35
A29: 28 | B29: Instituto Piccolo Bambino | G29: Inst Piccolo Bambino | H29: 05.861.941/0001-33 | I29: SB.051718/2020-70 | J29: SB.085150/2020-71 | K29: SB.066555/2020-08 | L29: 03/2020-SE | N29: 26/2021-SE | O29: Primeiro | P29: 2021-01-26 | Q29: 2021-01-01 | R29: 2021-12-31 | S29: Rua Guarapuava, 20 | T29: Jardim Represa | U29: S.B.Campo | V29: 09843-350 | W29: (15) 99853-6105 / 99978-5180 | X29: institutopiccolobambino2020@gmail.com | Y29: Luciana Zucchino Souza | Z29: 19/03/2019 a 19/03/2023 | AA29: Caixa Econômica Federal | AB29: 3393 | AC29: 003 | AD29: 1496-7 | AG29: 36 | AH29: 3 | AI29: 167 | AJ29: 9 | AK29: 203 | AL29: 12 | AM29: 732.27 | AN29: 585.76 | AO29: 26361.72 | AP29: 97821.92 | AQ29: 124183.64 | AR29: 1490203.68 | AT29: 105852.82 | AU29: 111145.47 | AV29: 99570.38 | AW29: 9800 | AX29: 16330.82 | AY29: 2000 | AZ29: 11538.17 | BA29: 1500 | BB29: 1490203.68 | BD29: 99570.38 | BE29: 34000 | BH29: 1800 | BI29: 1500 | BJ29: 3960 | BL29: 117600 | BM29: 1724174.06 | BN29: 24460 | BO29: 1748634.06 | BP29: 63175.6 | BQ29: 5960 | BR29: 69135.6 | BS29: 141434.12 | BT29: 2000 | BU29: 143434.12 | BV29: 132483.64 | BW29: 1500 | BX29: 133983.64 | BY29: 134283.64 | BZ29: 3000 | CA29: 137283.64 | CB29: 132483.64 | CC29: 1500 | CD29: 133983.64 | CE29: 132483.64 | CF29: 1500 | CG29: 133983.64 | CH29: 132483.64 | CI29: 1500 | CJ29: 133983.64 | CK29: 132483.64 | CL29: 1500 | CM29: 133983.64 | CN29: 132483.64 | CO29: 1500 | CP29: 133983.64 | CQ29: 132483.64 | CR29: 1500 | CS29: 133983.64 | CT29: 132483.64 | CU29: 1500 | CV29: 133983.64 | CW29: 182268.83 | CX29: 1500 | CY29: 183768.83 | CZ29: 1422730.72 | DA29: 41000 | DB29: 3600 | DC29: 3200 | DD29: 3200 | DE29: 1700 | DF29: 1800 | DG29: 4200 | DH29: 15100 | DI29: 59903.34 | DJ29: 34000 | DK29: 12540 | DL29: 1800 | DM29: 117600 | DN29: 1800 | DO29: 1500 | DP29: 22960 | DQ29: 1724174.06 | DR29: 24460 | DS29: 1748634.06 | DU29: 20044.78 | DV29: 500 | DW29: 800 | DX29: 100 | DY29: 100 | DZ29: 100 | EA29: 150 | EB29: 600 | EC29: 50 | ED29: 12735.82 | EE29: 17000 | EF29: 1045 | EG29: 150 | EH29: 9800 | EI29: 0 | EJ29: 0 | EK29: 5960 | EL29: 63175.6 | EM29: 5960 | EN29: 69135.6 | EO29: 98303.3 | EP29: 500 | EQ29: 800 | ER29: 100 | ES29: 100 | ET29: 100 | EU29: 150 | EV29: 600 | EW29: 50 | EX29: 12735.82 | EY29: 17000 | EZ29: 1045 | FA29: 150 | FB29: 9800 | FC29: 0 | FD29: 0 | FE29: 2000 | FF29: 141434.12 | FG29: 2000 | FH29: 143434.12 | FI29: 111145.47 | FJ29: 4000 | FK29: 200 | FL29: 300 | FM29: 300 | FN29: 150 | FO29: 150 | FP29: 300 | FQ29: 1500 | FR29: 3443.17 | FS29: 0 | FT29: 1045 | FU29: 150 | FV29: 9800 | FW29: 0 | FX29: 0 | FY29: 1500 | FZ29: 132483.64 | GA29: 1500 | GB29: 133983.64 | GC29: 111145.47 | GD29: 4000 | GE29: 200 | GF29: 300 | GG29: 300 | GH29: 150 | GI29: 150 | GJ29: 300 | GK29: 1500 | GL29: 3443.17 | GM29: 0 | GN29: 1045 | GO29: 150 | GP29: 9800 | GQ29: 1800 | GR29: 1500 | GS29: 1500 | GT29: 134283.64 | GU29: 3000 | GV29: 137283.64 | GW29: 111145.47 | GX29: 4000 | GY29: 200 | GZ29: 300 | HA29: 300 | HB29: 150 | HC29: 150 | HD29: 300 | HE29: 1500 | HF29: 3443.17 | HG29: 0 | HH29: 1045 | HI29: 150 | HJ29: 9800 | HK29: 0 | HL29: 0 | HM29: 1500 | HN29: 132483.64 | HO29: 1500 | HP29: 133983.64 | HQ29: 111145.47 | HR29: 4000 | HS29: 200 | HT29: 300 | HU29: 300 | HV29: 150 | HW29: 150 | HX29: 300 | HY29: 1500 | HZ29: 3443.17 | IA29: 0 | IB29: 1045 | IC29: 150 | ID29: 9800 | IE29: 0 | IF29: 0 | IG29: 1500 | IH29: 132483.64 | II29: 1500 | IJ29: 133983.64 | IK29: 111145.47 | IL29: 4000 | IM29: 200 | IN29: 300 | IO29: 300 | IP29: 150 | IQ29: 150 | IR29: 300 | IS29: 1500 | IT29: 3443.17 | IU29: 0 | IV29: 1045 | IW29: 150 | IX29: 9800 | IY29: 0 | IZ29: 0 | JA29: 1500 | JB29: 132483.64 | JC29: 1500 | JD29: 133983.64 | JE29: 111145.47 | JF29: 4000 | JG29: 200 | JH29: 300 | JI29: 300 | JJ29: 150 | JK29: 150 | JL29: 300 | JM29: 1500 | JN29: 3443.17 | JO29: 0 | JP29: 1045 | JQ29: 150 | JR29: 9800 | JS29: 0 | JT29: 0 | JU29: 1500 | JV29: 132483.64 | JW29: 1500 | JX29: 133983.64 | JY29: 111145.47 | JZ29: 4000 | KA29: 200 | KB29: 300 | KC29: 300 | KD29: 150 | KE29: 150 | KF29: 300 | KG29: 1500 | KH29: 3443.17 | KI29: 0 | KJ29: 1045 | KK29: 150 | KL29: 9800 | KM29: 0 | KN29: 0 | KO29: 1500 | KP29: 132483.64 | KQ29: 1500 | KR29: 133983.64 | KS29: 111145.47 | KT29: 4000 | KU29: 200 | KV29: 300 | KW29: 300 | KX29: 150 | KY29: 150 | KZ29: 300 | LA29: 1500 | LB29: 3443.17 | LC29: 0 | LD29: 1045 | LE29: 150 | LF29: 9800 | LG29: 0 | LH29: 0 | LI29: 1500 | LJ29: 132483.64 | LK29: 1500 | LL29: 133983.64 | LM29: 111145.47 | LN29: 4000 | LO29: 200 | LP29: 300 | LQ29: 300 | LR29: 150 | LS29: 150 | LT29: 300 | LU29: 1500 | LV29: 3443.17 | LW29: 0 | LX29: 1045 | LY29: 150 | LZ29: 9800 | MA29: 0 | MB29: 0 | MC29: 1500 | MD29: 132483.64 | ME29: 1500 | MF29: 133983.64 | MG29: 160930.66 | MH29: 4000 | MI29: 200 | MJ29: 300 | MK29: 300 | ML29: 150 | MM29: 150 | MN29: 300 | MO29: 1500 | MP29: 3443.17 | MQ29: 0 | MR29: 1045 | MS29: 150 | MT29: 9800 | MU29: 0 | MV29: 0 | MW29: 1500 | MX29: 182268.83 | MY29: 1500 | MZ29: 183768.83 | NA29: 03/2020-SE | NB29: 2020-07-31 | NC29: 2020-12-31 | ND29: 764727.09 | NE29: 26/2021-SE | NF29: Primeiro | NG29: 2021-01-01 | NH29: 2021-12-31 | NI29: 0
A30: 29 | B30: Lar da Criança Emmanuel | G30: Lar da Criança Emmanuel | H30: 06.131.628/0001-02 | I30: SB 038185/2020-97 | J30: SB.085151/2020-32 | K30: SB 088164/2019-26 | L30: 17/2017-SE | N30: 27/2021-SE | O30: Sexto | P30: 2021-01-28 | Q30: 2021-01-01 | R30: 2021-12-31 | S30: Avenida Humberto de Alencar Castelo Branco, nº 2955 | T30: Alves Dias | U30: S.B.Campo | V30: 09851-000 | W30: 4109-8938 | X30: lardacriancaemmanuel@terra.com.br | Y30: Izabel Regina Rodrigues Vitusso | Z30: 21/05/2019 a 21/05/2021 | AA30: Banco do Brasil | AB30: 0427-8 | AD30: 61627-3 | AG30: 26 | AH30: 2 | AI30: 157 | AJ30: 8 | AK30: 183 | AL30: 10 | AM30: 732.27 | AN30: 585.76 | AO30: 19039.02 | AP30: 91964.32 | AQ30: 111003.34 | AR30: 1332040.08 | AT30: 96530.33 | AU30: 101356.84 | AV30: 91801.62 | AW30: 0 | AX30: 14473.01 | AY30: 0 | AZ30: 9646.5 | BA30: 0 | BB30: 1332040.08 | BD30: 91801.62 | BE30: 34000 | BH30: 1800 | BI30: 1500 | BJ30: 3300 | BL30: 0 | BM30: 1459641.7 | BN30: 4800 | BO30: 1464441.7 | BP30: 173904.15 | BQ30: 3300 | BR30: 177204.15 | BS30: 128003.34 | BT30: 0 | BU30: 128003.34 | BV30: 111003.34 | BW30: 0 | BX30: 111003.34 | BY30: 112803.34 | BZ30: 1500 | CA30: 114303.34 | CB30: 111003.34 | CC30: 0 | CD30: 111003.34 | CE30: 111003.34 | CF30: 0 | CG30: 111003.34 | CH30: 111003.34 | CI30: 0 | CJ30: 111003.34 | CK30: 111003.34 | CL30: 0 | CM30: 111003.34 | CN30: 111003.34 | CO30: 0 | CP30: 111003.34 | CQ30: 111003.34 | CR30: 0 | CS30: 111003.34 | CT30: 111003.34 | CU30: 0 | CV30: 111003.34 | CW30: 156904.15 | CX30: 0 | CY30: 156904.15 | CZ30: 1298430.68 | DA30: 72000 | DB30: 2400 | DC30: 3000 | DD30: 3000 | DE30: 1600 | DF30: 1600 | DG30: 16000 | DH30: 0 | DI30: 13271.02 | DJ30: 34000 | DK30: 12540 | DL30: 0 | DM30: 0 | DN30: 1800 | DO30: 1500 | DP30: 3300 | DQ30: 1459641.7 | DR30: 4800 | DS30: 1464441.7 | DU30: 142431.14 | DV30: 6000 | DW30: 200 | DX30: 500 | DY30: 500 | DZ30: 300 | EA30: 300 | EB30: 3000 | EC30: 0 | ED30: 2628.01 | EE30: 17000 | EF30: 1045 | EG30: 0 | EH30: 0 | EI30: 0 | EJ30: 0 | EK30: 3300 | EL30: 173904.15 | EM30: 3300 | EN30: 177204.15 | EO30: 96530.33 | EP30: 6000 | EQ30: 200 | ER30: 500 | ES30: 500 | ET30: 300 | EU30: 300 | EV30: 3000 | EW30: 0 | EX30: 2628.01 | EY30: 17000 | EZ30: 1045 | FA30: 0 | FB30: 0 | FC30: 0 | FD30: 0 | FE30: 0 | FF30: 128003.34 | FG30: 0 | FH30: 128003.34 | FI30: 101356.84 | FJ30: 6000 | FK30: 200 | FL30: 200 | FM30: 200 | FN30: 100 | FO30: 100 | FP30: 1000 | FQ30: 0 | FR30: 801.5 | FS30: 0 | FT30: 1045 | FU30: 0 | FV30: 0 | FW30: 0 | FX30: 0 | FY30: 0 | FZ30: 111003.34 | GA30: 0 | GB30: 111003.34 | GC30: 101356.84 | GD30: 6000 | GE30: 200 | GF30: 200 | GG30: 200 | GH30: 100 | GI30: 100 | GJ30: 1000 | GK30: 0 | GL30: 801.5 | GM30: 0 | GN30: 1045 | GO30: 0 | GP30: 0 | GQ30: 1800 | GR30: 1500 | GS30: 0 | GT30: 112803.34 | GU30: 1500 | GV30: 114303.34 | GW30: 101356.84 | GX30: 6000 | GY30: 200 | GZ30: 200 | HA30: 200 | HB30: 100 | HC30: 100 | HD30: 1000 | HE30: 0 | HF30: 801.5 | HG30: 0 | HH30: 1045 | HI30: 0 | HJ30: 0 | HK30: 0 | HL30: 0 | HM30: 0 | HN30: 111003.34 | HO30: 0 | HP30: 111003.34 | HQ30: 101356.84 | HR30: 6000 | HS30: 200 | HT30: 200 | HU30: 200 | HV30: 100 | HW30: 100 | HX30: 1000 | HY30: 0 | HZ30: 801.5 | IA30: 0 | IB30: 1045 | IC30: 0 | ID30: 0 | IE30: 0 | IF30: 0 | IG30: 0 | IH30: 111003.34 | II30: 0 | IJ30: 111003.34 | IK30: 101356.84 | IL30: 6000 | IM30: 200 | IN30: 200 | IO30: 200 | IP30: 100 | IQ30: 100 | IR30: 1000 | IS30: 0 | IT30: 801.5 | IU30: 0 | IV30: 1045 | IW30: 0 | IX30: 0 | IY30: 0 | IZ30: 0 | JA30: 0 | JB30: 111003.34 | JC30: 0 | JD30: 111003.34 | JE30: 101356.84 | JF30: 6000 | JG30: 200 | JH30: 200 | JI30: 200 | JJ30: 100 | JK30: 100 | JL30: 1000 | JM30: 0 | JN30: 801.5 | JO30: 0 | JP30: 1045 | JQ30: 0 | JR30: 0 | JS30: 0 | JT30: 0 | JU30: 0 | JV30: 111003.34 | JW30: 0 | JX30: 111003.34 | JY30: 101356.84 | JZ30: 6000 | KA30: 200 | KB30: 200 | KC30: 200 | KD30: 100 | KE30: 100 | KF30: 1000 | KG30: 0 | KH30: 801.5 | KI30: 0 | KJ30: 1045 | KK30: 0 | KL30: 0 | KM30: 0 | KN30: 0 | KO30: 0 | KP30: 111003.34 | KQ30: 0 | KR30: 111003.34 | KS30: 101356.84 | KT30: 6000 | KU30: 200 | KV30: 200 | KW30: 200 | KX30: 100 | KY30: 100 | KZ30: 1000 | LA30: 0 | LB30: 801.5 | LC30: 0 | LD30: 1045 | LE30: 0 | LF30: 0 | LG30: 0 | LH30: 0 | LI30: 0 | LJ30: 111003.34 | LK30: 0 | LL30: 111003.34 | LM30: 101356.84 | LN30: 6000 | LO30: 200 | LP30: 200 | LQ30: 200 | LR30: 100 | LS30: 100 | LT30: 1000 | LU30: 0 | LV30: 801.5 | LW30: 0 | LX30: 1045 | LY30: 0 | LZ30: 0 | MA30: 0 | MB30: 0 | MC30: 0 | MD30: 111003.34 | ME30: 0 | MF30: 111003.34 | MG30: 147257.65 | MH30: 6000 | MI30: 200 | MJ30: 200 | MK30: 200 | ML30: 100 | MM30: 100 | MN30: 1000 | MO30: 0 | MP30: 801.5 | MQ30: 0 | MR30: 1045 | MS30: 0 | MT30: 0 | MU30: 0 | MV30: 0 | MW30: 0 | MX30: 156904.15 | MY30: 0 | MZ30: 156904.15 | NA30: 17/2017-SE | NB30: 2017-01-02 | NC30: 2017-12-31 | ND30: 1158816.14 | NE30: 185/2017-SE | NF30: Primeiro | NG30: 2017-06-06 | NH30: 2017-12-31 | NI30: 0 | NJ30: 192/2018-SE | NK30: Segundo | NL30: 2018-01-01 | NM30: 2018-12-31 | NN30: 1289988.62 | NO30: 198/2019-SE | NP30: Terceiro | NQ30: 2019-01-02 | NR30: 2019-12-31 | NS30: 1414279.05 | NT30: 422/2019-SE | NU30: Quarto | NV30: 2019-12-27 | NW30: 2020-12-31 | NX30: 1518883 | NY30: 27/2021-SE | NZ30: Quinto | OA30: 2021-01-01 | OB30: 2021-12-31 | OC30: 0
A31: 30 | B31: Lar Escola Jêsue Frantz I | G31: Lar Escola Jêsue Frantz I | H31: 49.522.345/0001-02 | I31: SB 038188/2020-70 | J31: SB.085152/2020-93 | K31: SB 088184/2019-88 | L31: 18/2017-SE | N31: 28/2021-SE | O31: Sétimo | P31: 2021-01-29 | Q31: 2021-01-01 | R31: 2021-12-31 | S31: Rua Camargo, 184 | T31: Paulicéia | U31: S.B.Campo | V31: 09682-100 | W31: 4178-4422 | X31: raee@lejf.org.br | Y31: Sandra Lia Mendes Savio | Z31: 2020 a 2024 | AA31: Banco do Brasil | AB31: 3131-3 | AD31: 117.810-5 | AI31: 100 | AJ31: 5 | AK31: 100 | AL31: 5 | AM31: 732.27 | AN31: 585.76 | AO31: 0 | AP31: 58576 | AQ31: 58576 | AR31: 702912 | AT31: 48345.1 | AU31: 50762.36 | AV31: 48064.42 | AW31: 0 | AX31: 10230.9 | AY31: 0 | AZ31: 7813.64 | BA31: 0 | BB31: 702912 | BD31: 48064.42 | BE31: 34000 | BH31: 1800 | BI31: 1500 | BJ31: 1650 | BL31: 0 | BM31: 786776.42 | BN31: 3150 | BO31: 789926.42 | BP31: 99608.21 | BQ31: 1650 | BR31: 101258.21 | BS31: 75576 | BT31: 0 | BU31: 75576 | BV31: 58576 | BW31: 0 | BX31: 58576 | BY31: 60376 | BZ31: 1500 | CA31: 61876 | CB31: 58576 | CC31: 0 | CD31: 58576 | CE31: 58576 | CF31: 0 | CG31: 58576 | CH31: 58576 | CI31: 0 | CJ31: 58576 | CK31: 58576 | CL31: 0 | CM31: 58576 | CN31: 58576 | CO31: 0 | CP31: 58576 | CQ31: 58576 | CR31: 0 | CS31: 58576 | CT31: 58576 | CU31: 0 | CV31: 58576 | CW31: 82608.21 | CX31: 0 | CY31: 82608.21 | CZ31: 652378.22 | DA31: 37000 | DB31: 1120 | DC31: 7875.8 | DD31: 6800 | DE31: 5000 | DF31: 6446.4 | DG31: 15000 | DH31: 2016 | DI31: 3000 | DJ31: 34000 | DK31: 12540 | DL31: 1800 | DM31: 0 | DN31: 1800 | DO31: 1500 | DP31: 1650 | DQ31: 786776.42 | DR31: 3150 | DS31: 789926.42 | DU31: 72377.31 | DV31: 3500 | DW31: 280 | DX31: 687.9 | DY31: 650 | DZ31: 500 | EA31: 500 | EB31: 1250 | EC31: 168 | ED31: 1500 | EE31: 17000 | EF31: 1045 | EG31: 150 | EH31: 0 | EI31: 0 | EJ31: 0 | EK31: 1650 | EL31: 99608.21 | EM31: 1650 | EN31: 101258.21 | EO31: 48345.1 | EP31: 3500 | EQ31: 280 | ER31: 687.9 | ES31: 650 | ET31: 500 | EU31: 500 | EV31: 1250 | EW31: 168 | EX31: 1500 | EY31: 17000 | EZ31: 1045 | FA31: 150 | FB31: 0 | FC31: 0 | FD31: 0 | FE31: 0 | FF31: 75576 | FG31: 0 | FH31: 75576 | FI31: 50762.36 | FJ31: 3000 | FK31: 56 | FL31: 650 | FM31: 550 | FN31: 400 | FO31: 544.64 | FP31: 1250 | FQ31: 168 | FR31: 0 | FS31: 0 | FT31: 1045 | FU31: 150 | FV31: 0 | FW31: 0 | FX31: 0 | FY31: 0 | FZ31: 58576 | GA31: 0 | GB31: 58576 | GC31: 50762.36 | GD31: 3000 | GE31: 56 | GF31: 650 | GG31: 550 | GH31: 400 | GI31: 544.64 | GJ31: 1250 | GK31: 168 | GL31: 0 | GM31: 0 | GN31: 1045 | GO31: 150 | GP31: 0 | GQ31: 1800 | GR31: 1500 | GS31: 0 | GT31: 60376 | GU31: 1500 | GV31: 61876 | GW31: 50762.36 | GX31: 3000 | GY31: 56 | GZ31: 650 | HA31: 550 | HB31: 400 | HC31: 544.64 | HD31: 1250 | HE31: 168 | HF31: 0 | HG31: 0 | HH31: 1045 | HI31: 150 | HJ31: 0 | HK31: 0 | HL31: 0 | HM31: 0 | HN31: 58576 | HO31: 0 | HP31: 58576 | HQ31: 50762.36 | HR31: 3000 | HS31: 56 | HT31: 650 | HU31: 550 | HV31: 400 | HW31: 544.64 | HX31: 1250 | HY31: 168 | HZ31: 0 | IA31: 0 | IB31: 1045 | IC31: 150 | ID31: 0 | IE31: 0 | IF31: 0 | IG31: 0 | IH31: 58576 | II31: 0 | IJ31: 58576 | IK31: 50762.36 | IL31: 3000 | IM31: 56 | IN31: 650 | IO31: 550 | IP31: 400 | IQ31: 544.64 | IR31: 1250 | IS31: 168 | IT31: 0 | IU31: 0 | IV31: 1045 | IW31: 150 | IX31: 0 | IY31: 0 | IZ31: 0 | JA31: 0 | JB31: 58576 | JC31: 0 | JD31: 58576 | JE31: 50762.36 | JF31: 3000 | JG31: 56 | JH31: 650 | JI31: 550 | JJ31: 400 | JK31: 544.64 | JL31: 1250 | JM31: 168 | JN31: 0 | JO31: 0 | JP31: 1045 | JQ31: 150 | JR31: 0 | JS31: 0 | JT31: 0 | JU31: 0 | JV31: 58576 | JW31: 0 | JX31: 58576 | JY31: 50762.36 | JZ31: 3000 | KA31: 56 | KB31: 650 | KC31: 550 | KD31: 400 | KE31: 544.64 | KF31: 1250 | KG31: 168 | KH31: 0 | KI31: 0 | KJ31: 1045 | KK31: 150 | KL31: 0 | KM31: 0 | KN31: 0 | KO31: 0 | KP31: 58576 | KQ31: 0 | KR31: 58576 | KS31: 50762.36 | KT31: 3000 | KU31: 56 | KV31: 650 | KW31: 550 | KX31: 400 | KY31: 544.64 | KZ31: 1250 | LA31: 168 | LB31: 0 | LC31: 0 | LD31: 1045 | LE31: 150 | LF31: 0 | LG31: 0 | LH31: 0 | LI31: 0 | LJ31: 58576 | LK31: 0 | LL31: 58576 | LM31: 50762.36 | LN31: 3000 | LO31: 56 | LP31: 650 | LQ31: 550 | LR31: 400 | LS31: 544.64 | LT31: 1250 | LU31: 168 | LV31: 0 | LW31: 0 | LX31: 1045 | LY31: 150 | LZ31: 0 | MA31: 0 | MB31: 0 | MC31: 0 | MD31: 58576 | ME31: 0 | MF31: 58576 | MG31: 74794.57 | MH31: 3000 | MI31: 56 | MJ31: 650 | MK31: 550 | ML31: 400 | MM31: 544.64 | MN31: 1250 | MO31: 168 | MP31: 0 | MQ31: 0 | MR31: 1045 | MS31: 150 | MT31: 0 | MU31: 0 | MV31: 0 | MW31: 0 | MX31: 82608.21 | MY31: 0 | MZ31: 82608.21 | NA31: 18/2017-SE | NB31: 2017-01-02 | NC31: 2017-12-31 | ND31: 503063.88 | NE31: 186/2017-SE | NF31: Primeiro | NG31: 2017-06-06 | NH31: 2017-12-31 | NI31: 0 | NJ31: 388/2017-SE | NK31: Segundo | NL31: 2017-11-07 | NM31: 2017-12-31 | NN31: 8000 | NO31: 193/2018-SE | NP31: Terceiro | NQ31: 2018-01-01 | NR31: 2018-12-31 | NS31: 572135.82 | NT31: 199/2019-SE | NU31: Quarto | NV31: 2019-01-02 | NW31: 2019-12-31 | NX31: 750102.52 | NY31: 423/2019-SE | NZ31: Quinto | OA31: 2019-12-27 | OB31: 2020-12-31 | OC31: 791046.4 | OD31: 28/2021-SE | OE31: Sexto | OF31: 2021-01-01 | OG31: 2021-12-31 | OH31: 0
A32: 31 | B32: Lar Escola Jêsue Frantz II | G32: Lar Escola Jêsue Frantz II | H32: 49.524.283/0001-60 | I32: SB 038191/2020-89 | J32: SB.085153/2020-54 | K32: SB 088186/2019-00 | L32: 02/2019-SE | N32: 29/2021-SE | O32: Terceiro | P32: 2021-01-29 | Q32: 2021-01-01 | R32: 2021-12-31 | S32: Rua Benedito Luiz Rodrigues, nº 864 | T32: Jardim Palermo | U32: S.B.Campo | V32: 09780-420 | W32: 4178-4422 | Y32: Sandra Lia Mendes Savio | Z32: 2020 a 2024 | AA32: Banco do Brasil | AB32: 3131-3 | AD32: 121.706-2 | AI32: 92 | AJ32: 5 | AK32: 92 | AL32: 5 | AM32: 732.27 | AN32: 585.76 | AO32: 0 | AP32: 53889.92 | AQ32: 53889.92 | AR32: 646679.04 | AT32: 44289.06 | AU32: 46503.52 | AV32: 43671.83 | AW32: 2894.79 | AX32: 8600.86 | AY32: 1000 | AZ32: 7386.4 | BA32: 0 | BB32: 646679.04 | BD32: 43671.83 | BE32: 34000 | BH32: 1800 | BI32: 1500 | BJ32: 1650 | BL32: 34737.48 | BM32: 758888.35 | BN32: 5150 | BO32: 764038.35 | BP32: 94620.63 | BQ32: 2650 | BR32: 97270.63 | BS32: 72784.71 | BT32: 1000 | BU32: 73784.71 | BV32: 56784.71 | BW32: 0 | BX32: 56784.71 | BY32: 58584.71 | BZ32: 1500 | CA32: 60084.71 | CB32: 56784.71 | CC32: 0 | CD32: 56784.71 | CE32: 56784.71 | CF32: 0 | CG32: 56784.71 | CH32: 56784.71 | CI32: 0 | CJ32: 56784.71 | CK32: 56784.71 | CL32: 0 | CM32: 56784.71 | CN32: 56784.71 | CO32: 0 | CP32: 56784.71 | CQ32: 56784.71 | CR32: 0 | CS32: 56784.71 | CT32: 56784.71 | CU32: 0 | CV32: 56784.71 | CW32: 78620.62 | CX32: 0 | CY32: 78620.62 | CZ32: 597285.15 | DA32: 21000 | DB32: 1120 | DC32: 8794 | DD32: 7800 | DE32: 6600 | DF32: 6800 | DG32: 15600 | DH32: 892 | DI32: 8119.72 | DJ32: 34000 | DK32: 12540 | DL32: 1800 | DM32: 34737.48 | DN32: 1800 | DO32: 1500 | DP32: 3650 | DQ32: 758888.35 | DR32: 5150 | DS32: 764038.35 | DU32: 66124.98 | DV32: 1500 | DW32: 280 | DX32: 750 | DY32: 650 | DZ32: 550 | EA32: 650 | EB32: 1300 | EC32: 166 | ED32: 1559.86 | EE32: 17000 | EF32: 1045 | EG32: 150 | EH32: 2894.79 | EI32: 0 | EJ32: 0 | EK32: 2650 | EL32: 94620.63 | EM32: 2650 | EN32: 97270.63 | EO32: 44289.06 | EP32: 1500 | EQ32: 280 | ER32: 750 | ES32: 650 | ET32: 550 | EU32: 650 | EV32: 1300 | EW32: 166 | EX32: 1559.86 | EY32: 17000 | EZ32: 1045 | FA32: 150 | FB32: 2894.79 | FC32: 0 | FD32: 0 | FE32: 1000 | FF32: 72784.71 | FG32: 1000 | FH32: 73784.71 | FI32: 46503.52 | FJ32: 1800 | FK32: 56 | FL32: 729.4 | FM32: 650 | FN32: 550 | FO32: 550 | FP32: 1300 | FQ32: 56 | FR32: 500 | FS32: 0 | FT32: 1045 | FU32: 150 | FV32: 2894.79 | FW32: 0 | FX32: 0 | FY32: 0 | FZ32: 56784.71 | GA32: 0 | GB32: 56784.71 | GC32: 46503.52 | GD32: 1800 | GE32: 56 | GF32: 729.4 | GG32: 650 | GH32: 550 | GI32: 550 | GJ32: 1300 | GK32: 56 | GL32: 500 | GM32: 0 | GN32: 1045 | GO32: 150 | GP32: 2894.79 | GQ32: 1800 | GR32: 1500 | GS32: 0 | GT32: 58584.71 | GU32: 1500 | GV32: 60084.71 | GW32: 46503.52 | GX32: 1800 | GY32: 56 | GZ32: 729.4 | HA32: 650 | HB32: 550 | HC32: 550 | HD32: 1300 | HE32: 56 | HF32: 500 | HG32: 0 | HH32: 1045 | HI32: 150 | HJ32: 2894.79 | HK32: 0 | HL32: 0 | HM32: 0 | HN32: 56784.71 | HO32: 0 | HP32: 56784.71 | HQ32: 46503.52 | HR32: 1800 | HS32: 56 | HT32: 729.4 | HU32: 650 | HV32: 550 | HW32: 550 | HX32: 1300 | HY32: 56 | HZ32: 500 | IA32: 0 | IB32: 1045 | IC32: 150 | ID32: 2894.79 | IE32: 0 | IF32: 0 | IG32: 0 | IH32: 56784.71 | II32: 0 | IJ32: 56784.71 | IK32: 46503.52 | IL32: 1800 | IM32: 56 | IN32: 729.4 | IO32: 650 | IP32: 550 | IQ32: 550 | IR32: 1300 | IS32: 56 | IT32: 500 | IU32: 0 | IV32: 1045 | IW32: 150 | IX32: 2894.79 | IY32: 0 | IZ32: 0 | JA32: 0 | JB32: 56784.71 | JC32: 0 | JD32: 56784.71 | JE32: 46503.52 | JF32: 1800 | JG32: 56 | JH32: 729.4 | JI32: 650 | JJ32: 550 | JK32: 550 | JL32: 1300 | JM32: 56 | JN32: 500 | JO32: 0 | JP32: 1045 | JQ32: 150 | JR32: 2894.79 | JS32: 0 | JT32: 0 | JU32: 0 | JV32: 56784.71 | JW32: 0 | JX32: 56784.71 | JY32: 46503.52 | JZ32: 1800 | KA32: 56 | KB32: 729.4 | KC32: 650 | KD32: 550 | KE32: 550 | KF32: 1300 | KG32: 56 | KH32: 500 | KI32: 0 | KJ32: 1045 | KK32: 150 | KL32: 2894.79 | KM32: 0 | KN32: 0 | KO32: 0 | KP32: 56784.71 | KQ32: 0 | KR32: 56784.71 | KS32: 46503.52 | KT32: 1800 | KU32: 56 | KV32: 729.4 | KW32: 650 | KX32: 550 | KY32: 550 | KZ32: 1300 | LA32: 56 | LB32: 500 | LC32: 0 | LD32: 1045 | LE32: 150 | LF32: 2894.79 | LG32: 0 | LH32: 0 | LI32: 0 | LJ32: 56784.71 | LK32: 0 | LL32: 56784.71 | LM32: 46503.52 | LN32: 1800 | LO32: 56 | LP32: 729.4 | LQ32: 650 | LR32: 550 | LS32: 550 | LT32: 1300 | LU32: 56 | LV32: 500 | LW32: 0 | LX32: 1045 | LY32: 150 | LZ32: 2894.79 | MA32: 0 | MB32: 0 | MC32: 0 | MD32: 56784.71 | ME32: 0 | MF32: 56784.71 | MG32: 68339.43 | MH32: 1800 | MI32: 56 | MJ32: 729.4 | MK32: 650 | ML32: 550 | MM32: 550 | MN32: 1300 | MO32: 56 | MP32: 500 | MQ32: 0 | MR32: 1045 | MS32: 150 | MT32: 2894.79 | MU32: 0 | MV32: 0 | MW32: 0 | MX32: 78620.62 | MY32: 0 | MZ32: 78620.62 | NA32: 02/2019-SE | NB32: 2019-01-17 | NC32: 2019-12-31 | ND32: 790300.21 | NE32: 424/2019-SE | NF32: Primeiro | NG32: 2019-12-27 | NH32: 2020-12-31 | NI32: 766910.57 | NJ32: 29/2021-SE | NK32: Segundo | NL32: 2021-01-01 | NM32: 2021-12-31 | NN32: 0
A33: 32 | B33: Lar Escola Jêsue Frantz III | G33: Lar Escola Jêsue Frantz III | H33: 49.524.374/0001-03 | I33: SB 038194/2020-62 | J33: SB.085154/2020-15 | K33: SB 088189/2019-83 | L33: 04/2019-SE | N33: 30/2021-SE | O33: Terceiro | P33: 2021-01-29 | Q33: 2021-01-01 | R33: 2021-12-31 | S33: Rua Tiradentes, nº 398 | T33: Santa Terezinha | U33: S.B.Campo | V33: 09780-000 | W33: 4178-4422 | Y33: Sandra Lia Mendes Savio | Z33: 2020 a 2024 | AA33: Banco do Brasil | AB33: 3131-3 | AD33: 107002-9 | AI33: 99 | AJ33: 6 | AK33: 99 | AL33: 6 | AM33: 732.27 | AN33: 585.76 | AO33: 0 | AP33: 57990.24 | AQ33: 57990.24 | AR33: 695882.88 | AT33: 49094.84 | AU33: 51549.59 | AV33: 48292.18 | AW33: 4917.28 | AX33: 7795.4 | AY33: 1100 | AZ33: 6440.65 | BA33: 0 | BB33: 695882.88 | BD33: 48292.18 | BE33: 34000 | BH33: 1800 | BI33: 1500 | BJ33: 1980 | BL33: 59007.36 | BM33: 836782.42 | BN33: 5680 | BO33: 842462.42 | BP33: 102953.61 | BQ33: 3080 | BR33: 106033.61 | BS33: 78807.52 | BT33: 1100 | BU33: 79907.52 | BV33: 62907.52 | BW33: 0 | BX33: 62907.52 | BY33: 64707.52 | BZ33: 1500 | CA33: 66207.52 | CB33: 62907.52 | CC33: 0 | CD33: 62907.52 | CE33: 62907.52 | CF33: 0 | CG33: 62907.52 | CH33: 62907.52 | CI33: 0 | CJ33: 62907.52 | CK33: 62907.52 | CL33: 0 | CM33: 62907.52 | CN33: 62907.52 | CO33: 0 | CP33: 62907.52 | CQ33: 62907.52 | CR33: 0 | CS33: 62907.52 | CT33: 62907.52 | CU33: 0 | CV33: 62907.52 | CW33: 87053.61 | CX33: 0 | CY33: 87053.61 | CZ33: 661977.76 | DA33: 17645.3 | DB33: 1120 | DC33: 7800 | DD33: 6800 | DE33: 6600 | DF33: 6800 | DG33: 15000 | DH33: 892 | DI33: 3000 | DJ33: 34000 | DK33: 12540 | DL33: 1800 | DM33: 59007.36 | DN33: 1800 | DO33: 1500 | DP33: 4180 | DQ33: 836782.42 | DR33: 5680 | DS33: 842462.42 | DU33: 73240.93 | DV33: 1404.4 | DW33: 280 | DX33: 650 | DY33: 650 | DZ33: 550 | EA33: 650 | EB33: 1250 | EC33: 166 | ED33: 1000 | EE33: 17000 | EF33: 1045 | EG33: 150 | EH33: 4917.28 | EI33: 0 | EJ33: 0 | EK33: 3080 | EL33: 102953.61 | EM33: 3080 | EN33: 106033.61 | EO33: 49094.84 | EP33: 1404.4 | EQ33: 280 | ER33: 650 | ES33: 650 | ET33: 550 | EU33: 650 | EV33: 1250 | EW33: 166 | EX33: 1000 | EY33: 17000 | EZ33: 1045 | FA33: 150 | FB33: 4917.28 | FC33: 0 | FD33: 0 | FE33: 1100 | FF33: 78807.52 | FG33: 1100 | FH33: 79907.52 | FI33: 51549.59 | FJ33: 1483.65 | FK33: 56 | FL33: 650 | FM33: 550 | FN33: 550 | FO33: 550 | FP33: 1250 | FQ33: 56 | FR33: 100 | FS33: 0 | FT33: 1045 | FU33: 150 | FV33: 4917.28 | FW33: 0 | FX33: 0 | FY33: 0 | FZ33: 62907.52 | GA33: 0 | GB33: 62907.52 | GC33: 51549.59 | GD33: 1483.65 | GE33: 56 | GF33: 650 | GG33: 550 | GH33: 550 | GI33: 550 | GJ33: 1250 | GK33: 56 | GL33: 100 | GM33: 0 | GN33: 1045 | GO33: 150 | GP33: 4917.28 | GQ33: 1800 | GR33: 1500 | GS33: 0 | GT33: 64707.52 | GU33: 1500 | GV33: 66207.52 | GW33: 51549.59 | GX33: 1483.65 | GY33: 56 | GZ33: 650 | HA33: 550 | HB33: 550 | HC33: 550 | HD33: 1250 | HE33: 56 | HF33: 100 | HG33: 0 | HH33: 1045 | HI33: 150 | HJ33: 4917.28 | HK33: 0 | HL33: 0 | HM33: 0 | HN33: 62907.52 | HO33: 0 | HP33: 62907.52 | HQ33: 51549.59 | HR33: 1483.65 | HS33: 56 | HT33: 650 | HU33: 550 | HV33: 550 | HW33: 550 | HX33: 1250 | HY33: 56 | HZ33: 100 | IA33: 0 | IB33: 1045 | IC33: 150 | ID33: 4917.28 | IE33: 0 | IF33: 0 | IG33: 0 | IH33: 62907.52 | II33: 0 | IJ33: 62907.52 | IK33: 51549.59 | IL33: 1483.65 | IM33: 56 | IN33: 650 | IO33: 550 | IP33: 550 | IQ33: 550 | IR33: 1250 | IS33: 56 | IT33: 100 | IU33: 0 | IV33: 1045 | IW33: 150 | IX33: 4917.28 | IY33: 0 | IZ33: 0 | JA33: 0 | JB33: 62907.52 | JC33: 0 | JD33: 62907.52 | JE33: 51549.59 | JF33: 1483.65 | JG33: 56 | JH33: 650 | JI33: 550 | JJ33: 550 | JK33: 550 | JL33: 1250 | JM33: 56 | JN33: 100 | JO33: 0 | JP33: 1045 | JQ33: 150 | JR33: 4917.28 | JS33: 0 | JT33: 0 | JU33: 0 | JV33: 62907.52 | JW33: 0 | JX33: 62907.52 | JY33: 51549.59 | JZ33: 1483.65 | KA33: 56 | KB33: 650 | KC33: 550 | KD33: 550 | KE33: 550 | KF33: 1250 | KG33: 56 | KH33: 100 | KI33: 0 | KJ33: 1045 | KK33: 150 | KL33: 4917.28 | KM33: 0 | KN33: 0 | KO33: 0 | KP33: 62907.52 | KQ33: 0 | KR33: 62907.52 | KS33: 51549.59 | KT33: 1483.65 | KU33: 56 | KV33: 650 | KW33: 550 | KX33: 550 | KY33: 550 | KZ33: 1250 | LA33: 56 | LB33: 100 | LC33: 0 | LD33: 1045 | LE33: 150 | LF33: 4917.28 | LG33: 0 | LH33: 0 | LI33: 0 | LJ33: 62907.52 | LK33: 0 | LL33: 62907.52 | LM33: 51549.59 | LN33: 1483.65 | LO33: 56 | LP33: 650 | LQ33: 550 | LR33: 550 | LS33: 550 | LT33: 1250 | LU33: 56 | LV33: 100 | LW33: 0 | LX33: 1045 | LY33: 150 | LZ33: 4917.28 | MA33: 0 | MB33: 0 | MC33: 0 | MD33: 62907.52 | ME33: 0 | MF33: 62907.52 | MG33: 75695.68 | MH33: 1483.65 | MI33: 56 | MJ33: 650 | MK33: 550 | ML33: 550 | MM33: 550 | MN33: 1250 | MO33: 56 | MP33: 100 | MQ33: 0 | MR33: 1045 | MS33: 150 | MT33: 4917.28 | MU33: 0 | MV33: 0 | MW33: 0 | MX33: 87053.61 | MY33: 0 | MZ33: 87053.61 | NA33: 04/2019-SE | NB33: 2019-02-25 | NC33: 2019-12-31 | ND33: 753244.09 | NE33: 425/2019-SE | NF33: Primeiro | NG33: 2019-12-27 | NH33: 2020-12-31 | NI33: 843975.61 | NJ33: 34/2021-SE | NK33: Segundo | NL33: 2021-01-01 | NM33: 2021-12-31 | NN33: 0
A34: 33 | B34: Lar Escola Jêsue Frantz IV | G34: Lar Escola Jêsue Frantz IV | H34: 04.208.681/0001-39 | I34: SB.057822/2020-23 | J34: SB.006175/2021-87 | L34: 01/2021-SE | P34: 2021-01-29 | Q34: 2021-01-29 | R34: 2021-12-31 | S34: Rua Capitão Alberto Mendes Junior, 96 | T34: Jardim Beatriz | U34: S.B.Campo | V34: 09895-050 | W34: 4178-4422 | Y34: Sandra Lia Mendes Savio | Z34: 2020 a 2024 | AA34: Banco do Brasil | AB34: 3131-3 | AD34: 23.747-7 | AG34: 24 | AH34: 2 | AI34: 36 | AJ34: 2 | AK34: 60 | AL34: 4 | AM34: 732.27 | AN34: 585.76 | AO34: 17574.48 | AP34: 21087.36 | AQ34: 38661.84 | AR34: 463942.08 | AT34: 33352.13 | AU34: 35019.74 | AV34: 32755.59 | AW34: 0 | AX34: 5309.71 | AY34: 0 | AZ34: 3642.1 | BA34: 0 | BB34: 463942.08 | BD34: 32755.59 | BE34: 34000 | BF34: 13264 | BG34: 30512 | BH34: 1800 | BI34: 1500 | BJ34: 1320 | BL34: 0 | BM34: 545761.67 | BN34: 33332 | BO34: 579093.67 | BP34: 48895.67 | BQ34: 31832 | BR34: 80727.67 | BS34: 27624.49 | BT34: 0 | BU34: 27624.49 | BV34: 9222.62 | BW34: 0 | BX34: 9222.62 | BY34: 25825.92 | BZ34: 1500 | CA34: 27325.92 | CB34: 38661.84 | CC34: 0 | CD34: 38661.84 | CE34: 38661.84 | CF34: 0 | CG34: 38661.84 | CH34: 38661.84 | CI34: 0 | CJ34: 38661.84 | CK34: 38661.84 | CL34: 0 | CM34: 38661.84 | CN34: 38661.84 | CO34: 0 | CP34: 38661.84 | CQ34: 38661.84 | CR34: 0 | CS34: 38661.84 | CT34: 38661.84 | CU34: 0 | CV34: 38661.84 | CW34: 55039.63 | CX34: 0 | CY34: 55039.63 | CZ34: 449657.25 | DA34: 18961.42 | DB34: 868 | DC34: 500 | DD34: 500 | DE34: 200 | DF34: 200 | DG34: 24735 | DH34: 0 | DI34: 0 | DJ34: 34000 | DK34: 12540 | DL34: 1800 | DM34: 0 | DN34: 1800 | DO34: 1500 | DP34: 31832 | DQ34: 545761.67 | DR34: 33332 | DS34: 579093.67 | DU34: 13321.96 | DV34: 1980.71 | DW34: 434 | DX34: 250 | DY34: 250 | DZ34: 100 | EA34: 100 | EB34: 14264 | EC34: 0 | ED34: 0 | EE34: 17000 | EF34: 1045 | EG34: 150 | EH34: 0 | EI34: 0 | EJ34: 0 | EK34: 31832 | EL34: 48895.67 | EM34: 31832 | EN34: 80727.67 | EO34: 5314.78 | EP34: 1980.71 | EQ34: 434 | ER34: 250 | ES34: 250 | ET34: 100 | EU34: 100 | EV34: 1000 | EW34: 0 | EX34: 0 | EY34: 17000 | EZ34: 1045 | FA34: 150 | FB34: 0 | FC34: 0 | FD34: 0 | FE34: 0 | FF34: 27624.49 | FG34: 0 | FH34: 27624.49 | FI34: 5580.52 | FJ34: 1500 | FK34: 0 | FL34: 0 | FM34: 0 | FN34: 0 | FO34: 0 | FP34: 947.1 | FQ34: 0 | FR34: 0 | FS34: 0 | FT34: 1045 | FU34: 150 | FV34: 0 | FW34: 0 | FX34: 0 | FY34: 0 | FZ34: 9222.62 | GA34: 0 | GB34: 9222.62 | GC34: 20383.82 | GD34: 1500 | GE34: 0 | GF34: 0 | GG34: 0 | GH34: 0 | GI34: 0 | GJ34: 947.1 | GK34: 0 | GL34: 0 | GM34: 0 | GN34: 1045 | GO34: 150 | GP34: 0 | GQ34: 1800 | GR34: 1500 | GS34: 0 | GT34: 25825.92 | GU34: 1500 | GV34: 27325.92 | GW34: 35019.74 | GX34: 1500 | GY34: 0 | GZ34: 0 | HA34: 0 | HB34: 0 | HC34: 0 | HD34: 947.1 | HE34: 0 | HF34: 0 | HG34: 0 | HH34: 1045 | HI34: 150 | HJ34: 0 | HK34: 0 | HL34: 0 | HM34: 0 | HN34: 38661.84 | HO34: 0 | HP34: 38661.84 | HQ34: 35019.74 | HR34: 1500 | HS34: 0 | HT34: 0 | HU34: 0 | HV34: 0 | HW34: 0 | HX34: 947.1 | HY34: 0 | HZ34: 0 | IA34: 0 | IB34: 1045 | IC34: 150 | ID34: 0 | IE34: 0 | IF34: 0 | IG34: 0 | IH34: 38661.84 | II34: 0 | IJ34: 38661.84 | IK34: 35019.74 | IL34: 1500 | IM34: 0 | IN34: 0 | IO34: 0 | IP34: 0 | IQ34: 0 | IR34: 947.1 | IS34: 0 | IT34: 0 | IU34: 0 | IV34: 1045 | IW34: 150 | IX34: 0 | IY34: 0 | IZ34: 0 | JA34: 0 | JB34: 38661.84 | JC34: 0 | JD34: 38661.84 | JE34: 35019.74 | JF34: 1500 | JG34: 0 | JH34: 0 | JI34: 0 | JJ34: 0 | JK34: 0 | JL34: 947.1 | JM34: 0 | JN34: 0 | JO34: 0 | JP34: 1045 | JQ34: 150 | JR34: 0 | JS34: 0 | JT34: 0 | JU34: 0 | JV34: 38661.84 | JW34: 0 | JX34: 38661.84 | JY34: 35019.74 | JZ34: 1500 | KA34: 0 | KB34: 0 | KC34: 0 | KD34: 0 | KE34: 0 | KF34: 947.1 | KG34: 0 | KH34: 0 | KI34: 0 | KJ34: 1045 | KK34: 150 | KL34: 0 | KM34: 0 | KN34: 0 | KO34: 0 | KP34: 38661.84 | KQ34: 0 | KR34: 38661.84 | KS34: 35019.74 | KT34: 1500 | KU34: 0 | KV34: 0 | KW34: 0 | KX34: 0 | KY34: 0 | KZ34: 947.1 | LA34: 0 | LB34: 0 | LC34: 0 | LD34: 1045 | LE34: 150 | LF34: 0 | LG34: 0 | LH34: 0 | LI34: 0 | LJ34: 38661.84 | LK34: 0 | LL34: 38661.84 | LM34: 35019.74 | LN34: 1500 | LO34: 0 | LP34: 0 | LQ34: 0 | LR34: 0 | LS34: 0 | LT34: 947.1 | LU34: 0 | LV34: 0 | LW34: 0 | LX34: 1045 | LY34: 150 | LZ34: 0 | MA34: 0 | MB34: 0 | MC34: 0 | MD34: 38661.84 | ME34: 0 | MF34: 38661.84 | MG34: 51397.53 | MH34: 1500 | MI34: 0 | MJ34: 0 | MK34: 0 | ML34: 0 | MM34: 0 | MN34: 947.1 | MO34: 0 | MP34: 0 | MQ34: 0 | MR34: 1045 | MS34: 150 | MT34: 0 | MU34: 0 | MV34: 0 | MW34: 0 | MX34: 55039.63 | MY34: 0 | MZ34: 55039.63 | NA34: 01/2021-SE | NB34: 2021-01-01 | NC34: 2021-12-31 | ND34: 579093.67
A35: 34 | B35: Lar Maria Amélia Associação Assistencial | G35: Lar Maria Amélia | H35: 27.993.309/0001-86 | I35: SB 038195/2020-23 | J35: SB.085157/2020-98 | K35: SB 088394/2019-58 | L35: 20/2017-SE | N35: 31/2021-SE | O35: Sexto | P35: 2021-01-27 | Q35: 2021-01-01 | R35: 2021-12-31 | S35: Avenida Humberto de Alencar Castelo Branco, nº 2295 | T35: Jardim Belita | U35: S.B.Campo | V35: 09850-300 | W35: 4343-4848 e 2356-6308 | X35: crechelarmariaamelia@gmail.com | Y35: Mário Dagoberto Lopes Steglich | Z35: 01/01/2019 a 31/12/2022 | AA35: Banco do Brasil | AB35: 1561-x | AD35: 42479-x | AG35: 26 | AH35: 2 | AI35: 160 | AJ35: 9 | AK35: 186 | AL35: 11 | AM35: 732.27 | AN35: 585.76 | AO35: 19039.02 | AP35: 93721.6 | AQ35: 112760.62 | AR35: 1353127.44 | AT35: 99271.59 | AU35: 104235.17 | AV35: 83494.55 | AW35: 0 | AX35: 13489.03 | AY35: 0 | AZ35: 8525.45 | BA35: 0 | BB35: 1353127.44 | BD35: 83494.55 | BE35: 34000 | BH35: 1800 | BI35: 1500 | BJ35: 3630 | BL35: 0 | BM35: 1472421.99 | BN35: 5130 | BO35: 1477551.99 | BP35: 171507.9 | BQ35: 3630 | BR35: 175137.9 | BS35: 129760.62 | BT35: 0 | BU35: 129760.62 | BV35: 112760.62 | BW35: 0 | BX35: 112760.62 | BY35: 105188.46 | BZ35: 1500 | CA35: 106688.46 | CB35: 112760.62 | CC35: 0 | CD35: 112760.62 | CE35: 112760.62 | CF35: 0 | CG35: 112760.62 | CH35: 112760.62 | CI35: 0 | CJ35: 112760.62 | CK35: 112760.62 | CL35: 0 | CM35: 112760.62 | CN35: 112760.62 | CO35: 0 | CP35: 112760.62 | CQ35: 112760.62 | CR35: 0 | CS35: 112760.62 | CT35: 112760.62 | CU35: 0 | CV35: 112760.62 | CW35: 154507.89 | CX35: 0 | CY35: 154507.89 | CZ35: 1324389.43 | DA35: 33804.5 | DB35: 3500 | DC35: 7000 | DD35: 4519.54 | DE35: 2000 | DF35: 17500 | DG35: 25068.52 | DH35: 0 | DI35: 5100 | DJ35: 34000 | DK35: 12540 | DL35: 1200 | DM35: 0 | DN35: 1800 | DO35: 1500 | DP35: 3630 | DQ35: 1472421.99 | DR35: 5130 | DS35: 1477551.99 | DU35: 141018.87 | DV35: 3500 | DW35: 1000 | DX35: 1000 | DY35: 1009.77 | DZ35: 500 | EA35: 2000 | EB35: 2534.26 | EC35: 0 | ED35: 800 | EE35: 17000 | EF35: 1045 | EG35: 100 | EH35: 0 | EI35: 0 | EJ35: 0 | EK35: 3630 | EL35: 171507.9 | EM35: 3630 | EN35: 175137.9 | EO35: 99271.59 | EP35: 3500 | EQ35: 1000 | ER35: 1000 | ES35: 1009.77 | ET35: 500 | EU35: 2000 | EV35: 2534.26 | EW35: 0 | EX35: 800 | EY35: 17000 | EZ35: 1045 | FA35: 100 | FB35: 0 | FC35: 0 | FD35: 0 | FE35: 0 | FF35: 129760.62 | FG35: 0 | FH35: 129760.62 | FI35: 104235.17 | FJ35: 2680.45 | FK35: 150 | FL35: 500 | FM35: 250 | FN35: 100 | FO35: 1350 | FP35: 2000 | FQ35: 0 | FR35: 350 | FS35: 0 | FT35: 1045 | FU35: 100 | FV35: 0 | FW35: 0 | FX35: 0 | FY35: 0 | FZ35: 112760.62 | GA35: 0 | GB35: 112760.62 | GC35: 94863.01 | GD35: 2680.45 | GE35: 150 | GF35: 500 | GG35: 250 | GH35: 100 | GI35: 1350 | GJ35: 2000 | GK35: 0 | GL35: 350 | GM35: 0 | GN35: 1045 | GO35: 100 | GP35: 0 | GQ35: 1800 | GR35: 1500 | GS35: 0 | GT35: 105188.46 | GU35: 1500 | GV35: 106688.46 | GW35: 104235.17 | GX35: 2680.45 | GY35: 150 | GZ35: 500 | HA35: 250 | HB35: 100 | HC35: 1350 | HD35: 2000 | HE35: 0 | HF35: 350 | HG35: 0 | HH35: 1045 | HI35: 100 | HJ35: 0 | HK35: 0 | HL35: 0 | HM35: 0 | HN35: 112760.62 | HO35: 0 | HP35: 112760.62 | HQ35: 104235.17 | HR35: 2680.45 | HS35: 150 | HT35: 500 | HU35: 250 | HV35: 100 | HW35: 1350 | HX35: 2000 | HY35: 0 | HZ35: 350 | IA35: 0 | IB35: 1045 | IC35: 100 | ID35: 0 | IE35: 0 | IF35: 0 | IG35: 0 | IH35: 112760.62 | II35: 0 | IJ35: 112760.62 | IK35: 104235.17 | IL35: 2680.45 | IM35: 150 | IN35: 500 | IO35: 250 | IP35: 100 | IQ35: 1350 | IR35: 2000 | IS35: 0 | IT35: 350 | IU35: 0 | IV35: 1045 | IW35: 100 | IX35: 0 | IY35: 0 | IZ35: 0 | JA35: 0 | JB35: 112760.62 | JC35: 0 | JD35: 112760.62 | JE35: 104235.17 | JF35: 2680.45 | JG35: 150 | JH35: 500 | JI35: 250 | JJ35: 100 | JK35: 1350 | JL35: 2000 | JM35: 0 | JN35: 350 | JO35: 0 | JP35: 1045 | JQ35: 100 | JR35: 0 | JS35: 0 | JT35: 0 | JU35: 0 | JV35: 112760.62 | JW35: 0 | JX35: 112760.62 | JY35: 104235.17 | JZ35: 2680.45 | KA35: 150 | KB35: 500 | KC35: 250 | KD35: 100 | KE35: 1350 | KF35: 2000 | KG35: 0 | KH35: 350 | KI35: 0 | KJ35: 1045 | KK35: 100 | KL35: 0 | KM35: 0 | KN35: 0 | KO35: 0 | KP35: 112760.62 | KQ35: 0 | KR35: 112760.62 | KS35: 104235.17 | KT35: 2680.45 | KU35: 150 | KV35: 500 | KW35: 250 | KX35: 100 | KY35: 1350 | KZ35: 2000 | LA35: 0 | LB35: 350 | LC35: 0 | LD35: 1045 | LE35: 100 | LF35: 0 | LG35: 0 | LH35: 0 | LI35: 0 | LJ35: 112760.62 | LK35: 0 | LL35: 112760.62 | LM35: 104235.17 | LN35: 2680.45 | LO35: 150 | LP35: 500 | LQ35: 250 | LR35: 100 | LS35: 1350 | LT35: 2000 | LU35: 0 | LV35: 350 | LW35: 0 | LX35: 1045 | LY35: 100 | LZ35: 0 | MA35: 0 | MB35: 0 | MC35: 0 | MD35: 112760.62 | ME35: 0 | MF35: 112760.62 | MG35: 145982.44 | MH35: 2680.45 | MI35: 150 | MJ35: 500 | MK35: 250 | ML35: 100 | MM35: 1350 | MN35: 2000 | MO35: 0 | MP35: 350 | MQ35: 0 | MR35: 1045 | MS35: 100 | MT35: 0 | MU35: 0 | MV35: 0 | MW35: 0 | MX35: 154507.89 | MY35: 0 | MZ35: 154507.89 | NA35: 20/2017-SE | NB35: 2017-01-02 | NC35: 2017-12-31 | ND35: 1160226.6 | NE35: 188/2017-SE | NF35: Primeiro | NG35: 2017-06-06 | NH35: 2017-12-31 | NI35: 0 | NJ35: 194/2018-SE | NK35: Segundo | NL35: 2018-01-01 | NM35: 2018-12-31 | NN35: 1281783.3 | NO35: 200/2019-SE | NP35: Terceiro | NQ35: 2019-01-02 | NR35: 2019-12-31 | NS35: 1407622.28 | NT35: 426/2019-SE | NU35: Quarto | NV35: 2019-12-27 | NW35: 2020-12-31 | NX35: 1478344.06 | NY35: 31/2021-SE | NZ35: Quinto | OA35: 2021-01-01 | OB35: 2021-12-31 | OC35: 0
A36: 35 | B36: Obras Sociais São Pedro Apóstolo I | G36: Obras Sociais São Pedro Apóstolo I | H36: 49.521.131/0001-03 | I36: SB 038196/2020-84 | J36: SB.085159/2020-10 | K36: SB 088396/2019-70 | L36: 21/2017-SE | N36: 32/2021-SE | O36: Oitavo | P36: 2021-01-26 | Q36: 2021-01-01 | R36: 2021-12-31 | S36: Rua Ana Maria, nº 123 | T36: Taboão | U36: S.B.Campo | V36: 09669-060 | W36: 4178-3736 | X36: osspasaojose@gmail.com | Y36: Adriano Pereira da Silva | Z36: 24/02/2019 a 24/02/2023 | AA36: Banco do Brasil | AB36: 1834-1 | AD36: 4270-6 | AG36: 14 | AH36: 1 | AI36: 78 | AJ36: 4 | AK36: 92 | AL36: 5 | AM36: 732.27 | AN36: 585.76 | AO36: 10251.78 | AP36: 45689.28 | AQ36: 55941.06 | AR36: 671292.72 | AT36: 42057.12 | AU36: 44159.97 | AV36: 39914.63 | AW36: 0 | AX36: 13283.94 | AY36: 600 | AZ36: 11281.09 | BA36: 500 | BB36: 671292.72 | BD36: 39914.63 | BE36: 34000 | BH36: 1800 | BI36: 1500 | BJ36: 1650 | BL36: 0 | BM36: 740807.35 | BN36: 9350 | BO36: 750157.35 | BP36: 92298.38 | BQ36: 2250 | BR36: 94548.38 | BS36: 72341.06 | BT36: 600 | BU36: 72941.06 | BV36: 55441.06 | BW36: 500 | BX36: 55941.06 | BY36: 57241.06 | BZ36: 2000 | CA36: 59241.06 | CB36: 55441.06 | CC36: 500 | CD36: 55941.06 | CE36: 55441.06 | CF36: 500 | CG36: 55941.06 | CH36: 55441.06 | CI36: 500 | CJ36: 55941.06 | CK36: 55441.06 | CL36: 500 | CM36: 55941.06 | CN36: 55441.06 | CO36: 500 | CP36: 55941.06 | CQ36: 55441.06 | CR36: 500 | CS36: 55941.06 | CT36: 55441.06 | CU36: 500 | CV36: 55941.06 | CW36: 75398.37 | CX36: 500 | CY36: 75898.37 | CZ36: 565628.57 | DA36: 30000 | DB36: 4000 | DC36: 16000 | DD36: 10000 | DE36: 4200 | DF36: 6200 | DG36: 22800 | DH36: 1400 | DI36: 29922.78 | DJ36: 34000 | DK36: 13056 | DL36: 1800 | DM36: 0 | DN36: 1800 | DO36: 1500 | DP36: 7850 | DQ36: 740807.35 | DR36: 9350 | DS36: 750157.35 | DU36: 62014.44 | DV36: 2500 | DW36: 500 | DX36: 2000 | DY36: 1000 | DZ36: 600 | EA36: 600 | EB36: 1900 | EC36: 200 | ED36: 2745.94 | EE36: 17000 | EF36: 1088 | EG36: 150 | EH36: 0 | EI36: 0 | EJ36: 0 | EK36: 2250 | EL36: 92298.38 | EM36: 2250 | EN36: 94548.38 | EO36: 42057.12 | EP36: 2500 | EQ36: 500 | ER36: 2000 | ES36: 1000 | ET36: 600 | EU36: 600 | EV36: 1900 | EW36: 200 | EX36: 2745.94 | EY36: 17000 | EZ36: 1088 | FA36: 150 | FB36: 0 | FC36: 0 | FD36: 0 | FE36: 600 | FF36: 72341.06 | FG36: 600 | FH36: 72941.06 | FI36: 44159.97 | FJ36: 2500 | FK36: 300 | FL36: 1200 | FM36: 800 | FN36: 300 | FO36: 500 | FP36: 1900 | FQ36: 100 | FR36: 2443.09 | FS36: 0 | FT36: 1088 | FU36: 150 | FV36: 0 | FW36: 0 | FX36: 0 | FY36: 500 | FZ36: 55441.06 | GA36: 500 | GB36: 55941.06 | GC36: 44159.97 | GD36: 2500 | GE36: 300 | GF36: 1200 | GG36: 800 | GH36: 300 | GI36: 500 | GJ36: 1900 | GK36: 100 | GL36: 2443.09 | GM36: 0 | GN36: 1088 | GO36: 150 | GP36: 0 | GQ36: 1800 | GR36: 1500 | GS36: 500 | GT36: 57241.06 | GU36: 2000 | GV36: 59241.06 | GW36: 44159.97 | GX36: 2500 | GY36: 300 | GZ36: 1200 | HA36: 800 | HB36: 300 | HC36: 500 | HD36: 1900 | HE36: 100 | HF36: 2443.09 | HG36: 0 | HH36: 1088 | HI36: 150 | HJ36: 0 | HK36: 0 | HL36: 0 | HM36: 500 | HN36: 55441.06 | HO36: 500 | HP36: 55941.06 | HQ36: 44159.97 | HR36: 2500 | HS36: 300 | HT36: 1200 | HU36: 800 | HV36: 300 | HW36: 500 | HX36: 1900 | HY36: 100 | HZ36: 2443.09 | IA36: 0 | IB36: 1088 | IC36: 150 | ID36: 0 | IE36: 0 | IF36: 0 | IG36: 500 | IH36: 55441.06 | II36: 500 | IJ36: 55941.06 | IK36: 44159.97 | IL36: 2500 | IM36: 300 | IN36: 1200 | IO36: 800 | IP36: 300 | IQ36: 500 | IR36: 1900 | IS36: 100 | IT36: 2443.09 | IU36: 0 | IV36: 1088 | IW36: 150 | IX36: 0 | IY36: 0 | IZ36: 0 | JA36: 500 | JB36: 55441.06 | JC36: 500 | JD36: 55941.06 | JE36: 44159.97 | JF36: 2500 | JG36: 300 | JH36: 1200 | JI36: 800 | JJ36: 300 | JK36: 500 | JL36: 1900 | JM36: 100 | JN36: 2443.09 | JO36: 0 | JP36: 1088 | JQ36: 150 | JR36: 0 | JS36: 0 | JT36: 0 | JU36: 500 | JV36: 55441.06 | JW36: 500 | JX36: 55941.06 | JY36: 44159.97 | JZ36: 2500 | KA36: 300 | KB36: 1200 | KC36: 800 | KD36: 300 | KE36: 500 | KF36: 1900 | KG36: 100 | KH36: 2443.09 | KI36: 0 | KJ36: 1088 | KK36: 150 | KL36: 0 | KM36: 0 | KN36: 0 | KO36: 500 | KP36: 55441.06 | KQ36: 500 | KR36: 55941.06 | KS36: 44159.97 | KT36: 2500 | KU36: 300 | KV36: 1200 | KW36: 800 | KX36: 300 | KY36: 500 | KZ36: 1900 | LA36: 100 | LB36: 2443.09 | LC36: 0 | LD36: 1088 | LE36: 150 | LF36: 0 | LG36: 0 | LH36: 0 | LI36: 500 | LJ36: 55441.06 | LK36: 500 | LL36: 55941.06 | LM36: 44159.97 | LN36: 2500 | LO36: 300 | LP36: 1200 | LQ36: 800 | LR36: 300 | LS36: 500 | LT36: 1900 | LU36: 100 | LV36: 2443.09 | LW36: 0 | LX36: 1088 | LY36: 150 | LZ36: 0 | MA36: 0 | MB36: 0 | MC36: 500 | MD36: 55441.06 | ME36: 500 | MF36: 55941.06 | MG36: 64117.28 | MH36: 2500 | MI36: 300 | MJ36: 1200 | MK36: 800 | ML36: 300 | MM36: 500 | MN36: 1900 | MO36: 100 | MP36: 2443.09 | MQ36: 0 | MR36: 1088 | MS36: 150 | MT36: 0 | MU36: 0 | MV36: 0 | MW36: 500 | MX36: 75398.37 | MY36: 500 | MZ36: 75898.37 | NA36: 21/2017-SE | NB36: 2017-01-02 | NC36: 2017-12-31 | ND36: 467673.12 | NE36: 189/2017-SE | NF36: Primeiro | NG36: 2017-06-06 | NH36: 2017-12-31 | NI36: 0 | NJ36: 390/2017-SE | NK36: Segundo | NL36: 2017-11-07 | NM36: 2017-12-31 | NN36: 8000 | NO36: 195/2018-SE | NP36: Terceiro | NQ36: 2018-01-01 | NR36: 2018-12-31 | NS36: 529893.86 | NT36: 201/2019-SE | NU36: Quarto | NV36: 2019-01-02 | NW36: 2019-12-31 | NX36: 606577.77 | NY36: 211/2019-SE | NZ36: Quinto | OA36: 2019-06-26 | OB36: 2019-12-31 | OC36: 0 | OD36: 427/2019-SE | OE36: Sexto | OF36: 2019-12-27 | OG36: 2020-12-31 | OH36: 795173.32 | OI36: 32/2021-SE | OJ36: Oitavo | OK36: 2021-01-01 | OL36: 2021-12-31 | OM36: 750157.35 | ON36: 32/2021-SE | OO36: Oitavo | OP36: 2021-01-01 | OQ36: 2021-12-31 | OR36: 750157.35
A37: 36 | B37: Obras Sociais São Pedro Apóstolo II | G37: Obras Sociais São Pedro Apóstolo II | H37: 49.522.287/0001-09 | I37: SB.054219/2020-64 | J37: SB.085161/2020-68 | K37: SB.093005/2020-68 | L37: 05/2020-SE | N37: 33/2021-SE | O37: Primeiro | P37: 2021-01-26 | Q37: 2021-01-01 | R37: 2021-12-31 | S37: Rua Leonardo Martins Neto, 1060 | T37: Bairro dos Casa | U37: S.B.Campo | V37: 09850-020 | X37: osspamariaimaculada@gmail.com | Y37: Adriano Pereira da Silva | Z37: 24/02/2019 a 24/02/2023 | AA37: Banco do Brasil | AB37: 1834-1 | AD37: 31.490-0 | AG37: 24 | AH37: 2 | AI37: 108 | AJ37: 6 | AK37: 132 | AL37: 8 | AM37: 732.27 | AN37: 585.76 | AO37: 17574.48 | AP37: 63262.08 | AQ37: 80836.56 | AR37: 970038.72 | AT37: 58697.59 | AU37: 61632.47 | AV37: 52591.04 | AW37: 0 | AX37: 16138.97 | AY37: 6000 | AZ37: 13883.95 | BA37: 5320.14 | BB37: 970038.72 | BD37: 52591.04 | BE37: 34000 | BH37: 1800 | BI37: 1500 | BJ37: 2640 | BL37: 0 | BM37: 993228.36 | BN37: 69341.4 | BO37: 1062569.76 | BP37: 47649.5 | BQ37: 8640 | BR37: 56289.5 | BS37: 87000.14 | BT37: 6000 | BU37: 93000.14 | BV37: 75516.42 | BW37: 5320.14 | BX37: 80836.56 | BY37: 67358.5 | BZ37: 6820.14 | CA37: 74178.64 | CB37: 75516.42 | CC37: 5320.14 | CD37: 80836.56 | CE37: 75516.42 | CF37: 5320.14 | CG37: 80836.56 | CH37: 75516.42 | CI37: 5320.14 | CJ37: 80836.56 | CK37: 75516.42 | CL37: 5320.14 | CM37: 80836.56 | CN37: 75516.42 | CO37: 5320.14 | CP37: 80836.56 | CQ37: 75516.42 | CR37: 5320.14 | CS37: 80836.56 | CT37: 75516.42 | CU37: 5320.14 | CV37: 80836.56 | CW37: 101811.94 | CX37: 5320.14 | CY37: 107132.08 | CZ37: 786310.92 | DA37: 24000 | DB37: 11000 | DC37: 18000 | DD37: 12000 | DE37: 15869.7 | DF37: 14801.94 | DG37: 29589.8 | DH37: 7000 | DI37: 24000 | DJ37: 34000 | DK37: 13056 | DL37: 1800 | DM37: 0 | DN37: 1800 | DO37: 1500 | DP37: 67841.4 | DQ37: 993228.36 | DR37: 69341.4 | DS37: 1062569.76 | DU37: 14510.53 | DV37: 2000 | DW37: 500 | DX37: 1500 | DY37: 1000 | DZ37: 1500 | EA37: 2400.97 | EB37: 3000 | EC37: 1000 | ED37: 2000 | EE37: 17000 | EF37: 1088 | EG37: 150 | EH37: 0 | EI37: 0 | EJ37: 0 | EK37: 8640 | EL37: 47649.5 | EM37: 8640 | EN37: 56289.5 | EO37: 53861.17 | EP37: 2000 | EQ37: 500 | ER37: 1500 | ES37: 1000 | ET37: 1500 | EU37: 2400.97 | EV37: 3000 | EW37: 1000 | EX37: 2000 | EY37: 17000 | EZ37: 1088 | FA37: 150 | FB37: 0 | FC37: 0 | FD37: 0 | FE37: 6000 | FF37: 87000.14 | FG37: 6000 | FH37: 93000.14 | FI37: 61632.47 | FJ37: 2000 | FK37: 1000 | FL37: 1500 | FM37: 1000 | FN37: 1286.97 | FO37: 1000 | FP37: 2358.98 | FQ37: 500 | FR37: 2000 | FS37: 0 | FT37: 1088 | FU37: 150 | FV37: 0 | FW37: 0 | FX37: 0 | FY37: 5320.14 | FZ37: 75516.42 | GA37: 5320.14 | GB37: 80836.56 | GC37: 51674.55 | GD37: 2000 | GE37: 1000 | GF37: 1500 | GG37: 1000 | GH37: 1286.97 | GI37: 1000 | GJ37: 2358.98 | GK37: 500 | GL37: 2000 | GM37: 0 | GN37: 1088 | GO37: 150 | GP37: 0 | GQ37: 1800 | GR37: 1500 | GS37: 5320.14 | GT37: 67358.5 | GU37: 6820.14 | GV37: 74178.64 | GW37: 61632.47 | GX37: 2000 | GY37: 1000 | GZ37: 1500 | HA37: 1000 | HB37: 1286.97 | HC37: 1000 | HD37: 2358.98 | HE37: 500 | HF37: 2000 | HG37: 0 | HH37: 1088 | HI37: 150 | HJ37: 0 | HK37: 0 | HL37: 0 | HM37: 5320.14 | HN37: 75516.42 | HO37: 5320.14 | HP37: 80836.56 | HQ37: 61632.47 | HR37: 2000 | HS37: 1000 | HT37: 1500 | HU37: 1000 | HV37: 1286.97 | HW37: 1000 | HX37: 2358.98 | HY37: 500 | HZ37: 2000 | IA37: 0 | IB37: 1088 | IC37: 150 | ID37: 0 | IE37: 0 | IF37: 0 | IG37: 5320.14 | IH37: 75516.42 | II37: 5320.14 | IJ37: 80836.56 | IK37: 61632.47 | IL37: 2000 | IM37: 1000 | IN37: 1500 | IO37: 1000 | IP37: 1286.97 | IQ37: 1000 | IR37: 2358.98 | IS37: 500 | IT37: 2000 | IU37: 0 | IV37: 1088 | IW37: 150 | IX37: 0 | IY37: 0 | IZ37: 0 | JA37: 5320.14 | JB37: 75516.42 | JC37: 5320.14 | JD37: 80836.56 | JE37: 61632.47 | JF37: 2000 | JG37: 1000 | JH37: 1500 | JI37: 1000 | JJ37: 1286.97 | JK37: 1000 | JL37: 2358.98 | JM37: 500 | JN37: 2000 | JO37: 0 | JP37: 1088 | JQ37: 150 | JR37: 0 | JS37: 0 | JT37: 0 | JU37: 5320.14 | JV37: 75516.42 | JW37: 5320.14 | JX37: 80836.56 | JY37: 61632.47 | JZ37: 2000 | KA37: 1000 | KB37: 1500 | KC37: 1000 | KD37: 1286.97 | KE37: 1000 | KF37: 2358.98 | KG37: 500 | KH37: 2000 | KI37: 0 | KJ37: 1088 | KK37: 150 | KL37: 0 | KM37: 0 | KN37: 0 | KO37: 5320.14 | KP37: 75516.42 | KQ37: 5320.14 | KR37: 80836.56 | KS37: 61632.47 | KT37: 2000 | KU37: 1000 | KV37: 1500 | KW37: 1000 | KX37: 1286.97 | KY37: 1000 | KZ37: 2358.98 | LA37: 500 | LB37: 2000 | LC37: 0 | LD37: 1088 | LE37: 150 | LF37: 0 | LG37: 0 | LH37: 0 | LI37: 5320.14 | LJ37: 75516.42 | LK37: 5320.14 | LL37: 80836.56 | LM37: 61632.47 | LN37: 2000 | LO37: 1000 | LP37: 1500 | LQ37: 1000 | LR37: 1286.97 | LS37: 1000 | LT37: 2358.98 | LU37: 500 | LV37: 2000 | LW37: 0 | LX37: 1088 | LY37: 150 | LZ37: 0 | MA37: 0 | MB37: 0 | MC37: 5320.14 | MD37: 75516.42 | ME37: 5320.14 | MF37: 80836.56 | MG37: 87927.99 | MH37: 2000 | MI37: 1000 | MJ37: 1500 | MK37: 1000 | ML37: 1286.97 | MM37: 1000 | MN37: 2358.98 | MO37: 500 | MP37: 2000 | MQ37: 0 | MR37: 1088 | MS37: 150 | MT37: 0 | MU37: 0 | MV37: 0 | MW37: 5320.14 | MX37: 101811.94 | MY37: 5320.14 | MZ37: 107132.08 | NA37: 05/2020-SE | NB37: 2020-10-08 | NC37: 2020-12-31 | ND37: 394787.57 | NE37: 33/2021-SE | NF37: Primeiro | NG37: 2021-01-01 | NH37: 2021-12-31 | NI37: 0
A38: 37 | B38: Obras Sociais São Pedro Apóstolo III | G38: Obras Sociais São Pedro Apóstolo III | H38: 49.522.931/0001-49 | I38: SB.067969/2020-62 | J38: SB.085162/2020-29 | K38: SB.093008/2020-41 | L38: 07/2020-SE | N38: 34/2021-SE | O38: Primeiro | P38: 2021-01-26 | Q38: 2021-01-01 | R38: 2021-12-31 | S38: Rua Dom Oscar Romério, nº 114 | T38: Jardim das Orquídeas | U38: S.B.Campo | V38: 09854-350 | Y38: Adriano Pereira da Silva | Z38: 24/02/2019 a 24/02/2023 | AA38: Banco do Brasil | AB38: 1834-1 | AD38: 500.022-X | AI38: 91 | AJ38: 4 | AK38: 91 | AL38: 4 | AM38: 732.27 | AN38: 585.76 | AO38: 0 | AP38: 53304.16 | AQ38: 53304.16 | AR38: 639649.92 | AT38: 35166.29 | AU38: 36924.61 | AV38: 33467.69 | AW38: 6077.26 | AX38: 14137.87 | AY38: 4000 | AZ38: 15379.55 | BA38: 1000 | BB38: 639649.92 | BD38: 33467.69 | BE38: 34000 | BH38: 1800 | BI38: 1500 | BJ38: 1320 | BL38: 72927.12 | BM38: 763844.73 | BN38: 20820 | BO38: 784664.73 | BP38: 89115.27 | BQ38: 5320 | BR38: 94435.27 | BS38: 72381.42 | BT38: 4000 | BU38: 76381.42 | BV38: 58381.42 | BW38: 1000 | BX38: 59381.42 | BY38: 44365.9 | BZ38: 2500 | CA38: 46865.9 | CB38: 58381.42 | CC38: 1000 | CD38: 59381.42 | CE38: 58381.42 | CF38: 1000 | CG38: 59381.42 | CH38: 58381.42 | CI38: 1000 | CJ38: 59381.42 | CK38: 58381.42 | CL38: 1000 | CM38: 59381.42 | CN38: 58381.42 | CO38: 1000 | CP38: 59381.42 | CQ38: 58381.42 | CR38: 1000 | CS38: 59381.42 | CT38: 58381.42 | CU38: 1000 | CV38: 59381.42 | CW38: 75115.26 | CX38: 1000 | CY38: 76115.26 | CZ38: 473046.37 | DA38: 29000 | DB38: 12000 | DC38: 18000 | DD38: 12000 | DE38: 9000 | DF38: 12000 | DG38: 20400 | DH38: 3500 | DI38: 51315.24 | DJ38: 34000 | DK38: 13056 | DL38: 1800 | DM38: 72927.12 | DN38: 1800 | DO38: 1500 | DP38: 19320 | DQ38: 763844.73 | DR38: 20820 | DS38: 784664.73 | DU38: 51900.14 | DV38: 2000 | DW38: 1000 | DX38: 1500 | DY38: 1000 | DZ38: 500 | EA38: 1000 | EB38: 1700 | EC38: 250 | ED38: 3949.87 | EE38: 17000 | EF38: 1088 | EG38: 150 | EH38: 6077.26 | EI38: 0 | EJ38: 0 | EK38: 5320 | EL38: 89115.27 | EM38: 5320 | EN38: 94435.27 | EO38: 35166.29 | EP38: 2000 | EQ38: 1000 | ER38: 1500 | ES38: 1000 | ET38: 500 | EU38: 1000 | EV38: 1700 | EW38: 250 | EX38: 3949.87 | EY38: 17000 | EZ38: 1088 | FA38: 150 | FB38: 6077.26 | FC38: 0 | FD38: 0 | FE38: 4000 | FF38: 72381.42 | FG38: 4000 | FH38: 76381.42 | FI38: 36924.61 | FJ38: 2500 | FK38: 1000 | FL38: 1500 | FM38: 1000 | FN38: 800 | FO38: 1000 | FP38: 1700 | FQ38: 300 | FR38: 4341.55 | FS38: 0 | FT38: 1088 | FU38: 150 | FV38: 6077.26 | FW38: 0 | FX38: 0 | FY38: 1000 | FZ38: 58381.42 | GA38: 1000 | GB38: 59381.42 | GC38: 21109.09 | GD38: 2500 | GE38: 1000 | GF38: 1500 | GG38: 1000 | GH38: 800 | GI38: 1000 | GJ38: 1700 | GK38: 300 | GL38: 4341.55 | GM38: 0 | GN38: 1088 | GO38: 150 | GP38: 6077.26 | GQ38: 1800 | GR38: 1500 | GS38: 1000 | GT38: 44365.9 | GU38: 2500 | GV38: 46865.9 | GW38: 36924.61 | GX38: 2500 | GY38: 1000 | GZ38: 1500 | HA38: 1000 | HB38: 800 | HC38: 1000 | HD38: 1700 | HE38: 300 | HF38: 4341.55 | HG38: 0 | HH38: 1088 | HI38: 150 | HJ38: 6077.26 | HK38: 0 | HL38: 0 | HM38: 1000 | HN38: 58381.42 | HO38: 1000 | HP38: 59381.42 | HQ38: 36924.61 | HR38: 2500 | HS38: 1000 | HT38: 1500 | HU38: 1000 | HV38: 800 | HW38: 1000 | HX38: 1700 | HY38: 300 | HZ38: 4341.55 | IA38: 0 | IB38: 1088 | IC38: 150 | ID38: 6077.26 | IE38: 0 | IF38: 0 | IG38: 1000 | IH38: 58381.42 | II38: 1000 | IJ38: 59381.42 | IK38: 36924.61 | IL38: 2500 | IM38: 1000 | IN38: 1500 | IO38: 1000 | IP38: 800 | IQ38: 1000 | IR38: 1700 | IS38: 300 | IT38: 4341.55 | IU38: 0 | IV38: 1088 | IW38: 150 | IX38: 6077.26 | IY38: 0 | IZ38: 0 | JA38: 1000 | JB38: 58381.42 | JC38: 1000 | JD38: 59381.42 | JE38: 36924.61 | JF38: 2500 | JG38: 1000 | JH38: 1500 | JI38: 1000 | JJ38: 800 | JK38: 1000 | JL38: 1700 | JM38: 300 | JN38: 4341.55 | JO38: 0 | JP38: 1088 | JQ38: 150 | JR38: 6077.26 | JS38: 0 | JT38: 0 | JU38: 1000 | JV38: 58381.42 | JW38: 1000 | JX38: 59381.42 | JY38: 36924.61 | JZ38: 2500 | KA38: 1000 | KB38: 1500 | KC38: 1000 | KD38: 800 | KE38: 1000 | KF38: 1700 | KG38: 300 | KH38: 4341.55 | KI38: 0 | KJ38: 1088 | KK38: 150 | KL38: 6077.26 | KM38: 0 | KN38: 0 | KO38: 1000 | KP38: 58381.42 | KQ38: 1000 | KR38: 59381.42 | KS38: 36924.61 | KT38: 2500 | KU38: 1000 | KV38: 1500 | KW38: 1000 | KX38: 800 | KY38: 1000 | KZ38: 1700 | LA38: 300 | LB38: 4341.55 | LC38: 0 | LD38: 1088 | LE38: 150 | LF38: 6077.26 | LG38: 0 | LH38: 0 | LI38: 1000 | LJ38: 58381.42 | LK38: 1000 | LL38: 59381.42 | LM38: 36924.61 | LN38: 2500 | LO38: 1000 | LP38: 1500 | LQ38: 1000 | LR38: 800 | LS38: 1000 | LT38: 1700 | LU38: 300 | LV38: 4341.55 | LW38: 0 | LX38: 1088 | LY38: 150 | LZ38: 6077.26 | MA38: 0 | MB38: 0 | MC38: 1000 | MD38: 58381.42 | ME38: 1000 | MF38: 59381.42 | MG38: 53658.45 | MH38: 2500 | MI38: 1000 | MJ38: 1500 | MK38: 1000 | ML38: 800 | MM38: 1000 | MN38: 1700 | MO38: 300 | MP38: 4341.55 | MQ38: 0 | MR38: 1088 | MS38: 150 | MT38: 6077.26 | MU38: 0 | MV38: 0 | MW38: 1000 | MX38: 75115.26 | MY38: 1000 | MZ38: 76115.26 | NA38: 07/2020-SE | NB38: 2020-11-12 | NC38: 2020-12-31 | ND38: 175286.14 | NE38: 30/2021-SE | NF38: Primeiro | NG38: 2021-01-01 | NH38: 2021-12-31 | NI38: 0
A39: 38 | B39: Sociedade "Fraternitas" de São Bernardo do Campo | G39: Sociedade Fraternitas | H39: 49.527.260/0001-09 | I39: SB 038200/2020-71 | J39: SB.085164/2020-41 | K39: SB 088403/2019-40 | L39: 22/2017-SE | N39: 35/2021-SE | O39: Oitavo | P39: 2021-01-26 | Q39: 2021-01-01 | R39: 2021-12-31 | S39: Rua Giacinto Tognato, nº 293 | T39: Baeta Neves | U39: S.B.Campo | V39: 09760-370 | W39: 4337-5995 | X39: fraternitas@terra.com.br | Y39: Edeniz Pezzuol | Z39: 11/04/2018 a 10/11/2021 | AA39: Caixa Econômica Federal | AB39: 2901 | AC39: 003 | AD39: 00001789-0 | AI39: 112 | AJ39: 6 | AK39: 112 | AL39: 6 | AM39: 732.27 | AN39: 585.76 | AO39: 0 | AP39: 65605.12 | AQ39: 65605.12 | AR39: 787261.44 | AT39: 62347.24 | AU39: 65464.6 | AV39: 59024.08 | AW39: 0 | AX39: 3257.88 | AY39: 0 | AZ39: 140.52 | BA39: 0 | BB39: 787261.44 | BD39: 59024.08 | BE39: 34000 | BH39: 1800 | BI39: 1500 | BJ39: 1980 | BL39: 0 | BM39: 882085.52 | BN39: 3480 | BO39: 885565.52 | BP39: 112117.16 | BQ39: 1980 | BR39: 114097.16 | BS39: 82605.12 | BT39: 0 | BU39: 82605.12 | BV39: 65605.12 | BW39: 0 | BX39: 65605.12 | BY39: 67405.12 | BZ39: 1500 | CA39: 68905.12 | CB39: 65605.12 | CC39: 0 | CD39: 65605.12 | CE39: 65605.12 | CF39: 0 | CG39: 65605.12 | CH39: 65605.12 | CI39: 0 | CJ39: 65605.12 | CK39: 65605.12 | CL39: 0 | CM39: 65605.12 | CN39: 65605.12 | CO39: 0 | CP39: 65605.12 | CQ39: 65605.12 | CR39: 0 | CS39: 65605.12 | CT39: 65605.12 | CU39: 0 | CV39: 65605.12 | CW39: 95117.16 | CX39: 0 | CY39: 95117.16 | CZ39: 838364.56 | DA39: 2115.2 | DB39: 90 | DC39: 210 | DD39: 290 | DE39: 250 | DF39: 59.76 | DG39: 1800 | DH39: 70 | DI39: 0 | DJ39: 34000 | DK39: 3036 | DL39: 0 | DM39: 0 | DN39: 1800 | DO39: 1500 | DP39: 1980 | DQ39: 882085.52 | DR39: 3480 | DS39: 885565.52 | DU39: 91859.28 | DV39: 980 | DW39: 20 | DX39: 80 | DY39: 120 | DZ39: 100 | EA39: 9.88 | EB39: 850 | EC39: 10 | ED39: 0 | EE39: 17000 | EF39: 1088 | EG39: 0 | EH39: 0 | EI39: 0 | EJ39: 0 | EK39: 1980 | EL39: 112117.16 | EM39: 1980 | EN39: 114097.16 | EO39: 62347.24 | EP39: 980 | EQ39: 20 | ER39: 80 | ES39: 120 | ET39: 100 | EU39: 9.88 | EV39: 850 | EW39: 10 | EX39: 0 | EY39: 17000 | EZ39: 1088 | FA39: 0 | FB39: 0 | FC39: 0 | FD39: 0 | FE39: 0 | FF39: 82605.12 | FG39: 0 | FH39: 82605.12 | FI39: 65464.6 | FJ39: 15.52 | FK39: 5 | FL39: 5 | FM39: 5 | FN39: 5 | FO39: 4 | FP39: 10 | FQ39: 5 | FR39: 0 | FS39: 0 | FT39: 86 | FU39: 0 | FV39: 0 | FW39: 0 | FX39: 0 | FY39: 0 | FZ39: 65605.12 | GA39: 0 | GB39: 65605.12 | GC39: 65464.6 | GD39: 15.52 | GE39: 5 | GF39: 5 | GG39: 5 | GH39: 5 | GI39: 4 | GJ39: 10 | GK39: 5 | GL39: 0 | GM39: 0 | GN39: 86 | GO39: 0 | GP39: 0 | GQ39: 1800 | GR39: 1500 | GS39: 0 | GT39: 67405.12 | GU39: 1500 | GV39: 68905.12 | GW39: 65464.6 | GX39: 15.52 | GY39: 5 | GZ39: 5 | HA39: 5 | HB39: 5 | HC39: 4 | HD39: 10 | HE39: 5 | HF39: 0 | HG39: 0 | HH39: 86 | HI39: 0 | HJ39: 0 | HK39: 0 | HL39: 0 | HM39: 0 | HN39: 65605.12 | HO39: 0 | HP39: 65605.12 | HQ39: 65464.6 | HR39: 15.52 | HS39: 5 | HT39: 5 | HU39: 5 | HV39: 5 | HW39: 4 | HX39: 10 | HY39: 5 | HZ39: 0 | IA39: 0 | IB39: 86 | IC39: 0 | ID39: 0 | IE39: 0 | IF39: 0 | IG39: 0 | IH39: 65605.12 | II39: 0 | IJ39: 65605.12 | IK39: 65464.6 | IL39: 15.52 | IM39: 5 | IN39: 5 | IO39: 5 | IP39: 5 | IQ39: 4 | IR39: 10 | IS39: 5 | IT39: 0 | IU39: 0 | IV39: 86 | IW39: 0 | IX39: 0 | IY39: 0 | IZ39: 0 | JA39: 0 | JB39: 65605.12 | JC39: 0 | JD39: 65605.12 | JE39: 65464.6 | JF39: 15.52 | JG39: 5 | JH39: 5 | JI39: 5 | JJ39: 5 | JK39: 4 | JL39: 10 | JM39: 5 | JN39: 0 | JO39: 0 | JP39: 86 | JQ39: 0 | JR39: 0 | JS39: 0 | JT39: 0 | JU39: 0 | JV39: 65605.12 | JW39: 0 | JX39: 65605.12 | JY39: 65464.6 | JZ39: 15.52 | KA39: 5 | KB39: 5 | KC39: 5 | KD39: 5 | KE39: 4 | KF39: 10 | KG39: 5 | KH39: 0 | KI39: 0 | KJ39: 86 | KK39: 0 | KL39: 0 | KM39: 0 | KN39: 0 | KO39: 0 | KP39: 65605.12 | KQ39: 0 | KR39: 65605.12 | KS39: 65464.6 | KT39: 15.52 | KU39: 5 | KV39: 5 | KW39: 5 | KX39: 5 | KY39: 4 | KZ39: 10 | LA39: 5 | LB39: 0 | LC39: 0 | LD39: 86 | LE39: 0 | LF39: 0 | LG39: 0 | LH39: 0 | LI39: 0 | LJ39: 65605.12 | LK39: 0 | LL39: 65605.12 | LM39: 65464.6 | LN39: 15.52 | LO39: 5 | LP39: 5 | LQ39: 5 | LR39: 5 | LS39: 4 | LT39: 10 | LU39: 5 | LV39: 0 | LW39: 0 | LX39: 86 | LY39: 0 | LZ39: 0 | MA39: 0 | MB39: 0 | MC39: 0 | MD39: 65605.12 | ME39: 0 | MF39: 65605.12 | MG39: 94976.64 | MH39: 15.52 | MI39: 5 | MJ39: 5 | MK39: 5 | ML39: 5 | MM39: 4 | MN39: 10 | MO39: 5 | MP39: 0 | MQ39: 0 | MR39: 86 | MS39: 0 | MT39: 0 | MU39: 0 | MV39: 0 | MW39: 0 | MX39: 95117.16 | MY39: 0 | MZ39: 95117.16 | NA39: 22/2017-SE | NB39: 2017-01-02 | NC39: 2017-12-31 | ND39: 708361.66 | NE39: 190/2017-SE | NF39: Primeiro | NG39: 2017-06-06 | NH39: 2017-12-31 | NI39: 0 | NJ39: 391/2017-SE | NK39: Segundo | NL39: 2017-11-07 | NM39: 2017-12-31 | NN39: 8000 | NO39: 196/2018-SE | NP39: Terceiro | NQ39: 2018-01-01 | NR39: 2018-12-31 | NS39: 786441.68 | NT39: 202/2019-SE | NU39: Quarto | NV39: 2019-01-02 | NW39: 2019-12-31 | NX39: 842509.42 | NY39: 220/2019-SE | NZ39: Quinto | OA39: 2019-11-19 | OB39: 2019-12-31 | OC39: 0 | OD39: 428/2019-SE | OE39: Sexto | OF39: 2019-12-27 | OG39: 2020-12-31 | OH39: 887039.07 | OI39: 35/2021-SE | OJ39: Oitavo | OK39: 2021-01-01 | OL39: 2021-12-31 | OM39: 885565.52 | ON39: 35/2021-SE | OO39: Oitavo | OP39: 2021-01-01 | OQ39: 2021-12-31 | OR39: 885565.52
G40: Total Geral | AC40: =IFERROR(VLOOKUP($B40,'[1]BD APM 2021'!$A$1:$DH$181,MATCH(AC$1,'[1]BD APM 2021'!$A$1:$DH$1,0),0),"") ->  | AO40: =SUM(AO2:AO39) -> 342702.36 | AP40: =SUM(AP2:AP39) -> 2299597.97 | AQ40: =SUM(AQ2:AQ39) -> 2642300.33 | AR40: =SUM(AR2:AR39) -> 31467291.48 | AT40: 2177451.26 | AU40: 2372977.53 | AV40: 2039911.63 | AW40: 135101.34 | AX40: 348739.61 | AY40: 29525.23 | AZ40: 261076 | BA40: 12931.2 | BB40: 31523504.28 | BC40: 0 | BD40: 2039911.63 | BE40: 1292000 | BF40: 47552 | BG40: 73492 | BH40: 68400 | BI40: 57000 | BJ40: 81510 | BK40: 0 | BL40: 1607232.9 | BM40: 36367093.42 | BN40: 399199.99 | BO40: 36766293.41 | BP40: 3864809.59 | BQ40: 138002.34 | BR40: 4002811.93 | BS40: 3208101.56 | BT40: 29280.34 | BU40: 3237381.9 | BV40: 2770959.28 | BW40: 58536.51 | BX40: 2829495.79 | BY40: 2654671.16 | BZ40: 69931.2 | CA40: 2724602.36 | CB40: 2769154.87 | CC40: 12931.2 | CD40: 2782086.07 | CE40: 2769154.87 | CF40: 12931.2 | CG40: 2782086.07 | CH40: 2769154.87 | CI40: 12931.2 | CJ40: 2782086.07 | CK40: 2769154.87 | CL40: 12931.2 | CM40: 2782086.07 | CN40: 2769154.87 | CO40: 12931.2 | CP40: 2782086.07 | CQ40: 2769154.87 | CR40: 12931.2 | CS40: 2782086.07 | CT40: 2769154.87 | CU40: 12931.2 | CV40: 2782086.07 | CW40: 3789110.6 | CX40: 12931.2 | CY40: 3802041.8 | CZ40: =SUM(CZ2:CZ39) -> 29621452.95 | DA40: 950611.26 | DB40: 140047.1 | DC40: 235740.54 | DD40: 222084.58 | DE40: 116865.24 | DF40: 132486.1 | DG40: 566245.92 | DH40: 53971.3 | DI40: 430197.24 | DJ40: 1258000 | DK40: 391040 | DL40: 41235 | DM40: 1537317 | DN40: 66600 | DO40: 55500 | DP40: 313958.88 | DQ40: 35763894.23 | DR40: 369458.88 | DS40: 36133353.11 | DT40: =SUM(DT2:DT39) -> 0 | DU40: 2767100.81 | DV40: 87547.43 | DW40: 22249 | DX40: 23416.97 | DY40: 24328.99 | DZ40: 12402.87 | EA40: 16262.85 | EB40: 72631.31 | EC40: 5970 | ED40: 55484.61 | EE40: 612000 | EF40: 33705 | EG40: 3600 | EH40: 128109.75 | EI40: 0 | EJ40: 0 | EK40: 138002.34 | EL40: 3864809.59 | EM40: 138002.34 | EN40: 4002811.93 | EO40: 2123656.78 | EP40: 87547.43 | EQ40: 22249 | ER40: 23416.97 | ES40: 24328.99 | ET40: 12402.87 | EU40: 16262.85 | EV40: 59367.31 | EW40: 5970 | EX40: 55484.61 | EY40: 612000 | EZ40: 33705 | FA40: 3600 | FB40: 128109.75 | FC40: 0 | FD40: 0 | FE40: 29280.34 | FF40: 3208101.56 | FG40: 29280.34 | FH40: 3237381.9 | FI40: 2276138.72 | FJ40: 78286.34 | FK40: 9420 | FL40: 18800.66 | FM40: 17752.66 | FN40: 9142.95 | FO40: 9906.04 | FP40: 75915.53 | FQ40: 4203.13 | FR40: 32897.91 | FS40: 68000 | FT40: 31958 | FU40: 3436 | FV40: 135101.34 | FW40: 0 | FX40: 0 | FY40: 58536.51 | FZ40: 2770959.28 | GA40: 58536.51 | GB40: 2829495.79 | GC40: 2190093.82 | GD40: 78536.34 | GE40: 10569.9 | GF40: =SUM(GF2:GF39) -> 19900.66 | GG40: 17852.66 | GH40: 9212.95 | GI40: 10006.04 | GJ40: 41727.53 | GK40: 4203.13 | GL40: 33147.79 | GM40: 0 | GN40: 32408 | GO40: 3511 | GP40: 135101.34 | GQ40: 68400 | GR40: 57000 | GS40: 12931.2 | GT40: 2654671.16 | GU40: 69931.2 | GV40: 2724602.36 | GW40: 2372977.53 | GX40: 78536.34 | GY40: 10569.9 | GZ40: 19900.66 | HA40: 17852.66 | HB40: 9212.95 | HC40: 10006.04 | HD40: 41727.53 | HE40: 4203.13 | HF40: 33147.79 | HG40: 0 | HH40: 32408 | HI40: 3511 | HJ40: 135101.34 | HK40: 0 | HL40: 0 | HM40: 12931.2 | HN40: 2769154.87 | HO40: 12931.2 | HP40: 2782086.07 | HQ40: 2372977.53 | HR40: 78536.34 | HS40: 10569.9 | HT40: 19900.66 | HU40: 17852.66 | HV40: 9212.95 | HW40: 10006.04 | HX40: 41727.53 | HY40: 4203.13 | HZ40: 33147.79 | IA40: 0 | IB40: 32408 | IC40: 3511 | ID40: 135101.34 | IE40: 0 | IF40: 0 | IG40: 12931.2 | IH40: 2769154.87 | II40: 12931.2 | IJ40: 2782086.07 | IK40: 2372977.53 | IL40: 78536.34 | IM40: 10569.9 | IN40: 19900.66 | IO40: 17852.66 | IP40: 9212.95 | IQ40: 10006.04 | IR40: =SUM(IR2:IR39) -> 41727.53 | IS40: 4203.13 | IT40: 33147.79 | IU40: 0 | IV40: 32408 | IW40: 3511 | IX40: 135101.34 | IY40: 0 | IZ40: 0 | JA40: 12931.2 | JB40: 2769154.87 | JC40: 12931.2 | JD40: 2782086.07 | JE40: 2372977.53 | JF40: 78536.34 | JG40: 10569.9 | JH40: 19900.66 | JI40: 17852.66 | JJ40: 9212.95 | JK40: 10006.04 | JL40: 41727.53 | JM40: 4203.13 | JN40: 33147.79 | JO40: 0 | JP40: 32408 | JQ40: 3511 | JR40: 135101.34 | JS40: 0 | JT40: 0 | JU40: 12931.2 | JV40: 2769154.87 | JW40: 12931.2 | JX40: 2782086.07 | JY40: 2372977.53 | JZ40: 78536.34 | KA40: 10569.9 | KB40: 19900.66 | KC40: 17852.66 | KD40: 9212.95 | KE40: 10006.04 | KF40: 41727.53 | KG40: 4203.13 | KH40: 33147.79 | KI40: 0 | KJ40: 32408 | KK40: 3511 | KL40: 135101.34 | KM40: 0 | KN40: 0 | KO40: 12931.2 | KP40: 2769154.87 | KQ40: 12931.2 | KR40: 2782086.07 | KS40: 2372977.53 | KT40: 78536.34 | KU40: 10569.9 | KV40: 19900.66 | KW40: 17852.66 | KX40: 9212.95 | KY40: 10006.04 | KZ40: 41727.53 | LA40: 4203.13 | LB40: 33147.79 | LC40: 0 | LD40: =SUM(LD2:LD39) -> 32408 | LE40: 3511 | LF40: 135101.34 | LG40: 0 | LH40: 0 | LI40: 12931.2 | LJ40: 2769154.87 | LK40: 12931.2 | LL40: 2782086.07 | LM40: 2372977.53 | LN40: 78536.34 | LO40: 10569.9 | LP40: 19900.66 | LQ40: 17852.66 | LR40: 9212.95 | LS40: 10006.04 | LT40: 41727.53 | LU40: 4203.13 | LV40: 33147.79 | LW40: 0 | LX40: 32408 | LY40: 3511 | LZ40: 135101.34 | MA40: 0 | MB40: 0 | MC40: 12931.2 | MD40: 2769154.87 | ME40: 12931.2 | MF40: 2782086.07 | MG40: 3392933.26 | MH40: 78536.34 | MI40: 10569.9 | MJ40: 19900.66 | MK40: 17852.66 | ML40: 9212.95 | MM40: 10006.04 | MN40: 41727.53 | MO40: 4203.13 | MP40: 33147.79 | MQ40: 0 | MR40: 32408 | MS40: 3511 | MT40: 135101.34 | MU40: 0 | MV40: 0 | MW40: 12931.2 | MX40: 3789110.6 | MY40: 12931.2 | MZ40: 3802041.8
AV41: *PROJEÇÃO | BD41: Projeção
B43: 1 | C43: 2 | D43: 3 | E43: 4 | F43: 5 | G43: 6 | H43: 7 | I43: 8 | J43: 9 | K43: 10 | L43: 11 | M43: 12 | N43: 13 | O43: 14 | P43: 15 | Q43: 16 | R43: 17 | S43: 18 | T43: 19 | U43: 20 | V43: 21 | W43: 22 | X43: 23 | Y43: 24 | Z43: 25 | AA43: 26 | AB43: 27 | AC43: 28 | AD43: 29 | AE43: 30 | AF43: 31 | AG43: 65 | AO43: 66 | AP43: 67 | AQ43: 68 | AR43: 69 | NA43: 244 | NB43: 245 | NC43: 246 | ND43: 247 | NE43: 248 | NF43: 249 | NG43: 250 | NH43: 251 | NI43: 252 | NJ43: 253 | NK43: 254 | NL43: 255 | NM43: 256 | NN43: 257 | NO43: 258 | NP43: 259 | NQ43: 260 | NR43: 261 | NS43: 262 | NT43: 263 | NU43: 264 | NV43: 265 | NW43: 266 | NX43: 267 | NY43: 268 | NZ43: 269 | OA43: 270 | OB43: 271 | OC43: 272 | OD43: 273 | OE43: 274 | OF43: 275 | OG43: 276 | OH43: 277 | OI43: 278 | OJ43: 279 | OK43: 280 | OL43: 281 | OM43: 282 | ON43: 283 | OO43: 284 | OP43: 285 | OQ43: 286 | OR43: 287 | OS43: 288 | OT43: 289 | OU43: 290 | OV43: 291 | OW43: 292 | OX43: 293 | OY43: 294 | OZ43: 295 | PA43: 296 | PB43: 297

Sheet Dados (hidden)
C1: QUADRIMESTRES | D1: FINAL DO PERÍODO | E1: ANO VIGENTE | H1: OCORRÊNCIAS
A2: CATEGORIAS | C2: 1º QUADRIMESTRE | D2: ="30/04/"&$E$2 -> 30/04/2021 | E2: 2021 | H2: Pagamento a maior | I2: Crédito
A3: Custeio Geral | C3: 2º QUADRIMESTRE | D3: ="31/08/"&$E$2 -> 31/08/2021 | H3: Pagamento a menor | I3: Débito
A4: Despesas com pessoal | C4: 3º QUADRIMESTRE | D4: ="31/12/"&$E$2 -> 31/12/2021 | H4: Pagamento indevido | I4: Crédito
A5: Despesas mensais | H5: Pagamento em trânsito | I5: Débito
A6: Manutenção do imóvel | H6: Ressarcimento/ Estorno | I6: Débito
A7: Locação de imóvel | H7: Depósito recursos próprios | I7: Débito
A8: Bens Permanentes | H8: Despesa bancária indevida | I8: Crédito
A9: Educação Maker | H9: Despesa indevida | I9: Crédito
H10: Desp. a ser apres. no prox. período | I10: Débito
A11: Custeio Geral | B11: Despesas com pessoal | C11: Despesas mensais | D11: Manutenção do imóvel | E11: Locação de imóvel | F11: Bens Permanentes | G11: Educação Maker | H11: Juros / Multas | I11: Crédito
A12: Combustível | B12: 13º salário | C12: Consumo de água | D12: Aquisição de material | E12: Aluguel | F12: Aquisição de equip./mobiliário | G12: Equip./mobiliário - Educação Maker
A13: Despesas com EPIs | B13: Assistência Médica | C13: Consumo de energia elétrica | D13: DARF ref. NFS Manutenção | E13: IPTU | G13: INSS/ISS ref. NFS - Ed. Maker
A14: INSS ou ISS - Prest. Serv. | B14: Bolsa-estágio | C14: Consumo de gás | D14: INSS ref. NFS de manutenção | G14: INSS/ISS ref. RPA - Ed. Maker
A15: INSS ref. RPA - Prest. Serv. | B15: Cesta Básica | C15: Conta de telefone/internet | D15: INSS ref. RPA de manutenção | G15: Material para Educação Maker
A16: ISS ref. RPA - Prest. Serv. | B16: Contribuição Sindical | C16: Contador | D16: ISS ref. NFS de manutenção | G16: Prest. de Serviços Ed. Maker - PJ
A17: Itens de cama/mesa/banho | B17: Encargos trabalhistas | C17: Locação de copiadora | D17: ISS ref. RPA de manutenção | G17: Prest. de Serviços Ed. Maker - RPA | J17: Contador
A18: Mat. Ed. Física e recreação | B18: Exames médicos | C18: Outros serviços contratados | D18: Seguro predial | J18: Combustível para Deslocamentos à SE
A19: Mat. Limpeza/ Higiene/ Primeiros Socorros | B19: Férias | C19: Tributos | D19: Serviços de manutenção - PJ | J19: Locação do Imóvel
A20: Mat. p/ manutenção de equip. | B20: Pagamento mensal | D20: Serviços de manutenção - RPA | J20: Educação Maker - Custeio
A21: Materiais de escritório | B21: Pensão alimentícia
A22: Materiais didáticos | B22: Rescisão de Trabalho
A23: Materiais para biblioteca | B23: Seguro de Vida
A24: Prest. de Serviços - PJ | B24: Vale-refeição
A25: Prest. de Serviços - RPA | B25: Vale-transporte
A26: Transporte em passeios
A27: 13º salário | B27: Item I | C27: Despesas com pessoal | D27: Despesas com Pessoal
A28: Aluguel | B28: Item IX | C28: Locação de imóvel | D28: Locação do Imóvel
A29: Aquisição de equip./mobiliário | B29: Item XIII | C29: Bens Permanentes | D29: Bem Permanente | E29: Tipo de Documento
A30: Aquisição de material | B30: Item VI | C30: Manutenção do imóvel | D30: Programa Escola Linda | E30: Boleto Bancário
A31: Assistência Médica | B31: Item I | C31: Despesas com pessoal | D31: Despesas com Pessoal | E31: CF-e
A32: Bolsa-estágio | B32: Item II | C32: Despesas com pessoal | D32: Despesas com Pessoal | E32: DACTe OS
A33: Cesta Básica | B33: Item I | C33: Despesas com pessoal | D33: Despesas com Pessoal | E33: DANFE
A34: Combustível | B34: Item XII | C34: Custeio Geral | D34: Combustível para Deslocamentos à SE | E34: DARF
A35: Consumo de água | B35: Item XI | C35: Despesas mensais | D35: Despesas Mensais e de Consumo | E35: DARF
A36: Consumo de energia elétrica | B36: Item XI | C36: Despesas mensais | D36: Despesas Mensais e de Consumo | E36: DARF
A37: Consumo de gás | B37: Item XI | C37: Despesas mensais | D37: Despesas Mensais e de Consumo | E37: Fatura
A38: Conta de telefone/internet | B38: Item XI | C38: Despesas mensais | D38: Despesas Mensais e de Consumo | E38: FGTS
A39: Contador | B39: Item VIII | C39: Despesas mensais | D39: Contador | E39: GPS
A40: Contribuição Sindical | B40: Item I | C40: Despesas com pessoal | D40: Despesas com Pessoal | E40: Holerite
A41: DARF ref. NFS Manutenção | B41: Item VIII | C41: Manutenção do imóvel | D41: Programa Escola Linda | E41: ISS
A42: Despesas com EPIs | B42: Item VI | C42: Custeio Geral | D42: EPI e Exames Médicos | E42: Nota Fiscal
A43: Encargos trabalhistas | B43: Item I | C43: Despesas com pessoal | D43: Despesas com Pessoal | E43: NF de Serviço
A44: Equip./mobiliário - Educação Maker | B44: Item XIII | C44: Educação Maker | D44: Educação Maker - Capital | E44: NF-e
A45: Exames médicos | B45: Item I | C45: Despesas com pessoal | D45: EPI e Exames Médicos
A46: Férias | B46: Item I | C46: Despesas com pessoal | D46: Despesas com Pessoal
A47: INSS ou ISS - Prest. Serv. | B47: Item VIII | C47: Custeio Geral | D47: Materiais de Escritório
A48: INSS ref. NFS de manutenção | B48: Item VIII | C48: Manutenção do imóvel | D48: Programa Escola Linda
A49: INSS ref. RPA - Prest. Serv. | B49: Item II | C49: Custeio Geral | D49: Materiais de Escritório
A50: INSS ref. RPA de manutenção | B50: Item II | C50: Manutenção do imóvel | D50: Programa Escola Linda
A51: INSS/ISS ref. NFS - Ed. Maker | B51: Item VIII | C51: Educação Maker | D51: Educação Maker - Custeio
A52: INSS/ISS ref. RPA - Ed. Maker | B52: Item II | C52: Educação Maker | D52: Educação Maker - Custeio
A53: IPTU | B53: Item XI | C53: Locação de imóvel | D53: Locação do Imóvel
A54: ISS ref. NFS de manutenção | B54: Item VIII | C54: Manutenção do imóvel | D54: Programa Escola Linda
A55: ISS ref. RPA - Prest. Serv. | B55: Item II | C55: Custeio Geral | D55: Materiais de Escritório
A56: ISS ref. RPA de manutenção | B56: Item II | C56: Manutenção do imóvel | D56: Programa Escola Linda
A57: Itens de cama/mesa/banho | B57: Item VI | C57: Custeio Geral | D57: Material de Higiene e Limpeza
A58: Locação de copiadora | B58: Item X | C58: Despesas mensais | D58: Despesas Mensais e de Consumo
A59: Mat. Ed. Física e recreação | B59: Item VI | C59: Custeio Geral | D59: Materiais para Educação Física
A60: Mat. Limpeza/ Higiene/ Primeiros Socorros | B60: Item VI | C60: Custeio Geral | D60: Material de Higiene e Limpeza
A61: Mat. p/ manutenção de equip. | B61: Item VI | C61: Custeio Geral | D61: Materiais de Escritório
A62: Materiais de escritório | B62: Item VI | C62: Custeio Geral | D62: Materiais de Escritório
A63: Materiais didáticos | B63: Item VI | C63: Custeio Geral | D63: Materiais Didáticos
A64: Materiais para biblioteca | B64: Item VI | C64: Custeio Geral | D64: Materiais para Biblioteca
A65: Material para Educação Maker | B65: Item VI | C65: Educação Maker | D65: Educação Maker - Custeio
A66: Outros serviços contratados | B66: Item VIII | C66: Despesas mensais | D66: Despesas Mensais e de Consumo
A67: Pagamento mensal | B67: Item I | C67: Despesas com pessoal | D67: Despesas com Pessoal
A68: Pensão alimentícia | B68: Item I | C68: Despesas com pessoal | D68: Despesas com Pessoal
A69: Prest. de Serviços - PJ | B69: Item VIII | C69: Custeio Geral | D69: Despesas Mensais e de Consumo
A70: Prest. de Serviços - RPA | B70: Item II | C70: Custeio Geral | D70: Despesas Mensais e de Consumo
A71: Prest. de Serviços Ed. Maker - PJ | B71: Item VIII | C71: Educação Maker | D71: Educação Maker - Custeio
A72: Prest. de Serviços Ed. Maker - RPA | B72: Item II | C72: Educação Maker | D72: Educação Maker - Custeio
A73: Rescisão de Trabalho | B73: Item I | C73: Despesas com pessoal | D73: Despesas com Pessoal
A74: Seguro de Vida | B74: Item I | C74: Despesas com pessoal | D74: Despesas com Pessoal
A75: Seguro predial | B75: Item VIII | C75: Manutenção do imóvel | D75: Programa Escola Linda
A76: Serviços de manutenção - PJ | B76: Item VIII | C76: Manutenção do imóvel | D76: Programa Escola Linda
A77: Serviços de manutenção - RPA | B77: Item II | C77: Manutenção do imóvel | D77: Programa Escola Linda
A78: Transporte em passeios | B78: Item VIII | C78: Custeio Geral | D78: Estudo do Meio / Transporte em Passeios Pedagógicos
A79: Tributos | B79: Item XI | C79: Despesas mensais | D79: Despesas Mensais e de Consumo
A80: Vale-refeição | B80: Item I | C80: Despesas com pessoal | D80: Despesas com Pessoal
A81: Vale-transporte | B81: Item I | C81: Despesas com pessoal | D81: Despesas com Pessoal | F81: =$B$86 -> Sociedade "Fraternitas" de São Bernardo do Campo
A82: UNIDADE | B82: Endereço | C82: Termo de Colaboração nº | D82: Processo Parceria | E82: Processo de Prestação de Contas | F82: CNPJ | G82: Processo Pagamento
A83: =UPPER(B86) -> SOCIEDADE "FRATERNITAS" DE SÃO BERNARDO DO CAMPO | B83: =$B$103&" - "&$B$104&" - "&$B$105&" - SP - CEP: "&$B$106 -> Rua Giacinto Tognato, nº 293 - Baeta Neves - S.B.Campo - SP - CEP: 09760-370 | C83: =$B$96 -> 22/2017-SE | D83: =$B$93 -> SB 038200/2020-71 | E83: =$B$95 -> SB 088403/2019-40 | F83: 05.634.011/0001-47 | G83: =B$94 -> SB.085164/2020-41
A85: NC | B85: =Início!N1 -> 38
A86: UNIDADE | B86: =VLOOKUP(Dados!$B$85,BD_2021!$A$1:$PB$39,MATCH(Dados!$A86,BD_2021!$A$1:$PB$1,0),0) -> Sociedade "Fraternitas" de São Bernardo do Campo
A87: ENTIDADE | B87: =VLOOKUP(Dados!$B$85,BD_2021!$A$1:$PB$39,MATCH(Dados!$A87,BD_2021!$A$1:$PB$1,0),0) -> 0 | E87: 1 | F87: 2 | G87: 3 | H87: 4 | I87: 5 | J87: 6 | K87: 7 | L87: 8 | M87: 9 | N87: 10 | O87: 11 | P87: 12
A88: DE | B88: =VLOOKUP(Dados!$B$85,BD_2021!$A$1:$PB$39,MATCH(Dados!$A88,BD_2021!$A$1:$PB$1,0),0) -> 0 | D88: Repasse | E88: Janeiro | F88: Fevereiro | G88: Março | H88: Abril | I88: Maio | J88: Junho | K88: Julho | L88: Agosto | M88: Setembro | N88: Outubro | O88: Novembro | P88: Dezembro | Q88: Total Repasse | R88: Total Previsto | S88: Supressão
A89: EMEB | B89: =VLOOKUP(Dados!$B$85,BD_2021!$A$1:$PB$39,MATCH(Dados!$A89,BD_2021!$A$1:$PB$1,0),0) -> 0 | D89: DESPESAS DE PESSOAL | E89: =$B208 -> 91859.28 | F89: =$B228 -> 62347.24 | G89: =$B248 -> 65464.6 | H89: =$B268 -> 65464.6 | I89: =$B288 -> 65464.6 | J89: =$B308 -> 65464.6 | K89: =$B328 -> 65464.6 | L89: =$B348 -> 65464.6 | M89: =$B368 -> 65464.6 | N89: =$B388 -> 65464.6 | O89: =$B408 -> 65464.6 | P89: =$B428 -> 94976.64 | Q89: =SUM(E89:P89) -> 838364.56 | R89: =B188 -> 838364.56 | S89: =R89-Q89 -> 0
A90: COMPL | B90: =VLOOKUP(Dados!$B$85,BD_2021!$A$1:$PB$39,MATCH(Dados!$A90,BD_2021!$A$1:$PB$1,0),0) -> 0 | D90: DESPESAS DE CONSUMO | E90: =$B209 -> 980 | F90: =$B229 -> 980 | G90: =$B249 -> 15.52 | H90: =$B269 -> 15.52 | I90: =$B289 -> 15.52 | J90: =$B309 -> 15.52 | K90: =$B329 -> 15.52 | L90: =$B349 -> 15.52 | M90: =$B369 -> 15.52 | N90: =$B389 -> 15.52 | O90: =$B409 -> 15.52 | P90: =$B429 -> 15.52 | Q90: =SUM(E90:P90) -> 2115.2 | R90: =B189 -> 2115.2 | S90: =R90-Q90 -> 0
A91: NOME | B91: =VLOOKUP(Dados!$B$85,BD_2021!$A$1:$PB$39,MATCH(Dados!$A91,BD_2021!$A$1:$PB$1,0),0) -> Sociedade Fraternitas | D91: EPI E EXAMES PERIÓDICOS | E91: 20 | F91: 20 | G91: 5 | H91: 5 | I91: 5 | J91: 5 | K91: 5 | L91: 5 | M91: 5 | N91: 5 | O91: 5 | P91: 5 | Q91: 90 | R91: 90 | S91: 0
A92: CNPJ | B92: =VLOOKUP(Dados!$B$85,BD_2021!$A$1:$PB$39,MATCH(Dados!$A92,BD_2021!$A$1:$PB$1,0),0) -> 49.527.260/0001-09 | D92: MATERIAIS DIDÁTICOS | E92: 80 | F92: 80 | G92: 5 | H92: 5 | I92: 5 | J92: 5 | K92: 5 | L92: 5 | M92: 5 | N92: 5 | O92: 5 | P92: 5 | Q92: 210 | R92: 210 | S92: 0
A93: Nº DO PROCESSO DIGITAL PARCERIA | B93: =VLOOKUP(Dados!$B$85,BD_2021!$A$1:$PB$39,MATCH(Dados!$A93,BD_2021!$A$1:$PB$1,0),0) -> SB 038200/2020-71 | D93: MATERIAIS DE ESCRITÓRIO | E93: 120 | F93: 120 | G93: 5 | H93: 5 | I93: 5 | J93: 5 | K93: 5 | L93: 5 | M93: 5 | N93: 5 | O93: 5 | P93: 5 | Q93: 290 | R93: 290 | S93: 0
A94: Nº DO PROCESSO DIGITAL PAGAMENTO | B94: =VLOOKUP(Dados!$B$85,BD_2021!$A$1:$PB$39,MATCH(Dados!$A94,BD_2021!$A$1:$PB$1,0),0) -> SB.085164/2020-41 | D94: MATERIAIS PARA BIBLIOTECA | E94: 100 | F94: 100 | G94: 5 | H94: 5 | I94: 5 | J94: 5 | K94: 5 | L94: 5 | M94: 5 | N94: 5 | O94: 5 | P94: 5 | Q94: 250 | R94: 250 | S94: 0
A95: Nº DO PROCESSO PREST. CONTAS | B95: =VLOOKUP(Dados!$B$85,BD_2021!$A$1:$PB$39,MATCH(Dados!$A95,BD_2021!$A$1:$PB$1,0),0) -> SB 088403/2019-40 | D95: MATERIAIS PARA EDUCAÇÃO FÍSICA E RECREAÇÃO | E95: 9.88 | F95: 9.88 | G95: 4 | H95: 4 | I95: 4 | J95: 4 | K95: 4 | L95: 4 | M95: 4 | N95: 4 | O95: 4 | P95: 4 | Q95: 59.76 | R95: 59.76 | S95: 0
A96: Termo de Colaboração nº | B96: =VLOOKUP(Dados!$B$85,BD_2021!$A$1:$PB$39,MATCH(Dados!$A96,BD_2021!$A$1:$PB$1,0),0) -> 22/2017-SE | D96: MATERIAIS DE LIMPEZA E HIGIENE/ ITENS DE CAMA E BANHO | E96: 850 | F96: 850 | G96: 10 | H96: 10 | I96: 10 | J96: 10 | K96: 10 | L96: 10 | M96: 10 | N96: 10 | O96: 10 | P96: 10 | Q96: 1800 | R96: 1800 | S96: 0
A97: Data da assinatura do Termo de Colaboração | B97: =VLOOKUP(Dados!$B$85,BD_2021!$A$1:$PB$39,MATCH(Dados!$A97,BD_2021!$A$1:$PB$1,0),0) -> 0 | D97: ESTUDO DO MEIO | E97: 10 | F97: 10 | G97: 5 | H97: 5 | I97: 5 | J97: 5 | K97: 5 | L97: 5 | M97: 5 | N97: 5 | O97: 5 | P97: 5 | Q97: 70 | R97: 70 | S97: 0
A98: Aditamento | B98: =VLOOKUP(Dados!$B$85,BD_2021!$A$1:$PB$39,MATCH(Dados!$A98,BD_2021!$A$1:$PB$1,0),0) -> 35/2021-SE | D98: PEQUENAS DESPESAS COM MANUTENÇÃO DO IMÓVEL | E98: 0 | F98: 0 | G98: 0 | H98: 0 | I98: 0 | J98: 0 | K98: 0 | L98: 0 | M98: 0 | N98: 0 | O98: 0 | P98: 0 | Q98: 0 | R98: 0 | S98: 0
A99: Sequência | B99: =VLOOKUP(Dados!$B$85,BD_2021!$A$1:$PB$39,MATCH(Dados!$A99,BD_2021!$A$1:$PB$1,0),0) -> Oitavo | D99: PROGRAMA ESCOLA LINDA - CUSTEIO | E99: 17000 | F99: 17000 | G99: 0 | H99: 0 | I99: 0 | J99: 0 | K99: 0 | L99: 0 | M99: 0 | N99: 0 | O99: 0 | P99: 0 | Q99: 34000 | R99: 34000 | S99: 0
A100: Data de assinatura do Termo de Aditamento Prorrogação | B100: =VLOOKUP(Dados!$B$85,BD_2021!$A$1:$PB$39,MATCH(Dados!$A100,BD_2021!$A$1:$PB$1,0),0) -> 2021-01-26 | D100: CONTABILIDADE | E100: 1088 | F100: 1088 | G100: 86 | H100: 86 | I100: 86 | J100: 86 | K100: 86 | L100: 86 | M100: 86 | N100: 86 | O100: 86 | P100: 86 | Q100: 3036 | R100: 3036 | S100: 0
A101: Início | B101: =VLOOKUP(Dados!$B$85,BD_2021!$A$1:$PB$39,MATCH(Dados!$A101,BD_2021!$A$1:$PB$1,0),0) -> 2021-01-01 | D101: COMBUSTÍVEL PARA DESLOCAMENTOS À SE | E101: 0 | F101: 0 | G101: 0 | H101: 0 | I101: 0 | J101: 0 | K101: 0 | L101: 0 | M101: 0 | N101: 0 | O101: 0 | P101: 0 | Q101: 0 | R101: 0 | S101: 0
A102: Término | B102: =VLOOKUP(Dados!$B$85,BD_2021!$A$1:$PB$39,MATCH(Dados!$A102,BD_2021!$A$1:$PB$1,0),0) -> 2021-12-31 | D102: LOCAÇÃO DO IMÓVEL | E102: 0 | F102: 0 | G102: 0 | H102: 0 | I102: 0 | J102: 0 | K102: 0 | L102: 0 | M102: 0 | N102: 0 | O102: 0 | P102: 0 | Q102: 0 | R102: 0 | S102: 0
A103: Endereço | B103: =VLOOKUP(Dados!$B$85,BD_2021!$A$1:$PB$39,MATCH(Dados!$A103,BD_2021!$A$1:$PB$1,0),0) -> Rua Giacinto Tognato, nº 293 | D103: EDUCAÇÃO MAKER CUSTEIO | E103: 0 | F103: 0 | G103: 0 | H103: 1800 | I103: 0 | J103: 0 | K103: 0 | L103: 0 | M103: 0 | N103: 0 | O103: 0 | P103: 0 | Q103: 1800 | R103: 1800 | S103: 0
A104: Bairro | B104: =VLOOKUP(Dados!$B$85,BD_2021!$A$1:$PB$39,MATCH(Dados!$A104,BD_2021!$A$1:$PB$1,0),0) -> Baeta Neves | D104: EDUCAÇÃO MAKER CAPITAL | E104: 0 | F104: 0 | G104: 0 | H104: 1500 | I104: 0 | J104: 0 | K104: 0 | L104: 0 | M104: 0 | N104: 0 | O104: 0 | P104: 0 | Q104: 1500 | R104: 1500 | S104: 0
A105: Município | B105: =VLOOKUP(Dados!$B$85,BD_2021!$A$1:$PB$39,MATCH(Dados!$A105,BD_2021!$A$1:$PB$1,0),0) -> S.B.Campo | D105: BENS PERMANENTES | E105: 1980 | F105: 0 | G105: 0 | H105: 0 | I105: 0 | J105: 0 | K105: 0 | L105: 0 | M105: 0 | N105: 0 | O105: 0 | P105: 0 | Q105: 1980 | R105: 1980 | S105: 0
A106: CEP | B106: =VLOOKUP(Dados!$B$85,BD_2021!$A$1:$PB$39,MATCH(Dados!$A106,BD_2021!$A$1:$PB$1,0),0) -> 09760-370 | D106: CUSTEIO VALOR TOTAL | E106: 112117.16 | F106: 82605.12 | G106: 65605.12 | H106: 67405.12 | I106: 65605.12 | J106: 65605.12 | K106: 65605.12 | L106: 65605.12 | M106: 65605.12 | N106: 65605.12 | O106: 65605.12 | P106: 95117.16 | Q106: 882085.52 | R106: 882085.52 | S106: 0
A107: Telefone | B107: =VLOOKUP(Dados!$B$85,BD_2021!$A$1:$PB$39,MATCH(Dados!$A107,BD_2021!$A$1:$PB$1,0),0) -> 4337-5995 | D107: CAPITAL VALOR TOTAL | E107: 1980 | F107: 0 | G107: 0 | H107: 1500 | I107: 0 | J107: 0 | K107: 0 | L107: 0 | M107: 0 | N107: 0 | O107: 0 | P107: 0 | Q107: 3480 | R107: 3480 | S107: 0
A108: e-mail | B108: =VLOOKUP(Dados!$B$85,BD_2021!$A$1:$PB$39,MATCH(Dados!$A108,BD_2021!$A$1:$PB$1,0),0) -> fraternitas@terra.com.br | D108: VALOR TOTAL DO PLANO DE TRABALHO | E108: 114097.16 | F108: 82605.12 | G108: 65605.12 | H108: 68905.12 | I108: 65605.12 | J108: 65605.12 | K108: 65605.12 | L108: 65605.12 | M108: 65605.12 | N108: 65605.12 | O108: 65605.12 | P108: 95117.16 | Q108: 885565.52 | R108: 885565.52 | S108: 0
A109: Representante Legal | B109: =VLOOKUP(Dados!$B$85,BD_2021!$A$1:$PB$39,MATCH(Dados!$A109,BD_2021!$A$1:$PB$1,0),0) -> Edeniz Pezzuol
A110: Período do Mandato | B110: =VLOOKUP(Dados!$B$85,BD_2021!$A$1:$PB$39,MATCH(Dados!$A110,BD_2021!$A$1:$PB$1,0),0) -> 11/04/2018 a 10/11/2021
A111: Banco | B111: =VLOOKUP(Dados!$B$85,BD_2021!$A$1:$PB$39,MATCH(Dados!$A111,BD_2021!$A$1:$PB$1,0),0) -> Caixa Econômica Federal
A112: Agência | B112: =VLOOKUP(Dados!$B$85,BD_2021!$A$1:$PB$39,MATCH(Dados!$A112,BD_2021!$A$1:$PB$1,0),0) -> 2901
A113: OP | B113: =VLOOKUP(Dados!$B$85,BD_2021!$A$1:$PB$39,MATCH(Dados!$A113,BD_2021!$A$1:$PB$1,0),0) -> 003
A114: Conta Corrente | B114: =VLOOKUP(Dados!$B$85,BD_2021!$A$1:$PB$39,MATCH(Dados!$A114,BD_2021!$A$1:$PB$1,0),0) -> 00001789-0
A115: Conta Poupança | B115: =VLOOKUP(Dados!$B$85,BD_2021!$A$1:$PB$39,MATCH(Dados!$A115,BD_2021!$A$1:$PB$1,0),0) -> 
A116: PREVISÃO DE PAGAMENTO OP 1ª PARCELA | B116: =VLOOKUP(Dados!$B$85,BD_2021!$A$1:$PB$39,MATCH(Dados!$A116,BD_2021!$A$1:$PB$1,0),0) -> 0
A117: BERÇÁRIO I QUANT. ALUNOS | B117: =VLOOKUP(Dados!$B$85,BD_2021!$A$1:$PB$39,MATCH(Dados!$A117,BD_2021!$A$1:$PB$1,0),0) -> 0
A118: BERÇÁRIO I QUANT. TURMAS | B118: =VLOOKUP(Dados!$B$85,BD_2021!$A$1:$PB$39,MATCH(Dados!$A118,BD_2021!$A$1:$PB$1,0),0) -> 0
A119: INFANTIL I E II QUANT. ALUNOS | B119: =VLOOKUP(Dados!$B$85,BD_2021!$A$1:$PB$39,MATCH(Dados!$A119,BD_2021!$A$1:$PB$1,0),0) -> 112
A120: INFANTIL I E II QUANT. TURMAS | B120: =VLOOKUP(Dados!$B$85,BD_2021!$A$1:$PB$39,MATCH(Dados!$A120,BD_2021!$A$1:$PB$1,0),0) -> 6
A121: TOTAL DE ALUNOS GERAL | B121: =VLOOKUP(Dados!$B$85,BD_2021!$A$1:$PB$39,MATCH(Dados!$A121,BD_2021!$A$1:$PB$1,0),0) -> 112
A122: TOTAL DE TURMAS GERAL | B122: =VLOOKUP(Dados!$B$85,BD_2021!$A$1:$PB$39,MATCH(Dados!$A122,BD_2021!$A$1:$PB$1,0),0) -> 6
A123: PER CAPITA BERÇÁRIO | B123: =VLOOKUP(Dados!$B$85,BD_2021!$A$1:$PB$39,MATCH(Dados!$A123,BD_2021!$A$1:$PB$1,0),0) -> 732.27
A124: PER CAPITA CRECHE | B124: =VLOOKUP(Dados!$B$85,BD_2021!$A$1:$PB$39,MATCH(Dados!$A124,BD_2021!$A$1:$PB$1,0),0) -> 585.76
A125: VPC BERÇÁRIO | B125: =VLOOKUP(Dados!$B$85,BD_2021!$A$1:$PB$39,MATCH(Dados!$A125,BD_2021!$A$1:$PB$1,0),0) -> 0
A126: VPC CRECHE | B126: =VLOOKUP(Dados!$B$85,BD_2021!$A$1:$PB$39,MATCH(Dados!$A126,BD_2021!$A$1:$PB$1,0),0) -> 65605.12
A127: REPASSE PER CAPITA MENSAL | B127: =VLOOKUP(Dados!$B$85,BD_2021!$A$1:$PB$39,MATCH(Dados!$A127,BD_2021!$A$1:$PB$1,0),0) -> 65605.12
A128: VALOR PER CAPITA ANUAL | B128: =VLOOKUP(Dados!$B$85,BD_2021!$A$1:$PB$39,MATCH(Dados!$A128,BD_2021!$A$1:$PB$1,0),0) -> 787261.44
B129: =VLOOKUP(Dados!$B$85,BD_2021!$A$1:$PB$39,MATCH(Dados!$A129,BD_2021!$A$1:$PB$1,0),0) -> 
A130: DESPESAS COM PESSOAL MENSAL JAN/FEV | B130: =VLOOKUP(Dados!$B$85,BD_2021!$A$1:$PB$39,MATCH(Dados!$A130,BD_2021!$A$1:$PB$1,0),0) -> 62347.24
A131: DESPESAS COM PESSOAL MENSAL MAR/DEZ | B131: =VLOOKUP(Dados!$B$85,BD_2021!$A$1:$PB$39,MATCH(Dados!$A131,BD_2021!$A$1:$PB$1,0),0) -> 65464.6
A132: 13º SALÁRIO | B132: =VLOOKUP(Dados!$B$85,BD_2021!$A$1:$PB$39,MATCH(Dados!$A132,BD_2021!$A$1:$PB$1,0),0) -> 59024.08
A133: LOCAÇÃO MENSAL | B133: =VLOOKUP(Dados!$B$85,BD_2021!$A$1:$PB$39,MATCH(Dados!$A133,BD_2021!$A$1:$PB$1,0),0) -> 0
A134: CUSTEIO MENSAL JAN/FEV | B134: =VLOOKUP(Dados!$B$85,BD_2021!$A$1:$PB$39,MATCH(Dados!$A134,BD_2021!$A$1:$PB$1,0),0) -> 3257.88
A135: CAPITAL MENSAL JAN/FEV | B135: =VLOOKUP(Dados!$B$85,BD_2021!$A$1:$PB$39,MATCH(Dados!$A135,BD_2021!$A$1:$PB$1,0),0) -> 0
A136: CUSTEIO MENSAL MAR/DEZ | B136: =VLOOKUP(Dados!$B$85,BD_2021!$A$1:$PB$39,MATCH(Dados!$A136,BD_2021!$A$1:$PB$1,0),0) -> 140.52
A137: CAPITAL MENSAL MAR/DEZ | B137: =VLOOKUP(Dados!$B$85,BD_2021!$A$1:$PB$39,MATCH(Dados!$A137,BD_2021!$A$1:$PB$1,0),0) -> 0
A138: VALOR PER CAPITA ANUAL | B138: =VLOOKUP(Dados!$B$85,BD_2021!$A$1:$PB$39,MATCH(Dados!$A138,BD_2021!$A$1:$PB$1,0),0) -> 787261.44
A139: COMPLEMENTAÇÃO CUSTEIO | B139: =VLOOKUP(Dados!$B$85,BD_2021!$A$1:$PB$39,MATCH(Dados!$A139,BD_2021!$A$1:$PB$1,0),0) -> 0
A140: 13º SALÁRIO | B140: =VLOOKUP(Dados!$B$85,BD_2021!$A$1:$PB$39,MATCH(Dados!$A140,BD_2021!$A$1:$PB$1,0),0) -> 59024.08
A141: PROGRAMA ESCOLA LINDA | B141: =VLOOKUP(Dados!$B$85,BD_2021!$A$1:$PB$39,MATCH(Dados!$A141,BD_2021!$A$1:$PB$1,0),0) -> 34000
A142: KIT BERÇÁRIO CUSTEIO | B142: =VLOOKUP(Dados!$B$85,BD_2021!$A$1:$PB$39,MATCH(Dados!$A142,BD_2021!$A$1:$PB$1,0),0) -> 0
A143: KIT BERÇÁRIO CAPITAL | B143: =VLOOKUP(Dados!$B$85,BD_2021!$A$1:$PB$39,MATCH(Dados!$A143,BD_2021!$A$1:$PB$1,0),0) -> 0
A144: EDUCAÇÃO MAKER CUSTEIO | B144: =VLOOKUP(Dados!$B$85,BD_2021!$A$1:$PB$39,MATCH(Dados!$A144,BD_2021!$A$1:$PB$1,0),0) -> 1800
A145: EDUCAÇÃO MAKER CAPITAL | B145: =VLOOKUP(Dados!$B$85,BD_2021!$A$1:$PB$39,MATCH(Dados!$A145,BD_2021!$A$1:$PB$1,0),0) -> 1500
A146: BENS PERMANENTES (R$ 330,00 por turma) | B146: =VLOOKUP(Dados!$B$85,BD_2021!$A$1:$PB$39,MATCH(Dados!$A146,BD_2021!$A$1:$PB$1,0),0) -> 1980
A147: BENS PERMANENTES uso geral (PER CAPITA) | B147: =VLOOKUP(Dados!$B$85,BD_2021!$A$1:$PB$39,MATCH(Dados!$A147,BD_2021!$A$1:$PB$1,0),0) -> 0
A148: LOCAÇÃO ANUAL | B148: =VLOOKUP(Dados!$B$85,BD_2021!$A$1:$PB$39,MATCH(Dados!$A148,BD_2021!$A$1:$PB$1,0),0) -> 0
A149: TOTAL CUSTEIO | B149: =VLOOKUP(Dados!$B$85,BD_2021!$A$1:$PB$39,MATCH(Dados!$A149,BD_2021!$A$1:$PB$1,0),0) -> 882085.52
A150: TOTAL CAPITAL | B150: =VLOOKUP(Dados!$B$85,BD_2021!$A$1:$PB$39,MATCH(Dados!$A150,BD_2021!$A$1:$PB$1,0),0) -> 3480
A151: TOTAL PLANO DE TRABALHO | B151: =VLOOKUP(Dados!$B$85,BD_2021!$A$1:$PB$39,MATCH(Dados!$A151,BD_2021!$A$1:$PB$1,0),0) -> 885565.52
A152: JANEIRO 2020 CUSTEIO | B152: =VLOOKUP(Dados!$B$85,BD_2021!$A$1:$PB$39,MATCH(Dados!$A152,BD_2021!$A$1:$PB$1,0),0) -> 112117.16
A153: JANEIRO 2020 CAPITAL | B153: =VLOOKUP(Dados!$B$85,BD_2021!$A$1:$PB$39,MATCH(Dados!$A153,BD_2021!$A$1:$PB$1,0),0) -> 1980
A154: JANEIRO 2020 TOTAL | B154: =VLOOKUP(Dados!$B$85,BD_2021!$A$1:$PB$39,MATCH(Dados!$A154,BD_2021!$A$1:$PB$1,0),0) -> 114097.16
A155: FEVEREIRO 2020 CUSTEIO | B155: =VLOOKUP(Dados!$B$85,BD_2021!$A$1:$PB$39,MATCH(Dados!$A155,BD_2021!$A$1:$PB$1,0),0) -> 82605.12
A156: FEVEREIRO 2020 CAPITAL | B156: =VLOOKUP(Dados!$B$85,BD_2021!$A$1:$PB$39,MATCH(Dados!$A156,BD_2021!$A$1:$PB$1,0),0) -> 0
A157: FEVEREIRO 2020 TOTAL | B157: =VLOOKUP(Dados!$B$85,BD_2021!$A$1:$PB$39,MATCH(Dados!$A157,BD_2021!$A$1:$PB$1,0),0) -> 82605.12
A158: MARÇO 2020 CUSTEIO | B158: =VLOOKUP(Dados!$B$85,BD_2021!$A$1:$PB$39,MATCH(Dados!$A158,BD_2021!$A$1:$PB$1,0),0) -> 65605.12
A159: MARÇO 2020 CAPITAL | B159: =VLOOKUP(Dados!$B$85,BD_2021!$A$1:$PB$39,MATCH(Dados!$A159,BD_2021!$A$1:$PB$1,0),0) -> 0
A160: MARÇO 2020 TOTAL | B160: =VLOOKUP(Dados!$B$85,BD_2021!$A$1:$PB$39,MATCH(Dados!$A160,BD_2021!$A$1:$PB$1,0),0) -> 65605.12
A161: ABRIL 2020 CUSTEIO | B161: =VLOOKUP(Dados!$B$85,BD_2021!$A$1:$PB$39,MATCH(Dados!$A161,BD_2021!$A$1:$PB$1,0),0) -> 67405.12
A162: ABRIL 2020 CAPITAL | B162: =VLOOKUP(Dados!$B$85,BD_2021!$A$1:$PB$39,MATCH(Dados!$A162,BD_2021!$A$1:$PB$1,0),0) -> 1500
A163: ABRIL 2020 TOTAL | B163: =VLOOKUP(Dados!$B$85,BD_2021!$A$1:$PB$39,MATCH(Dados!$A163,BD_2021!$A$1:$PB$1,0),0) -> 68905.12
A164: MAIO 2020 CUSTEIO | B164: =VLOOKUP(Dados!$B$85,BD_2021!$A$1:$PB$39,MATCH(Dados!$A164,BD_2021!$A$1:$PB$1,0),0) -> 65605.12
A165: MAIO 2020 CAPITAL | B165: =VLOOKUP(Dados!$B$85,BD_2021!$A$1:$PB$39,MATCH(Dados!$A165,BD_2021!$A$1:$PB$1,0),0) -> 0
A166: MAIO 2020 TOTAL | B166: =VLOOKUP(Dados!$B$85,BD_2021!$A$1:$PB$39,MATCH(Dados!$A166,BD_2021!$A$1:$PB$1,0),0) -> 65605.12
A167: JUNHO 2020 CUSTEIO | B167: =VLOOKUP(Dados!$B$85,BD_2021!$A$1:$PB$39,MATCH(Dados!$A167,BD_2021!$A$1:$PB$1,0),0) -> 65605.12
A168: JUNHO 2020 CAPITAL | B168: =VLOOKUP(Dados!$B$85,BD_2021!$A$1:$PB$39,MATCH(Dados!$A168,BD_2021!$A$1:$PB$1,0),0) -> 0
A169: JUNHO 2020 TOTAL | B169: =VLOOKUP(Dados!$B$85,BD_2021!$A$1:$PB$39,MATCH(Dados!$A169,BD_2021!$A$1:$PB$1,0),0) -> 65605.12
A170: JULHO 2020 CUSTEIO | B170: =VLOOKUP(Dados!$B$85,BD_2021!$A$1:$PB$39,MATCH(Dados!$A170,BD_2021!$A$1:$PB$1,0),0) -> 65605.12
A171: JULHO 2020 CAPITAL | B171: =VLOOKUP(Dados!$B$85,BD_2021!$A$1:$PB$39,MATCH(Dados!$A171,BD_2021!$A$1:$PB$1,0),0) -> 0
A172: JULHO 2020 TOTAL | B172: =VLOOKUP(Dados!$B$85,BD_2021!$A$1:$PB$39,MATCH(Dados!$A172,BD_2021!$A$1:$PB$1,0),0) -> 65605.12
A173: AGOSTO 2020 CUSTEIO | B173: =VLOOKUP(Dados!$B$85,BD_2021!$A$1:$PB$39,MATCH(Dados!$A173,BD_2021!$A$1:$PB$1,0),0) -> 65605.12
A174: AGOSTO 2020 CAPITAL | B174: =VLOOKUP(Dados!$B$85,BD_2021!$A$1:$PB$39,MATCH(Dados!$A174,BD_2021!$A$1:$PB$1,0),0) -> 0
A175: AGOSTO 2020 TOTAL | B175: =VLOOKUP(Dados!$B$85,BD_2021!$A$1:$PB$39,MATCH(Dados!$A175,BD_2021!$A$1:$PB$1,0),0) -> 65605.12
A176: SETEMBRO 2020 CUSTEIO | B176: =VLOOKUP(Dados!$B$85,BD_2021!$A$1:$PB$39,MATCH(Dados!$A176,BD_2021!$A$1:$PB$1,0),0) -> 65605.12
A177: SETEMBRO 2020 CAPITAL | B177: =VLOOKUP(Dados!$B$85,BD_2021!$A$1:$PB$39,MATCH(Dados!$A177,BD_2021!$A$1:$PB$1,0),0) -> 0
A178: SETEMBRO 2020 TOTAL | B178: =VLOOKUP(Dados!$B$85,BD_2021!$A$1:$PB$39,MATCH(Dados!$A178,BD_2021!$A$1:$PB$1,0),0) -> 65605.12
A179: OUTUBRO 2020 CUSTEIO | B179: =VLOOKUP(Dados!$B$85,BD_2021!$A$1:$PB$39,MATCH(Dados!$A179,BD_2021!$A$1:$PB$1,0),0) -> 65605.12
A180: OUTUBRO 2020 CAPITAL | B180: =VLOOKUP(Dados!$B$85,BD_2021!$A$1:$PB$39,MATCH(Dados!$A180,BD_2021!$A$1:$PB$1,0),0) -> 0
A181: OUTUBRO 2020 TOTAL | B181: =VLOOKUP(Dados!$B$85,BD_2021!$A$1:$PB$39,MATCH(Dados!$A181,BD_2021!$A$1:$PB$1,0),0) -> 65605.12
A182: NOVEMBRO 2020 CUSTEIO | B182: =VLOOKUP(Dados!$B$85,BD_2021!$A$1:$PB$39,MATCH(Dados!$A182,BD_2021!$A$1:$PB$1,0),0) -> 65605.12
A183: NOVEMBRO 2020 CAPITAL | B183: =VLOOKUP(Dados!$B$85,BD_2021!$A$1:$PB$39,MATCH(Dados!$A183,BD_2021!$A$1:$PB$1,0),0) -> 0
A184: NOVEMBRO 2020 TOTAL | B184: =VLOOKUP(Dados!$B$85,BD_2021!$A$1:$PB$39,MATCH(Dados!$A184,BD_2021!$A$1:$PB$1,0),0) -> 65605.12
A185: DEZEMBRO 2020 CUSTEIO | B185: =VLOOKUP(Dados!$B$85,BD_2021!$A$1:$PB$39,MATCH(Dados!$A185,BD_2021!$A$1:$PB$1,0),0) -> 95117.16
A186: DEZEMBRO 2020 CAPITAL | B186: =VLOOKUP(Dados!$B$85,BD_2021!$A$1:$PB$39,MATCH(Dados!$A186,BD_2021!$A$1:$PB$1,0),0) -> 0
A187: DEZEMBRO 2020 TOTAL | B187: =VLOOKUP(Dados!$B$85,BD_2021!$A$1:$PB$39,MATCH(Dados!$A187,BD_2021!$A$1:$PB$1,0),0) -> 95117.16
A188: DESPESAS DE PESSOAL | B188: =VLOOKUP(Dados!$B$85,BD_2021!$A$1:$PB$39,MATCH(Dados!$A188,BD_2021!$A$1:$PB$1,0),0) -> 838364.56
A189: DESPESAS DE CONSUMO | B189: =VLOOKUP(Dados!$B$85,BD_2021!$A$1:$PB$39,MATCH(Dados!$A189,BD_2021!$A$1:$PB$1,0),0) -> 2115.2
A190: EPI E EXAMES PERIÓDICOS | B190: =VLOOKUP(Dados!$B$85,BD_2021!$A$1:$PB$39,MATCH(Dados!$A190,BD_2021!$A$1:$PB$1,0),0) -> 90
A191: MATERIAIS DIDÁTICOS | B191: =VLOOKUP(Dados!$B$85,BD_2021!$A$1:$PB$39,MATCH(Dados!$A191,BD_2021!$A$1:$PB$1,0),0) -> 210
A192: MATERIAIS DE ESCRITÓRIO | B192: =VLOOKUP(Dados!$B$85,BD_2021!$A$1:$PB$39,MATCH(Dados!$A192,BD_2021!$A$1:$PB$1,0),0) -> 290
A193: MATERIAIS PARA BIBLIOTECA | B193: =VLOOKUP(Dados!$B$85,BD_2021!$A$1:$PB$39,MATCH(Dados!$A193,BD_2021!$A$1:$PB$1,0),0) -> 250
A194: MATERIAIS PARA EDUCAÇÃO FÍSICA E RECREAÇÃO | B194: =VLOOKUP(Dados!$B$85,BD_2021!$A$1:$PB$39,MATCH(Dados!$A194,BD_2021!$A$1:$PB$1,0),0) -> 59.76
A195: MATERIAIS DE LIMPEZA E HIGIENE/ ITENS DE CAMA E BANHO | B195: =VLOOKUP(Dados!$B$85,BD_2021!$A$1:$PB$39,MATCH(Dados!$A195,BD_2021!$A$1:$PB$1,0),0) -> 1800
A196: ESTUDO DO MEIO | B196: =VLOOKUP(Dados!$B$85,BD_2021!$A$1:$PB$39,MATCH(Dados!$A196,BD_2021!$A$1:$PB$1,0),0) -> 70
A197: PEQUENAS DESPESAS COM MANUTENÇÃO DO IMÓVEL | B197: =VLOOKUP(Dados!$B$85,BD_2021!$A$1:$PB$39,MATCH(Dados!$A197,BD_2021!$A$1:$PB$1,0),0) -> 0
A198: PROGRAMA ESCOLA LINDA - CUSTEIO | B198: =VLOOKUP(Dados!$B$85,BD_2021!$A$1:$PB$39,MATCH(Dados!$A198,BD_2021!$A$1:$PB$1,0),0) -> 34000
A199: CONTABILIDADE | B199: =VLOOKUP(Dados!$B$85,BD_2021!$A$1:$PB$39,MATCH(Dados!$A199,BD_2021!$A$1:$PB$1,0),0) -> 3036
A200: COMBUSTÍVEL PARA DESLOCAMENTOS À SE | B200: =VLOOKUP(Dados!$B$85,BD_2021!$A$1:$PB$39,MATCH(Dados!$A200,BD_2021!$A$1:$PB$1,0),0) -> 0
A201: LOCAÇÃO DO IMÓVEL | B201: =VLOOKUP(Dados!$B$85,BD_2021!$A$1:$PB$39,MATCH(Dados!$A201,BD_2021!$A$1:$PB$1,0),0) -> 0
... 300 more rows

Sheet Início
A1: PLANILHA DE GESTÃO 2021 | N1: 38
A3: Organização da Sociedade Civil: | C3: =Dados!$A$83 -> SOCIEDADE "FRATERNITAS" DE SÃO BERNARDO DO CAMPO | G3: CNPJ: | H3: =Dados!F83 -> 05.634.011/0001-47 | N3: =Dados!B91 -> Sociedade Fraternitas
A4: Endereço: | C4: =Dados!$B$83 -> Rua Giacinto Tognato, nº 293 - Baeta Neves - S.B.Campo - SP - CEP: 09760-370
A5: Termo de Colaboração nº: | C5: =Dados!B96 -> 22/2017-SE | E5: =IF(Dados!B98<>0,"Termo de Aditamento nº:","") -> Termo de Aditamento nº: | H5: =IF(Dados!B98<>0,Dados!B98&" ("&Dados!B99&")","") -> 35/2021-SE (Oitavo)
A6: Processo Convênio: | C6: =Dados!D83 -> SB 038200/2020-71 | E6: Processo Prestação de Contas: | H6: =Dados!E83 -> SB 088403/2019-40
A7: Valor da Parceria: | C7: =Dados!Q108 -> 885565.52
A10: Presidente | B10: MANUEL SABOR GONZALVES | G10: Contador | H10: RITA SUELY ROCHA DURIGUELLO
A11: CPF | B11: 008.859.828-43 | G11: CRC | H11: 1SP 284016/O-7
A13: RECURSOS REPASSADOS | G13: PRESTAÇÃO DE CONTAS
A14: CUSTEIO | G14: PERÍODO | H14: DATA PREVISTA PARA ENTREGA | I14: DATA DE ENTREGA
A15: DATA PREVISTA PARA O REPASSE | B15: VALOR PREVISTO (R$) | C15: Nº DOC DE CRÉDITO | D15: DATA DO REPASSE | E15: VALOR REPASSADO | G15: 1º quadrimestre | H15: 2021-06-14
G16: 2º quadrimestre | H16: 2021-09-14
A17: 2021-01-28 | B17: =Dados!$E$106 -> 112117.16 | C17: 1 | D17: 2021-02-04 | E17: 112117.16 | G17: 3º quadrimestre | H17: 2022-01-14
A18: 2021-02-28 | B18: =Dados!$F$106 -> 82605.12 | C18: 1 | D18: 2021-03-01 | E18: 82605.12
A19: 2021-03-28 | B19: =Dados!$G$106 -> 65605.12 | C19: 1 | D19: 2021-03-26 | E19: 65605.12
A20: 2021-04-28 | B20: =Dados!$H$106 -> 67405.12 | C20: 1 | D20: 2021-04-28 | E20: 67405.12
A21: 2021-05-28 | B21: =Dados!$I$106 -> 65605.12 | C21: 1 | D21: 2021-05-28 | E21: 65605.12
A22: 2021-06-28 | B22: =Dados!$J$106 -> 65605.12 | C22: 1 | D22: 2021-06-28 | E22: 65605.12
A23: 2021-07-28 | B23: =Dados!$K$106 -> 65605.12 | C23: 1 | D23: 2021-07-27 | E23: 65605.12
A24: 2021-08-28 | B24: =Dados!$L$106 -> 65605.12 | C24: 1 | D24: 2021-08-27 | E24: 65605.12
A25: 2021-09-28 | B25: =Dados!$M$106 -> 65605.12 | C25: 1 | D25: 28/09 , 15/10/2021 | E25: =65605.12+16486.33 -> 82091.45
A26: 2021-10-28 | B26: =Dados!$N$106 -> 65605.12 | C26: 1 | D26: 2021-10-28 | E26: =65605.12+3677.33 -> 69282.45
A27: 2021-11-28 | B27: =Dados!$O$106 -> 65605.12 | C27: 1 | D27: 2021-11-26 | E27: 165128.5
A28: 2021-11-28 | B28: =Dados!$P$106 -> 95117.16 | C28: 1 | D28: 26/11/2021 | E28: 99886.04
A30: CAPITAL
A31: DATA PREVISTA PARA O REPASSE | B31: VALOR PREVISTO (R$) | C31: Nº DOC DE CRÉDITO | D31: DATA DO REPASSE | E31: VALOR REPASSADO
A32: 2021-01-28 | B32: =Dados!$E$107 -> 1980 | C32: 1 | D32: 2021-02-04 | E32: 1980
A33: 2021-02-28 | B33: =Dados!$F$107 -> 0
A34: 2021-03-28 | B34: =Dados!$G$107 -> 0
A35: 2021-04-28 | B35: =Dados!$H$107 -> 1500 | C35: 1 | D35: 2021-04-28 | E35: 1500
A36: 2021-05-28 | B36: =Dados!$I$107 -> 0
A37: 2021-06-28 | B37: =Dados!$J$107 -> 0
A38: 2021-07-28 | B38: =Dados!$K$107 -> 0
A39: 2021-08-28 | B39: =Dados!$L$107 -> 0
A40: 2021-09-28 | B40: =Dados!$M$107 -> 0
A41: 2021-10-28 | B41: =Dados!$N$107 -> 0
A42: 2021-11-28 | B42: =Dados!$O$107 -> 0
A43: 2021-11-28 | B43: =Dados!$P$107 -> 0
A45: Acesse as guias da Planilha de Gestão

Sheet 1º QUAD.
A1: RELATÓRIO DE EXECUÇÃO E DE PRESTAÇÃO DE CONTAS | AA1: =Dados!$E$2 -> 2021
A3: Organização da Sociedade Civil: | C3: =Dados!A83 -> SOCIEDADE "FRATERNITAS" DE SÃO BERNARDO DO CAMPO | AA3: =Dados!C2 -> 1º QUADRIMESTRE
A4: Endereço: | C4: =Dados!$B$83 -> Rua Giacinto Tognato, nº 293 - Baeta Neves - S.B.Campo - SP - CEP: 09760-370 | AA4: =VLOOKUP(AA3,Dados!C2:D4,2,0) -> 30/04/2021 | AC4: 2021-01-01
A6: Processos | C6: ="Termo - "&Dados!$D$83 -> Termo - SB 038200/2020-71 | G6: ="Prestação de Contas - "&Dados!E83 -> Prestação de Contas - SB 088403/2019-40 | P6: ="Termo de Colaboração nº "&Dados!$C$83 -> Termo de Colaboração nº 22/2017-SE | AC6: 2021-04-30
A8: ="RESUMO DO "&$AA$3&" DE "&$AA$1 -> RESUMO DO 1º QUADRIMESTRE DE 2021
A9: SEGMENTO | C9: SALDO INICIAL | D9: REPASSE QUADRIMESTRE | F9: RENTABILIDADE | I9: REMANEJAMENTO | L9: VALOR UTILIZADO | P9: SALDO REMANESCENTE | S9: DESPESAS GLOSADAS | V9: SALDO FINAL | AA9: Show/Hide
A10: Programa Aprendizagem Criativa | C10: 0 | D10: 0 | F10: 0 | I10: 0 | L10: =SUMIF(Categ_despesa,$A10,Val_doc) -> 0 | P10: =C10+D10+F10+I10-L10 -> 0 | S10: =SUMIF(Finalid_Total,$A10,Val_Total)+SUMIF(Finalid_Parcial,$A10,Val_Parcial) -> 0 | V10: =P10+S10 -> 0 | AA10: =IF(Dados!$A$81="APM","Show","HideA") -> HideA
A11: Estudo do Meio | C11: 0 | D11: 0 | F11: 0 | I11: 0 | L11: 0 | P11: 0 | S11: 0 | V11: 0 | AA11: =IF(Dados!$A$81="APM","Show","HideA") -> HideA
A12: Material Didático e Pedagógico | C12: 0 | D12: 0 | F12: 0 | I12: 0 | L12: 0 | P12: 0 | S12: 0 | V12: 0 | AA12: =IF(Dados!$A$81="APM","Show","HideA") -> HideA
A13: Programa Escola de Portas Abertas | C13: 0 | D13: 0 | F13: 0 | I13: 0 | L13: 0 | P13: 0 | S13: 0 | V13: 0 | AA13: =IF(Dados!$A$81="APM","Show","HideA") -> HideA
A14: Custeio Administrativo | C14: 0 | D14: 0 | F14: 0 | I14: 0 | L14: 0 | P14: 0 | S14: 0 | V14: 0 | AA14: =IF(Dados!$A$81="APM","Show","HideA") -> HideA
A15: Contabilidade | C15: 0 | D15: 0 | F15: 0 | I15: 0 | L15: 0 | P15: 0 | S15: 0 | V15: 0 | AA15: =IF(Dados!$A$81="APM","Show","HideA") -> HideA
A16: Despesas com Pessoal | C16: 0 | D16: =SUM(Dados!E89:H89) -> 285135.72 | F16: 0 | I16: 0 | L16: =SUMIF(Segmento_1,$A16,Val_doc_1) -> 201728.1 | P16: =C16+D16+F16+I16-L16 -> 83407.62 | S16: 0 | V16: =P16+S16 -> 83407.62 | AA16: =IF(Dados!$A$81="APM","HideC","Show") -> Show
A17: Despesas Mensais e de Consumo | C17: 0 | D17: =SUM(Dados!E90:H90) -> 1991.04 | F17: 0 | I17: 0 | L17: 2010.28 | P17: -19.24 | S17: 0 | V17: -19.24 | AA17: =IF(Dados!$A$81="APM","HideC","Show") -> Show
A18: EPI e Exames Médicos | C18: 0 | D18: =SUM(Dados!E91:H91) -> 50 | F18: 0 | I18: 0 | L18: 0 | P18: 50 | S18: 0 | V18: 50 | AA18: =IF(Dados!$A$81="APM","HideC","Show") -> Show
A19: Materiais Didáticos | C19: 0 | D19: =SUM(Dados!E92:H92) -> 170 | F19: 0 | I19: 0 | L19: 469.7 | P19: -299.7 | S19: 0 | V19: -299.7 | AA19: =IF(Dados!$A$81="APM","HideC","Show") -> Show
A20: Materiais de Escritório | C20: 0 | D20: =SUM(Dados!E93:H93) -> 250 | F20: 0 | I20: 0 | L20: 999.4 | P20: -749.4 | S20: 0 | V20: -749.4 | AA20: =IF(Dados!$A$81="APM","HideC","Show") -> Show
A21: Materiais para Biblioteca | C21: 0 | D21: =SUM(Dados!E94:H94) -> 210 | F21: 0 | I21: 0 | L21: 0 | P21: 210 | S21: 0 | V21: 210 | AA21: =IF(Dados!$A$81="APM","HideC","Show") -> Show
A22: Materiais para Educação Física | C22: 0 | D22: =SUM(Dados!E95:H95) -> 27.76 | F22: 0 | I22: 0 | L22: 0 | P22: 27.76 | S22: 0 | V22: 27.76 | AA22: =IF(Dados!$A$81="APM","HideC","Show") -> Show
A23: Material de Higiene e Limpeza | C23: 0 | D23: =SUM(Dados!E96:H96) -> 1720 | F23: 0 | I23: 30 | L23: 1799.68 | P23: -49.68 | S23: 0 | V23: -49.68 | AA23: =IF(Dados!$A$81="APM","HideC","Show") -> Show
A24: Estudo do Meio / Transporte em Passeios Pedagógicos | C24: 0 | D24: =SUM(Dados!E97:H97) -> 30 | F24: 0 | I24: -30 | L24: 0 | P24: 0 | S24: 0 | V24: 0 | AA24: =IF(Dados!$A$81="APM","HideC","Show") -> Show
A25: Pequenas Despesas com Manutenção do Imóvel | C25: 0 | D25: =SUM(Dados!E98:H98) -> 0 | F25: 0 | I25: 0 | L25: =SUMIF(Segmento_1,$A26,Val_doc_1)-L26 -> 0 | P25: 0 | S25: 0 | V25: 0 | AA25: =IF(Dados!$A$81="APM","HideC","Show") -> Show
A26: Programa Escola Linda | C26: 0 | D26: =SUM(Dados!E99:H99) -> 34000 | F26: 0 | I26: 0 | L26: =IF(SUMIF(Segmento_1,$A26,Val_doc_1)<=SUM(C26,D26,F26),SUMIF(Segmento_1,$A26,Val_doc_1),SUM(C26,D26,F26)) -> 6283.04 | P26: =C26+D26+F26+I26-L26 -> 27716.96 | S26: 0 | V26: =P26+S26 -> 27716.96 | AA26: Show
A27: Manutenção de Bens Patrimoniais | C27: 0 | D27: 0 | F27: 0 | I27: 0 | L27: 0 | P27: 0 | S27: 0 | V27: 0 | AA27: =IF(Dados!$A$81="APM","Show","HideA") -> HideA
A28: Contador | C28: 0 | D28: =SUM(Dados!E100:H100) -> 2348 | F28: 0.06 | I28: 0 | L28: =SUMIF(Segmento_1,$A28,Val_doc_1) -> 3300 | P28: -951.94 | S28: 0 | V28: -951.94 | AA28: =IF(Dados!$A$81="APM","HideC","Show") -> Show
A29: Combustível para Deslocamentos à SE | C29: 0 | D29: =SUM(Dados!E101:H101) -> 0 | F29: 0 | I29: 0 | L29: =SUMIF(Segmento_1,$A29,Val_doc_1) -> 0 | P29: 0 | S29: 0 | V29: 0 | AA29: =IF(Dados!$A$81="APM","HideC","Show") -> Show
A30: Locação do Imóvel | C30: 0 | D30: =SUM(Dados!E102:H102) -> 0 | F30: 0 | I30: 0 | L30: =SUMIF(Segmento_1,$A30,Val_doc_1) -> 0 | P30: 0 | S30: 0 | V30: 0 | AA30: =IF(Dados!$A$81="APM","HideC","Show") -> Show
A31: Educação Maker - Custeio | C31: 0 | D31: =SUM(Dados!E103:H103) -> 1800 | F31: 0 | I31: 0 | L31: =SUMIF(Segmento_1,$A31,Val_doc_1) -> 0 | P31: 1800 | S31: 0 | V31: 1800 | AA31: =IF(Dados!$A$81="APM","HideC","Show") -> Show
A32: TOTAL CUSTEIO | C32: =SUM(C10:C31) -> 0 | D32: =SUM(D10:E31) -> 327732.52 | F32: =SUM(F10:H31) -> 0.06 | I32: =SUM(I10:K31) -> 0 | L32: =SUM(L10:O31) -> 216590.2 | P32: =SUM(P10:R31) -> 111142.38 | S32: =SUM(S10:U31) -> 0 | V32: =SUM(V10:W31) -> 111142.38 | AA32: Show
A33: Bem Permanente Pedagógico/ Administrativo | C33: 0 | D33: 0 | F33: 0 | I33: 0 | L33: =SUMIF(Categ_despesa,$A33,Val_doc) -> 0 | P33: =C33+D33+F33+I33-L33 -> 0 | S33: =SUMIF(Finalid_Total,$A33,Val_Total)+SUMIF(Finalid_Parcial,$A33,Val_Parcial) -> 0 | V33: =P33+S33 -> 0 | AA33: =IF(Dados!$A$81="APM","Show","HideA") -> HideA
A34: Bem Permanente Educação Maker | C34: 0 | D34: 0 | F34: 0 | I34: 0 | L34: =SUMIF(Categ_despesa,$A34,Val_doc) -> 0 | P34: =C34+D34+F34+I34-L34 -> 0 | S34: =SUMIF(Finalid_Total,$A34,Val_Total)+SUMIF(Finalid_Parcial,$A34,Val_Parcial) -> 0 | V34: =P34+S34 -> 0 | AA34: =IF(Dados!$A$81="APM","Show","HideA") -> HideA
A35: Educação Maker - Capital | C35: 0 | D35: =SUM(Dados!E104:H104) -> 1500 | F35: 0 | I35: 0 | L35: =SUMIF(Segmento_1,$A35,Val_doc_1) -> 0 | P35: =C35+D35+F35+I35-L35 -> 1500 | S35: =SUMIF(Finalid_Total,$A35,Val_Total)+SUMIF(Finalid_Parcial,$A35,Val_Parcial) -> 0 | V35: =P35+S35 -> 1500 | AA35: =IF(Dados!$A$81="APM","HideC","Show") -> Show
A36: Bem Permanente | C36: 0 | D36: =SUM(Dados!E105:H105) -> 1980 | F36: 0 | I36: 0 | L36: =SUMIF(Segmento_1,$A36,Val_doc_1) -> 2374.05 | P36: =C36+D36+F36+I36-L36 -> -394.05 | S36: =SUMIF(Finalid_Total,$A36,Val_Total)+SUMIF(Finalid_Parcial,$A36,Val_Parcial) -> 0 | V36: =P36+S36 -> -394.05 | AA36: =IF(Dados!$A$81="APM","HideC","Show") -> Show
A37: TOTAL BEM PERMANENTE | C37: =SUM(C33:C36) -> 0 | D37: =SUM(D33:E36) -> 3480 | F37: =SUM(F33:H36) -> 0 | I37: =SUM(I33:K36) -> 0 | L37: =SUM(L33:O36) -> 2374.05 | P37: =SUM(P33:R36) -> 1105.95 | S37: =SUM(S33:U36) -> 0 | V37: =SUM(V33:W36) -> 1105.95 | AA37: Show
A38: TOTAL | C38: =SUM(C37,C32) -> 0 | D38: =SUM(D37,D32) -> 331212.52 | F38: =SUM(F32,F37) -> 0.06 | I38: =SUM(I32,I37) -> 0 | L38: =SUM(L32,L37) -> 218964.25 | P38: =SUM(P32,P37) -> 112248.33 | S38: =SUM(S32,S37) -> 0 | V38: =SUM(V32,V37) -> 112248.33 | AA38: Show
AA39: Show
AA40: Show
A41: CONCILIAÇÃO BANCÁRIA | AA41: Show
A42: Instituição Financeira: | C42: Caixa Ec.Federal | D42: Agência: | F42: 2901 | I42: Conta Corrente: | L42: 00001789-0 | P42: Poupança/Aplicação Financeira: | AA42: Show | AB42: =V38-V65+I63-V63 -> 112373.09
AA43: Show
A44: ="SALDO DE CONTA CORRENTE EM "&$AA$4&":" -> SALDO DE CONTA CORRENTE EM 30/04/2021: | C44: 112359.26 | D44: ="SALDO DE POUPANÇA/APL. FINANCEIRA EM "&$AA$4&":" -> SALDO DE POUPANÇA/APL. FINANCEIRA EM 30/04/2021: | I44: 13.83 | L44: ="SALDO TOTAL EM "&$AA$4&":(Conta Corrente + Poupança/Aplicação Financeira)" -> SALDO TOTAL EM 30/04/2021:(Conta Corrente + Poupança/Aplicação Financeira) | V44: =SUM(C44,I44) -> 112373.09 | AA44: Show | AB44: =IF(ABS(AC44)<0.01,TRUE,IF(AB42=V44,TRUE,FALSE)) -> TRUE | AC44: =IF(AD44>0,AD44,-AD44) -> 0 | AD44: =AB42-V44 -> 0
AA45: Show
A46: Ocorrências: | C46: Ref. ao Documento Fiscal: | D46: Nº do Cheque: | E46: Data: | G46: Valor: | I46: Ocorrências: | P46: Ref. ao Documento Fiscal: | S46: Nº do Cheque: | U46: Data: | W46: Valor: | AA46: Show | AB46: =V44+V65 -> 112248.33
A47: Ressarcimento/ Estorno | C47: Saldo pertencente a Entidade | E47: 2021-01-02 | G47: 13.77 | AA47: Show
A48: Pagamento indevido | C48: ISS NFS-e 469 Nilton-1748-Cartão Legal | D48: 677950 | E48: 2021-03-15 | G48: 34.61 | AA48: Show | AB48: Saldo Conciliação
A49: Despesa bancária indevida | D49: 0 | E49: 2021-03-25 | G49: 49 | AA49: Show | AB49: =V44+D63-D64+D65-I63-I64-I65+P63+P64+P65+V63+V64 -> 112248.33
A50: Depósito recursos próprios | D50: 0 | E50: 2021-04-07 | G50: 49 | AA50: Show
A51: Pagamento indevido | C51: ISS NFS-e1776-Cartão Legal | D51: 491541 | E51: 2021-04-14 | G51: 0.4 | AA51: Show
A52: Depósito recursos próprios | D52: 0 | E52: 2021-04-26 | G52: 73 | AA52: Show
A53: Depósito recursos próprios | D53: 0 | E53: 2021-04-26 | G53: 73 | AA53: Show
AA54: Show
AA55: Show
AA56: Show
AA57: Show
AA58: Show
AA59: Show
AA60: Show
AA61: Show
AA62: Show
A63: TOTAL POR OCORRÊNCIA: | C63: Pagamento a maior | D63: =SUMIF($A$47:$A$61,C63,$G$47:$H$61)+SUMIF($I$47:$I$61,C63,$W$47:$W$61) -> 0 | F63: Pagamento em trânsito | I63: =SUMIF($A$47:$A$61,F63,$G$47:$H$61)+SUMIF($I$47:$I$61,F63,$W$47:$W$61) -> 0 | L63: Despesa bancária indevida | P63: =SUMIF($A$47:$A$61,L63,$G$47:$H$61)+SUMIF($I$47:$I$61,L63,$W$47:$W$61) -> 49 | S63: Desp. a ser apres. no prox. período | V63: =SUMIF($A$47:$A$61,S63,$G$47:$H$61)+SUMIF($I$47:$I$61,S63,$W$47:$W$61) -> 0 | AA63: Show
C64: Pagamento a menor | D64: =SUMIF($A$47:$A$61,C64,$G$47:$H$61)+SUMIF($I$47:$I$61,C64,$W$47:$W$61) -> 0 | F64: Ressarcimento/ Estorno | I64: =SUMIF($A$47:$A$61,F64,$G$47:$H$61)+SUMIF($I$47:$I$61,F64,$W$47:$W$61) -> 13.77 | L64: Despesa indevida | P64: =SUMIF($A$47:$A$61,L64,$G$47:$H$61)+SUMIF($I$47:$I$61,L64,$W$47:$W$61) -> 0 | S64: Despesas Glosadas | V64: =$S$38 -> 0 | AA64: Show
C65: Pagamento indevido | D65: =SUMIF($A$47:$A$61,C65,$G$47:$H$61)+SUMIF($I$47:$I$61,C65,$W$47:$W$61) -> 35.01 | F65: Depósito recursos próprios | I65: =SUMIF($A$47:$A$61,F65,$G$47:$H$61)+SUMIF($I$47:$I$61,F65,$W$47:$W$61) -> 195 | L65: Juros / Multas | P65: =SUMIF($A$47:$A$61,L65,$G$47:$H$61)+SUMIF($I$47:$I$61,L65,$W$47:$W$61) -> 0 | S65: =IF(V65<0,"VALOR PERTENCENTE A ENTIDADE","TOTAL A RESSARCIR") -> VALOR PERTENCENTE A ENTIDADE | V65: =$D$63-$D$64+$D$65-$I$64-$I$65+$P$63+$P$64+$P$65+$V$64 -> -124.76 | AA65: Show
AA66: Show
A67: RELATÓRIO CIRCUNSTANCIADO | X67: DESPESAS GLOSADAS | Z67: Documento Fiscal lançado em duplicidade Identificação do Ajuste: | AA67: Show | AL67: For DND | AR67: =COUNTIF(AR68:AR768,TRUE) -> 0 | AS67: =COUNTIF(AS68:AS768,TRUE) -> 142 | AT67: =COUNTIF(AT68:AT768,TRUE) -> 0
A68: NC | B68: CATEGORIA DA DESPESA | C68: FINALIDADE | E68: DATA | G68: TIPO DE DOCUMENTO | I68: Nº DO DOCUMENTO | K68: FORNECEDOR/EMPRESA | P68: IDENT. PGTO | R68: VALOR TOTAL | U68: JUSTIFICATIVA | X68: GLOSA | Y68: VALOR GLOSA PARCIAL | AA68: Show | AB68: P/ TCESP | AC68: EXISTE DESPESA | AD68: NÚMERO | AE68: Glosa Total | AF68: Finalidade Total | AG68: Valor Total | AH68: Glosa Parcial | AI68: Finalidade Parcial | AJ68: Valor Parcial | AL68: This | AM68: Item do Demonstrativo: | AN68: Tipo e Número do documento: | AO68: Nome/Razão Social da Empresa/Credor: | AP68: Identificação do Ajuste/Período: | AR68: Preenchimento Indevido | AS68: Preenchimento Incompleto | AT68: Data Incorreta | AU68: Custeio Negativo | AV68: Capital Negativo | AX68: Segmento | AY68: Mês
A69: =IF(AD69="","",AD69) -> 1 | B69: Despesas mensais | C69: Conta de telefone/internet | E69: 2021-01-19 | G69: Fatura | I69: 29278650 | K69: Telefonica Brasil S/A | P69: 504019 | R69: 142.62 | U69: Telefone/Internet 4337-5995 - ref. 01/2021 | AA69: =IF(R69=0,"Hide","Show") -> Show | AB69: =IFERROR(VLOOKUP($C69,iTCESP,2,0),"") -> Item XI | AC69: =IF(R69>0,"SIM","NÃO") -> SIM | AD69: =IF(AC69="NÃO","",COUNT($AD$68)+1) -> 1 | AE69: =IF($X69="Total",1,"") ->  | AF69: =IF($AE69=1,$B69,"") ->  | AG69: =IF($AE69=1,$R69,0) -> 0 | AH69: =IF($X69="Parcial",1,"") ->  | AI69: =IF($AH69=1,$B69,"") ->  | AJ69: =IF($AH69=1,$Y69,0) -> 0 | AL69: =IF(AB69<>"",COUNTIF(AB$69:$AB69,AB69),"") -> 1 | AM69: =AB69&" - "&AL69 -> Item XI - 1 | AN69: =G69&" "&I69 -> Fatura 29278650 | AO69: =K69 -> Telefonica Brasil S/A | AP69: =Z69 -> 0 | AR69: =IFERROR(IF(B69=VLOOKUP(C69,iTCESP,3,0),FALSE,TRUE),"") -> FALSE | AS69: Preenchimento Incompleto | AT69: =IF(OR(COUNTIF(E69,">"&$AC$6),COUNTIF(E69,"<"&$AC$4)),TRUE,FALSE) -> FALSE | AU69: =IF(AND($P$32<0,$P$37>0),TRUE,FALSE) -> FALSE | AV69: =IF(AND($P$32>0,$P$37<0),TRUE,FALSE) -> FALSE | AX69: =IF(R69>0,VLOOKUP(C69,iTCESP,4,0),"") -> Despesas Mensais e de Consumo | AY69: =IF(E69<>0,MONTH(E69),"") -> 1
A70: =IF(AD70="","",AD70) -> 2 | B70: Despesas com pessoal | C70: Encargos trabalhistas | E70: 2021-02-01 | G70: FGTS | I70: GRF | K70: Caixa Economica Federal | P70: 584951 | R70: 4229.19 | U70: FGTS - ref. 01/2021 | AA70: =IF(R70=0,"Hide","Show") -> Show | AB70: Item I | AC70: =IF(R70>0,"SIM","NÃO") -> SIM | AD70: =IF(AC70="NÃO","",COUNT($AD$68:$AD69)+1) -> 2 | AE70: =IF($X70="Total",1,"") ->  | AF70: =IF($AE70=1,$B70,"") ->  | AG70: =IF($AE70=1,$R70,0) -> 0 | AH70: =IF($X70="Parcial",1,"") ->  | AI70: =IF($AH70=1,$B70,"") ->  | AJ70: =IF($AH70=1,$Y70,0) -> 0 | AL70: =IF(AB70<>"",COUNTIF(AB$69:$AB70,AB70),"") -> 1 | AM70: =AB70&" - "&AL70 -> Item I - 1 | AN70: =G70&" "&I70 -> FGTS GRF | AO70: =K70 -> Caixa Economica Federal | AP70: =Z70 -> 0 | AR70: FALSE | AS70: =IF(R70=0,FALSE,IF(COUNTA(B70:W70)=9,FALSE,TRUE)) -> FALSE | AT70: =IF(OR(COUNTIF(E70,">"&$AC$6),COUNTIF(E70,"<"&$AC$4)),TRUE,FALSE) -> FALSE | AX70: Despesas com Pessoal | AY70: =IF(E70<>0,MONTH(E70),"") -> 2
A71: =IF(AD71="","",AD71) -> 3 | B71: Despesas com pessoal | C71: Pagamento mensal | E71: 2021-01-25 | G71: Boleto Bancário | I71: 1616-F02 | K71: Federação das Entidades Bem Estar Social | P71: 817901 | R71: 179.8 | U71: Contribuição Entid. Classe - ref. 02/2021 | AA71: Show | AB71: Item I | AC71: =IF(R71>0,"SIM","NÃO") -> SIM | AD71: =IF(AC71="NÃO","",COUNT($AD$68:$AD70)+1) -> 3 | AE71: =IF($X71="Total",1,"") ->  | AG71: =IF($AE71=1,$R71,0) -> 0 | AH71: =IF($X71="Parcial",1,"") ->  | AJ71: =IF($AH71=1,$Y71,0) -> 0 | AL71: =IF(AB71<>"",COUNTIF(AB$69:$AB71,AB71),"") -> 2 | AM71: Item I - 2 | AN71: Boleto Bancário 1616-F02 | AO71: Federação das Entidades Bem Estar Social | AP71: 0 | AR71: FALSE | AS71: FALSE | AT71: FALSE | AX71: Despesas com Pessoal | AY71: 1
A72: =IF(AD72="","",AD72) -> 4 | B72: Despesas com pessoal | C72: Vale-transporte | E72: 2021-02-01 | G72: Recibo | I72: 96007 | K72: Cartão Legal | P72: 818868 | R72: 197.6 | U72: Vale transporte - ref. 01/2021 | AA72: Show | AB72: Item I | AC72: =IF(R72>0,"SIM","NÃO") -> SIM | AD72: =IF(AC72="NÃO","",COUNT($AD$68:$AD71)+1) -> 4 | AE72: =IF($X72="Total",1,"") ->  | AG72: =IF($AE72=1,$R72,0) -> 0 | AH72: =IF($X72="Parcial",1,"") ->  | AJ72: =IF($AH72=1,$Y72,0) -> 0 | AL72: =IF(AB72<>"",COUNTIF(AB$69:$AB72,AB72),"") -> 3 | AM72: Item I - 3 | AN72: Recibo 96007 | AO72: Cartão Legal | AP72: 0 | AR72: FALSE | AS72: FALSE | AT72: FALSE | AX72: Despesas com Pessoal | AY72: 2
A73: 5 | B73: Despesas com pessoal | C73: Contribuição Sindical | E73: 2021-02-04 | G73: Boleto Bancário | I73: 7410 | K73: Sindbeneficente | P73: 819980 | R73: 380 | U73: Contribuição Associativa - ref. 01/2021 | AA73: Show | AB73: Item I | AC73: SIM | AD73: =IF(AC73="NÃO","",COUNT($AD$68:$AD72)+1) -> 5 | AG73: 0 | AJ73: 0 | AL73: =IF(AB73<>"",COUNTIF(AB$69:$AB73,AB73),"") -> 4 | AM73: Item I - 4 | AN73: Boleto Bancário 7410 | AO73: Sindbeneficente | AP73: 0 | AR73: FALSE | AS73: FALSE | AT73: FALSE | AX73: Despesas com Pessoal | AY73: 2
A74: 6 | B74: Despesas com pessoal | C74: Cesta Básica | E74: 2021-02-05 | G74: NFS-e | I74: 237619 | K74: Sodexo Pass do Brasil Serviços | P74: 821116 | R74: 2813 | U74: 20 Cestas Basicas - ref. 01/2021 | AA74: Show | AB74: Item I | AC74: SIM | AD74: =IF(AC74="NÃO","",COUNT($AD$68:$AD73)+1) -> 6 | AG74: 0 | AJ74: 0 | AL74: =IF(AB74<>"",COUNTIF(AB$69:$AB74,AB74),"") -> 5 | AM74: Item I - 5 | AN74: NFS-e 237619 | AO74: Sodexo Pass do Brasil Serviços | AP74: 0 | AR74: FALSE | AS74: FALSE | AT74: FALSE | AX74: Despesas com Pessoal | AY74: 2
A75: 7 | B75: Despesas com pessoal | C75: Pagamento mensal | E75: 2021-01-20 | G75: Holerite | K75: Adriana Rodrigues de Sousa | P75: 41726 | R75: 93 | U75: Adiantamento Salarial - ref. 01/2021 | AA75: Show | AB75: Item I | AC75: SIM | AD75: =IF(AC75="NÃO","",COUNT($AD$68:$AD74)+1) -> 7 | AG75: 0 | AJ75: 0 | AL75: =IF(AB75<>"",COUNTIF(AB$69:$AB75,AB75),"") -> 6 | AM75: Item I - 6 | AN75: Holerite | AO75: Adriana Rodrigues de Sousa | AP75: 0 | AR75: FALSE | AS75: TRUE | AT75: FALSE | AX75: Despesas com Pessoal | AY75: 1
A76: 8 | B76: Despesas com pessoal | C76: Pagamento mensal | E76: 2021-01-31 | G76: Holerite | K76: Adriana Rodrigues de Sousa | P76: 41726 | R76: 715 | U76: Salário Mensal - ref. 01/2021 | AA76: Show | AB76: Item I | AC76: SIM | AD76: =IF(AC76="NÃO","",COUNT($AD$68:$AD75)+1) -> 8 | AG76: 0 | AJ76: 0 | AL76: =IF(AB76<>"",COUNTIF(AB$69:$AB76,AB76),"") -> 7 | AM76: Item I - 7 | AN76: Holerite | AO76: Adriana Rodrigues de Sousa | AP76: 0 | AR76: FALSE | AS76: TRUE | AT76: FALSE | AX76: Despesas com Pessoal | AY76: 1
A77: 9 | B77: Despesas com pessoal | C77: Pagamento mensal | E77: 2021-01-20 | G77: Holerite | K77: Bruna Prado da Silva | P77: 41727 | R77: 93 | U77: Adiantamento Salarial - ref. 01/2021 | AA77: Show | AB77: Item I | AC77: SIM | AD77: =IF(AC77="NÃO","",COUNT($AD$68:$AD76)+1) -> 9 | AG77: 0 | AJ77: 0 | AL77: =IF(AB77<>"",COUNTIF(AB$69:$AB77,AB77),"") -> 8 | AM77: Item I - 8 | AN77: Holerite | AO77: Bruna Prado da Silva | AP77: 0 | AR77: FALSE | AS77: TRUE | AT77: FALSE | AX77: Despesas com Pessoal | AY77: 1
A78: =IF(AD78="","",AD78) -> 10 | B78: Despesas com pessoal | C78: Pagamento mensal | E78: 2021-01-31 | G78: Holerite | K78: Bruna Prado da Silva | P78: 41727 | R78: 585 | U78: Salário Mensal - ref. 01/2021 | AA78: Show | AB78: Item I | AC78: =IF(R78>0,"SIM","NÃO") -> SIM | AD78: =IF(AC78="NÃO","",COUNT($AD$68:$AD77)+1) -> 10 | AG78: 0 | AJ78: 0 | AL78: =IF(AB78<>"",COUNTIF(AB$69:$AB78,AB78),"") -> 9 | AM78: Item I - 9 | AN78: Holerite | AO78: Bruna Prado da Silva | AP78: 0 | AR78: FALSE | AS78: TRUE | AT78: FALSE | AX78: Despesas com Pessoal | AY78: 1
A79: 11 | B79: Despesas com pessoal | C79: Pagamento mensal | E79: 2021-01-20 | G79: Holerite | K79: Celia Maria dos Santos Casa | P79: 41727 | R79: 93 | U79: Adiantamento Salarial - ref. 01/2021 | AA79: Show | AB79: Item I | AC79: SIM | AD79: =IF(AC79="NÃO","",COUNT($AD$68:$AD78)+1) -> 11 | AG79: 0 | AJ79: 0 | AL79: =IF(AB79<>"",COUNTIF(AB$69:$AB79,AB79),"") -> 10 | AM79: Item I - 10 | AN79: Holerite | AO79: Celia Maria dos Santos Casa | AP79: 0 | AR79: FALSE | AS79: TRUE | AT79: FALSE | AX79: Despesas com Pessoal | AY79: 1
A80: 12 | B80: Despesas com pessoal | C80: Pagamento mensal | E80: 2021-01-31 | G80: Holerite | K80: Celia Maria dos Santos Casa | P80: 41727 | R80: 459 | U80: Salário Mensal - ref. 01/2021 | AA80: Show | AB80: Item I | AC80: SIM | AD80: =IF(AC80="NÃO","",COUNT($AD$68:$AD79)+1) -> 12 | AG80: 0 | AJ80: 0 | AL80: =IF(AB80<>"",COUNTIF(AB$69:$AB80,AB80),"") -> 11 | AM80: Item I - 11 | AN80: Holerite | AO80: Celia Maria dos Santos Casa | AP80: 0 | AR80: FALSE | AS80: TRUE | AT80: FALSE | AX80: Despesas com Pessoal | AY80: 1
A81: 13 | B81: Despesas com pessoal | C81: Pagamento mensal | E81: 2021-01-20 | G81: Holerite | K81: Claudia Zanutto Nobre | P81: 41728 | R81: 144 | U81: Adiantamento Salarial - ref. 01/2021 | AA81: Show | AB81: Item I | AC81: SIM | AD81: =IF(AC81="NÃO","",COUNT($AD$68:$AD80)+1) -> 13 | AG81: 0 | AJ81: 0 | AL81: =IF(AB81<>"",COUNTIF(AB$69:$AB81,AB81),"") -> 12 | AM81: Item I - 12 | AN81: Holerite | AO81: Claudia Zanutto Nobre | AP81: 0 | AR81: FALSE | AS81: TRUE | AT81: FALSE | AX81: Despesas com Pessoal | AY81: 1
A82: 14 | B82: Despesas com pessoal | C82: Pagamento mensal | E82: 2021-01-31 | G82: Holerite | K82: Claudia Zanutto Nobre | P82: 41728 | R82: 686 | U82: Salário Mensal - ref. 01/2021 | AA82: Show | AB82: Item I | AC82: SIM | AD82: =IF(AC82="NÃO","",COUNT($AD$68:$AD81)+1) -> 14 | AG82: 0 | AJ82: 0 | AL82: =IF(AB82<>"",COUNTIF(AB$69:$AB82,AB82),"") -> 13 | AM82: Item I - 13 | AN82: Holerite | AO82: Claudia Zanutto Nobre | AP82: 0 | AR82: FALSE | AS82: TRUE | AT82: FALSE | AX82: Despesas com Pessoal | AY82: 1
A83: 15 | B83: Despesas com pessoal | C83: Pagamento mensal | E83: 2021-01-20 | G83: Holerite | K83: Creuza Maria dos Santos Pessoni | P83: 41729 | R83: 290 | U83: Adiantamento Salarial - ref. 01/2021 | AA83: Show | AB83: Item I | AC83: SIM | AD83: =IF(AC83="NÃO","",COUNT($AD$68:$AD82)+1) -> 15 | AG83: 0 | AJ83: 0 | AL83: =IF(AB83<>"",COUNTIF(AB$69:$AB83,AB83),"") -> 14 | AM83: Item I - 14 | AN83: Holerite | AO83: Creuza Maria dos Santos Pessoni | AP83: 0 | AR83: FALSE | AS83: TRUE | AT83: FALSE | AX83: Despesas com Pessoal | AY83: 1
A84: 16 | B84: Despesas com pessoal | C84: Pagamento mensal | E84: 2021-01-20 | G84: Holerite | K84: Daniela Viteri | P84: 41729 | R84: 93 | U84: Adiantamento Salarial - ref. 01/2021 | AA84: Show | AB84: Item I | AC84: SIM | AD84: =IF(AC84="NÃO","",COUNT($AD$68:$AD83)+1) -> 16 | AG84: 0 | AJ84: 0 | AL84: =IF(AB84<>"",COUNTIF(AB$69:$AB84,AB84),"") -> 15 | AM84: Item I - 15 | AN84: Holerite | AO84: Daniela Viteri | AP84: 0 | AR84: FALSE | AS84: TRUE | AT84: FALSE | AX84: Despesas com Pessoal | AY84: 1
A85: 17 | B85: Despesas com pessoal | C85: Pagamento mensal | E85: 2021-01-31 | G85: Holerite | K85: Daniela Viteri | P85: 41729 | R85: 604 | U85: Salário Mensal - ref. 01/2021 | AA85: Show | AB85: Item I | AC85: SIM | AD85: =IF(AC85="NÃO","",COUNT($AD$68:$AD84)+1) -> 17 | AG85: 0 | AJ85: 0 | AL85: =IF(AB85<>"",COUNTIF(AB$69:$AB85,AB85),"") -> 16 | AM85: Item I - 16 | AN85: Holerite | AO85: Daniela Viteri | AP85: 0 | AR85: FALSE | AS85: TRUE | AT85: FALSE | AX85: Despesas com Pessoal | AY85: 1
A86: 18 | B86: Despesas com pessoal | C86: Pagamento mensal | E86: 2021-01-20 | G86: Holerite | K86: Deuseli Aparecida F. Rodrigues | P86: 41730 | R86: 80 | U86: Adiantamento Salarial - ref. 01/2021 | AA86: Show | AB86: Item I | AC86: SIM | AD86: =IF(AC86="NÃO","",COUNT($AD$68:$AD85)+1) -> 18 | AG86: 0 | AJ86: 0 | AL86: =IF(AB86<>"",COUNTIF(AB$69:$AB86,AB86),"") -> 17 | AM86: Item I - 17 | AN86: Holerite | AO86: Deuseli Aparecida F. Rodrigues | AP86: 0 | AR86: FALSE | AS86: TRUE | AT86: FALSE | AX86: Despesas com Pessoal | AY86: 1
A87: 19 | B87: Despesas com pessoal | C87: Pagamento mensal | E87: 2021-01-31 | G87: Holerite | K87: Deuseli Aparecida F. Rodrigues | P87: 41730 | R87: 605 | U87: Salário Mensal - ref. 01/2021 | AA87: Show | AB87: Item I | AC87: SIM | AD87: =IF(AC87="NÃO","",COUNT($AD$68:$AD86)+1) -> 19 | AG87: 0 | AJ87: 0 | AL87: =IF(AB87<>"",COUNTIF(AB$69:$AB87,AB87),"") -> 18 | AM87: Item I - 18 | AN87: Holerite | AO87: Deuseli Aparecida F. Rodrigues | AP87: 0 | AR87: FALSE | AS87: TRUE | AT87: FALSE | AX87: Despesas com Pessoal | AY87: 1
A88: 20 | B88: Despesas com pessoal | C88: Pagamento mensal | E88: 2021-01-20 | G88: Holerite | K88: Dominique Mirella do Amaral | P88: 41731 | R88: 144 | U88: Adiantamento Salarial - ref. 01/2021 | AA88: Show | AB88: Item I | AC88: SIM | AD88: =IF(AC88="NÃO","",COUNT($AD$68:$AD87)+1) -> 20 | AG88: 0 | AJ88: 0 | AL88: =IF(AB88<>"",COUNTIF(AB$69:$AB88,AB88),"") -> 19 | AM88: Item I - 19 | AN88: Holerite | AO88: Dominique Mirella do Amaral | AP88: 0 | AR88: FALSE | AS88: TRUE | AT88: FALSE | AX88: Despesas com Pessoal | AY88: 1
A89: 21 | B89: Despesas com pessoal | C89: Pagamento mensal | E89: 2021-01-31 | G89: Holerite | K89: Dominique Mirella do Amaral | P89: 41731 | R89: 427 | U89: Salário Mensal - ref. 01/2021 | AA89: Show | AB89: Item I | AC89: SIM | AD89: =IF(AC89="NÃO","",COUNT($AD$68:$AD88)+1) -> 21 | AG89: 0 | AJ89: 0 | AL89: =IF(AB89<>"",COUNTIF(AB$69:$AB89,AB89),"") -> 20 | AM89: Item I - 20 | AN89: Holerite | AO89: Dominique Mirella do Amaral | AP89: 0 | AR89: FALSE | AS89: TRUE | AT89: FALSE | AX89: Despesas com Pessoal | AY89: 1
A90: 22 | B90: Despesas com pessoal | C90: Pagamento mensal | E90: 2021-01-20 | G90: Holerite | K90: Eliane Novais da Silva | P90: 41731 | R90: 144 | U90: Adiantamento Salarial - ref. 01/2021 | AA90: Show | AB90: Item I | AC90: SIM | AD90: =IF(AC90="NÃO","",COUNT($AD$68:$AD89)+1) -> 22 | AG90: 0 | AJ90: 0 | AL90: =IF(AB90<>"",COUNTIF(AB$69:$AB90,AB90),"") -> 21 | AM90: Item I - 21 | AN90: Holerite | AO90: Eliane Novais da Silva | AP90: 0 | AR90: FALSE | AS90: TRUE | AT90: FALSE | AX90: Despesas com Pessoal | AY90: 1
A91: 23 | B91: Despesas com pessoal | C91: Pagamento mensal | E91: 2021-01-31 | G91: Holerite | K91: Eliane Novais da Silva | P91: 41731 | R91: 723 | U91: Salário Mensal - ref. 01/2021 | AA91: Show | AB91: Item I | AC91: SIM | AD91: =IF(AC91="NÃO","",COUNT($AD$68:$AD90)+1) -> 23 | AG91: 0 | AJ91: 0 | AL91: =IF(AB91<>"",COUNTIF(AB$69:$AB91,AB91),"") -> 22 | AM91: Item I - 22 | AN91: Holerite | AO91: Eliane Novais da Silva | AP91: 0 | AR91: FALSE | AS91: TRUE | AT91: FALSE | AX91: Despesas com Pessoal | AY91: 1
A92: 24 | B92: Despesas com pessoal | C92: Pagamento mensal | E92: 2021-01-20 | G92: Holerite | K92: Fernanda Godoi Barbosa | P92: 41732 | R92: 144 | U92: Adiantamento Salarial - ref. 01/2021 | AA92: Show | AB92: Item I | AC92: SIM | AD92: =IF(AC92="NÃO","",COUNT($AD$68:$AD91)+1) -> 24 | AG92: 0 | AJ92: 0 | AL92: =IF(AB92<>"",COUNTIF(AB$69:$AB92,AB92),"") -> 23 | AM92: Item I - 23 | AN92: Holerite | AO92: Fernanda Godoi Barbosa | AP92: 0 | AR92: FALSE | AS92: TRUE | AT92: FALSE | AX92: Despesas com Pessoal | AY92: 1
A93: 25 | B93: Despesas com pessoal | C93: Pagamento mensal | E93: 2021-01-31 | G93: Holerite | K93: Fernanda Godoi Barbosa | P93: 41732 | R93: 592 | U93: Salário Mensal - ref. 01/2021 | AA93: Show | AB93: Item I | AC93: SIM | AD93: =IF(AC93="NÃO","",COUNT($AD$68:$AD92)+1) -> 25 | AG93: 0 | AJ93: 0 | AL93: =IF(AB93<>"",COUNTIF(AB$69:$AB93,AB93),"") -> 24 | AM93: Item I - 24 | AN93: Holerite | AO93: Fernanda Godoi Barbosa | AP93: 0 | AR93: FALSE | AS93: TRUE | AT93: FALSE | AX93: Despesas com Pessoal | AY93: 1
A94: 26 | B94: Despesas com pessoal | C94: Pagamento mensal | E94: 2021-01-20 | G94: Holerite | K94: Geane da Silva Souza | P94: 41733 | R94: 144 | U94: Adiantamento Salarial - ref. 01/2021 | AA94: Show | AB94: Item I | AC94: SIM | AD94: =IF(AC94="NÃO","",COUNT($AD$68:$AD93)+1) -> 26 | AG94: 0 | AJ94: 0 | AL94: =IF(AB94<>"",COUNTIF(AB$69:$AB94,AB94),"") -> 25 | AM94: Item I - 25 | AN94: Holerite | AO94: Geane da Silva Souza | AP94: 0 | AR94: FALSE | AS94: TRUE | AT94: FALSE | AX94: Despesas com Pessoal | AY94: 1
A95: 27 | B95: Despesas com pessoal | C95: Pagamento mensal | E95: 2021-01-31 | G95: Holerite | K95: Geane da Silva Souza | P95: 41733 | R95: 727 | U95: Salário Mensal - ref. 01/2021 | AA95: Show | AB95: Item I | AC95: SIM | AD95: =IF(AC95="NÃO","",COUNT($AD$68:$AD94)+1) -> 27 | AG95: 0 | AJ95: 0 | AL95: =IF(AB95<>"",COUNTIF(AB$69:$AB95,AB95),"") -> 26 | AM95: Item I - 26 | AN95: Holerite | AO95: Geane da Silva Souza | AP95: 0 | AR95: FALSE | AS95: TRUE | AT95: FALSE | AX95: Despesas com Pessoal | AY95: 1
A96: 28 | B96: Despesas com pessoal | C96: Pagamento mensal | E96: 2021-01-20 | G96: Holerite | K96: Ivaneide Ap. da Silveira Pardinho | P96: 41733 | R96: 93 | U96: Adiantamento Salarial - ref. 01/2021 | AA96: Show | AB96: Item I | AC96: SIM | AD96: =IF(AC96="NÃO","",COUNT($AD$68:$AD95)+1) -> 28 | AG96: 0 | AJ96: 0 | AL96: =IF(AB96<>"",COUNTIF(AB$69:$AB96,AB96),"") -> 27 | AM96: Item I - 27 | AN96: Holerite | AO96: Ivaneide Ap. da Silveira Pardinho | AP96: 0 | AR96: FALSE | AS96: TRUE | AT96: FALSE | AX96: Despesas com Pessoal | AY96: 1
A97: 29 | B97: Despesas com pessoal | C97: Pagamento mensal | E97: 2021-01-31 | G97: Holerite | K97: Ivaneide Ap. da Silveira Pardinho | P97: 41733 | R97: 686 | U97: Salário Mensal - ref. 01/2021 | AA97: Show | AB97: Item I | AC97: SIM | AD97: =IF(AC97="NÃO","",COUNT($AD$68:$AD96)+1) -> 29 | AG97: 0 | AJ97: 0 | AL97: =IF(AB97<>"",COUNTIF(AB$69:$AB97,AB97),"") -> 28 | AM97: Item I - 28 | AN97: Holerite | AO97: Ivaneide Ap. da Silveira Pardinho | AP97: 0 | AR97: FALSE | AS97: TRUE | AT97: FALSE | AX97: Despesas com Pessoal | AY97: 1
A98: 30 | B98: Despesas com pessoal | C98: Pagamento mensal | E98: 2021-01-20 | G98: Holerite | K98: Luiza Natalia Fernandes Candido | P98: 41734 | R98: 93 | U98: Adiantamento Salarial - ref. 01/2021 | AA98: Show | AB98: Item I | AC98: SIM | AD98: =IF(AC98="NÃO","",COUNT($AD$68:$AD97)+1) -> 30 | AG98: 0 | AJ98: 0 | AL98: =IF(AB98<>"",COUNTIF(AB$69:$AB98,AB98),"") -> 29 | AM98: Item I - 29 | AN98: Holerite | AO98: Luiza Natalia Fernandes Candido | AP98: 0 | AR98: FALSE | AS98: TRUE | AT98: FALSE | AX98: Despesas com Pessoal | AY98: 1
A99: 31 | B99: Despesas com pessoal | C99: Pagamento mensal | E99: 2021-01-31 | G99: Holerite | K99: Luiza Natalia Fernandes Candido | P99: 41734 | R99: 600 | U99: Salário Mensal - ref. 01/2021 | AA99: Show | AB99: Item I | AC99: SIM | AD99: =IF(AC99="NÃO","",COUNT($AD$68:$AD98)+1) -> 31 | AG99: 0 | AJ99: 0 | AL99: =IF(AB99<>"",COUNTIF(AB$69:$AB99,AB99),"") -> 30 | AM99: Item I - 30 | AN99: Holerite | AO99: Luiza Natalia Fernandes Candido | AP99: 0 | AR99: FALSE | AS99: TRUE | AT99: FALSE | AX99: Despesas com Pessoal | AY99: 1
A100: 32 | B100: Despesas com pessoal | C100: Pagamento mensal | E100: 2021-01-20 | G100: Holerite | K100: Marleide Monteiro de Freitas | P100: 41735 | R100: 144 | U100: Adiantamento Salarial - ref. 01/2021 | AA100: Show | AB100: Item I | AC100: SIM | AD100: =IF(AC100="NÃO","",COUNT($AD$68:$AD99)+1) -> 32 | AG100: 0 | AJ100: 0 | AL100: =IF(AB100<>"",COUNTIF(AB$69:$AB100,AB100),"") -> 31 | AM100: Item I - 31 | AN100: Holerite | AO100: Marleide Monteiro de Freitas | AP100: 0 | AR100: FALSE | AS100: TRUE | AT100: FALSE | AX100: Despesas com Pessoal | AY100: 1
A101: 33 | B101: Despesas com pessoal | C101: Pagamento mensal | E101: 2021-01-31 | G101: Holerite | K101: Marleide Monteiro de Freitas | P101: 41735 | R101: 427 | U101: Salário Mensal - ref. 01/2021 | AA101: Show | AB101: Item I | AC101: SIM | AD101: =IF(AC101="NÃO","",COUNT($AD$68:$AD100)+1) -> 33 | AG101: 0 | AJ101: 0 | AL101: =IF(AB101<>"",COUNTIF(AB$69:$AB101,AB101),"") -> 32 | AM101: Item I - 32 | AN101: Holerite | AO101: Marleide Monteiro de Freitas | AP101: 0 | AR101: FALSE | AS101: TRUE | AT101: FALSE | AX101: Despesas com Pessoal | AY101: 1
A102: 34 | B102: Despesas com pessoal | C102: Pagamento mensal | E102: 2021-01-20 | G102: Holerite | K102: Marlene Vidal de Castro | P102: 41737 | R102: 123 | U102: Adiantamento Salarial - ref. 01/2021 | AA102: Show | AB102: Item I | AC102: SIM | AD102: =IF(AC102="NÃO","",COUNT($AD$68:$AD101)+1) -> 34 | AG102: 0 | AJ102: 0 | AL102: =IF(AB102<>"",COUNTIF(AB$69:$AB102,AB102),"") -> 33 | AM102: Item I - 33 | AN102: Holerite | AO102: Marlene Vidal de Castro | AP102: 0 | AR102: FALSE | AS102: TRUE | AT102: FALSE | AX102: Despesas com Pessoal | AY102: 1
A103: 35 | B103: Despesas com pessoal | C103: Pagamento mensal | E103: 2021-01-31 | G103: Holerite | K103: Marlene Vidal de Castro | P103: 41737 | R103: 625 | U103: Salário Mensal - ref. 01/2021 | AA103: Show | AB103: Item I | AC103: SIM | AD103: =IF(AC103="NÃO","",COUNT($AD$68:$AD102)+1) -> 35 | AG103: 0 | AJ103: 0 | AL103: =IF(AB103<>"",COUNTIF(AB$69:$AB103,AB103),"") -> 34 | AM103: Item I - 34 | AN103: Holerite | AO103: Marlene Vidal de Castro | AP103: 0 | AR103: FALSE | AS103: TRUE | AT103: FALSE | AX103: Despesas com Pessoal | AY103: 1
A104: 36 | B104: Despesas com pessoal | C104: Pagamento mensal | E104: 2021-01-20 | G104: Holerite | K104: Rosa Maria da Silva Santos | P104: 41738 | R104: 80 | U104: Adiantamento Salarial - ref. 01/2021 | AA104: Show | AB104: Item I | AC104: SIM | AD104: =IF(AC104="NÃO","",COUNT($AD$68:$AD103)+1) -> 36 | AG104: 0 | AJ104: 0 | AL104: =IF(AB104<>"",COUNTIF(AB$69:$AB104,AB104),"") -> 35 | AM104: Item I - 35 | AN104: Holerite | AO104: Rosa Maria da Silva Santos | AP104: 0 | AR104: FALSE | AS104: TRUE | AT104: FALSE | AX104: Despesas com Pessoal | AY104: 1
A105: 37 | B105: Despesas com pessoal | C105: Pagamento mensal | E105: 2021-01-31 | G105: Holerite | K105: Rosa Maria da Silva Santos | P105: 41738 | R105: 224 | U105: Salário Mensal - ref. 01/2021 | AA105: Show | AB105: Item I | AC105: SIM | AD105: =IF(AC105="NÃO","",COUNT($AD$68:$AD104)+1) -> 37 | AG105: 0 | AJ105: 0 | AL105: =IF(AB105<>"",COUNTIF(AB$69:$AB105,AB105),"") -> 36 | AM105: Item I - 36 | AN105: Holerite | AO105: Rosa Maria da Silva Santos | AP105: 0 | AR105: FALSE | AS105: TRUE | AT105: FALSE | AX105: Despesas com Pessoal | AY105: 1
A106: 38 | B106: Despesas com pessoal | C106: Pagamento mensal | E106: 2021-01-20 | G106: Holerite | K106: Rosiane Souza Pereira | P106: 41738 | R106: 94 | U106: Adiantamento Salarial - ref. 01/2021 | AA106: Show | AB106: Item I | AC106: SIM | AD106: =IF(AC106="NÃO","",COUNT($AD$68:$AD105)+1) -> 38 | AG106: 0 | AJ106: 0 | AL106: =IF(AB106<>"",COUNTIF(AB$69:$AB106,AB106),"") -> 37 | AM106: Item I - 37 | AN106: Holerite | AO106: Rosiane Souza Pereira | AP106: 0 | AR106: FALSE | AS106: TRUE | AT106: FALSE | AX106: Despesas com Pessoal | AY106: 1
A107: 39 | B107: Despesas com pessoal | C107: Pagamento mensal | E107: 2021-01-31 | G107: Holerite | K107: Rosiane Souza Pereira | P107: 41738 | R107: 629 | U107: Salário Mensal - ref. 01/2021 | AA107: Show | AB107: Item I | AC107: SIM | AD107: =IF(AC107="NÃO","",COUNT($AD$68:$AD106)+1) -> 39 | AG107: 0 | AJ107: 0 | AL107: =IF(AB107<>"",COUNTIF(AB$69:$AB107,AB107),"") -> 38 | AM107: Item I - 38 | AN107: Holerite | AO107: Rosiane Souza Pereira | AP107: 0 | AR107: FALSE | AS107: TRUE | AT107: FALSE | AX107: Despesas com Pessoal | AY107: 1
A108: 40 | B108: Despesas com pessoal | C108: Pagamento mensal | E108: 2021-01-20 | G108: Holerite | K108: Sandra Octaviano da Silva | P108: 41739 | R108: 214 | U108: Adiantamento Salarial - ref. 01/2021 | AA108: Show | AB108: Item I | AC108: SIM | AD108: =IF(AC108="NÃO","",COUNT($AD$68:$AD107)+1) -> 40 | AG108: 0 | AJ108: 0 | AL108: =IF(AB108<>"",COUNTIF(AB$69:$AB108,AB108),"") -> 39 | AM108: Item I - 39 | AN108: Holerite | AO108: Sandra Octaviano da Silva | AP108: 0 | AR108: FALSE | AS108: TRUE | AT108: FALSE | AX108: Despesas com Pessoal | AY108: 1
A109: 41 | B109: Despesas com pessoal | C109: Pagamento mensal | E109: 2021-01-31 | G109: Holerite | K109: Sandra Octaviano da Silva | P109: 41739 | R109: 650 | U109: Salário Mensal - ref. 01/2021 | AA109: Show | AB109: Item I | AC109: SIM | AD109: =IF(AC109="NÃO","",COUNT($AD$68:$AD108)+1) -> 41 | AG109: 0 | AJ109: 0 | AL109: =IF(AB109<>"",COUNTIF(AB$69:$AB109,AB109),"") -> 40 | AM109: Item I - 40 | AN109: Holerite | AO109: Sandra Octaviano da Silva | AP109: 0 | AR109: FALSE | AS109: TRUE | AT109: FALSE | AX109: Despesas com Pessoal | AY109: 1
A110: 42 | B110: Despesas com pessoal | C110: Pagamento mensal | E110: 2021-01-20 | G110: Holerite | K110: Valdinez Vieria Bezerra | P110: 41740 | R110: 144 | U110: Adiantamento Salarial - ref. 01/2021 | AA110: Show | AB110: Item I | AC110: SIM | AD110: =IF(AC110="NÃO","",COUNT($AD$68:$AD109)+1) -> 42 | AG110: 0 | AJ110: 0 | AL110: =IF(AB110<>"",COUNTIF(AB$69:$AB110,AB110),"") -> 41 | AM110: Item I - 41 | AN110: Holerite | AO110: Valdinez Vieria Bezerra | AP110: 0 | AR110: FALSE | AS110: TRUE | AT110: FALSE | AX110: Despesas com Pessoal | AY110: 1
A111: 43 | B111: Despesas com pessoal | C111: Pagamento mensal | E111: 2021-01-31 | G111: Holerite | K111: Valdinez Vieria Bezerra | P111: 41740 | R111: 344 | U111: Salário Mensal - ref. 01/2021 | AA111: Show | AB111: Item I | AC111: SIM | AD111: =IF(AC111="NÃO","",COUNT($AD$68:$AD110)+1) -> 43 | AG111: 0 | AJ111: 0 | AL111: =IF(AB111<>"",COUNTIF(AB$69:$AB111,AB111),"") -> 42 | AM111: Item I - 42 | AN111: Holerite | AO111: Valdinez Vieria Bezerra | AP111: 0 | AR111: FALSE | AS111: TRUE | AT111: FALSE | AX111: Despesas com Pessoal | AY111: 1
A112: 44 | B112: Despesas com pessoal | C112: Pagamento mensal | E112: 2021-01-20 | G112: Holerite | K112: Valdriene Kellory B. de Oliveira | P112: 41740 | R112: 93 | U112: Adiantamento Salarial - ref. 01/2021 | AA112: Show | AB112: Item I | AC112: SIM | AD112: =IF(AC112="NÃO","",COUNT($AD$68:$AD111)+1) -> 44 | AG112: 0 | AJ112: 0 | AL112: =IF(AB112<>"",COUNTIF(AB$69:$AB112,AB112),"") -> 43 | AM112: Item I - 43 | AN112: Holerite | AO112: Valdriene Kellory B. de Oliveira | AP112: 0 | AR112: FALSE | AS112: TRUE | AT112: FALSE | AX112: Despesas com Pessoal | AY112: 1
A113: 45 | B113: Despesas com pessoal | C113: Pagamento mensal | E113: 2021-01-31 | G113: Holerite | K113: Valdriene Kellory B. de Oliveira | P113: 41740 | R113: 635 | U113: Salário Mensal - ref. 01/2021 | AA113: Show | AB113: Item I | AC113: SIM | AD113: =IF(AC113="NÃO","",COUNT($AD$68:$AD112)+1) -> 45 | AG113: 0 | AJ113: 0 | AL113: =IF(AB113<>"",COUNTIF(AB$69:$AB113,AB113),"") -> 44 | AM113: Item I - 44 | AN113: Holerite | AO113: Valdriene Kellory B. de Oliveira | AP113: 0 | AR113: FALSE | AS113: TRUE | AT113: FALSE | AX113: Despesas com Pessoal | AY113: 1
A114: 46 | B114: Manutenção do imóvel | C114: Serviços de manutenção - PJ | E114: 2021-02-01 | G114: NFS-e | I114: 260 | K114: A.B. de Almeida Instaladora de Portoes | P114: 41750 | R114: 150 | U114: Troca de dobradiças e ajuste das folgas | AA114: Show | AB114: Item VIII | AC114: SIM | AD114: =IF(AC114="NÃO","",COUNT($AD$68:$AD113)+1) -> 46 | AG114: 0 | AJ114: 0 | AL114: =IF(AB114<>"",COUNTIF(AB$69:$AB114,AB114),"") -> 1 | AM114: Item VIII - 1 | AN114: NFS-e 260 | AO114: A.B. de Almeida Instaladora de Portoes | AP114: 0 | AR114: FALSE | AS114: FALSE | AT114: FALSE | AX114: Programa Escola Linda | AY114: 2
A115: 47 | B115: Despesas mensais | C115: Consumo de água | E115: 2021-01-19 | G115: Fatura | I115: 735452 | K115: Sabesp | P115: 41750 | R115: 56.42 | U115: Consumo de Água - ref. 01/2021 | AA115: Show | AB115: Item XI | AC115: SIM | AD115: =IF(AC115="NÃO","",COUNT($AD$68:$AD114)+1) -> 47 | AG115: 0 | AJ115: 0 | AL115: =IF(AB115<>"",COUNTIF(AB$69:$AB115,AB115),"") -> 2 | AM115: Item XI - 2 | AN115: Fatura 735452 | AO115: Sabesp | AP115: 0 | AR115: FALSE | AS115: FALSE | AT115: FALSE | AX115: Despesas Mensais e de Consumo | AY115: 1
A116: 48 | B116: Despesas com pessoal | C116: Vale-transporte | E116: 2021-01-27 | G116: Recibo | I116: 958787 | K116: Cartão Legal | P116: 41750 | R116: 592.8 | U116: Vale transporte - ref. 02/2021 | AA116: Show | AB116: Item I | AC116: SIM | AD116: =IF(AC116="NÃO","",COUNT($AD$68:$AD115)+1) -> 48 | AG116: 0 | AJ116: 0 | AL116: =IF(AB116<>"",COUNTIF(AB$69:$AB116,AB116),"") -> 45 | AM116: Item I - 45 | AN116: Recibo 958787 | AO116: Cartão Legal | AP116: 0 | AR116: FALSE | AS116: FALSE | AT116: FALSE | AX116: Despesas com Pessoal | AY116: 1
A117: 49 | B117: Despesas com pessoal | C117: Vale-transporte | E117: 2021-01-27 | G117: Boleto Bancário | I117: 705537 | K117: Via Nova Serviços Eireli | P117: 41750 | R117: 848.41 | U117: Vale transporte - ref. 02/2021 | AA117: Show | AB117: Item I | AC117: SIM | AD117: =IF(AC117="NÃO","",COUNT($AD$68:$AD116)+1) -> 49 | AG117: 0 | AJ117: 0 | AL117: =IF(AB117<>"",COUNTIF(AB$69:$AB117,AB117),"") -> 46 | AM117: Item I - 46 | AN117: Boleto Bancário 705537 | AO117: Via Nova Serviços Eireli | AP117: 0 | AR117: FALSE | AS117: FALSE | AT117: FALSE | AX117: Despesas com Pessoal | AY117: 1
A118: 50 | B118: Despesas com pessoal | C118: Cesta Básica | E118: 2021-01-05 | G118: NFS-e | I118: 14678 | K118: Sodexo Pass do Brasil Serviços | P118: 41750 | R118: 2813 | U118: 20 Cestas Basicas - ref. 01/2021 | AA118: Show | AB118: Item I | AC118: SIM | AD118: =IF(AC118="NÃO","",COUNT($AD$68:$AD117)+1) -> 50 | AG118: 0 | AJ118: 0 | AL118: =IF(AB118<>"",COUNTIF(AB$69:$AB118,AB118),"") -> 47 | AM118: Item I - 47 | AN118: NFS-e 14678 | AO118: Sodexo Pass do Brasil Serviços | AP118: 0 | AR118: FALSE | AS118: FALSE | AT118: FALSE | AX118: Despesas com Pessoal | AY118: 1
A119: 51 | B119: Despesas mensais | C119: Conta de telefone/internet | E119: 2021-01-02 | G119: Fatura | I119: 61462891 | K119: Terra Networks Brasil S/A | P119: 41750 | R119: 43.69 | U119: Acesso Unificado Emp/Email - ref. 12/2020 | AA119: Show | AB119: Item XI | AC119: SIM | AD119: =IF(AC119="NÃO","",COUNT($AD$68:$AD118)+1) -> 51 | AG119: 0 | AJ119: 0 | AL119: =IF(AB119<>"",COUNTIF(AB$69:$AB119,AB119),"") -> 3 | AM119: Item XI - 3 | AN119: Fatura 61462891 | AO119: Terra Networks Brasil S/A | AP119: 0 | AR119: FALSE | AS119: FALSE | AT119: FALSE | AX119: Despesas Mensais e de Consumo | AY119: 1
A120: 52 | B120: Despesas mensais | C120: Conta de telefone/internet | E120: 2021-01-02 | G120: Fatura | I120: 89579825 | K120: Terra Networks Brasil S/A | P120: 41750 | R120: 50.33 | U120: Divulga Facil/Suporte Emp - ref. 12/2020 | AA120: Show | AB120: Item XI | AC120: SIM | AD120: =IF(AC120="NÃO","",COUNT($AD$68:$AD119)+1) -> 52 | AG120: 0 | AJ120: 0 | AL120: =IF(AB120<>"",COUNTIF(AB$69:$AB120,AB120),"") -> 4 | AM120: Item XI - 4 | AN120: Fatura 89579825 | AO120: Terra Networks Brasil S/A | AP120: 0 | AR120: FALSE | AS120: FALSE | AT120: FALSE | AX120: Despesas Mensais e de Consumo | AY120: 1
A121: 53 | B121: Despesas com pessoal | C121: Assistência Médica | E121: 2021-01-02 | G121: NFS-e | I121: 8802995 | K121: Santa Helena Assistencia Medica | P121: 41750 | R121: 2402.55 | U121: Assistencia Medica de 11/01 a 10/02/2021 | AA121: Show | AB121: Item I | AC121: SIM | AD121: =IF(AC121="NÃO","",COUNT($AD$68:$AD120)+1) -> 53 | AG121: 0 | AJ121: 0 | AL121: =IF(AB121<>"",COUNTIF(AB$69:$AB121,AB121),"") -> 48 | AM121: Item I - 48 | AN121: NFS-e 8802995 | AO121: Santa Helena Assistencia Medica | AP121: 0 | AR121: FALSE | AS121: FALSE | AT121: FALSE | AX121: Despesas com Pessoal | AY121: 1
A122: 54 | B122: Despesas mensais | C122: Conta de telefone/internet | E122: 2021-01-01 | G122: Fatura | I122: 27446980 | K122: Telefonica Brasil S/A | P122: 41750 | R122: 144.37 | U122: Telefone/Internet - ref. 01/2021 | AA122: Show | AB122: Item XI | AC122: SIM | AD122: =IF(AC122="NÃO","",COUNT($AD$68:$AD121)+1) -> 54 | AG122: 0 | AJ122: 0 | AL122: =IF(AB122<>"",COUNTIF(AB$69:$AB122,AB122),"") -> 5 | AM122: Item XI - 5 | AN122: Fatura 27446980 | AO122: Telefonica Brasil S/A | AP122: 0 | AR122: FALSE | AS122: FALSE | AT122: FALSE | AX122: Despesas Mensais e de Consumo | AY122: 1
A123: 55 | B123: Manutenção do imóvel | C123: Seguro predial | E123: 2021-01-08 | G123: Boleto Bancário | I123: 10844971 | K123: Tokio Marine Seguradora S.A. | P123: 41750 | R123: 2527.6 | U123: Seguro do Imóvel ref. 2021 | AA123: Show | AB123: Item VIII | AC123: SIM | AD123: =IF(AC123="NÃO","",COUNT($AD$68:$AD122)+1) -> 55 | AG123: 0 | AJ123: 0 | AL123: =IF(AB123<>"",COUNTIF(AB$69:$AB123,AB123),"") -> 2 | AM123: Item VIII - 2 | AN123: Boleto Bancário 10844971 | AO123: Tokio Marine Seguradora S.A. | AP123: 0 | AR123: FALSE | AS123: FALSE | AT123: FALSE | AX123: Programa Escola Linda | AY123: 1
A124: 56 | B124: Despesas com pessoal | C124: Seguro de Vida | E124: 2021-01-13 | G124: Fatura | I124: 4983956 | K124: Clube Pasi de Seguros | P124: 41750 | R124: 191.6 | U124: Seguro de Vida - ref. 01/2021 - 20 vidas | AA124: Show | AB124: Item I | AC124: SIM | AD124: =IF(AC124="NÃO","",COUNT($AD$68:$AD123)+1) -> 56 | AG124: 0 | AJ124: 0 | AL124: =IF(AB124<>"",COUNTIF(AB$69:$AB124,AB124),"") -> 49 | AM124: Item I - 49 | AN124: Fatura 4983956 | AO124: Clube Pasi de Seguros | AP124: 0 | AR124: FALSE | AS124: FALSE | AT124: FALSE | AX124: Despesas com Pessoal | AY124: 1
A125: 57 | B125: Despesas com pessoal | C125: Seguro de Vida | E125: 2021-01-28 | G125: Boleto Bancário | I125: 264653 | K125: Proagir Clube de Beneficios Sociais | P125: 177797 | R125: 250 | U125: Beneficio Social - ref. 01/2021 | AA125: Show | AB125: Item I | AC125: SIM | AD125: =IF(AC125="NÃO","",COUNT($AD$68:$AD124)+1) -> 57 | AG125: 0 | AJ125: 0 | AL125: =IF(AB125<>"",COUNTIF(AB$69:$AB125,AB125),"") -> 50 | AM125: Item I - 50 | AN125: Boleto Bancário 264653 | AO125: Proagir Clube de Beneficios Sociais | AP125: 0 | AR125: FALSE | AS125: FALSE | AT125: FALSE | AX125: Despesas com Pessoal | AY125: 1
A126: 58 | B126: Despesas com pessoal | C126: Pagamento mensal | E126: 2021-01-25 | G126: Boleto Bancário | I126: 1598-F12V | K126: Federação das Entidades Bem Estar | P126: 179907 | R126: 179.8 | U126: Contribuição Entid. Classe - ref. 01/2021 | AA126: Show | AB126: Item I | AC126: SIM | AD126: =IF(AC126="NÃO","",COUNT($AD$68:$AD125)+1) -> 58 | AG126: 0 | AJ126: 0 | AL126: =IF(AB126<>"",COUNTIF(AB$69:$AB126,AB126),"") -> 51 | AM126: Item I - 51 | AN126: Boleto Bancário 1598-F12V | AO126: Federação das Entidades Bem Estar | AP126: 0 | AR126: FALSE | AS126: FALSE | AT126: FALSE | AX126: Despesas com Pessoal | AY126: 1
A127: 59 | B127: Despesas mensais | C127: Conta de telefone/internet | E127: 2021-01-22 | G127: Fatura | I127: 89774521 | K127: Terra Networks Brasil S/A | P127: 310311 | R127: 50.33 | U127: Divulga Facil/Suporte Emp - ref. 01/2021 | AA127: Show | AB127: Item XI | AC127: SIM | AD127: =IF(AC127="NÃO","",COUNT($AD$68:$AD126)+1) -> 59 | AG127: 0 | AJ127: 0 | AL127: =IF(AB127<>"",COUNTIF(AB$69:$AB127,AB127),"") -> 6 | AM127: Item XI - 6 | AN127: Fatura 89774521 | AO127: Terra Networks Brasil S/A | AP127: 0 | AR127: FALSE | AS127: FALSE | AT127: FALSE | AX127: Despesas Mensais e de Consumo | AY127: 1
A128: 60 | B128: Despesas mensais | C128: Conta de telefone/internet | E128: 2021-01-22 | G128: Fatura | I128: 89774521 | K128: Terra Networks Brasil S/A | P128: 310311 | R128: 43.69 | U128: Acesso Unificado Emp/Email - ref. 01/2021 | AA128: Show | AB128: Item XI | AC128: SIM | AD128: =IF(AC128="NÃO","",COUNT($AD$68:$AD127)+1) -> 60 | AG128: 0 | AJ128: 0 | AL128: =IF(AB128<>"",COUNTIF(AB$69:$AB128,AB128),"") -> 7 | AM128: Item XI - 7 | AN128: Fatura 89774521 | AO128: Terra Networks Brasil S/A | AP128: 0 | AR128: FALSE | AS128: FALSE | AT128: FALSE | AX128: Despesas Mensais e de Consumo | AY128: 1
A129: 61 | B129: Despesas mensais | C129: Conta de telefone/internet | E129: 2021-02-15 | G129: Fatura | I129: 10837780 | K129: Telefonica Brasil S/A | P129: 735361 | R129: 144.37 | U129: Telefone/internet - ref. 02/2021 | AA129: Show | AB129: Item XI | AC129: SIM | AD129: =IF(AC129="NÃO","",COUNT($AD$68:$AD128)+1) -> 61 | AG129: 0 | AJ129: 0 | AL129: =IF(AB129<>"",COUNTIF(AB$69:$AB129,AB129),"") -> 8 | AM129: Item XI - 8 | AN129: Fatura 10837780 | AO129: Telefonica Brasil S/A | AP129: 0 | AR129: FALSE | AS129: FALSE | AT129: FALSE | AX129: Despesas Mensais e de Consumo | AY129: 2
A130: 62 | B130: Despesas com pessoal | C130: Assistência Médica | E130: 2021-01-30 | G130: NFS-e | I130: 8901202 | K130: Santa Helena Assistencia Medica | P130: 263480 | R130: 3269.05 | U130: Assistencia Medica de 11/02 a 10/03/21 | AA130: Show | AB130: Item I | AC130: SIM | AD130: =IF(AC130="NÃO","",COUNT($AD$68:$AD129)+1) -> 62 | AG130: 0 | AJ130: 0 | AL130: =IF(AB130<>"",COUNTIF(AB$69:$AB130,AB130),"") -> 52 | AM130: Item I - 52 | AN130: NFS-e 8901202 | AO130: Santa Helena Assistencia Medica | AP130: 0 | AR130: FALSE | AS130: FALSE | AT130: FALSE | AX130: Despesas com Pessoal | AY130: 1
A131: 63 | B131: Despesas com pessoal | C131: Encargos trabalhistas | E131: 2021-01-31 | G131: DARF | I131: PIS | K131: Secretaria Receita Federal do Brasil | P131: 410118 | R131: 528.65 | U131: Pis s/ folha - ref. 01/2021 | AA131: Show | AB131: Item I | AC131: SIM | AD131: =IF(AC131="NÃO","",COUNT($AD$68:$AD130)+1) -> 63 | AG131: 0 | AJ131: 0 | AL131: =IF(AB131<>"",COUNTIF(AB$69:$AB131,AB131),"") -> 53 | AM131: Item I - 53 | AN131: DARF PIS | AO131: Secretaria Receita Federal do Brasil | AP131: 0 | AR131: FALSE | AS131: FALSE | AT131: FALSE | AX131: Despesas com Pessoal | AY131: 1
A132: 64 | B132: Despesas com pessoal | C132: Encargos trabalhistas | E132: 2021-01-31 | G132: DARF | I132: IRRF | K132: Secretaria Receita Federal do Brasil | P132: 410236 | R132: 30.11 | U132: IRRF - ref. 01/2021 | AA132: Show | AB132: Item I | AC132: SIM | AD132: =IF(AC132="NÃO","",COUNT($AD$68:$AD131)+1) -> 64 | AG132: 0 | AJ132: 0 | AL132: =IF(AB132<>"",COUNTIF(AB$69:$AB132,AB132),"") -> 54 | AM132: Item I - 54 | AN132: DARF IRRF | AO132: Secretaria Receita Federal do Brasil | AP132: 0 | AR132: FALSE | AS132: FALSE | AT132: FALSE | AX132: Despesas com Pessoal | AY132: 1
A133: 65 | B133: Despesas com pessoal | C133: Encargos trabalhistas | E133: 2021-01-31 | G133: GPS | I133: INSS | K133: Intituto Nacional do Seguro Social | P133: 816597 | R133: 18767.44 | U133: INSS - ref. 01/2021 | AA133: Show | AB133: =IFERROR(VLOOKUP($C133,iTCESP,2,0),"") -> Item I | AC133: SIM | AD133: =IF(AC133="NÃO","",COUNT($AD$68:$AD132)+1) -> 65 | AG133: 0 | AJ133: 0 | AL133: =IF(AB133<>"",COUNTIF(AB$69:$AB133,AB133),"") -> 55 | AM133: Item I - 55 | AN133: GPS INSS | AO133: Intituto Nacional do Seguro Social | AP133: 0 | AR133: =IFERROR(IF(B133=VLOOKUP(C133,iTCESP,3,0),FALSE,TRUE),"") -> FALSE | AS133: FALSE | AT133: FALSE | AX133: =IF(R133>0,VLOOKUP(C133,iTCESP,4,0),"") -> Despesas com Pessoal | AY133: 1
A134: 66 | B134: Despesas mensais | C134: Contador | E134: 2021-01-25 | G134: NFS-e | I134: 19711 | K134: Real Assessoria Contabil Informatizada | P134: 211952 | R134: 1100 | U134: Honorários Contábeis - ref. 01/2021 | AA134: =IF(R134=0,"Hide","Show") -> Show | AB134: Item VIII | AC134: SIM | AD134: =IF(AC134="NÃO","",COUNT($AD$68:$AD133)+1) -> 66 | AF134: =IF($AE134=1,$B134,"") ->  | AG134: 0 | AI134: =IF($AH134=1,$B134,"") ->  | AJ134: 0 | AL134: =IF(AB134<>"",COUNTIF(AB$69:$AB134,AB134),"") -> 3 | AM134: =AB134&" - "&AL134 -> Item VIII - 3 | AN134: =G134&" "&I134 -> NFS-e 19711 | AO134: =K134 -> Real Assessoria Contabil Informatizada | AP134: =Z134 -> 0 | AR134: FALSE | AS134: =IF(R134=0,FALSE,IF(COUNTA(B134:W134)=9,FALSE,TRUE)) -> FALSE | AT134: =IF(OR(COUNTIF(E134,">"&$AC$6),COUNTIF(E134,"<"&$AC$4)),TRUE,FALSE) -> FALSE | AX134: Contador | AY134: =IF(E134<>0,MONTH(E134),"") -> 1
A135: 67 | B135: Despesas com pessoal | C135: Seguro de Vida | E135: 2021-02-11 | G135: Fatura | I135: 5006735 | K135: Clube Pasi de Seguros | P135: 212820 | R135: 191.6 | U135: Seguro de Vida - ref. 02/2021 - 20 vidas | AA135: Show | AB135: Item I | AC135: SIM | AD135: =IF(AC135="NÃO","",COUNT($AD$68:$AD134)+1) -> 67 | AG135: 0 | AJ135: 0 | AL135: =IF(AB135<>"",COUNTIF(AB$69:$AB135,AB135),"") -> 56 | AM135: Item I - 56 | AN135: Fatura 5006735 | AO135: Clube Pasi de Seguros | AP135: 0 | AR135: FALSE | AS135: FALSE | AT135: FALSE | AX135: Despesas com Pessoal | AY135: 2
A136: 68 | B136: Despesas com pessoal | C136: Pagamento mensal | E136: 2021-02-20 | G136: Holerite | K136: Adriana Rodrigues de Sousa | P136: 191057 | R136: 576 | U136: Adiantamento Salarial - ref. 02/2021 | AA136: Show | AB136: Item I | AC136: SIM | AD136: =IF(AC136="NÃO","",COUNT($AD$68:$AD135)+1) -> 68 | AE136: =IF($X136="Total",1,"") ->  | AG136: =IF($AE136=1,$R136,0) -> 0 | AH136: =IF($X136="Parcial",1,"") ->  | AJ136: =IF($AH136=1,$Y136,0) -> 0 | AL136: =IF(AB136<>"",COUNTIF(AB$69:$AB136,AB136),"") -> 57 | AM136: Item I - 57 | AN136: Holerite | AO136: Adriana Rodrigues de Sousa | AP136: 0 | AR136: FALSE | AS136: TRUE | AT136: FALSE | AX136: Despesas com Pessoal | AY136: 2
